Workbook

Sheet 2021-2022
BS1: Data | BT1: Sarbatoare legala
BS2: 2021-11-30 | BT2: Sf Andrei
BS3: 2021-12-01 | BT3: Ziua Nationala
BS4: 2022-01-24 | BT4: Ziua Unirii Principatelor României
BS5: 2022-04-22 | BT5: Vinerea Mare
BS6: 2022-04-25 | BT6: A doua zi de Paste Ortodox
BS7: 2022-06-01 | BT7: Ziua copilului
BC8: parteneri adiacenti | BD8: UR | BP8: parteneri adiacenti | BQ8: UR | BS8: 2022-06-13 | BT8: A doua zi de Rusalii
A9: EVIDENȚA LIMITĂRILOR ȘI/SAU ÎNTRERUPERILOR PLANIFICATE ȘI NEPLANIFICATE pentru anul gazier 2021 - 2022 / RECORD OF THE PLANNED AND UNPLANNED LIMITATIONS AND/OR INTERRUPTIONS related to the gas year 2021 - 2022 | AR9: Lucrari neprogramate | BB9: NU6 | BC9: =SUBTOTAL(9,AS:AS) -> 113 | BD9: =SUBTOTAL(9,AV:AV) -> 3151 | BF9: Lucrari programate | BO9: NU5 | BP9: =SUBTOTAL(9,BG:BG) -> 31 | BQ9: =SUBTOTAL(9,BJ:BJ) -> 1080 | BS9: 2022-08-15 | BT9: Adormirea Maicii Domnului
S10: EVIDENȚA LIMITĂRILOR ȘI/SAU ÎNTRERUPERILOR PLANIFICATE ȘI NEPLANIFICATE pentru anul gazier 2021 - 2022 / RECORD OF THE PLANNED AND UNPLANNED LIMITATIONS AND/OR INTERRUPTIONS related to the gas year 2021 - 2022 | AR10: Partener adiacent | AU10: UR | BB10: NUafectati | BC10: =SUBTOTAL(9,AT:AT) -> 113 | BD10: =SUBTOTAL(9,AW:AW) -> 3151 | BF10: Partener adiacent | BI10: UR | BO10: NUafectati | BP10: =SUBTOTAL(9,BH:BH) -> 31 | BQ10: =SUBTOTAL(9,BK:BK) -> 1080
A11: Nr. crt. / Item No. | B11: Tipul limitării/întreruperii / Type of limitation/interruption | D11: Denumire lucrare/motiv limitare și/sau întrerupere / Name of the works/reason for the limitation and/or interruption | E11: Locația limitării/întreruperii / Location of the limitation/interruption | L11: Punct de ieșire/intrare afectat / Affected exit/entry point | T11: Cod punct relevant / Code of the relevant point | U11: Utilizator ST afectat / Affected TS user | W11: Perioada planificată de execuție a lucrării / Planned period for the execution of the works | X11: Data și ora limitării/întreruperii / Date and hour of the limitation/interruption | Z11: Data și ora reluării prestării serviciului / Date and hour the service supply is resumed | AB11: Exploatarea Teritorială / Regional Office | AC11: Observații / Comments | AD11: Justificarea modificării perioadei planificate de execuție a lucrări | AE11: Data și ora efectivă de limitare/întrerupere | AG11: Data și ora efectivă de reluare a prestării serviciului | AI11: Data și ora informării UR | AK11: Data și ora informării partenerului adiacent | AM11: Foaia de manevră | AN11: A fost afectat producătorul (în cazul PM) sau consumatorul final (în cazul SM)? (DA/NU) | AO11: Observatii | AP11: Program bugetat | AR11: Numar de ore de la producerea intreruperii / limitarii pana la anuntarea partenerului adiacent (trebuie sa fie mai mic decat 6) | AS11: NU6 | AT11: NUafectati | AU11: Numar de ore de la producerea intreruperii / limitarii pana la anuntarea UR (trebuie sa fie mai mic decat 6) | AV11: NU6 | AW11: NUafectati | AX11: Durata intreruperii / limitarii [ore] (daca este mai mare de 24, trebuie sa fie completata celula aferenta de pe coloana AZ) | AY11: NU24 | AZ11: Nuafectati | BA11: Partener adiacent informat din 12 in 12 ore, daca durata mai mare de 24h (DA/NU) | BB11: NU6 | BC11: =BC9+BD9 -> 3264 | BD11: IP51 | BF11: Numar de zile lucratoare de anuntare partener adiacent pana la limitare / intrerupere (trebuie sa fie mai mare de 5) | BG11: NU5 | BH11: NUafectati | BI11: Numar de zile de anuntare UR pana la limitare / intrerupere (trebuie sa fie mai mare de 5) | BJ11: NU5 | BK11: NUafectati | BL11: Numar ore intre data anuntata si cea efectiva de reluare (trebuie sa fie mai mic sau egal cu 0) | BM11: NUreluate | BN11: NUafectati | BO11: NU5 | BP11: =BP9+BQ9 -> 1111 | BQ11: IP61
E12: Siruta / Siruta code | F12: Localitate / Locality | G12: Județ / County | H12: Coordonate GPS început / GPS coordinates-beginning | J12: Coordonate GPS sfârșit / GPS coordinates-end | L12: Puncte de ieșire din SNT / NTS exit points | P12: Puncte de intrare în SNT / NTS entry points | BB12: NUafectati | BC12: =BC10+BD10 -> 3264 | BD12: =IF(BC12=0,1,BC11/BC12) -> 1 | BO12: NUafectati | BP12: =BP10+BQ10 -> 1111 | BQ12: =IF(BP12=0,1,BP11/BP12) -> 1
B13: Neplanificată / Unplanned | C13: Planificată / Planned | L13: Limitare / Limitation | N13: Întrerupere / Interruption | P13: Limitare / Limitation | R13: Întrerupere / Interruption | X13: Data / Date | Y13: Ora / Hour | Z13: Data / Date | AA13: Ora / Hour | AE13: Data | AF13: Ora | AG13: Data | AH13: Ora | AI13: Data | AJ13: Ora | AK13: Data | AL13: Ora | BB13: NU24 | BC13: =SUBTOTAL(9,AY:AY) -> 12 | BD13: IP52 | BO13: NUreluare | BP13: =SUBTOTAL(9,BM:BM) -> 1111 | BQ13: IP62
H14: X1 | I14: Y1 | J14: X2 | K14: Y2 | L14: Cod / Code | M14: Denumire / Name | N14: Cod / Code | O14: Denumire / Name | P14: Cod / Code | Q14: Denumire / Name | R14: Cod / Code | S14: Denumire / Name | U14: Utilizator de rețea / Network User | V14: Partener adiacent / Adjacent Partner | BB14: NUafectati | BC14: =SUBTOTAL(9,AZ:AZ) -> 12 | BD14: =IF(BC14=0,1,BC13/BC14) -> 1 | BO14: NUafectati | BP14: =SUBTOTAL(9,BN:BN) -> 1111 | BQ14: =IF(BP14=0,1,BP13/BP14) -> 1
A15: 0 | B15: 1 | C15: 2 | D15: 3 | E15: 4 | F15: 5 | G15: 6 | H15: 7 | I15: 8 | J15: 9 | K15: 10 | L15: 11 | M15: 12 | N15: 13 | O15: 14 | P15: 15 | Q15: 16 | R15: 17 | S15: 18 | T15: 19 | U15: 20 | V15: 21 | W15: 22 | X15: 23 | Y15: 24 | Z15: 25 | AA15: 26 | AB15: 27 | AC15: 28 | AD15: 29 | AE15: 30 | AF15: 31 | AG15: 32 | AH15: 33 | AI15: 34 | AJ15: 35 | AK15: 36 | AL15: 37 | AM15: 38 | AN15: 39 | AO15: 40 | AP15: 41
A16: 1 | B16: - | C16: x | D16: Punere în siguranță subtraversare râu Bistrița cu conducta 12” Piatra Neamț - Bicaz, în zona Viișoara | E16: 124965 | F16: Bisericani | G16: Neamț | H16: 594524.28 | I16: 607357.25 | J16: 594524.28 | K16: 607357.25 | L16: - | M16: - | N16: SM0456D0 | O16: Spitalul de Pneumoftiziologie Bisericani | P16: - | Q16: - | R16: - | S16: - | T16: SM-CF001 | U16: Engie | V16: Spitalul de Pneumoftiziologie Bisericani | W16: octombrie - decembrie 2021 aprilie - iunie 2022 | X16: 2022-05-10 | Y16: 08:00:00 | Z16: 2022-05-11 | AA16: 20:00:00 | AB16: Bacău | AC16: Efectuată | AD16: Se intenționează executarea simultană a mai multor lucrări de pe această conductă | AE16: 2022-05-10 | AF16: 08:06:00 | AG16: 2022-05-10 | AH16: 19:35:00 | AI16: 2022-05-02 | AJ16: 15:00:00 | AK16: 2022-05-02 | AL16: 14:52:00 | AM16: 35856/05.05.2022 | AN16: DA | AP16: PLRRM 2022_IA3_Anexa 1 | AR16: =IF(B16="X",IF(AN16="","Afectat sau NU?",IF(AN16="DA",IF(((AK16+AL16)-(AE16+AF16))*24<-720,"Neinformat",((AK16+AL16)-(AE16+AF16))*24),"Nu a fost afectat producator/consumator")),"") ->  | AS16: =IF(B16="X",IF(AN16="DA",IF(AR16<6,LEN(TRIM(V16))-LEN(SUBSTITUTE(V16,CHAR(44),""))+1,0),"-"),"") ->  | AT16: =IF(B16="X",IF(AN16="DA",LEN(TRIM(V16))-LEN(SUBSTITUTE(V16,CHAR(44),""))+1,"-"),"") ->  | AU16: =IF(B16="X",IF(AN16="","Afectat sau NU?",IF(AN16="DA",IF(((AI16+AJ16)-(AE16+AF16))*24<-720,"Neinformat",((AI16+AJ16)-(AE16+AF16))*24),"Nu a fost afectat producator/consumator")),"") ->  | AV16: =IF(B16="X",IF(AN16="DA",IF(AU16<6,LEN(TRIM(U16))-LEN(SUBSTITUTE(U16,CHAR(44),""))+1,0),"-"),"") ->  | AW16: =IF(B16="X",IF(AN16="DA",LEN(TRIM(U16))-LEN(SUBSTITUTE(U16,CHAR(44),""))+1,"-"),"") ->  | AX16: =IF(B16="X",IF(AN16="","Afectat sau NU?",IF(AN16="DA",((AG16+AH16)-(AE16+AF16))*24,"Nu a fost afectat producator/consumator")),"") ->  | AY16: =IF(B16="X",IF(AN16="DA",IF(AX16>24,IF(BA16="NU",0,LEN(TRIM(V16))-LEN(SUBSTITUTE(V16,CHAR(44),""))+1),0),"-"),"") ->  | AZ16: =IF(B16="X",IF(AN16="DA",IF(AX16>24,LEN(TRIM(V16))-LEN(SUBSTITUTE(V16,CHAR(44),""))+1,0),"-"),"") ->  | BF16: =IF(C16="X",IF(AN16="","Afectat sau NU?",IF(AN16="DA",IF(AK16="","Neinformat",NETWORKDAYS(AK16+AL16,AE16+AF16,$BS$2:$BS$14)-2),"Nu a fost afectat producator/consumator")),"") -> 5 | BG16: =IF(C16="X",IF(AN16="DA",IF(AND(BF16>=5,AK16<>""),LEN(TRIM(V16))-LEN(SUBSTITUTE(V16,CHAR(44),""))+1,0),"-"),"") -> 1 | BH16: =IF(C16="X",IF(AN16="DA",LEN(TRIM(V16))-LEN(SUBSTITUTE(V16,CHAR(44),""))+1,"-"),"") -> 1 | BI16: =IF(C16="X",IF(AN16="","Afectat sau NU?",IF(AN16="DA",IF(AI16="","Neinformat",NETWORKDAYS(AI16+AJ16,AE16+AF16,$BS$2:$BS$14)-2),"Nu a fost afectat producator/consumator")),"") -> 5 | BJ16: =IF(C16="X",IF(AN16="DA",IF(AND(BI16>=5,AI16<>""),LEN(TRIM(U16))-LEN(SUBSTITUTE(U16,CHAR(44),""))+1,0),"-"),"") -> 1 | BK16: =IF(C16="X",IF(AN16="DA",LEN(TRIM(U16))-LEN(SUBSTITUTE(U16,CHAR(44),""))+1,"-"),"") -> 1 | BL16: =IF(C16="X",IF(AN16="","Afectat sau NU?",IF(AN16="DA",((AG16+AH16)-(Z16+AA16))*24,"Nu a fost afectat producator/consumator")),"") -> -24.41666667 | BM16: =IF(C16="X",IF(AN16<>"DA","-",IF(AND(AN16="DA",BL16<=0),LEN(TRIM(V16))-LEN(SUBSTITUTE(V16,CHAR(44),""))+1+LEN(TRIM(U16))-LEN(SUBSTITUTE(U16,CHAR(44),""))+1,0)),"") -> 2 | BN16: =IF(C16="X",IF(AN16="DA",LEN(TRIM(V16))-LEN(SUBSTITUTE(V16,CHAR(44),""))+1+LEN(TRIM(U16))-LEN(SUBSTITUTE(U16,CHAR(44),""))+1,"-"),"") -> 2
A17: =A16+1 -> 2 | B17: - | C17: x | D17: Punere în siguranță subtraversare râu Bistrița cu conducta 12” Piatra Neamț - Bicaz, în zona Viișoara | E17: 124992 | F17: Vaduri | G17: Neamț | H17: 595164.76 | I17: 604317.65 | J17: 595164.76 | K17: 604317.65 | L17: - | M17: - | N17: SM0457D0 | O17: SC Unopan Vaduri | P17: - | Q17: - | R17: - | S17: - | T17: SM-CF001 | U17: Cordun | V17: SC Unopan SRL | W17: octombrie - decembrie 2021 aprilie - iunie 2022 | X17: 2022-05-10 | Y17: 08:00:00 | Z17: 2022-05-11 | AA17: 20:00:00 | AB17: Bacău | AC17: Efectuată | AD17: Se intenționează executarea simultană a mai multor lucrări de pe această conductă | AE17: 2022-05-10 | AF17: 08:26:00 | AG17: 2022-05-10 | AH17: 20:25:00 | AI17: 2022-05-02 | AJ17: 15:18:00 | AK17: 2022-05-02 | AL17: 15:00:00 | AM17: 35856/05.05.2022 | AN17: DA | AP17: PLRRM 2022_IA3_Anexa 1 | AR17: =IF(B17="X",IF(AN17="","Afectat sau NU?",IF(AN17="DA",IF(((AK17+AL17)-(AE17+AF17))*24<-720,"Neinformat",((AK17+AL17)-(AE17+AF17))*24),"Nu a fost afectat producator/consumator")),"") ->  | AS17: =IF(B17="X",IF(AN17="DA",IF(AR17<6,LEN(TRIM(V17))-LEN(SUBSTITUTE(V17,CHAR(44),""))+1,0),"-"),"") ->  | AT17: =IF(B17="X",IF(AN17="DA",LEN(TRIM(V17))-LEN(SUBSTITUTE(V17,CHAR(44),""))+1,"-"),"") ->  | AU17: =IF(B17="X",IF(AN17="","Afectat sau NU?",IF(AN17="DA",IF(((AI17+AJ17)-(AE17+AF17))*24<-720,"Neinformat",((AI17+AJ17)-(AE17+AF17))*24),"Nu a fost afectat producator/consumator")),"") ->  | AV17: =IF(B17="X",IF(AN17="DA",IF(AU17<6,LEN(TRIM(U17))-LEN(SUBSTITUTE(U17,CHAR(44),""))+1,0),"-"),"") ->  | AW17: =IF(B17="X",IF(AN17="DA",LEN(TRIM(U17))-LEN(SUBSTITUTE(U17,CHAR(44),""))+1,"-"),"") ->  | AX17: =IF(B17="X",IF(AN17="","Afectat sau NU?",IF(AN17="DA",((AG17+AH17)-(AE17+AF17))*24,"Nu a fost afectat producator/consumator")),"") ->  | AY17: =IF(B17="X",IF(AN17="DA",IF(AX17>24,IF(BA17="NU",0,LEN(TRIM(V17))-LEN(SUBSTITUTE(V17,CHAR(44),""))+1),0),"-"),"") ->  | AZ17: =IF(B17="X",IF(AN17="DA",IF(AX17>24,LEN(TRIM(V17))-LEN(SUBSTITUTE(V17,CHAR(44),""))+1,0),"-"),"") ->  | BF17: =IF(C17="X",IF(AN17="","Afectat sau NU?",IF(AN17="DA",IF(AK17="","Neinformat",NETWORKDAYS(AK17+AL17,AE17+AF17,$BS$2:$BS$14)-2),"Nu a fost afectat producator/consumator")),"") -> 5 | BG17: =IF(C17="X",IF(AN17="DA",IF(AND(BF17>=5,AK17<>""),LEN(TRIM(V17))-LEN(SUBSTITUTE(V17,CHAR(44),""))+1,0),"-"),"") -> 1 | BH17: =IF(C17="X",IF(AN17="DA",LEN(TRIM(V17))-LEN(SUBSTITUTE(V17,CHAR(44),""))+1,"-"),"") -> 1 | BI17: =IF(C17="X",IF(AN17="","Afectat sau NU?",IF(AN17="DA",IF(AI17="","Neinformat",NETWORKDAYS(AI17+AJ17,AE17+AF17,$BS$2:$BS$14)-2),"Nu a fost afectat producator/consumator")),"") -> 5 | BJ17: =IF(C17="X",IF(AN17="DA",IF(AND(BI17>=5,AI17<>""),LEN(TRIM(U17))-LEN(SUBSTITUTE(U17,CHAR(44),""))+1,0),"-"),"") -> 1 | BK17: =IF(C17="X",IF(AN17="DA",LEN(TRIM(U17))-LEN(SUBSTITUTE(U17,CHAR(44),""))+1,"-"),"") -> 1 | BL17: =IF(C17="X",IF(AN17="","Afectat sau NU?",IF(AN17="DA",((AG17+AH17)-(Z17+AA17))*24,"Nu a fost afectat producator/consumator")),"") -> -23.58333333 | BM17: =IF(C17="X",IF(AN17<>"DA","-",IF(AND(AN17="DA",BL17<=0),LEN(TRIM(V17))-LEN(SUBSTITUTE(V17,CHAR(44),""))+1+LEN(TRIM(U17))-LEN(SUBSTITUTE(U17,CHAR(44),""))+1,0)),"") -> 2 | BN17: =IF(C17="X",IF(AN17="DA",LEN(TRIM(V17))-LEN(SUBSTITUTE(V17,CHAR(44),""))+1+LEN(TRIM(U17))-LEN(SUBSTITUTE(U17,CHAR(44),""))+1,"-"),"") -> 2
A18: =A17+1 -> 3 | B18: - | C18: x | D18: Punere în siguranță subtraversare râu Bistrița cu conducta 12” Piatra Neamț - Bicaz, în zona Viișoara | E18: 124992 | F18: Vaduri | G18: Neamț | H18: 595078.51 | I18: 604354.39 | J18: 595078.51 | K18: 604354.39 | L18: - | M18: - | N18: SM0461D0 | O18: SC Kober Vaduri | P18: - | Q18: - | R18: - | S18: - | T18: SM-CF001 | U18: Petrom | V18: SC Kober SRL - Sucursala Vaduri | W18: octombrie - decembrie 2021 aprilie - iunie 2022 | X18: 2022-05-10 | Y18: 08:00:00 | Z18: 2022-05-11 | AA18: 20:00:00 | AB18: Bacău | AC18: Efectuată | AD18: Se intenționează executarea simultană a mai multor lucrări de pe această conductă | AE18: 2022-05-10 | AF18: 08:25:00 | AG18: 2022-05-11 | AH18: 08:50:00 | AI18: 2022-05-02 | AJ18: 15:24:00 | AK18: 2022-05-02 | AL18: 15:10:00 | AM18: 35856/05.05.2022 | AN18: DA | AP18: PLRRM 2022_IA3_Anexa 1 | BF18: 5 | BG18: 1 | BH18: 1 | BI18: 5 | BJ18: 1 | BK18: 1 | BL18: -11.16666667 | BM18: 2 | BN18: 2
A19: =A18+1 -> 4 | B19: - | C19: x | D19: Punere în siguranță subtraversare râu Bistrița cu conducta 12” Piatra Neamț - Bicaz, în zona Viișoara | E19: 124992 | F19: Vaduri | G19: Neamț | H19: 594758.28 | I19: 604040.56 | J19: 594758.28 | K19: 604040.56 | L19: - | M19: - | N19: SM1052D0 | O19: Vaduri | P19: - | Q19: - | R19: - | S19: - | T19: SM-SD001 | U19: Nova Power, Cez Vânzare, Racord Furnizare, Cis Gaz, Conef Gaz, CPL Concordia, Crest Energy, Delgaz, Design Proiect, Distrigaz Vest, Engie, Axpo, E.on Energie, Electrica Furnizare, Electric Planners, Energy Distribution, Enel Energie, Enel Muntenia, Gas&Power, Entrex, Premier Energy Trading, Gaz Est, Gazmir, Mihoc Oil, Met România, Monsson, MVM Future, Next Energy Distribution, Next Energy Partners, Pado Furnizare, Premier Energy, Petrom, Prisma Serv, Gas Provider, Renovatio, Romgaz, RWE Supply, Tetarom, Tinmar, Veolia, Wiee | V19: Delgaz Grid | W19: octombrie - decembrie 2021 aprilie - iunie 2022 | X19: 2022-05-10 | Y19: 08:00:00 | Z19: 2022-05-11 | AA19: 20:00:00 | AB19: Bacău | AC19: Efectuată | AD19: Se intenționează executarea simultană a mai multor lucrări de pe această conductă | AE19: 2022-05-10 | AF19: 08:00:00 | AG19: 2022-05-10 | AH19: 20:00:00 | AI19: 2022-05-02 | AJ19: 15:39:00 | AK19: 2022-05-02 | AL19: 14:45:00 | AM19: 35856/05.05.2022 | AN19: DA | AP19: PLRRM 2022_IA3_Anexa 1 | AR19: =IF(B19="X",IF(AN19="","Afectat sau NU?",IF(AN19="DA",IF(((AK19+AL19)-(AE19+AF19))*24<-720,"Neinformat",((AK19+AL19)-(AE19+AF19))*24),"Nu a fost afectat producator/consumator")),"") ->  | AS19: =IF(B19="X",IF(AN19="DA",IF(AR19<6,LEN(TRIM(V19))-LEN(SUBSTITUTE(V19,CHAR(44),""))+1,0),"-"),"") ->  | AT19: =IF(B19="X",IF(AN19="DA",LEN(TRIM(V19))-LEN(SUBSTITUTE(V19,CHAR(44),""))+1,"-"),"") ->  | AU19: =IF(B19="X",IF(AN19="","Afectat sau NU?",IF(AN19="DA",IF(((AI19+AJ19)-(AE19+AF19))*24<-720,"Neinformat",((AI19+AJ19)-(AE19+AF19))*24),"Nu a fost afectat producator/consumator")),"") ->  | AV19: =IF(B19="X",IF(AN19="DA",IF(AU19<6,LEN(TRIM(U19))-LEN(SUBSTITUTE(U19,CHAR(44),""))+1,0),"-"),"") ->  | AW19: =IF(B19="X",IF(AN19="DA",LEN(TRIM(U19))-LEN(SUBSTITUTE(U19,CHAR(44),""))+1,"-"),"") ->  | AX19: =IF(B19="X",IF(AN19="","Afectat sau NU?",IF(AN19="DA",((AG19+AH19)-(AE19+AF19))*24,"Nu a fost afectat producator/consumator")),"") ->  | AY19: =IF(B19="X",IF(AN19="DA",IF(AX19>24,IF(BA19="NU",0,LEN(TRIM(V19))-LEN(SUBSTITUTE(V19,CHAR(44),""))+1),0),"-"),"") ->  | AZ19: =IF(B19="X",IF(AN19="DA",IF(AX19>24,LEN(TRIM(V19))-LEN(SUBSTITUTE(V19,CHAR(44),""))+1,0),"-"),"") ->  | BF19: =IF(C19="X",IF(AN19="","Afectat sau NU?",IF(AN19="DA",IF(AK19="","Neinformat",NETWORKDAYS(AK19+AL19,AE19+AF19,$BS$2:$BS$14)-2),"Nu a fost afectat producator/consumator")),"") -> 5 | BG19: =IF(C19="X",IF(AN19="DA",IF(AND(BF19>=5,AK19<>""),LEN(TRIM(V19))-LEN(SUBSTITUTE(V19,CHAR(44),""))+1,0),"-"),"") -> 1 | BH19: =IF(C19="X",IF(AN19="DA",LEN(TRIM(V19))-LEN(SUBSTITUTE(V19,CHAR(44),""))+1,"-"),"") -> 1 | BI19: =IF(C19="X",IF(AN19="","Afectat sau NU?",IF(AN19="DA",IF(AI19="","Neinformat",NETWORKDAYS(AI19+AJ19,AE19+AF19,$BS$2:$BS$14)-2),"Nu a fost afectat producator/consumator")),"") -> 5 | BJ19: =IF(C19="X",IF(AN19="DA",IF(AND(BI19>=5,AI19<>""),LEN(TRIM(U19))-LEN(SUBSTITUTE(U19,CHAR(44),""))+1,0),"-"),"") -> 41 | BK19: =IF(C19="X",IF(AN19="DA",LEN(TRIM(U19))-LEN(SUBSTITUTE(U19,CHAR(44),""))+1,"-"),"") -> 41 | BL19: =IF(C19="X",IF(AN19="","Afectat sau NU?",IF(AN19="DA",((AG19+AH19)-(Z19+AA19))*24,"Nu a fost afectat producator/consumator")),"") -> -24 | BM19: =IF(C19="X",IF(AN19<>"DA","-",IF(AND(AN19="DA",BL19<=0),LEN(TRIM(V19))-LEN(SUBSTITUTE(V19,CHAR(44),""))+1+LEN(TRIM(U19))-LEN(SUBSTITUTE(U19,CHAR(44),""))+1,0)),"") -> 42 | BN19: =IF(C19="X",IF(AN19="DA",LEN(TRIM(V19))-LEN(SUBSTITUTE(V19,CHAR(44),""))+1+LEN(TRIM(U19))-LEN(SUBSTITUTE(U19,CHAR(44),""))+1,"-"),"") -> 42
A20: 5 | B20: - | C20: x | D20: Punere în siguranță subtraversare râu Bistrița cu conducta 12” Piatra Neamț - Bicaz, în zona Viișoara | E20: 123665 | F20: Stejaru | G20: Neamț | H20: 589703.3 | I20: 602610.3 | J20: 589703.3 | K20: 602610.3 | L20: - | M20: - | N20: SM0458D0 | O20: Stejaru | P20: - | Q20: - | R20: - | S20: - | T20: SM-SD001 | U20: Nova Power, Cez Vânzare, Racord Furnizare, Cis Gaz, Conef Gaz, CPL Concordia, Crest Energy, Delgaz, Design Proiect, Distrigaz Vest, Engie, Axpo, E.on Energie, Electrica Furnizare, Electric Planners, Energy Distribution, Enel Energie, Enel Muntenia, Gas&Power, Entrex, Premier Energy Trading, Gaz Est, Gazmir, Mihoc Oil, Met România, Monsson, MVM Future, Next Energy Distribution, Next Energy Partners, Pado Furnizare, Premier Energy, Petrom, Prisma Serv, Gas Provider, Renovatio, Romgaz, RWE Supply, Tetarom, Tinmar, Veolia, Wiee | V20: Delgaz Grid | W20: octombrie - decembrie 2021 aprilie - iunie 2022 | X20: 2022-05-10 | Y20: 08:00:00 | Z20: 2022-05-11 | AA20: 20:00:00 | AB20: Bacău | AC20: Efectuată | AD20: Se intenționează executarea simultană a mai multor lucrări de pe această conductă | AE20: 2022-05-10 | AF20: 08:00:00 | AG20: 2022-05-10 | AH20: 20:55:00 | AI20: 2022-05-02 | AJ20: 15:39:00 | AK20: 2022-05-02 | AL20: 14:45:00 | AM20: 35856/05.05.2022 | AN20: DA | AP20: PLRRM 2022_IA3_Anexa 1 | BF20: 5 | BG20: 1 | BH20: 1 | BI20: =IF(C20="X",IF(AN20="","Afectat sau NU?",IF(AN20="DA",IF(AI20="","Neinformat",NETWORKDAYS(AI20+AJ20,AE20+AF20,$BS$2:$BS$14)-2),"Nu a fost afectat producator/consumator")),"") -> 5 | BJ20: 41 | BK20: 41 | BL20: -23.08333333 | BM20: 42 | BN20: 42
A21: 6 | B21: - | C21: x | D21: Punere în siguranță subtraversare râu Bistrița cu conducta 12” Piatra Neamț - Bicaz, în zona Viișoara | E21: 120977 | F21: Bicaz | G21: Neamț | H21: 583336.33 | I21: 601827.11 | J21: 583336.33 | K21: 601827.11 | L21: - | M21: - | N21: SM0459D0 | O21: Bicaz | P21: - | Q21: - | R21: - | S21: - | T21: SM-SD001 | U21: Nova Power, Cez Vânzare, Racord Furnizare, Cis Gaz, Conef Gaz, CPL Concordia, Crest Energy, Delgaz, Design Proiect, Distrigaz Vest, Engie, Axpo, E.on Energie, Electrica Furnizare, Electric Planners, Energy Distribution, Enel Energie, Enel Muntenia, Gas&Power, Entrex, Premier Energy Trading, Gaz Est, Gazmir, Mihoc Oil, Met România, Monsson, MVM Future, Next Energy Distribution, Next Energy Partners, Pado Furnizare, Premier Energy, Petrom, Prisma Serv, Gas Provider, Renovatio, Romgaz, RWE Supply, Tetarom, Tinmar, Veolia, Wiee | V21: Delgaz Grid | W21: octombrie - decembrie 2021 aprilie - iunie 2022 | X21: 2022-05-10 | Y21: 08:00:00 | Z21: 2022-05-11 | AA21: 20:00:00 | AB21: Bacău | AC21: Efectuată | AD21: Se intenționează executarea simultană a mai multor lucrări de pe această conductă | AE21: 2022-05-10 | AF21: 08:00:00 | AG21: 2022-05-11 | AH21: 09:20:00 | AI21: 2022-05-02 | AJ21: 15:39:00 | AK21: 2022-05-02 | AL21: 14:45:00 | AM21: 35856/05.05.2022 | AN21: DA | AP21: PLRRM 2022_IA3_Anexa 1 | BF21: 5 | BG21: 1 | BH21: 1 | BI21: 5 | BJ21: 41 | BK21: 41 | BL21: =IF(C21="X",IF(AN21="","Afectat sau NU?",IF(AN21="DA",((AG21+AH21)-(Z21+AA21))*24,"Nu a fost afectat producator/consumator")),"") -> -10.66666667 | BM21: 42 | BN21: 42
A22: =A21+1 -> 7 | B22: - | C22: x | D22: Pregătire conductă 24” Paltin - Schitu Golești pentru transformare în conductă godevilabilă (jud. Argeș) | E22: 13506 | F22: Câmpulung | G22: Argeș | H22: 506375.179 | I22: 420606.434 | J22: 506375.179 | K22: 420606.434 | L22: - | M22: - | N22: SM0429D0 | O22: SC Edilul Câmpulung | P22: - | Q22: - | R22: - | S22: - | T22: SM-CF001 | V22: SC Edilul C.G.A. SA | W22: iulie - septembrie 2022 anul gazier 2022 - 2023 | AB22: Craiova | AD22: Se află în fază de proiectare | AP22: PLRRM 2022_IIB2_Anexa 1 | BF22: =IF(C22="X",IF(AN22="","Afectat sau NU?",IF(AN22="DA",IF(AK22="","Neinformat",NETWORKDAYS(AK22+AL22,AE22+AF22,$BS$2:$BS$14)-2),"Nu a fost afectat producator/consumator")),"") -> Afectat sau NU? | BG22: =IF(C22="X",IF(AN22="DA",IF(AND(BF22>=5,AK22<>""),LEN(TRIM(V22))-LEN(SUBSTITUTE(V22,CHAR(44),""))+1,0),"-"),"") -> - | BH22: =IF(C22="X",IF(AN22="DA",LEN(TRIM(V22))-LEN(SUBSTITUTE(V22,CHAR(44),""))+1,"-"),"") -> - | BI22: =IF(C22="X",IF(AN22="","Afectat sau NU?",IF(AN22="DA",IF(AI22="","Neinformat",NETWORKDAYS(AI22+AJ22,AE22+AF22,$BS$2:$BS$14)-2),"Nu a fost afectat producator/consumator")),"") -> Afectat sau NU? | BJ22: =IF(C22="X",IF(AN22="DA",IF(AND(BI22>=5,AI22<>""),LEN(TRIM(U22))-LEN(SUBSTITUTE(U22,CHAR(44),""))+1,0),"-"),"") -> - | BK22: =IF(C22="X",IF(AN22="DA",LEN(TRIM(U22))-LEN(SUBSTITUTE(U22,CHAR(44),""))+1,"-"),"") -> - | BL22: =IF(C22="X",IF(AN22="","Afectat sau NU?",IF(AN22="DA",((AG22+AH22)-(Z22+AA22))*24,"Nu a fost afectat producator/consumator")),"") -> Afectat sau NU? | BM22: =IF(C22="X",IF(AN22<>"DA","-",IF(AND(AN22="DA",BL22<=0),LEN(TRIM(V22))-LEN(SUBSTITUTE(V22,CHAR(44),""))+1+LEN(TRIM(U22))-LEN(SUBSTITUTE(U22,CHAR(44),""))+1,0)),"") -> - | BN22: =IF(C22="X",IF(AN22="DA",LEN(TRIM(V22))-LEN(SUBSTITUTE(V22,CHAR(44),""))+1+LEN(TRIM(U22))-LEN(SUBSTITUTE(U22,CHAR(44),""))+1,"-"),"") -> -
A23: 8 | B23: - | C23: x | D23: Pregătire conductă 24” Paltin - Schitu Golești pentru transformare în conductă godevilabilă (jud. Argeș) | E23: 13506 | F23: Câmpulung | G23: Argeș | H23: 506435.561 | I23: 420938.471 | J23: 506435.561 | K23: 420938.471 | L23: - | M23: - | N23: SM0874D0 | O23: SC Complex Holcim Câmpulung Sediu | P23: - | Q23: - | R23: - | S23: - | T23: SM-CF001 | V23: SC Holcim (România) SA | W23: iulie - septembrie 2022 anul gazier 2022 - 2023 | AB23: Craiova | AD23: Se află în fază de proiectare | AP23: PLRRM 2022_IIB2_Anexa 1 | BF23: Afectat sau NU? | BG23: - | BH23: - | BI23: Afectat sau NU? | BJ23: - | BK23: - | BL23: Afectat sau NU? | BM23: - | BN23: -
A24: 9 | B24: - | C24: x | D24: Pregătire conductă 24” Paltin - Schitu Golești pentru transformare în conductă godevilabilă (jud. Argeș) | E24: 13506 | F24: Câmpulung | G24: Argeș | H24: 506492.155 | I24: 421280.194 | J24: 506492.155 | K24: 421280.194 | L24: - | M24: - | N24: SM0078D0 | O24: SC Romturingia Câmpulung | P24: - | Q24: - | R24: - | S24: - | T24: SM-CF001 | V24: SC Romturingia SRL | W24: iulie - septembrie 2022 anul gazier 2022 - 2023 | AB24: Craiova | AD24: Se află în fază de proiectare | AP24: PLRRM 2022_IIB2_Anexa 1 | BF24: Afectat sau NU? | BG24: - | BH24: - | BI24: Afectat sau NU? | BJ24: - | BK24: - | BL24: Afectat sau NU? | BM24: - | BN24: -
A25: 10 | B25: - | C25: x | D25: Pregătire conductă 24” Paltin - Schitu Golești pentru transformare în conductă godevilabilă (jud. Argeș) | E25: 13506 | F25: Câmpulung | G25: Argeș | H25: 506435.56 | I25: 420938.47 | J25: 506435.56 | K25: 420938.47 | L25: - | M25: - | N25: SM0213D1 | O25: SC Holcim Câmpulung | P25: - | Q25: - | R25: - | S25: - | T25: SM-CF001 | V25: SC Holcim (România) SA | W25: iulie - septembrie 2022 anul gazier 2022 - 2023 | AB25: Craiova | AD25: Se află în fază de proiectare | AP25: PLRRM 2022_IIB2_Anexa 1 | BF25: Afectat sau NU? | BG25: - | BH25: - | BI25: Afectat sau NU? | BJ25: - | BK25: - | BL25: Afectat sau NU? | BM25: - | BN25: -
A26: 11 | B26: - | C26: x | D26: Pregătire conductă 24” Paltin - Schitu Golești pentru transformare în conductă godevilabilă (jud. Argeș) | E26: 13506 | F26: Câmpulung | G26: Argeș | H26: 509108.281 | I26: 421227.1767 | J26: 509108.281 | K26: 421227.1767 | L26: - | M26: - | N26: SM0213D2 | O26: SC Carmeuse Holding Câmpulung | P26: - | Q26: - | R26: - | S26: - | T26: SM-CF001 | V26: SC Carmeuse Holding SRL | W26: iulie - septembrie 2022 anul gazier 2022 - 2023 | AB26: Craiova | AD26: Se află în fază de proiectare | AP26: PLRRM 2022_IIB2_Anexa 1 | AR26: =IF(B26="X",IF(AN26="","Afectat sau NU?",IF(AN26="DA",IF(((AK26+AL26)-(AE26+AF26))*24<-720,"Neinformat",((AK26+AL26)-(AE26+AF26))*24),"Nu a fost afectat producator/consumator")),"") ->  | AS26: =IF(B26="X",IF(AN26="DA",IF(AR26<6,LEN(TRIM(V26))-LEN(SUBSTITUTE(V26,CHAR(44),""))+1,0),"-"),"") ->  | AT26: =IF(B26="X",IF(AN26="DA",LEN(TRIM(V26))-LEN(SUBSTITUTE(V26,CHAR(44),""))+1,"-"),"") ->  | AU26: =IF(B26="X",IF(AN26="","Afectat sau NU?",IF(AN26="DA",IF(((AI26+AJ26)-(AE26+AF26))*24<-720,"Neinformat",((AI26+AJ26)-(AE26+AF26))*24),"Nu a fost afectat producator/consumator")),"") ->  | AV26: =IF(B26="X",IF(AN26="DA",IF(AU26<6,LEN(TRIM(U26))-LEN(SUBSTITUTE(U26,CHAR(44),""))+1,0),"-"),"") ->  | AW26: =IF(B26="X",IF(AN26="DA",LEN(TRIM(U26))-LEN(SUBSTITUTE(U26,CHAR(44),""))+1,"-"),"") ->  | AX26: =IF(B26="X",IF(AN26="","Afectat sau NU?",IF(AN26="DA",((AG26+AH26)-(AE26+AF26))*24,"Nu a fost afectat producator/consumator")),"") ->  | AY26: =IF(B26="X",IF(AN26="DA",IF(AX26>24,IF(BA26="NU",0,LEN(TRIM(V26))-LEN(SUBSTITUTE(V26,CHAR(44),""))+1),0),"-"),"") ->  | AZ26: =IF(B26="X",IF(AN26="DA",IF(AX26>24,LEN(TRIM(V26))-LEN(SUBSTITUTE(V26,CHAR(44),""))+1,0),"-"),"") ->  | BF26: =IF(C26="X",IF(AN26="","Afectat sau NU?",IF(AN26="DA",IF(AK26="","Neinformat",NETWORKDAYS(AK26+AL26,AE26+AF26,$BS$2:$BS$14)-2),"Nu a fost afectat producator/consumator")),"") -> Afectat sau NU? | BG26: =IF(C26="X",IF(AN26="DA",IF(AND(BF26>=5,AK26<>""),LEN(TRIM(V26))-LEN(SUBSTITUTE(V26,CHAR(44),""))+1,0),"-"),"") -> - | BH26: =IF(C26="X",IF(AN26="DA",LEN(TRIM(V26))-LEN(SUBSTITUTE(V26,CHAR(44),""))+1,"-"),"") -> - | BI26: =IF(C26="X",IF(AN26="","Afectat sau NU?",IF(AN26="DA",IF(AI26="","Neinformat",NETWORKDAYS(AI26+AJ26,AE26+AF26,$BS$2:$BS$14)-2),"Nu a fost afectat producator/consumator")),"") -> Afectat sau NU? | BJ26: =IF(C26="X",IF(AN26="DA",IF(AND(BI26>=5,AI26<>""),LEN(TRIM(U26))-LEN(SUBSTITUTE(U26,CHAR(44),""))+1,0),"-"),"") -> - | BK26: =IF(C26="X",IF(AN26="DA",LEN(TRIM(U26))-LEN(SUBSTITUTE(U26,CHAR(44),""))+1,"-"),"") -> - | BL26: =IF(C26="X",IF(AN26="","Afectat sau NU?",IF(AN26="DA",((AG26+AH26)-(Z26+AA26))*24,"Nu a fost afectat producator/consumator")),"") -> Afectat sau NU? | BM26: =IF(C26="X",IF(AN26<>"DA","-",IF(AND(AN26="DA",BL26<=0),LEN(TRIM(V26))-LEN(SUBSTITUTE(V26,CHAR(44),""))+1+LEN(TRIM(U26))-LEN(SUBSTITUTE(U26,CHAR(44),""))+1,0)),"") -> - | BN26: =IF(C26="X",IF(AN26="DA",LEN(TRIM(V26))-LEN(SUBSTITUTE(V26,CHAR(44),""))+1+LEN(TRIM(U26))-LEN(SUBSTITUTE(U26,CHAR(44),""))+1,"-"),"") -> -
A27: 12 | B27: - | C27: x | D27: Pregătire conductă 24” Paltin - Schitu Golești pentru transformare în conductă godevilabilă (jud. Argeș) | E27: 13533 | F27: Valea Mare Pravăț | G27: Argeș | H27: 509108.281 | I27: 421227.1767 | J27: 509108.281 | K27: 421227.1767 | L27: - | M27: - | N27: SM0213D3 | O27: SC Star Multitrade Pravăț | P27: - | Q27: - | R27: - | S27: - | T27: SM-SD001 | V27: SC Distrigaz Sud Rețele | W27: iulie - septembrie 2022 anul gazier 2022 - 2023 | AB27: Craiova | AD27: Se află în fază de proiectare | AP27: PLRRM 2022_IIB2_Anexa 1 | BF27: Afectat sau NU? | BG27: - | BH27: - | BI27: Afectat sau NU? | BJ27: - | BK27: - | BL27: Afectat sau NU? | BM27: - | BN27: -
A28: 13 | B28: - | C28: x | D28: Pregătire conductă 24” Paltin - Schitu Golești pentru transformare în conductă godevilabilă (jud. Argeș) | E28: 13506 | F28: Câmpulung | G28: Argeș | H28: 504544.1711 | I28: 418845.7315 | J28: 504544.1711 | K28: 418845.7315 | L28: - | M28: - | N28: SM0216D0 | O28: Câmpulung Muscel | P28: - | Q28: - | R28: - | S28: - | T28: SM-SD001 | V28: SC Distrigaz Sud Rețele | W28: iulie - septembrie 2022 anul gazier 2022 - 2023 | AB28: Craiova | AD28: Se află în fază de proiectare | AP28: PLRRM 2022_IIB2_Anexa 1 | BF28: Afectat sau NU? | BG28: - | BH28: - | BI28: Afectat sau NU? | BJ28: - | BK28: - | BL28: Afectat sau NU? | BM28: - | BN28: -
A29: 14 | B29: - | C29: x | D29: Pregătire conductă 24” Paltin - Schitu Golești pentru transformare în conductă godevilabilă (jud. Argeș) | E29: 16917 | F29: Lerești | G29: Argeș | H29: 505375.834 | I29: 421813.476 | J29: 505375.834 | K29: 421813.476 | L29: - | M29: - | N29: SM1242D0 | O29: Lerești | P29: - | Q29: - | R29: - | S29: - | T29: SM-SD001 | V29: SC Distrigaz Sud Rețele | W29: iulie - septembrie 2022 anul gazier 2022 - 2023 | AB29: Craiova | AD29: Se află în fază de proiectare | AP29: PLRRM 2022_IIB2_Anexa 1 | BF29: Afectat sau NU? | BG29: - | BH29: - | BI29: Afectat sau NU? | BJ29: - | BK29: - | BL29: Afectat sau NU? | BM29: - | BN29: -
A30: 15 | B30: - | C30: x | D30: Pregătire conductă 24” Paltin - Schitu Golești pentru transformare în conductă godevilabilă (jud. Argeș) | E30: 16356 | F30: Podu Dâmboviței | G30: Argeș | H30: 515779.4133 | I30: 434408.4633 | J30: 515779.4133 | K30: 434408.4633 | L30: - | M30: - | N30: SM1088D0 | O30: Podu Dâmboviței | P30: - | Q30: - | R30: - | S30: - | T30: SM-SD001 | V30: SC Distrigaz Sud Rețele | W30: iulie - septembrie 2022 anul gazier 2022 - 2023 | AB30: Brașov | AD30: Se află în fază de proiectare | AP30: PLRRM 2022_IIB2_Anexa 1 | BF30: Afectat sau NU? | BG30: - | BH30: - | BI30: Afectat sau NU? | BJ30: - | BK30: - | BL30: Afectat sau NU? | BM30: - | BN30: -
A31: 16 | B31: - | C31: x | D31: Pregătire conductă 24” Paltin - Schitu Golești pentru transformare în conductă godevilabilă (jud. Argeș) | E31: 18536 | F31: Rucăr | G31: Argeș | H31: 514200.63 | I31: 431834.68 | J31: 514200.63 | K31: 431834.68 | L31: - | M31: - | N31: SM0938D0 | O31: Rucăr | P31: - | Q31: - | R31: - | S31: - | T31: SM-SD001 | V31: Distrigaz Sud Rețele | W31: iulie - septembrie 2022 anul gazier 2022 - 2023 | AB31: Brașov | AD31: Se află în fază de proiectare | AP31: PLRRM 2022_IIB2_Anexa 1 | AR31: =IF(B31="X",IF(AN31="","Afectat sau NU?",IF(AN31="DA",IF(((AK31+AL31)-(AE31+AF31))*24<-720,"Neinformat",((AK31+AL31)-(AE31+AF31))*24),"Nu a fost afectat producator/consumator")),"") ->  | AS31: =IF(B31="X",IF(AN31="DA",IF(AR31<6,LEN(TRIM(V31))-LEN(SUBSTITUTE(V31,CHAR(44),""))+1,0),"-"),"") ->  | AT31: =IF(B31="X",IF(AN31="DA",LEN(TRIM(V31))-LEN(SUBSTITUTE(V31,CHAR(44),""))+1,"-"),"") ->  | AU31: =IF(B31="X",IF(AN31="","Afectat sau NU?",IF(AN31="DA",IF(((AI31+AJ31)-(AE31+AF31))*24<-720,"Neinformat",((AI31+AJ31)-(AE31+AF31))*24),"Nu a fost afectat producator/consumator")),"") ->  | AV31: =IF(B31="X",IF(AN31="DA",IF(AU31<6,LEN(TRIM(U31))-LEN(SUBSTITUTE(U31,CHAR(44),""))+1,0),"-"),"") ->  | AW31: =IF(B31="X",IF(AN31="DA",LEN(TRIM(U31))-LEN(SUBSTITUTE(U31,CHAR(44),""))+1,"-"),"") ->  | AX31: =IF(B31="X",IF(AN31="","Afectat sau NU?",IF(AN31="DA",((AG31+AH31)-(AE31+AF31))*24,"Nu a fost afectat producator/consumator")),"") ->  | AY31: =IF(B31="X",IF(AN31="DA",IF(AX31>24,IF(BA31="NU",0,LEN(TRIM(V31))-LEN(SUBSTITUTE(V31,CHAR(44),""))+1),0),"-"),"") ->  | AZ31: =IF(B31="X",IF(AN31="DA",IF(AX31>24,LEN(TRIM(V31))-LEN(SUBSTITUTE(V31,CHAR(44),""))+1,0),"-"),"") ->  | BF31: =IF(C31="X",IF(AN31="","Afectat sau NU?",IF(AN31="DA",IF(AK31="","Neinformat",NETWORKDAYS(AK31+AL31,AE31+AF31,$BS$2:$BS$14)-2),"Nu a fost afectat producator/consumator")),"") -> Afectat sau NU? | BG31: =IF(C31="X",IF(AN31="DA",IF(AND(BF31>=5,AK31<>""),LEN(TRIM(V31))-LEN(SUBSTITUTE(V31,CHAR(44),""))+1,0),"-"),"") -> - | BH31: =IF(C31="X",IF(AN31="DA",LEN(TRIM(V31))-LEN(SUBSTITUTE(V31,CHAR(44),""))+1,"-"),"") -> - | BI31: =IF(C31="X",IF(AN31="","Afectat sau NU?",IF(AN31="DA",IF(AI31="","Neinformat",NETWORKDAYS(AI31+AJ31,AE31+AF31,$BS$2:$BS$14)-2),"Nu a fost afectat producator/consumator")),"") -> Afectat sau NU? | BJ31: =IF(C31="X",IF(AN31="DA",IF(AND(BI31>=5,AI31<>""),LEN(TRIM(U31))-LEN(SUBSTITUTE(U31,CHAR(44),""))+1,0),"-"),"") -> - | BK31: =IF(C31="X",IF(AN31="DA",LEN(TRIM(U31))-LEN(SUBSTITUTE(U31,CHAR(44),""))+1,"-"),"") -> - | BL31: =IF(C31="X",IF(AN31="","Afectat sau NU?",IF(AN31="DA",((AG31+AH31)-(Z31+AA31))*24,"Nu a fost afectat producator/consumator")),"") -> Afectat sau NU? | BM31: =IF(C31="X",IF(AN31<>"DA","-",IF(AND(AN31="DA",BL31<=0),LEN(TRIM(V31))-LEN(SUBSTITUTE(V31,CHAR(44),""))+1+LEN(TRIM(U31))-LEN(SUBSTITUTE(U31,CHAR(44),""))+1,0)),"") -> - | BN31: =IF(C31="X",IF(AN31="DA",LEN(TRIM(V31))-LEN(SUBSTITUTE(V31,CHAR(44),""))+1+LEN(TRIM(U31))-LEN(SUBSTITUTE(U31,CHAR(44),""))+1,"-"),"") -> -
A32: 17 | B32: - | C32: x | D32: Pregătire conductă 28” Seleuș - Cristur - Bățani pentru transformare în conductă godevilabilă, etapa 2B (jud. Harghita) | E32: 85582 | F32: Secuieni HG | G32: Harghita | H32: 528595 | I32: 498017 | J32: 528595 | K32: 498017 | L32: - | M32: - | N32: SM0374D0 | O32: Secuieni I HG | P32: - | Q32: - | R32: - | S32: - | T32: SM-SD001 | V32: Hargaz Harghita Gaz | W32: aprilie - iunie 2022 anul gazier 2022 - 2023 | AB32: Brașov | AD32: Se află în fază de proiectare | AP32: PLRRM 2022_IIB10_Anexa 1 | BF32: Afectat sau NU? | BG32: - | BH32: - | BI32: Afectat sau NU? | BJ32: - | BK32: - | BL32: Afectat sau NU? | BM32: - | BN32: -
A33: 18 | B33: - | C33: x | D33: Pregătire conductă 28” Seleuș - Cristur - Bățani pentru transformare în conductă godevilabilă, etapa 2B (jud. Harghita) | E33: 85582 | F33: Secuieni HG | G33: Harghita | H33: 528595 | I33: 498017 | J33: 528595 | K33: 498017 | L33: - | M33: - | N33: SM0374D1 | O33: Secuieni II HG | P33: - | Q33: - | R33: - | S33: - | T33: SM-SD001 | V33: Hargaz Harghita Gaz | W33: aprilie - iunie 2022 anul gazier 2022 - 2023 | AB33: Brașov | AD33: Se află în fază de proiectare | AP33: PLRRM 2022_IIB10_Anexa 1 | BF33: Afectat sau NU? | BG33: - | BH33: - | BI33: Afectat sau NU? | BJ33: - | BK33: - | BL33: Afectat sau NU? | BM33: - | BN33: -
A34: 19 | B34: - | C34: x | D34: Pregătire conductă 28” Seleuș - Cristur - Bățani pentru transformare în conductă godevilabilă, etapa 2B (jud. Harghita) | E34: 83525 | F34: Cristuru Secuiesc | G34: Harghita | H34: 502769 | I34: 530742 | J34: 502769 | K34: 530742 | L34: - | M34: - | N34: SM0373D0 | O34: Cristuru Secuiesc | P34: - | Q34: - | R34: - | S34: - | T34: SM-SD001 | V34: Delgaz Grid | W34: aprilie - iunie 2022 anul gazier 2022 - 2023 | AB34: Brașov | AD34: Se află în fază de proiectare | AP34: PLRRM 2022_IIB10_Anexa 1 | BF34: Afectat sau NU? | BG34: - | BH34: - | BI34: Afectat sau NU? | BJ34: - | BK34: - | BL34: Afectat sau NU? | BM34: - | BN34: -
A35: 20 | B35: - | C35: x | D35: Pregătire conductă 28” Seleuș - Cristur - Bățani pentru transformare în conductă godevilabilă, etapa 2B (jud. Harghita) | E35: 85127 | F35: Porumbenii Mici | G35: Harghita | H35: 508388 | I35: 530078 | J35: 508388 | K35: 530078 | L35: - | M35: - | N35: SM0382D0 | O35: Porumbenii Mici | P35: - | Q35: - | R35: - | S35: - | T35: SM-SD001 | V35: Hargaz Harghita Gaz | W35: aprilie - iunie 2022 anul gazier 2022 - 2023 | AB35: Brașov | AD35: Se află în fază de proiectare | AP35: PLRRM 2022_IIB10_Anexa 1 | AR35: =IF(B35="X",IF(AN35="","Afectat sau NU?",IF(AN35="DA",IF(((AK35+AL35)-(AE35+AF35))*24<-720,"Neinformat",((AK35+AL35)-(AE35+AF35))*24),"Nu a fost afectat producator/consumator")),"") ->  | AS35: =IF(B35="X",IF(AN35="DA",IF(AR35<6,LEN(TRIM(V35))-LEN(SUBSTITUTE(V35,CHAR(44),""))+1,0),"-"),"") ->  | AT35: =IF(B35="X",IF(AN35="DA",LEN(TRIM(V35))-LEN(SUBSTITUTE(V35,CHAR(44),""))+1,"-"),"") ->  | AU35: =IF(B35="X",IF(AN35="","Afectat sau NU?",IF(AN35="DA",IF(((AI35+AJ35)-(AE35+AF35))*24<-720,"Neinformat",((AI35+AJ35)-(AE35+AF35))*24),"Nu a fost afectat producator/consumator")),"") ->  | AV35: =IF(B35="X",IF(AN35="DA",IF(AU35<6,LEN(TRIM(U35))-LEN(SUBSTITUTE(U35,CHAR(44),""))+1,0),"-"),"") ->  | AW35: =IF(B35="X",IF(AN35="DA",LEN(TRIM(U35))-LEN(SUBSTITUTE(U35,CHAR(44),""))+1,"-"),"") ->  | AX35: =IF(B35="X",IF(AN35="","Afectat sau NU?",IF(AN35="DA",((AG35+AH35)-(AE35+AF35))*24,"Nu a fost afectat producator/consumator")),"") ->  | AY35: =IF(B35="X",IF(AN35="DA",IF(AX35>24,IF(BA35="NU",0,LEN(TRIM(V35))-LEN(SUBSTITUTE(V35,CHAR(44),""))+1),0),"-"),"") ->  | AZ35: =IF(B35="X",IF(AN35="DA",IF(AX35>24,LEN(TRIM(V35))-LEN(SUBSTITUTE(V35,CHAR(44),""))+1,0),"-"),"") ->  | BF35: =IF(C35="X",IF(AN35="","Afectat sau NU?",IF(AN35="DA",IF(AK35="","Neinformat",NETWORKDAYS(AK35+AL35,AE35+AF35,$BS$2:$BS$14)-2),"Nu a fost afectat producator/consumator")),"") -> Afectat sau NU? | BG35: =IF(C35="X",IF(AN35="DA",IF(AND(BF35>=5,AK35<>""),LEN(TRIM(V35))-LEN(SUBSTITUTE(V35,CHAR(44),""))+1,0),"-"),"") -> - | BH35: =IF(C35="X",IF(AN35="DA",LEN(TRIM(V35))-LEN(SUBSTITUTE(V35,CHAR(44),""))+1,"-"),"") -> - | BI35: =IF(C35="X",IF(AN35="","Afectat sau NU?",IF(AN35="DA",IF(AI35="","Neinformat",NETWORKDAYS(AI35+AJ35,AE35+AF35,$BS$2:$BS$14)-2),"Nu a fost afectat producator/consumator")),"") -> Afectat sau NU? | BJ35: =IF(C35="X",IF(AN35="DA",IF(AND(BI35>=5,AI35<>""),LEN(TRIM(U35))-LEN(SUBSTITUTE(U35,CHAR(44),""))+1,0),"-"),"") -> - | BK35: =IF(C35="X",IF(AN35="DA",LEN(TRIM(U35))-LEN(SUBSTITUTE(U35,CHAR(44),""))+1,"-"),"") -> - | BL35: =IF(C35="X",IF(AN35="","Afectat sau NU?",IF(AN35="DA",((AG35+AH35)-(Z35+AA35))*24,"Nu a fost afectat producator/consumator")),"") -> Afectat sau NU? | BM35: =IF(C35="X",IF(AN35<>"DA","-",IF(AND(AN35="DA",BL35<=0),LEN(TRIM(V35))-LEN(SUBSTITUTE(V35,CHAR(44),""))+1+LEN(TRIM(U35))-LEN(SUBSTITUTE(U35,CHAR(44),""))+1,0)),"") -> - | BN35: =IF(C35="X",IF(AN35="DA",LEN(TRIM(V35))-LEN(SUBSTITUTE(V35,CHAR(44),""))+1+LEN(TRIM(U35))-LEN(SUBSTITUTE(U35,CHAR(44),""))+1,"-"),"") -> -
A36: 21 | B36: - | C36: x | D36: Pregătire conductă 28” Seleuș - Cristur - Bățani pentru transformare în conductă godevilabilă, etapa 2B (jud. Harghita) | E36: 85127 | F36: Porumbenii Mari | G36: Harghita | H36: 510975 | I36: 529795 | J36: 510975 | K36: 529795 | L36: - | M36: - | N36: SM0383D0 | O36: Porumbenii Mari | P36: - | Q36: - | R36: - | S36: - | T36: SM-SD001 | V36: Hargaz Harghita Gaz | W36: aprilie - iunie 2022 anul gazier 2022 - 2023 | AB36: Brașov | AD36: Se află în fază de proiectare | AP36: PLRRM 2022_IIB10_Anexa 1 | BF36: Afectat sau NU? | BG36: - | BH36: - | BI36: Afectat sau NU? | BJ36: - | BK36: - | BL36: Afectat sau NU? | BM36: - | BN36: -
A37: 22 | B37: - | C37: x | D37: Pregătire conductă 28” Seleuș - Cristur - Bățani pentru transformare în conductă godevilabilă, etapa 2B (jud. Harghita) | E37: 85127 | F37: Lutița | G37: Harghita | H37: 514498 | I37: 528363 | J37: 514498 | K37: 528363 | L37: - | M37: - | N37: SM0384D0 | O37: Lutița | P37: - | Q37: - | R37: - | S37: - | T37: SM-SD001 | V37: Delgaz Grid | W37: aprilie - iunie 2022 anul gazier 2022 - 2023 | AB37: Brașov | AD37: Se află în fază de proiectare | AP37: PLRRM 2022_IIB10_Anexa 1 | BF37: Afectat sau NU? | BG37: - | BH37: - | BI37: Afectat sau NU? | BJ37: - | BK37: - | BL37: Afectat sau NU? | BM37: - | BN37: -
A38: =SUM(1,A37) -> 23 | B38: - | C38: x | D38: Conductă de transport gaze naturale Nadeș - Sighișoara | E38: 114596 | F38: Hetiur | G38: Mureș | H38: 481685.76 | I38: 529831.52 | J38: 481685.76 | K38: 529831.52 | N38: SM0834D0 | O38: Hetiur | T38: SM-SD001 | V38: Delgaz Grid | W38: octombrie - decembrie 2021 | AB38: Brașov | AP38: PMDI 2022_A3_6 | BF38: Afectat sau NU? | BG38: - | BH38: - | BI38: Afectat sau NU? | BJ38: - | BK38: - | BL38: Afectat sau NU? | BM38: - | BN38: -
A39: 24 | B39: - | C39: x | D39: Înlocuire tronson pe conducta de transport gaze naturale 8” racord SRM Poiana Brașov | E39: 42432 | F39: Poiana Brașov | G39: Braşov | H39: 543202.21 | I39: 455663.91 | J39: 543202.21 | K39: 455663.91 | L39: - | M39: - | N39: SM0054D0 | O39: Poiana Brașov | P39: - | Q39: - | R39: - | S39: - | T39: SM-SD001 | V39: Distrigaz Sud Rețele | W39: octombrie - decembrie 2021 iulie - septembrie 2022 | AB39: Brașov | AD39: Probleme cu accesul în teren la Centrul de echitație și cu Garda Forestieră | AP39: PMDI 2022_A3_7 | BF39: Afectat sau NU? | BG39: - | BH39: - | BI39: Afectat sau NU? | BJ39: - | BK39: - | BL39: Afectat sau NU? | BM39: - | BN39: -
A40: 25 | B40: - | C40: x | D40: Înlocuire tronson pe conducta de transport gaze naturale 8” racord SRM Poiana Brașov | E40: 42432 | F40: Poiana Brașov | G40: Braşov | H40: 543067.84 | I40: 456573.21 | J40: 543067.84 | K40: 456573.21 | L40: - | M40: - | N40: SM1113D0 | O40: Poiana Sticlăriei | P40: - | Q40: - | R40: - | S40: - | T40: SM-SD001 | V40: Distrigaz Sud Rețele | W40: octombrie - decembrie 2021 iulie - septembrie 2022 | AB40: Brașov | AD40: Probleme cu accesul în teren la Centrul de echitație și cu Garda Forestieră | AP40: PMDI 2022_A3_7 | BF40: Afectat sau NU? | BG40: - | BH40: - | BI40: Afectat sau NU? | BJ40: - | BK40: - | BL40: Afectat sau NU? | BM40: - | BN40: -
A41: 26 | B41: - | C41: x | D41: Punere în siguranță traversare aeriană peste canal râul Bistrița cu conducta 12” Piatra Neamț - Bicaz, zona Pângărați | E41: 123665 | F41: Stejaru | G41: Neamț | H41: 589703.3 | I41: 602610.3 | J41: 589703.3 | K41: 602610.3 | L41: - | M41: - | N41: SM0458D0 | O41: Stejaru | P41: - | Q41: - | R41: - | S41: - | T41: SM-SD001 | U41: Nova Power, Cez Vânzare, Racord Furnizare, Cis Gaz, Conef Gaz, CPL Concordia, Crest Energy, Delgaz, Design Proiect, Distrigaz Vest, Engie, Axpo, E.on Energie, Electrica Furnizare, Electric Planners, Energy Distribution, Enel Energie, Enel Muntenia, Gas&Power, Entrex, Premier Energy Trading, Gaz Est, Gazmir, Mihoc Oil, Met România, Monsson, MVM Future, Next Energy Distribution, Next Energy Partners, Pado Furnizare, Premier Energy, Petrom, Prisma Serv, Gas Provider, Renovatio, Romgaz, RWE Supply, Tetarom, Tinmar, Veolia, Wiee | V41: Delgaz Grid | W41: aprilie - iunie 2022 | AB41: Bacău | AC41: Efectuată (lucrarea a fost executată în perioada 10 - 11.05.2022 împreună cu lucrarea de la poziția 5) | AM41: 35856/05.05.2022 | AP41: PMDI 2022_A3_14 | BF41: Afectat sau NU? | BG41: - | BH41: - | BI41: Afectat sau NU? | BJ41: - | BK41: - | BL41: Afectat sau NU? | BM41: - | BN41: -
A42: 27 | B42: - | C42: x | D42: Punere în siguranță traversare aeriană peste canal râul Bistrița cu conducta 12” Piatra Neamț - Bicaz, zona Pângărați | E42: 120977 | F42: Bicaz | G42: Neamț | H42: 583336.33 | I42: 601827.11 | J42: 583336.33 | K42: 601827.11 | L42: - | M42: - | N42: SM0459D0 | O42: Bicaz | P42: - | Q42: - | R42: - | S42: - | T42: SM-SD001 | U42: Nova Power, Cez Vânzare, Racord Furnizare, Cis Gaz, Conef Gaz, CPL Concordia, Crest Energy, Delgaz, Design Proiect, Distrigaz Vest, Engie, Axpo, E.on Energie, Electrica Furnizare, Electric Planners, Energy Distribution, Enel Energie, Enel Muntenia, Gas&Power, Entrex, Premier Energy Trading, Gaz Est, Gazmir, Mihoc Oil, Met România, Monsson, MVM Future, Next Energy Distribution, Next Energy Partners, Pado Furnizare, Premier Energy, Petrom, Prisma Serv, Gas Provider, Renovatio, Romgaz, RWE Supply, Tetarom, Tinmar, Veolia, Wiee | V42: Delgaz Grid | W42: aprilie - iunie 2022 | AB42: Bacău | AC42: Efectuată (lucrarea a fost executată în perioada 10 - 11.05.2022 împreună cu lucrarea de la poziția 6) | AM42: 35856/05.05.2022 | AP42: PMDI 2022_A3_14 | AR42: =IF(B42="X",IF(AN42="","Afectat sau NU?",IF(AN42="DA",IF(((AK42+AL42)-(AE42+AF42))*24<-720,"Neinformat",((AK42+AL42)-(AE42+AF42))*24),"Nu a fost afectat producator/consumator")),"") ->  | AS42: =IF(B42="X",IF(AN42="DA",IF(AR42<6,LEN(TRIM(V42))-LEN(SUBSTITUTE(V42,CHAR(44),""))+1,0),"-"),"") ->  | AT42: =IF(B42="X",IF(AN42="DA",LEN(TRIM(V42))-LEN(SUBSTITUTE(V42,CHAR(44),""))+1,"-"),"") ->  | AU42: =IF(B42="X",IF(AN42="","Afectat sau NU?",IF(AN42="DA",IF(((AI42+AJ42)-(AE42+AF42))*24<-720,"Neinformat",((AI42+AJ42)-(AE42+AF42))*24),"Nu a fost afectat producator/consumator")),"") ->  | AV42: =IF(B42="X",IF(AN42="DA",IF(AU42<6,LEN(TRIM(U42))-LEN(SUBSTITUTE(U42,CHAR(44),""))+1,0),"-"),"") ->  | AW42: =IF(B42="X",IF(AN42="DA",LEN(TRIM(U42))-LEN(SUBSTITUTE(U42,CHAR(44),""))+1,"-"),"") ->  | AX42: =IF(B42="X",IF(AN42="","Afectat sau NU?",IF(AN42="DA",((AG42+AH42)-(AE42+AF42))*24,"Nu a fost afectat producator/consumator")),"") ->  | AY42: =IF(B42="X",IF(AN42="DA",IF(AX42>24,IF(BA42="NU",0,LEN(TRIM(V42))-LEN(SUBSTITUTE(V42,CHAR(44),""))+1),0),"-"),"") ->  | AZ42: =IF(B42="X",IF(AN42="DA",IF(AX42>24,LEN(TRIM(V42))-LEN(SUBSTITUTE(V42,CHAR(44),""))+1,0),"-"),"") ->  | BF42: =IF(C42="X",IF(AN42="","Afectat sau NU?",IF(AN42="DA",IF(AK42="","Neinformat",NETWORKDAYS(AK42+AL42,AE42+AF42,$BS$2:$BS$14)-2),"Nu a fost afectat producator/consumator")),"") -> Afectat sau NU? | BG42: =IF(C42="X",IF(AN42="DA",IF(AND(BF42>=5,AK42<>""),LEN(TRIM(V42))-LEN(SUBSTITUTE(V42,CHAR(44),""))+1,0),"-"),"") -> - | BH42: =IF(C42="X",IF(AN42="DA",LEN(TRIM(V42))-LEN(SUBSTITUTE(V42,CHAR(44),""))+1,"-"),"") -> - | BI42: =IF(C42="X",IF(AN42="","Afectat sau NU?",IF(AN42="DA",IF(AI42="","Neinformat",NETWORKDAYS(AI42+AJ42,AE42+AF42,$BS$2:$BS$14)-2),"Nu a fost afectat producator/consumator")),"") -> Afectat sau NU? | BJ42: =IF(C42="X",IF(AN42="DA",IF(AND(BI42>=5,AI42<>""),LEN(TRIM(U42))-LEN(SUBSTITUTE(U42,CHAR(44),""))+1,0),"-"),"") -> - | BK42: =IF(C42="X",IF(AN42="DA",LEN(TRIM(U42))-LEN(SUBSTITUTE(U42,CHAR(44),""))+1,"-"),"") -> - | BL42: =IF(C42="X",IF(AN42="","Afectat sau NU?",IF(AN42="DA",((AG42+AH42)-(Z42+AA42))*24,"Nu a fost afectat producator/consumator")),"") -> Afectat sau NU? | BM42: =IF(C42="X",IF(AN42<>"DA","-",IF(AND(AN42="DA",BL42<=0),LEN(TRIM(V42))-LEN(SUBSTITUTE(V42,CHAR(44),""))+1+LEN(TRIM(U42))-LEN(SUBSTITUTE(U42,CHAR(44),""))+1,0)),"") -> - | BN42: =IF(C42="X",IF(AN42="DA",LEN(TRIM(V42))-LEN(SUBSTITUTE(V42,CHAR(44),""))+1+LEN(TRIM(U42))-LEN(SUBSTITUTE(U42,CHAR(44),""))+1,"-"),"") -> -
A43: 28 | B43: - | C43: x | D43: Punere în siguranță traversare aeriană peste canal râu Bistrița cu conducta 12” Piatra Neamț - Bicaz, zona Bicaz | E43: 120977 | F43: Bicaz | G43: Neamț | H43: 583336.33 | I43: 601827.11 | J43: 583336.33 | K43: 601827.11 | L43: - | M43: - | N43: SM0459D0 | O43: Bicaz | P43: - | Q43: - | R43: - | S43: - | T43: SM-SD001 | U43: Nova Power, Cez Vânzare, Racord Furnizare, Cis Gaz, Conef Gaz, CPL Concordia, Crest Energy, Delgaz, Design Proiect, Distrigaz Vest, Engie, Axpo, E.on Energie, Electrica Furnizare, Electric Planners, Energy Distribution, Enel Energie, Enel Muntenia, Gas&Power, Entrex, Premier Energy Trading, Gaz Est, Gazmir, Mihoc Oil, Met România, Monsson, MVM Future, Next Energy Distribution, Next Energy Partners, Pado Furnizare, Premier Energy, Petrom, Prisma Serv, Gas Provider, Renovatio, Romgaz, RWE Supply, Tetarom, Tinmar, Veolia, Wiee | V43: Delgaz Grid | W43: aprilie - iunie 2022 | AB43: Bacău | AC43: Efectuată (lucrarea a fost executată în perioada 10 - 11.05.2022 împreună cu lucrarea de la poziția 6) | AM43: 35856/05.05.2022 | AP43: PMDI 2022_A3_15 | BF43: Afectat sau NU? | BG43: - | BH43: - | BI43: Afectat sau NU? | BJ43: - | BK43: - | BL43: Afectat sau NU? | BM43: - | BN43: -
A44: 29 | B44: - | C44: x | D44: Punere în siguranță subtraversare râu Moldovița cu conducta de transport gaze naturale 12” Frasin - Câmpulung Moldovenesc, zona localității Vama | E44: 146511 | F44: Câmpulung Moldovenesc | G44: Suceava | H44: 541635.5 | I44: 669718.05 | J44: 541635.5 | K44: 669718.05 | L44: - | M44: - | N44: SM1126D0 | O44: Câmpulung Moldovenesc | P44: - | Q44: - | R44: - | S44: - | T44: SM-SD001 | V44: Nova Power&Gas | W44: octombrie - decembrie 2021 | AB44: Bacău | AC44: Efectuată (Lucrarea a fost executată în data de 07.12.2021 fără a fi afectat consumatorul) | AP44: PMDI 2021_cap.A_2.1.B.10 | BF44: Afectat sau NU? | BG44: - | BH44: - | BI44: Afectat sau NU? | BJ44: - | BK44: - | BL44: Afectat sau NU? | BM44: - | BN44: -
A45: 30 | B45: - | C45: x | D45: Punere în siguranță conductă 20” Medieșu Aurit - Abrămuț, zona Culciu Mare | E45: 137559 | F45: Culciu Mare | G45: Satu Mare | H45: 355830.22 | I45: 696040.63 | J45: 355830.22 | K45: 696040.63 | L45: - | M45: - | N45: SM1083D0 | O45: Culciu | P45: - | Q45: - | R45: - | S45: - | T45: SM-SD001 | V45: CPL Concordia | W45: iulie - septembrie 2022 | AB45: Cluj | AP45: PMDI 2022_A3_10 | AR45: =IF(B45="X",IF(AN45="","Afectat sau NU?",IF(AN45="DA",IF(((AK45+AL45)-(AE45+AF45))*24<-720,"Neinformat",((AK45+AL45)-(AE45+AF45))*24),"Nu a fost afectat producator/consumator")),"") ->  | AS45: =IF(B45="X",IF(AN45="DA",IF(AR45<6,LEN(TRIM(V45))-LEN(SUBSTITUTE(V45,CHAR(44),""))+1,0),"-"),"") ->  | AT45: =IF(B45="X",IF(AN45="DA",LEN(TRIM(V45))-LEN(SUBSTITUTE(V45,CHAR(44),""))+1,"-"),"") ->  | AU45: =IF(B45="X",IF(AN45="","Afectat sau NU?",IF(AN45="DA",IF(((AI45+AJ45)-(AE45+AF45))*24<-720,"Neinformat",((AI45+AJ45)-(AE45+AF45))*24),"Nu a fost afectat producator/consumator")),"") ->  | AV45: =IF(B45="X",IF(AN45="DA",IF(AU45<6,LEN(TRIM(U45))-LEN(SUBSTITUTE(U45,CHAR(44),""))+1,0),"-"),"") ->  | AW45: =IF(B45="X",IF(AN45="DA",LEN(TRIM(U45))-LEN(SUBSTITUTE(U45,CHAR(44),""))+1,"-"),"") ->  | AX45: =IF(B45="X",IF(AN45="","Afectat sau NU?",IF(AN45="DA",((AG45+AH45)-(AE45+AF45))*24,"Nu a fost afectat producator/consumator")),"") ->  | AY45: =IF(B45="X",IF(AN45="DA",IF(AX45>24,IF(BA45="NU",0,LEN(TRIM(V45))-LEN(SUBSTITUTE(V45,CHAR(44),""))+1),0),"-"),"") ->  | AZ45: =IF(B45="X",IF(AN45="DA",IF(AX45>24,LEN(TRIM(V45))-LEN(SUBSTITUTE(V45,CHAR(44),""))+1,0),"-"),"") ->  | BF45: =IF(C45="X",IF(AN45="","Afectat sau NU?",IF(AN45="DA",IF(AK45="","Neinformat",NETWORKDAYS(AK45+AL45,AE45+AF45,$BS$2:$BS$14)-2),"Nu a fost afectat producator/consumator")),"") -> Afectat sau NU? | BG45: =IF(C45="X",IF(AN45="DA",IF(AND(BF45>=5,AK45<>""),LEN(TRIM(V45))-LEN(SUBSTITUTE(V45,CHAR(44),""))+1,0),"-"),"") -> - | BH45: =IF(C45="X",IF(AN45="DA",LEN(TRIM(V45))-LEN(SUBSTITUTE(V45,CHAR(44),""))+1,"-"),"") -> - | BI45: =IF(C45="X",IF(AN45="","Afectat sau NU?",IF(AN45="DA",IF(AI45="","Neinformat",NETWORKDAYS(AI45+AJ45,AE45+AF45,$BS$2:$BS$14)-2),"Nu a fost afectat producator/consumator")),"") -> Afectat sau NU? | BJ45: =IF(C45="X",IF(AN45="DA",IF(AND(BI45>=5,AI45<>""),LEN(TRIM(U45))-LEN(SUBSTITUTE(U45,CHAR(44),""))+1,0),"-"),"") -> - | BK45: =IF(C45="X",IF(AN45="DA",LEN(TRIM(U45))-LEN(SUBSTITUTE(U45,CHAR(44),""))+1,"-"),"") -> - | BL45: =IF(C45="X",IF(AN45="","Afectat sau NU?",IF(AN45="DA",((AG45+AH45)-(Z45+AA45))*24,"Nu a fost afectat producator/consumator")),"") -> Afectat sau NU? | BM45: =IF(C45="X",IF(AN45<>"DA","-",IF(AND(AN45="DA",BL45<=0),LEN(TRIM(V45))-LEN(SUBSTITUTE(V45,CHAR(44),""))+1+LEN(TRIM(U45))-LEN(SUBSTITUTE(U45,CHAR(44),""))+1,0)),"") -> - | BN45: =IF(C45="X",IF(AN45="DA",LEN(TRIM(V45))-LEN(SUBSTITUTE(V45,CHAR(44),""))+1+LEN(TRIM(U45))-LEN(SUBSTITUTE(U45,CHAR(44),""))+1,"-"),"") -> -
A46: 31 | B46: - | C46: x | D46: Punere în siguranță traversare aeriană peste canal râul Bistrița cu conducta 12” Piatra Neamț - Bicaz, zona Stejaru | E46: 123665 | F46: Stejaru | G46: Neamț | H46: 589703.3 | I46: 602610.3 | J46: 589703.3 | K46: 602610.3 | L46: - | M46: - | N46: SM0458D0 | O46: Stejaru | P46: - | Q46: - | R46: - | S46: - | T46: SM-SD001 | U46: Nova Power, Cez Vânzare, Racord Furnizare, Cis Gaz, Conef Gaz, CPL Concordia, Crest Energy, Delgaz, Design Proiect, Distrigaz Vest, Engie, Axpo, E.on Energie, Electrica Furnizare, Electric Planners, Energy Distribution, Enel Energie, Enel Muntenia, Gas&Power, Entrex, Premier Energy Trading, Gaz Est, Gazmir, Mihoc Oil, Met România, Monsson, MVM Future, Next Energy Distribution, Next Energy Partners, Pado Furnizare, Premier Energy, Petrom, Prisma Serv, Gas Provider, Renovatio, Romgaz, RWE Supply, Tetarom, Tinmar, Veolia, Wiee | V46: Delgaz Grid | W46: ianuarie - martie 2022 21 aprilie - iunie 2022 | AB46: Bacău | AC46: Efectuată (lucrarea a fost executată în perioada 10 - 11.05.2022 împreună cu lucrarea de la poziția 5) | AD46: Se intenționează executarea simultană a mai multor lucrări de pe această conductă | AM46: 35856/05.05.2022 | AP46: PMDI 2022_A3_24 | AR46: =IF(B46="X",IF(AN46="","Afectat sau NU?",IF(AN46="DA",IF(((AK46+AL46)-(AE46+AF46))*24<-720,"Neinformat",((AK46+AL46)-(AE46+AF46))*24),"Nu a fost afectat producator/consumator")),"") ->  | AS46: =IF(B46="X",IF(AN46="DA",IF(AR46<6,LEN(TRIM(V46))-LEN(SUBSTITUTE(V46,CHAR(44),""))+1,0),"-"),"") ->  | AT46: =IF(B46="X",IF(AN46="DA",LEN(TRIM(V46))-LEN(SUBSTITUTE(V46,CHAR(44),""))+1,"-"),"") ->  | AU46: =IF(B46="X",IF(AN46="","Afectat sau NU?",IF(AN46="DA",IF(((AI46+AJ46)-(AE46+AF46))*24<-720,"Neinformat",((AI46+AJ46)-(AE46+AF46))*24),"Nu a fost afectat producator/consumator")),"") ->  | AV46: =IF(B46="X",IF(AN46="DA",IF(AU46<6,LEN(TRIM(U46))-LEN(SUBSTITUTE(U46,CHAR(44),""))+1,0),"-"),"") ->  | AW46: =IF(B46="X",IF(AN46="DA",LEN(TRIM(U46))-LEN(SUBSTITUTE(U46,CHAR(44),""))+1,"-"),"") ->  | AX46: =IF(B46="X",IF(AN46="","Afectat sau NU?",IF(AN46="DA",((AG46+AH46)-(AE46+AF46))*24,"Nu a fost afectat producator/consumator")),"") ->  | AY46: =IF(B46="X",IF(AN46="DA",IF(AX46>24,IF(BA46="NU",0,LEN(TRIM(V46))-LEN(SUBSTITUTE(V46,CHAR(44),""))+1),0),"-"),"") ->  | AZ46: =IF(B46="X",IF(AN46="DA",IF(AX46>24,LEN(TRIM(V46))-LEN(SUBSTITUTE(V46,CHAR(44),""))+1,0),"-"),"") ->  | BF46: =IF(C46="X",IF(AN46="","Afectat sau NU?",IF(AN46="DA",IF(AK46="","Neinformat",NETWORKDAYS(AK46+AL46,AE46+AF46,$BS$2:$BS$14)-2),"Nu a fost afectat producator/consumator")),"") -> Afectat sau NU? | BG46: =IF(C46="X",IF(AN46="DA",IF(AND(BF46>=5,AK46<>""),LEN(TRIM(V46))-LEN(SUBSTITUTE(V46,CHAR(44),""))+1,0),"-"),"") -> - | BH46: =IF(C46="X",IF(AN46="DA",LEN(TRIM(V46))-LEN(SUBSTITUTE(V46,CHAR(44),""))+1,"-"),"") -> - | BI46: =IF(C46="X",IF(AN46="","Afectat sau NU?",IF(AN46="DA",IF(AI46="","Neinformat",NETWORKDAYS(AI46+AJ46,AE46+AF46,$BS$2:$BS$14)-2),"Nu a fost afectat producator/consumator")),"") -> Afectat sau NU? | BJ46: =IF(C46="X",IF(AN46="DA",IF(AND(BI46>=5,AI46<>""),LEN(TRIM(U46))-LEN(SUBSTITUTE(U46,CHAR(44),""))+1,0),"-"),"") -> - | BK46: =IF(C46="X",IF(AN46="DA",LEN(TRIM(U46))-LEN(SUBSTITUTE(U46,CHAR(44),""))+1,"-"),"") -> - | BL46: =IF(C46="X",IF(AN46="","Afectat sau NU?",IF(AN46="DA",((AG46+AH46)-(Z46+AA46))*24,"Nu a fost afectat producator/consumator")),"") -> Afectat sau NU? | BM46: =IF(C46="X",IF(AN46<>"DA","-",IF(AND(AN46="DA",BL46<=0),LEN(TRIM(V46))-LEN(SUBSTITUTE(V46,CHAR(44),""))+1+LEN(TRIM(U46))-LEN(SUBSTITUTE(U46,CHAR(44),""))+1,0)),"") -> - | BN46: =IF(C46="X",IF(AN46="DA",LEN(TRIM(V46))-LEN(SUBSTITUTE(V46,CHAR(44),""))+1+LEN(TRIM(U46))-LEN(SUBSTITUTE(U46,CHAR(44),""))+1,"-"),"") -> -
A47: 32 | B47: - | C47: x | D47: Punere în siguranță traversare aeriană peste canal râul Bistrița cu conducta 12” Piatra Neamț - Bicaz, zona Stejaru | E47: 120977 | F47: Bicaz | G47: Neamț | H47: 583336.33 | I47: 601827.11 | J47: 583336.33 | K47: 601827.11 | L47: - | M47: - | N47: SM0459D0 | O47: Bicaz | P47: - | Q47: - | R47: - | S47: - | T47: SM-SD001 | U47: Nova Power, Cez Vânzare, Racord Furnizare, Cis Gaz, Conef Gaz, CPL Concordia, Crest Energy, Delgaz, Design Proiect, Distrigaz Vest, Engie, Axpo, E.on Energie, Electrica Furnizare, Electric Planners, Energy Distribution, Enel Energie, Enel Muntenia, Gas&Power, Entrex, Premier Energy Trading, Gaz Est, Gazmir, Mihoc Oil, Met România, Monsson, MVM Future, Next Energy Distribution, Next Energy Partners, Pado Furnizare, Premier Energy, Petrom, Prisma Serv, Gas Provider, Renovatio, Romgaz, RWE Supply, Tetarom, Tinmar, Veolia, Wiee | V47: Delgaz Grid | W47: ianuarie - martie 2022 21 aprilie - iunie 2022 | AB47: Bacău | AC47: Efectuată (lucrarea a fost executată în perioada 10 - 11.05.2022 împreună cu lucrarea de la poziția 6) | AD47: Se intenționează executarea simultană a mai multor lucrări de pe această conductă | AM47: 35856/05.05.2022 | AP47: PMDI 2022_A3_24 | BF47: Afectat sau NU? | BG47: - | BH47: - | BI47: Afectat sau NU? | BJ47: - | BK47: - | BL47: Afectat sau NU? | BM47: - | BN47: -
A48: 33 | B48: - | C48: x | D48: Mărire capacitate SRM Brașov IV, jud. Brașov | E48: 40205 | F48: Brașov | G48: Brașov | H48: 543022.21 | I48: 463921.21 | J48: 543022.21 | K48: 463921.21 | L48: - | M48: - | N48: SM1135D0 | O48: Brașov IV | P48: - | Q48: - | R48: - | S48: - | T48: SM-SD001 | V48: Distrigaz Sud Rețele | W48: iulie - septembrie 2022 | AB48: Brașov | AP48: PMDI 2022_A16_9 | BF48: Afectat sau NU? | BG48: - | BH48: - | BI48: Afectat sau NU? | BJ48: - | BK48: - | BL48: Afectat sau NU? | BM48: - | BN48: -
A49: 34 | B49: - | C49: x | D49: Racord și SRM Turnătorie Silnef Metal Casting, Codlea, Jud. Brașov | E49: 40250 | F49: Codlea | G49: Brașov | H49: 536853.73 | I49: 468564.83 | J49: 536853.73 | K49: 468564.83 | L49: - | M49: - | N49: SM1191D0 | O49: SC Silnef Metal Casting Codlea | P49: - | Q49: - | R49: - | S49: - | T49: SM-CF001 | U49: Cis Gaz | V49: Silnef | W49: octombrie - decembrie 2021 | AB49: Brașov | AC49: Efectuată (lucrarea a fost executată în perioada 01 - 03.10.2021 împreună cu lucrarea de la poziția 85) | AP49: PMDI 2021_cap.C_1 | AR49: =IF(B49="X",IF(AN49="","Afectat sau NU?",IF(AN49="DA",IF(((AK49+AL49)-(AE49+AF49))*24<-720,"Neinformat",((AK49+AL49)-(AE49+AF49))*24),"Nu a fost afectat producator/consumator")),"") ->  | AS49: =IF(B49="X",IF(AN49="DA",IF(AR49<6,LEN(TRIM(V49))-LEN(SUBSTITUTE(V49,CHAR(44),""))+1,0),"-"),"") ->  | AT49: =IF(B49="X",IF(AN49="DA",LEN(TRIM(V49))-LEN(SUBSTITUTE(V49,CHAR(44),""))+1,"-"),"") ->  | AU49: =IF(B49="X",IF(AN49="","Afectat sau NU?",IF(AN49="DA",IF(((AI49+AJ49)-(AE49+AF49))*24<-720,"Neinformat",((AI49+AJ49)-(AE49+AF49))*24),"Nu a fost afectat producator/consumator")),"") ->  | AV49: =IF(B49="X",IF(AN49="DA",IF(AU49<6,LEN(TRIM(U49))-LEN(SUBSTITUTE(U49,CHAR(44),""))+1,0),"-"),"") ->  | AW49: =IF(B49="X",IF(AN49="DA",LEN(TRIM(U49))-LEN(SUBSTITUTE(U49,CHAR(44),""))+1,"-"),"") ->  | AX49: =IF(B49="X",IF(AN49="","Afectat sau NU?",IF(AN49="DA",((AG49+AH49)-(AE49+AF49))*24,"Nu a fost afectat producator/consumator")),"") ->  | AY49: =IF(B49="X",IF(AN49="DA",IF(AX49>24,IF(BA49="NU",0,LEN(TRIM(V49))-LEN(SUBSTITUTE(V49,CHAR(44),""))+1),0),"-"),"") ->  | AZ49: =IF(B49="X",IF(AN49="DA",IF(AX49>24,LEN(TRIM(V49))-LEN(SUBSTITUTE(V49,CHAR(44),""))+1,0),"-"),"") ->  | BF49: =IF(C49="X",IF(AN49="","Afectat sau NU?",IF(AN49="DA",IF(AK49="","Neinformat",NETWORKDAYS(AK49+AL49,AE49+AF49,$BS$2:$BS$14)-2),"Nu a fost afectat producator/consumator")),"") -> Afectat sau NU? | BG49: =IF(C49="X",IF(AN49="DA",IF(AND(BF49>=5,AK49<>""),LEN(TRIM(V49))-LEN(SUBSTITUTE(V49,CHAR(44),""))+1,0),"-"),"") -> - | BH49: =IF(C49="X",IF(AN49="DA",LEN(TRIM(V49))-LEN(SUBSTITUTE(V49,CHAR(44),""))+1,"-"),"") -> - | BI49: =IF(C49="X",IF(AN49="","Afectat sau NU?",IF(AN49="DA",IF(AI49="","Neinformat",NETWORKDAYS(AI49+AJ49,AE49+AF49,$BS$2:$BS$14)-2),"Nu a fost afectat producator/consumator")),"") -> Afectat sau NU? | BJ49: =IF(C49="X",IF(AN49="DA",IF(AND(BI49>=5,AI49<>""),LEN(TRIM(U49))-LEN(SUBSTITUTE(U49,CHAR(44),""))+1,0),"-"),"") -> - | BK49: =IF(C49="X",IF(AN49="DA",LEN(TRIM(U49))-LEN(SUBSTITUTE(U49,CHAR(44),""))+1,"-"),"") -> - | BL49: =IF(C49="X",IF(AN49="","Afectat sau NU?",IF(AN49="DA",((AG49+AH49)-(Z49+AA49))*24,"Nu a fost afectat producator/consumator")),"") -> Afectat sau NU? | BM49: =IF(C49="X",IF(AN49<>"DA","-",IF(AND(AN49="DA",BL49<=0),LEN(TRIM(V49))-LEN(SUBSTITUTE(V49,CHAR(44),""))+1+LEN(TRIM(U49))-LEN(SUBSTITUTE(U49,CHAR(44),""))+1,0)),"") -> - | BN49: =IF(C49="X",IF(AN49="DA",LEN(TRIM(V49))-LEN(SUBSTITUTE(V49,CHAR(44),""))+1+LEN(TRIM(U49))-LEN(SUBSTITUTE(U49,CHAR(44),""))+1,"-"),"") -> -
A50: 35 | B50: - | C50: x | D50: Racord și SRM Sagem Cucorani, jud. Botoșani | E50: 38143 | F50: Manolești | G50: Botoșani | H50: 620967.59 | I50: 695527.58 | J50: 620967.59 | K50: 695527.58 | L50: - | M50: - | N50: SM1192D0 | O50: SC Sagem Cucorani | P50: - | Q50: - | R50: - | S50: - | T50: SM-SD001 | V50: Sagem | W50: ianuarie - martie 2022 | AB50: Bacău | AC50: Efectuată (Lucrarea a fost executată în data de 28.10.2021 fără a fi afectat consumatorul) | AP50: PMDI 2021_cap.C_2 | BF50: Afectat sau NU? | BG50: - | BH50: - | BI50: Afectat sau NU? | BJ50: - | BK50: - | BL50: Afectat sau NU? | BM50: - | BN50: -
A51: 36 | B51: - | C51: x | D51: Relocare și adaptare la teren a instalației tehnologice SRM Poroterom Orăștie pe locația SRM Baru | E51: 88001 | F51: Baru | G51: Hunedoara | H51: 357044.71 | I51: 442838.66 | J51: 357044.71 | K51: 442838.66 | L51: - | M51: - | N51: SM0314D0 | O51: Baru | P51: - | Q51: - | R51: - | S51: - | T51: SM-SD001 | V51: Delgaz Grid | W51: iulie - septembrie 2022 anul gazier 2022 - 2023 | AB51: Arad | AD51: Faza de elaborare proiect tehnic | AP51: PMDI 2022_A5_1 | AR51: =IF(B51="X",IF(AN51="","Afectat sau NU?",IF(AN51="DA",IF(((AK51+AL51)-(AE51+AF51))*24<-720,"Neinformat",((AK51+AL51)-(AE51+AF51))*24),"Nu a fost afectat producator/consumator")),"") ->  | AS51: =IF(B51="X",IF(AN51="DA",IF(AR51<6,LEN(TRIM(V51))-LEN(SUBSTITUTE(V51,CHAR(44),""))+1,0),"-"),"") ->  | AT51: =IF(B51="X",IF(AN51="DA",LEN(TRIM(V51))-LEN(SUBSTITUTE(V51,CHAR(44),""))+1,"-"),"") ->  | AU51: =IF(B51="X",IF(AN51="","Afectat sau NU?",IF(AN51="DA",IF(((AI51+AJ51)-(AE51+AF51))*24<-720,"Neinformat",((AI51+AJ51)-(AE51+AF51))*24),"Nu a fost afectat producator/consumator")),"") ->  | AV51: =IF(B51="X",IF(AN51="DA",IF(AU51<6,LEN(TRIM(U51))-LEN(SUBSTITUTE(U51,CHAR(44),""))+1,0),"-"),"") ->  | AW51: =IF(B51="X",IF(AN51="DA",LEN(TRIM(U51))-LEN(SUBSTITUTE(U51,CHAR(44),""))+1,"-"),"") ->  | AX51: =IF(B51="X",IF(AN51="","Afectat sau NU?",IF(AN51="DA",((AG51+AH51)-(AE51+AF51))*24,"Nu a fost afectat producator/consumator")),"") ->  | AY51: =IF(B51="X",IF(AN51="DA",IF(AX51>24,IF(BA51="NU",0,LEN(TRIM(V51))-LEN(SUBSTITUTE(V51,CHAR(44),""))+1),0),"-"),"") ->  | AZ51: =IF(B51="X",IF(AN51="DA",IF(AX51>24,LEN(TRIM(V51))-LEN(SUBSTITUTE(V51,CHAR(44),""))+1,0),"-"),"") ->  | BF51: =IF(C51="X",IF(AN51="","Afectat sau NU?",IF(AN51="DA",IF(AK51="","Neinformat",NETWORKDAYS(AK51+AL51,AE51+AF51,$BS$2:$BS$14)-2),"Nu a fost afectat producator/consumator")),"") -> Afectat sau NU? | BG51: =IF(C51="X",IF(AN51="DA",IF(AND(BF51>=5,AK51<>""),LEN(TRIM(V51))-LEN(SUBSTITUTE(V51,CHAR(44),""))+1,0),"-"),"") -> - | BH51: =IF(C51="X",IF(AN51="DA",LEN(TRIM(V51))-LEN(SUBSTITUTE(V51,CHAR(44),""))+1,"-"),"") -> - | BI51: =IF(C51="X",IF(AN51="","Afectat sau NU?",IF(AN51="DA",IF(AI51="","Neinformat",NETWORKDAYS(AI51+AJ51,AE51+AF51,$BS$2:$BS$14)-2),"Nu a fost afectat producator/consumator")),"") -> Afectat sau NU? | BJ51: =IF(C51="X",IF(AN51="DA",IF(AND(BI51>=5,AI51<>""),LEN(TRIM(U51))-LEN(SUBSTITUTE(U51,CHAR(44),""))+1,0),"-"),"") -> - | BK51: =IF(C51="X",IF(AN51="DA",LEN(TRIM(U51))-LEN(SUBSTITUTE(U51,CHAR(44),""))+1,"-"),"") -> - | BL51: =IF(C51="X",IF(AN51="","Afectat sau NU?",IF(AN51="DA",((AG51+AH51)-(Z51+AA51))*24,"Nu a fost afectat producator/consumator")),"") -> Afectat sau NU? | BM51: =IF(C51="X",IF(AN51<>"DA","-",IF(AND(AN51="DA",BL51<=0),LEN(TRIM(V51))-LEN(SUBSTITUTE(V51,CHAR(44),""))+1+LEN(TRIM(U51))-LEN(SUBSTITUTE(U51,CHAR(44),""))+1,0)),"") -> - | BN51: =IF(C51="X",IF(AN51="DA",LEN(TRIM(V51))-LEN(SUBSTITUTE(V51,CHAR(44),""))+1+LEN(TRIM(U51))-LEN(SUBSTITUTE(U51,CHAR(44),""))+1,"-"),"") -> -
A52: =A51+1 -> 37 | B52: - | C52: x | D52: SRM Clinceni - Eficientizarea sistemului de măsură prin completarea instalației tehnologice cu elemente/echipamente corespunzătoare | E52: 102044 | F52: Clinceni | G52: Ilfov | H52: 574454.58 | I52: 318647.9 | J52: 574454.58 | K52: 318647.9 | L52: - | M52: - | N52: SM0249D1 | O52: Clinceni | P52: - | Q52: - | R52: - | S52: - | T52: SM-SD001 | U52: Alpha Metal, Nova Power, Cez Vânzare, Cis Gaz, Conef Gaz, Crest Energy, Distrigaz Vest, Engie, E.on Energie, Electrocentrale București, Electrocentrale Constanța, Electrica Furnizare, Electric Planners, Energy Distribution, Enel Energie, Enel Muntenia, Gas&Power, Entrex, Euro Seven, Eye Mall, Premier Energy Trading, Gaz Est, C-Gaz&Energy, Getica 95, Megaconstruct, Met România, Monsson, MVM Future, Next Energy Distribution, Next Energy Partners, Nord Gaz, Premier Energy, Petrom, Gas Provider, Renovatio, Romgaz, RWE Supply, Sustainable Energy, Tinmar, Transenergo, Wiee | V52: Distrigaz Sud Rețele | W52: octombrie - decembrie 2021 martie - mai 2022 iulie 2022 | X52: 2022-07-18 | Y52: 08:00:00 | Z52: 2022-07-18 | AA52: 21:00:00 | AB52: București | AC52: Efectuată | AD52: Solicitare amânare transmisă de parteneri Solicitare amânare transmisă de parteneri | AE52: 2022-07-18 | AF52: 08:00:00 | AG52: 2022-07-18 | AH52: 17:10:00 | AI52: 2022-07-08 | AJ52: 10:41:00 | AK52: 2022-07-08 | AL52: 09:46:00 | AM52: 56331/15.07.2022 | AN52: DA | AP52: PMDI 2022_A5_11 | BF52: 5 | BG52: 1 | BH52: 1 | BI52: 5 | BJ52: 41 | BK52: 41 | BL52: -3.833333333 | BM52: 42 | BN52: 42
A53: =A52+1 -> 38 | B53: - | C53: x | D53: SRM Clinceni - Eficientizarea sistemului de măsură prin completarea instalației tehnologice cu elemente/echipamente corespunzătoare | E53: 102044 | F53: Clinceni | G53: Ilfov | H53: 574454.58 | I53: 318647.9 | J53: 574454.58 | K53: 318647.9 | L53: - | M53: - | N53: SM0249D2 | O53: Cornetu | P53: - | Q53: - | R53: - | S53: - | T53: SM-SD001 | U53: Nova Power, Cez Vânzare, Cis Gaz, Conef Gaz, Crest Energy, Distrigaz Vest, Engie, E.on Energie, Electrica Furnizare, Electric Planners, Energy Distribution, Enel Energie, Enel Muntenia, Gas&Power, Entrex, Eye Mall, Premier Energy Trading, Gaz Est, Megaconstruct, Met România, Monsson, Next Energy Distribution, Nord Gaz, Premier Energy, Petrom, Gas Provider, Renovatio, Romgaz, Tinmar, Transenergo, Veolia, Wiee | V53: Premier Energy | W53: octombrie - decembrie 2021 martie - mai 2022 iulie 2022 | X53: 2022-07-18 | Y53: 08:00:00 | Z53: 2022-07-18 | AA53: 21:00:00 | AB53: București | AC53: Efectuată | AD53: Solicitare amânare transmisă de parteneri Solicitare amânare transmisă de parteneri | AE53: 2022-07-18 | AF53: 08:00:00 | AG53: 2022-07-18 | AH53: 18:05:00 | AI53: 2022-07-08 | AJ53: 10:37:00 | AK53: 2022-07-08 | AL53: 09:46:00 | AM53: 56331/15.07.2022 | AN53: DA | AP53: PMDI 2022_A5_11 | AR53: =IF(B53="X",IF(AN53="","Afectat sau NU?",IF(AN53="DA",IF(((AK53+AL53)-(AE53+AF53))*24<-720,"Neinformat",((AK53+AL53)-(AE53+AF53))*24),"Nu a fost afectat producator/consumator")),"") ->  | AS53: =IF(B53="X",IF(AN53="DA",IF(AR53<6,LEN(TRIM(V53))-LEN(SUBSTITUTE(V53,CHAR(44),""))+1,0),"-"),"") ->  | AT53: =IF(B53="X",IF(AN53="DA",LEN(TRIM(V53))-LEN(SUBSTITUTE(V53,CHAR(44),""))+1,"-"),"") ->  | AU53: =IF(B53="X",IF(AN53="","Afectat sau NU?",IF(AN53="DA",IF(((AI53+AJ53)-(AE53+AF53))*24<-720,"Neinformat",((AI53+AJ53)-(AE53+AF53))*24),"Nu a fost afectat producator/consumator")),"") ->  | AV53: =IF(B53="X",IF(AN53="DA",IF(AU53<6,LEN(TRIM(U53))-LEN(SUBSTITUTE(U53,CHAR(44),""))+1,0),"-"),"") ->  | AW53: =IF(B53="X",IF(AN53="DA",LEN(TRIM(U53))-LEN(SUBSTITUTE(U53,CHAR(44),""))+1,"-"),"") ->  | AX53: =IF(B53="X",IF(AN53="","Afectat sau NU?",IF(AN53="DA",((AG53+AH53)-(AE53+AF53))*24,"Nu a fost afectat producator/consumator")),"") ->  | AY53: =IF(B53="X",IF(AN53="DA",IF(AX53>24,IF(BA53="NU",0,LEN(TRIM(V53))-LEN(SUBSTITUTE(V53,CHAR(44),""))+1),0),"-"),"") ->  | AZ53: =IF(B53="X",IF(AN53="DA",IF(AX53>24,LEN(TRIM(V53))-LEN(SUBSTITUTE(V53,CHAR(44),""))+1,0),"-"),"") ->  | BF53: =IF(C53="X",IF(AN53="","Afectat sau NU?",IF(AN53="DA",IF(AK53="","Neinformat",NETWORKDAYS(AK53+AL53,AE53+AF53,$BS$2:$BS$14)-2),"Nu a fost afectat producator/consumator")),"") -> 5 | BG53: =IF(C53="X",IF(AN53="DA",IF(AND(BF53>=5,AK53<>""),LEN(TRIM(V53))-LEN(SUBSTITUTE(V53,CHAR(44),""))+1,0),"-"),"") -> 1 | BH53: =IF(C53="X",IF(AN53="DA",LEN(TRIM(V53))-LEN(SUBSTITUTE(V53,CHAR(44),""))+1,"-"),"") -> 1 | BI53: =IF(C53="X",IF(AN53="","Afectat sau NU?",IF(AN53="DA",IF(AI53="","Neinformat",NETWORKDAYS(AI53+AJ53,AE53+AF53,$BS$2:$BS$14)-2),"Nu a fost afectat producator/consumator")),"") -> 5 | BJ53: =IF(C53="X",IF(AN53="DA",IF(AND(BI53>=5,AI53<>""),LEN(TRIM(U53))-LEN(SUBSTITUTE(U53,CHAR(44),""))+1,0),"-"),"") -> 32 | BK53: =IF(C53="X",IF(AN53="DA",LEN(TRIM(U53))-LEN(SUBSTITUTE(U53,CHAR(44),""))+1,"-"),"") -> 32 | BL53: =IF(C53="X",IF(AN53="","Afectat sau NU?",IF(AN53="DA",((AG53+AH53)-(Z53+AA53))*24,"Nu a fost afectat producator/consumator")),"") -> -2.916666667 | BM53: =IF(C53="X",IF(AN53<>"DA","-",IF(AND(AN53="DA",BL53<=0),LEN(TRIM(V53))-LEN(SUBSTITUTE(V53,CHAR(44),""))+1+LEN(TRIM(U53))-LEN(SUBSTITUTE(U53,CHAR(44),""))+1,0)),"") -> 33 | BN53: =IF(C53="X",IF(AN53="DA",LEN(TRIM(V53))-LEN(SUBSTITUTE(V53,CHAR(44),""))+1+LEN(TRIM(U53))-LEN(SUBSTITUTE(U53,CHAR(44),""))+1,"-"),"") -> 33
A54: =A53+1 -> 39 | B54: - | C54: x | D54: SRM Clinceni - Eficientizarea sistemului de măsură prin completarea instalației tehnologice cu elemente/echipamente corespunzătoare | E54: 102044 | F54: Clinceni | G54: Ilfov | H54: 574454.58 | I54: 318647.9 | J54: 574454.58 | K54: 318647.9 | L54: - | M54: - | N54: SM0249D3 | O54: Clinceni Aeroport | P54: - | Q54: - | R54: - | S54: - | T54: SM-SD001 | U54: Nova Power, Cez Vânzare, Cis Gaz, Conef Gaz, Crest Energy, Distrigaz Vest, Engie, E.on Energie, Electrica Furnizare, Electric Planners, Energy Distribution, Enel Energie, Enel Muntenia, Gas&Power, Entrex, Eye Mall, Premier Energy Trading, Gaz Est, Megaconstruct, Met România, Monsson, Next Energy Distribution, Nord Gaz, Premier Energy, Petrom, Gas Provider, Renovatio, Romgaz, Tinmar, Transenergo, Veolia, Wiee | V54: Premier Energy | W54: octombrie - decembrie 2021 martie - mai 2022 iulie 2022 | X54: 2022-07-18 | Y54: 08:00:00 | Z54: 2022-07-18 | AA54: 21:00:00 | AB54: București | AC54: Efectuată | AD54: Solicitare amânare transmisă de parteneri Solicitare amânare transmisă de parteneri | AE54: 2022-07-18 | AF54: 08:00:00 | AG54: 2022-07-18 | AH54: 18:35:00 | AI54: 2022-07-08 | AJ54: 10:37:00 | AK54: 2022-07-08 | AL54: 09:46:00 | AM54: 56331/15.07.2022 | AN54: DA | AP54: PMDI 2022_A5_11 | BF54: 5 | BG54: 1 | BH54: 1 | BI54: 5 | BJ54: 32 | BK54: 32 | BL54: -2.416666667 | BM54: 33 | BN54: 33
A55: 40 | B55: - | C55: x | D55: Racord și SRM Lețcani, județul Iași | E55: 97688 | F55: Lețcani | G55: Iași | H55: 682858.38 | I55: 636181.85 | J55: 682858.38 | K55: 636181.85 | L55: - | M55: - | N55: SM0886D0 | O55: Lețcani | P55: - | Q55: - | R55: - | S55: - | T55: SM-SD001 | V55: Delgaz Grid | W55: octombrie - decembrie 2021 8 aprilie - iunie 2022 8 - 31 iulie 2022 august - septembrie 2022 | AB55: Bacău | AD55: Întârzieri în execuție Întârzieri în execuție Întârzieri în execuție | AP55: PMDI 2022_A16_60 | BF55: Afectat sau NU? | BG55: - | BH55: - | BI55: Afectat sau NU? | BJ55: - | BK55: - | BL55: Afectat sau NU? | BM55: - | BN55: -
A56: 41 | B56: - | C56: x | D56: Mărire capacitate SRM Uricani, județul Iași | E56: 95284 | F56: Iași | G56: Iași | H56: 688243.26 | I56: 633571.56 | J56: 688243.26 | K56: 633571.56 | L56: - | M56: - | N56: SM0480D2 | O56: Uricani | P56: - | Q56: - | R56: - | S56: - | T56: SM-SD001 | V56: Delgaz Grid | W56: octombrie - decembrie 2021 | AB56: Bacău | AC56: Efectuată (Lucrarea a fost executată în data de 07.12.2021 fără a fi afectat consumatorul) | AP56: PMDI 2022_A16_59 | AR56: =IF(B56="X",IF(AN56="","Afectat sau NU?",IF(AN56="DA",IF(((AK56+AL56)-(AE56+AF56))*24<-720,"Neinformat",((AK56+AL56)-(AE56+AF56))*24),"Nu a fost afectat producator/consumator")),"") ->  | AS56: =IF(B56="X",IF(AN56="DA",IF(AR56<6,LEN(TRIM(V56))-LEN(SUBSTITUTE(V56,CHAR(44),""))+1,0),"-"),"") ->  | AT56: =IF(B56="X",IF(AN56="DA",LEN(TRIM(V56))-LEN(SUBSTITUTE(V56,CHAR(44),""))+1,"-"),"") ->  | AU56: =IF(B56="X",IF(AN56="","Afectat sau NU?",IF(AN56="DA",IF(((AI56+AJ56)-(AE56+AF56))*24<-720,"Neinformat",((AI56+AJ56)-(AE56+AF56))*24),"Nu a fost afectat producator/consumator")),"") ->  | AV56: =IF(B56="X",IF(AN56="DA",IF(AU56<6,LEN(TRIM(U56))-LEN(SUBSTITUTE(U56,CHAR(44),""))+1,0),"-"),"") ->  | AW56: =IF(B56="X",IF(AN56="DA",LEN(TRIM(U56))-LEN(SUBSTITUTE(U56,CHAR(44),""))+1,"-"),"") ->  | AX56: =IF(B56="X",IF(AN56="","Afectat sau NU?",IF(AN56="DA",((AG56+AH56)-(AE56+AF56))*24,"Nu a fost afectat producator/consumator")),"") ->  | AY56: =IF(B56="X",IF(AN56="DA",IF(AX56>24,IF(BA56="NU",0,LEN(TRIM(V56))-LEN(SUBSTITUTE(V56,CHAR(44),""))+1),0),"-"),"") ->  | AZ56: =IF(B56="X",IF(AN56="DA",IF(AX56>24,LEN(TRIM(V56))-LEN(SUBSTITUTE(V56,CHAR(44),""))+1,0),"-"),"") ->  | BF56: =IF(C56="X",IF(AN56="","Afectat sau NU?",IF(AN56="DA",IF(AK56="","Neinformat",NETWORKDAYS(AK56+AL56,AE56+AF56,$BS$2:$BS$14)-2),"Nu a fost afectat producator/consumator")),"") -> Afectat sau NU? | BG56: =IF(C56="X",IF(AN56="DA",IF(AND(BF56>=5,AK56<>""),LEN(TRIM(V56))-LEN(SUBSTITUTE(V56,CHAR(44),""))+1,0),"-"),"") -> - | BH56: =IF(C56="X",IF(AN56="DA",LEN(TRIM(V56))-LEN(SUBSTITUTE(V56,CHAR(44),""))+1,"-"),"") -> - | BI56: =IF(C56="X",IF(AN56="","Afectat sau NU?",IF(AN56="DA",IF(AI56="","Neinformat",NETWORKDAYS(AI56+AJ56,AE56+AF56,$BS$2:$BS$14)-2),"Nu a fost afectat producator/consumator")),"") -> Afectat sau NU? | BJ56: =IF(C56="X",IF(AN56="DA",IF(AND(BI56>=5,AI56<>""),LEN(TRIM(U56))-LEN(SUBSTITUTE(U56,CHAR(44),""))+1,0),"-"),"") -> - | BK56: =IF(C56="X",IF(AN56="DA",LEN(TRIM(U56))-LEN(SUBSTITUTE(U56,CHAR(44),""))+1,"-"),"") -> - | BL56: =IF(C56="X",IF(AN56="","Afectat sau NU?",IF(AN56="DA",((AG56+AH56)-(Z56+AA56))*24,"Nu a fost afectat producator/consumator")),"") -> Afectat sau NU? | BM56: =IF(C56="X",IF(AN56<>"DA","-",IF(AND(AN56="DA",BL56<=0),LEN(TRIM(V56))-LEN(SUBSTITUTE(V56,CHAR(44),""))+1+LEN(TRIM(U56))-LEN(SUBSTITUTE(U56,CHAR(44),""))+1,0)),"") -> - | BN56: =IF(C56="X",IF(AN56="DA",LEN(TRIM(V56))-LEN(SUBSTITUTE(V56,CHAR(44),""))+1+LEN(TRIM(U56))-LEN(SUBSTITUTE(U56,CHAR(44),""))+1,"-"),"") -> -
A57: 42 | B57: - | C57: x | D57: Modernizare NT Schitu Goleşti - montare gară godevil | E57: 18689 | F57: Schitu Golești | G57: Argeș | H57: 499964.406 | I57: 409075.773 | J57: 499964.406 | K57: 409075.773 | L57: - | M57: - | N57: SM1089D0 | O57: Schitu Golești | P57: - | Q57: - | R57: - | S57: - | T57: SM-SD001 | V57: Distrigaz Sud Rețele | W57: octombrie - decembrie 2021 ianuarie - martie 2022 aprilie - iunie 2022 | AB57: Craiova | AC57: Efectuată (Lucrarea a fost executată fără a fi afectat consumatorul) | AD57: Necesitatea elaborării unei dispoziții de șantier Necesitatea avizării documentației aferente dispoziției de șantier | AP57: PMDI 2022_A1_1 | BF57: Afectat sau NU? | BG57: - | BH57: - | BI57: Afectat sau NU? | BJ57: - | BK57: - | BL57: Afectat sau NU? | BM57: - | BN57: -
A58: 43 | B58: - | C58: x | D58: Modernizare NT Schitu Goleşti - montare gară godevil | E58: 17263 | F58: Mihăești | G58: Argeș | H58: 500598.145 | I58: 401110.1547 | J58: 500598.145 | K58: 401110.1547 | L58: - | M58: - | N58: SM1243D0 | O58: Mihaești AG | P58: - | Q58: - | R58: - | S58: - | T58: SM-SD001 | V58: Distrigaz Sud Rețele | W58: octombrie - decembrie 2021 ianuarie - martie 2022 aprilie - iunie 2022 | AB58: Craiova | AC58: Efectuată (Lucrarea a fost executată fără a fi afectat consumatorul) | AD58: Necesitatea elaborării unei dispoziții de șantier Necesitatea avizării documentației aferente dispoziției de șantier | AP58: PMDI 2022_A1_1 | BF58: Afectat sau NU? | BG58: - | BH58: - | BI58: Afectat sau NU? | BJ58: - | BK58: - | BL58: Afectat sau NU? | BM58: - | BN58: -
A59: 44 | B59: - | C59: x | D59: Refacere ocolitor exterior la SRM Vânători | E59: 120263 | F59: Vânători | G59: Mureș | H59: 494351.98 | I59: 527481.18 | J59: 494351.98 | K59: 527481.18 | L59: - | M59: - | N59: SM0375DO | O59: Vânători | P59: - | Q59: - | R59: - | S59: - | T59: SM-SD001 | V59: Delgaz Grid | W59: octombrie 2021 | AB59: Brașov | AC59: Efectuată (lucrarea a fost executată în luna septembrie, fără a fi afectat consumatorul) | AP59: Forțe proprii | AR59: =IF(B59="X",IF(AN59="","Afectat sau NU?",IF(AN59="DA",IF(((AK59+AL59)-(AE59+AF59))*24<-720,"Neinformat",((AK59+AL59)-(AE59+AF59))*24),"Nu a fost afectat producator/consumator")),"") ->  | AS59: =IF(B59="X",IF(AN59="DA",IF(AR59<6,LEN(TRIM(V59))-LEN(SUBSTITUTE(V59,CHAR(44),""))+1,0),"-"),"") ->  | AT59: =IF(B59="X",IF(AN59="DA",LEN(TRIM(V59))-LEN(SUBSTITUTE(V59,CHAR(44),""))+1,"-"),"") ->  | AU59: =IF(B59="X",IF(AN59="","Afectat sau NU?",IF(AN59="DA",IF(((AI59+AJ59)-(AE59+AF59))*24<-720,"Neinformat",((AI59+AJ59)-(AE59+AF59))*24),"Nu a fost afectat producator/consumator")),"") ->  | AV59: =IF(B59="X",IF(AN59="DA",IF(AU59<6,LEN(TRIM(U59))-LEN(SUBSTITUTE(U59,CHAR(44),""))+1,0),"-"),"") ->  | AW59: =IF(B59="X",IF(AN59="DA",LEN(TRIM(U59))-LEN(SUBSTITUTE(U59,CHAR(44),""))+1,"-"),"") ->  | AX59: =IF(B59="X",IF(AN59="","Afectat sau NU?",IF(AN59="DA",((AG59+AH59)-(AE59+AF59))*24,"Nu a fost afectat producator/consumator")),"") ->  | AY59: =IF(B59="X",IF(AN59="DA",IF(AX59>24,IF(BA59="NU",0,LEN(TRIM(V59))-LEN(SUBSTITUTE(V59,CHAR(44),""))+1),0),"-"),"") ->  | AZ59: =IF(B59="X",IF(AN59="DA",IF(AX59>24,LEN(TRIM(V59))-LEN(SUBSTITUTE(V59,CHAR(44),""))+1,0),"-"),"") ->  | BF59: =IF(C59="X",IF(AN59="","Afectat sau NU?",IF(AN59="DA",IF(AK59="","Neinformat",NETWORKDAYS(AK59+AL59,AE59+AF59,$BS$2:$BS$14)-2),"Nu a fost afectat producator/consumator")),"") -> Afectat sau NU? | BG59: =IF(C59="X",IF(AN59="DA",IF(AND(BF59>=5,AK59<>""),LEN(TRIM(V59))-LEN(SUBSTITUTE(V59,CHAR(44),""))+1,0),"-"),"") -> - | BH59: =IF(C59="X",IF(AN59="DA",LEN(TRIM(V59))-LEN(SUBSTITUTE(V59,CHAR(44),""))+1,"-"),"") -> - | BI59: =IF(C59="X",IF(AN59="","Afectat sau NU?",IF(AN59="DA",IF(AI59="","Neinformat",NETWORKDAYS(AI59+AJ59,AE59+AF59,$BS$2:$BS$14)-2),"Nu a fost afectat producator/consumator")),"") -> Afectat sau NU? | BJ59: =IF(C59="X",IF(AN59="DA",IF(AND(BI59>=5,AI59<>""),LEN(TRIM(U59))-LEN(SUBSTITUTE(U59,CHAR(44),""))+1,0),"-"),"") -> - | BK59: =IF(C59="X",IF(AN59="DA",LEN(TRIM(U59))-LEN(SUBSTITUTE(U59,CHAR(44),""))+1,"-"),"") -> - | BL59: =IF(C59="X",IF(AN59="","Afectat sau NU?",IF(AN59="DA",((AG59+AH59)-(Z59+AA59))*24,"Nu a fost afectat producator/consumator")),"") -> Afectat sau NU? | BM59: =IF(C59="X",IF(AN59<>"DA","-",IF(AND(AN59="DA",BL59<=0),LEN(TRIM(V59))-LEN(SUBSTITUTE(V59,CHAR(44),""))+1+LEN(TRIM(U59))-LEN(SUBSTITUTE(U59,CHAR(44),""))+1,0)),"") -> - | BN59: =IF(C59="X",IF(AN59="DA",LEN(TRIM(V59))-LEN(SUBSTITUTE(V59,CHAR(44),""))+1+LEN(TRIM(U59))-LEN(SUBSTITUTE(U59,CHAR(44),""))+1,"-"),"") -> -
A60: 45 | B60: - | C60: x | D60: Înlocuire robinet 20” cuplare racord SRM Balotești | E60: 100978 | F60: Balotești | G60: Ilfov | H60: 589605.26 | I60: 346450.65 | J60: 589605.26 | K60: 346450.65 | L60: - | M60: - | N60: SM0198D0 | O60: Balotești | P60: - | Q60: - | R60: - | S60: - | T60: SM-SD001 | V60: SC Megaconstruct SA | W60: mai - septembrie 2022 anul gazier 2022 - 2023 | AB60: București | AD60: Nu este posibilă oprirea fluxului de gaze naturale pe conducta 32” Moara Domnească - Butimanu, deoarece este în derulare ciclul de înmagazinare de la Butimanu | AP60: Plan lucrări SM 2021, cap.A | AR60: =IF(B60="X",IF(AN60="","Afectat sau NU?",IF(AN60="DA",IF(((AK60+AL60)-(AE60+AF60))*24<-720,"Neinformat",((AK60+AL60)-(AE60+AF60))*24),"Nu a fost afectat producator/consumator")),"") ->  | AS60: =IF(B60="X",IF(AN60="DA",IF(AR60<6,LEN(TRIM(V60))-LEN(SUBSTITUTE(V60,CHAR(44),""))+1,0),"-"),"") ->  | AT60: =IF(B60="X",IF(AN60="DA",LEN(TRIM(V60))-LEN(SUBSTITUTE(V60,CHAR(44),""))+1,"-"),"") ->  | AU60: =IF(B60="X",IF(AN60="","Afectat sau NU?",IF(AN60="DA",IF(((AI60+AJ60)-(AE60+AF60))*24<-720,"Neinformat",((AI60+AJ60)-(AE60+AF60))*24),"Nu a fost afectat producator/consumator")),"") ->  | AV60: =IF(B60="X",IF(AN60="DA",IF(AU60<6,LEN(TRIM(U60))-LEN(SUBSTITUTE(U60,CHAR(44),""))+1,0),"-"),"") ->  | AW60: =IF(B60="X",IF(AN60="DA",LEN(TRIM(U60))-LEN(SUBSTITUTE(U60,CHAR(44),""))+1,"-"),"") ->  | AX60: =IF(B60="X",IF(AN60="","Afectat sau NU?",IF(AN60="DA",((AG60+AH60)-(AE60+AF60))*24,"Nu a fost afectat producator/consumator")),"") ->  | AY60: =IF(B60="X",IF(AN60="DA",IF(AX60>24,IF(BA60="NU",0,LEN(TRIM(V60))-LEN(SUBSTITUTE(V60,CHAR(44),""))+1),0),"-"),"") ->  | AZ60: =IF(B60="X",IF(AN60="DA",IF(AX60>24,LEN(TRIM(V60))-LEN(SUBSTITUTE(V60,CHAR(44),""))+1,0),"-"),"") ->  | BF60: =IF(C60="X",IF(AN60="","Afectat sau NU?",IF(AN60="DA",IF(AK60="","Neinformat",NETWORKDAYS(AK60+AL60,AE60+AF60,$BS$2:$BS$14)-2),"Nu a fost afectat producator/consumator")),"") -> Afectat sau NU? | BG60: =IF(C60="X",IF(AN60="DA",IF(AND(BF60>=5,AK60<>""),LEN(TRIM(V60))-LEN(SUBSTITUTE(V60,CHAR(44),""))+1,0),"-"),"") -> - | BH60: =IF(C60="X",IF(AN60="DA",LEN(TRIM(V60))-LEN(SUBSTITUTE(V60,CHAR(44),""))+1,"-"),"") -> - | BI60: =IF(C60="X",IF(AN60="","Afectat sau NU?",IF(AN60="DA",IF(AI60="","Neinformat",NETWORKDAYS(AI60+AJ60,AE60+AF60,$BS$2:$BS$14)-2),"Nu a fost afectat producator/consumator")),"") -> Afectat sau NU? | BJ60: =IF(C60="X",IF(AN60="DA",IF(AND(BI60>=5,AI60<>""),LEN(TRIM(U60))-LEN(SUBSTITUTE(U60,CHAR(44),""))+1,0),"-"),"") -> - | BK60: =IF(C60="X",IF(AN60="DA",LEN(TRIM(U60))-LEN(SUBSTITUTE(U60,CHAR(44),""))+1,"-"),"") -> - | BL60: =IF(C60="X",IF(AN60="","Afectat sau NU?",IF(AN60="DA",((AG60+AH60)-(Z60+AA60))*24,"Nu a fost afectat producator/consumator")),"") -> Afectat sau NU? | BM60: =IF(C60="X",IF(AN60<>"DA","-",IF(AND(AN60="DA",BL60<=0),LEN(TRIM(V60))-LEN(SUBSTITUTE(V60,CHAR(44),""))+1+LEN(TRIM(U60))-LEN(SUBSTITUTE(U60,CHAR(44),""))+1,0)),"") -> - | BN60: =IF(C60="X",IF(AN60="DA",LEN(TRIM(V60))-LEN(SUBSTITUTE(V60,CHAR(44),""))+1+LEN(TRIM(U60))-LEN(SUBSTITUTE(U60,CHAR(44),""))+1,"-"),"") -> -
A61: 46 | B61: - | C61: x | D61: Înlocuire robinet 20” cuplare racord SRM Balotești | E61: 105179 | F61: Snagov | G61: Ilfov | H61: 589606.49 | I61: 346458.63 | J61: 589606.49 | K61: 346458.63 | L61: - | M61: - | N61: SM0922D0 | O61: Snagov | P61: - | Q61: - | R61: - | S61: - | T61: SM-SD001 | V61: SC Premier Energy SRL | W61: mai - septembrie 2022 anul gazier 2022 - 2023 | AB61: București | AD61: Nu este posibilă oprirea fluxului de gaze naturale pe conducta 32” Moara Domnească - Butimanu, deoarece este în derulare ciclul de înmagazinare de la Butimanu | AP61: Plan lucrări SM 2021, cap.A | BF61: Afectat sau NU? | BG61: - | BH61: - | BI61: Afectat sau NU? | BJ61: - | BK61: - | BL61: Afectat sau NU? | BM61: - | BN61: -
A62: 47 | B62: - | C62: x | D62: Înlocuire robinet 20” cuplare racord SRM Balotești | E62: 102179 | F62: Corbeanca | G62: Ilfov | H62: 582902.09 | I62: 344014.84 | J62: 582902.09 | K62: 344014.84 | L62: - | M62: - | N62: SM0148D0 | O62: Corbeanca | P62: - | Q62: - | R62: - | S62: - | T62: SM-SD001 | V62: Distrigaz Sud Rețele | W62: mai - septembrie 2022 anul gazier 2022 - 2023 | AB62: București | AD62: Nu este posibilă oprirea fluxului de gaze naturale pe conducta 32” Moara Domnească - Butimanu, deoarece este în derulare ciclul de înmagazinare de la Butimanu | AP62: Plan lucrări SM 2021, cap.A | BF62: Afectat sau NU? | BG62: - | BH62: - | BI62: Afectat sau NU? | BJ62: - | BK62: - | BL62: Afectat sau NU? | BM62: - | BN62: -
A63: 48 | B63: - | C63: x | D63: Modernizare/Sistematizare instalație tehnologică SRM Tunari | E63: 105589 | F63: Tunari | G63: Ilfov | H63: 590859.85 | I63: 338211.21 | J63: 590859.85 | K63: 338211.21 | L63: - | M63: - | N63: SM0168D0 | O63: București Tunari | P63: - | Q63: - | R63: - | S63: - | T63: SM-SD001 | V63: Distrigaz Sud Rețele | W63: mai - septembrie 2022 anul gazier 2022 - 2023 | AB63: București | AD63: Întârzieri în aprovizionarea cu materiale necesare | AP63: Plan lucrări SM 2021, cap.A | BF63: Afectat sau NU? | BG63: - | BH63: - | BI63: Afectat sau NU? | BJ63: - | BK63: - | BL63: Afectat sau NU? | BM63: - | BN63: -
A64: 49 | B64: - | C64: x | D64: Modernizare/Sistematizare instalație tehnologică SRM Tunari | E64: 105589 | F64: Tunari | G64: Ilfov | H64: 590859.85 | I64: 338211.21 | J64: 590859.85 | K64: 338211.21 | L64: - | M64: - | N64: SM0168D1 | O64: Cartier Pipera | P64: - | Q64: - | R64: - | S64: - | T64: SM-SD001 | V64: SC Premier Energy SRL | W64: mai - septembrie 2022 anul gazier 2022 - 2023 | AB64: București | AD64: Întârzieri în aprovizionarea cu materiale necesare | AP64: Plan lucrări SM 2021, cap.A | BF64: Afectat sau NU? | BG64: - | BH64: - | BI64: Afectat sau NU? | BJ64: - | BK64: - | BL64: Afectat sau NU? | BM64: - | BN64: -
A65: 50 | B65: - | C65: x | D65: Montare flanșă electroizolantă pe racord SRM Videle | E65: 151914 | F65: Videle | G65: Teleorman | H65: 543275.88 | I65: 310029.43 | J65: 543275.88 | K65: 310029.43 | L65: - | M65: - | N65: SM1111D0 | O65: Videle | P65: - | Q65: - | R65: - | S65: - | T65: SM-SD001 | V65: SC Premier Energy SRL | W65: mai - septembrie 2022 | X65: 2022-09-07 | Y65: 07:00:00 | Z65: 2022-09-07 | AA65: 19:00:00 | AB65: București | AC65: Efectuată (lucrarea a fost efectuată în data de 07.09.2022 împreună cu lucrarea de la pozițiile 51-52) | AM65: 69358/05.09.2022 | AP65: Forțe proprii | BF65: Afectat sau NU? | BG65: - | BH65: - | BI65: Afectat sau NU? | BJ65: - | BK65: - | BL65: Afectat sau NU? | BM65: - | BN65: -
A66: 51 | B66: - | C66: x | D66: Curățire interioara cu PIG a conductei 12” racord SRM Videle | E66: 151914 | F66: Videle | G66: Teleorman | H66: 543275.88 | I66: 310029.43 | J66: 543275.88 | K66: 310029.43 | L66: - | M66: - | N66: SM1111D0 | O66: Videle | P66: - | Q66: - | R66: - | S66: - | T66: SM-SD001 | U66: Nova Power, Cez Vânzare, Cis Gaz, Conef Gaz, Crest Energy, Distrigaz Vest, Engie, E.on Energie, Electrica Furnizare, Electric Planners, Energy Distribution, Enel Energie, Enel Muntenia, Gas&Power, Entrex, Eye Mall, Premier Energy Trading, Gaz Est, Megaconstruct, Met România, Monsson, Next Energy Distribution, Nord Gaz, Premier Energy, Petrom, Gas Provider, Renovatio, Romgaz, Tinmar, Transenergo, Veolia, Wiee | V66: SC Premier Energy SRL | W66: mai - septembrie 2022 | X66: 2022-09-07 | Y66: 07:00:00 | Z66: 2022-09-07 | AA66: 19:00:00 | AB66: București | AC66: Efectuată | AE66: 2022-09-07 | AF66: 07:00:00 | AG66: 2022-09-07 | AH66: 15:45:00 | AI66: 2022-08-29 | AJ66: 10:12:00 | AK66: 2022-08-29 | AL66: 09:33:00 | AM66: 69358/05.09.2022 | AN66: DA | AP66: Forțe proprii | BF66: 6 | BG66: 1 | BH66: 1 | BI66: 6 | BJ66: 32 | BK66: 32 | BL66: -3.25 | BM66: 33 | BN66: 33
A67: 52 | B67: - | C67: x | D67: Curățire interioara cu PIG a conductei 12” racord SRM Videle | E67: 104234 | F67: Mârșa | G67: Giurgiu | H67: 543811.16 | I67: 313253.82 | J67: 543811.16 | K67: 313253.82 | L67: - | M67: - | N67: SM1165D0 | O67: Depozit 160 Videle | P67: - | Q67: - | R67: - | S67: - | T67: SM-CF001 | U67: Nova Power, Cez Vânzare, Engie, E.on Energie, Energy Distribution, Enel Energie, Enel Muntenia, Gas&Power, Eye Mall, Premier Energy Trading, Premier Energy, Petrom, Tinmar | V67: Petrom | W67: mai - septembrie 2022 | X67: 2022-09-07 | Y67: 07:00:00 | Z67: 2022-09-07 | AA67: 19:00:00 | AB67: București | AC67: Efectuată | AE67: 2022-09-07 | AF67: 07:00:00 | AG67: 2022-09-07 | AH67: 15:45:00 | AI67: 2022-08-29 | AJ67: 10:15:00 | AK67: 2022-08-29 | AL67: 09:40:00 | AM67: 69358/05.09.2022 | AN67: DA | AP67: Forțe proprii | BF67: 6 | BG67: 1 | BH67: 1 | BI67: 6 | BJ67: 13 | BK67: 13 | BL67: -3.25 | BM67: 14 | BN67: 14
A68: 53 | B68: - | C68: x | D68: Interconectare 32" Moșu - Podișor cu 16" Gura Șuții, zona Slobozia Moara și relocare Rv16 cu refulator. | E68: 68636 | F68: Răcari | G68: Dâmbovița | H68: 557141.14 | I68: 348301.15 | J68: 557141.14 | K68: 348301.15 | L68: - | M68: - | N68: SM0145D0 | O68: Răcari | P68: - | Q68: - | R68: - | S68: - | T68: SM-SD001 | V68: Distrigaz Sud Rețele | W68: mai - septembrie 2022 anul gazier 2022 - 2023 | AB68: București | AD68: Întârzieri în aprovizionarea cu materiale necesare | AP68: Forțe proprii/SM | AR68: =IF(B68="X",IF(AN68="","Afectat sau NU?",IF(AN68="DA",IF(((AK68+AL68)-(AE68+AF68))*24<-720,"Neinformat",((AK68+AL68)-(AE68+AF68))*24),"Nu a fost afectat producator/consumator")),"") ->  | AS68: =IF(B68="X",IF(AN68="DA",IF(AR68<6,LEN(TRIM(V68))-LEN(SUBSTITUTE(V68,CHAR(44),""))+1,0),"-"),"") ->  | AT68: =IF(B68="X",IF(AN68="DA",LEN(TRIM(V68))-LEN(SUBSTITUTE(V68,CHAR(44),""))+1,"-"),"") ->  | AU68: =IF(B68="X",IF(AN68="","Afectat sau NU?",IF(AN68="DA",IF(((AI68+AJ68)-(AE68+AF68))*24<-720,"Neinformat",((AI68+AJ68)-(AE68+AF68))*24),"Nu a fost afectat producator/consumator")),"") ->  | AV68: =IF(B68="X",IF(AN68="DA",IF(AU68<6,LEN(TRIM(U68))-LEN(SUBSTITUTE(U68,CHAR(44),""))+1,0),"-"),"") ->  | AW68: =IF(B68="X",IF(AN68="DA",LEN(TRIM(U68))-LEN(SUBSTITUTE(U68,CHAR(44),""))+1,"-"),"") ->  | AX68: =IF(B68="X",IF(AN68="","Afectat sau NU?",IF(AN68="DA",((AG68+AH68)-(AE68+AF68))*24,"Nu a fost afectat producator/consumator")),"") ->  | AY68: =IF(B68="X",IF(AN68="DA",IF(AX68>24,IF(BA68="NU",0,LEN(TRIM(V68))-LEN(SUBSTITUTE(V68,CHAR(44),""))+1),0),"-"),"") ->  | AZ68: =IF(B68="X",IF(AN68="DA",IF(AX68>24,LEN(TRIM(V68))-LEN(SUBSTITUTE(V68,CHAR(44),""))+1,0),"-"),"") ->  | BF68: =IF(C68="X",IF(AN68="","Afectat sau NU?",IF(AN68="DA",IF(AK68="","Neinformat",NETWORKDAYS(AK68+AL68,AE68+AF68,$BS$2:$BS$14)-2),"Nu a fost afectat producator/consumator")),"") -> Afectat sau NU? | BG68: =IF(C68="X",IF(AN68="DA",IF(AND(BF68>=5,AK68<>""),LEN(TRIM(V68))-LEN(SUBSTITUTE(V68,CHAR(44),""))+1,0),"-"),"") -> - | BH68: =IF(C68="X",IF(AN68="DA",LEN(TRIM(V68))-LEN(SUBSTITUTE(V68,CHAR(44),""))+1,"-"),"") -> - | BI68: =IF(C68="X",IF(AN68="","Afectat sau NU?",IF(AN68="DA",IF(AI68="","Neinformat",NETWORKDAYS(AI68+AJ68,AE68+AF68,$BS$2:$BS$14)-2),"Nu a fost afectat producator/consumator")),"") -> Afectat sau NU? | BJ68: =IF(C68="X",IF(AN68="DA",IF(AND(BI68>=5,AI68<>""),LEN(TRIM(U68))-LEN(SUBSTITUTE(U68,CHAR(44),""))+1,0),"-"),"") -> - | BK68: =IF(C68="X",IF(AN68="DA",LEN(TRIM(U68))-LEN(SUBSTITUTE(U68,CHAR(44),""))+1,"-"),"") -> - | BL68: =IF(C68="X",IF(AN68="","Afectat sau NU?",IF(AN68="DA",((AG68+AH68)-(Z68+AA68))*24,"Nu a fost afectat producator/consumator")),"") -> Afectat sau NU? | BM68: =IF(C68="X",IF(AN68<>"DA","-",IF(AND(AN68="DA",BL68<=0),LEN(TRIM(V68))-LEN(SUBSTITUTE(V68,CHAR(44),""))+1+LEN(TRIM(U68))-LEN(SUBSTITUTE(U68,CHAR(44),""))+1,0)),"") -> - | BN68: =IF(C68="X",IF(AN68="DA",LEN(TRIM(V68))-LEN(SUBSTITUTE(V68,CHAR(44),""))+1+LEN(TRIM(U68))-LEN(SUBSTITUTE(U68,CHAR(44),""))+1,"-"),"") -> -
A69: 54 | B69: - | C69: x | D69: Interconectare 32" Moșu - Podișor cu 16" Gura Șuții, zona Slobozia Moara și relocare Rv16 cu refulator. | E69: 105543 | F69: Tărtășești | G69: Dâmbovița | H69: 564729.06 | I69: 341811.75 | J69: 564729.06 | K69: 341811.75 | L69: - | M69: - | N69: SM0112D0 | O69: Tărtășești | P69: - | Q69: - | R69: - | S69: - | T69: SM-SD001 | V69: SC Premier Energy SRL | W69: mai - septembrie 2022 anul gazier 2022 - 2023 | AB69: București | AD69: Întârzieri în aprovizionarea cu materiale necesare | AP69: Forțe proprii/SM | BF69: Afectat sau NU? | BG69: - | BH69: - | BI69: Afectat sau NU? | BJ69: - | BK69: - | BL69: Afectat sau NU? | BM69: - | BN69: -
A70: 55 | B70: - | C70: x | D70: Interconectare 32" Moșu - Podișor cu 16" Gura Șuții, zona Slobozia Moara și relocare Rv16 cu refulator. | E70: 104038 | F70: Săbăreni | G70: Giurgiu | H70: 569107.28 | I70: 334140.35 | J70: 569107.28 | K70: 334140.35 | L70: - | M70: - | N70: SM1086D0 | O70: Joița | P70: - | Q70: - | R70: - | S70: - | T70: SM-SD001 | V70: Euro Seven Industry | W70: mai - septembrie 2022 anul gazier 2022 - 2023 | AB70: București | AD70: Întârzieri în aprovizionarea cu materiale necesare | AP70: Forțe proprii/SM | BF70: Afectat sau NU? | BG70: - | BH70: - | BI70: Afectat sau NU? | BJ70: - | BK70: - | BL70: Afectat sau NU? | BM70: - | BN70: -
A71: 56 | B71: - | C71: x | D71: Înlocuire robinet R4 Inel București, zona Chiajna | E71: 179258 | F71: Chiajna | G71: Ilfov | H71: 576624.94 | I71: 327167.41 | J71: 576624.94 | K71: 327167.41 | L71: - | M71: - | N71: SM0170D0 | O71: SC Complex Carrefour Chiajna | P71: - | Q71: - | R71: - | S71: - | T71: SM-SD001 | V71: Distrigaz Sud Rețele | W71: mai - septembrie 2022 | AB71: București | AP71: Forțe proprii | BF71: Afectat sau NU? | BG71: - | BH71: - | BI71: Afectat sau NU? | BJ71: - | BK71: - | BL71: Afectat sau NU? | BM71: - | BN71: -
A72: 57 | B72: - | C72: x | D72: Înlocuire robinet R4 Inel București, zona Chiajna | E72: 179258 | F72: Chiajna | G72: Ilfov | H72: 576726.57 | I72: 326494.11 | J72: 576726.57 | K72: 326494.11 | L72: - | M72: - | N72: SM0154D0 | O72: SC Linde Gaz București | P72: - | Q72: - | R72: - | S72: - | T72: SM-SD001 | V72: Distrigaz Sud Rețele | W72: mai - septembrie 2022 | AB72: București | AP72: Forțe proprii | BF72: Afectat sau NU? | BG72: - | BH72: - | BI72: Afectat sau NU? | BJ72: - | BK72: - | BL72: Afectat sau NU? | BM72: - | BN72: -
A73: 58 | B73: - | C73: x | D73: Adapare panou măsură si eliminare instalație odorizare veche SRM Măgureni | E73: 134069 | F73: Măgureni | G73: Prahova | H73: 558807.9 | I73: 394540.02 | J73: 558807.9 | K73: 394540.02 | L73: - | M73: - | N73: SM0506D0 | O73: Măgureni | P73: - | Q73: - | R73: - | S73: - | T73: SM-SD001 | V73: MMDATA | W73: mai - septembrie 2022 | AB73: București | AP73: Forțe proprii | BF73: Afectat sau NU? | BG73: - | BH73: - | BI73: Afectat sau NU? | BJ73: - | BK73: - | BL73: Afectat sau NU? | BM73: - | BN73: -
A74: 59 | B74: - | C74: x | D74: Înlocuire robinet R33 pe conducta 28” Stâlp89 - Filipești, zona Talea | E74: 131121 | F74: Breaza de Sus | G74: Prahova | H74: 551059.15 | I74: 410660.89 | J74: 551059.15 | K74: 410660.89 | L74: - | M74: - | N74: SM0085D1 | O74: Breaza PH | P74: - | Q74: - | R74: - | S74: - | T74: SM-SD001 | V74: Distrigaz Sud Rețele | W74: mai - septembrie 2022 | AB74: București | AP74: Plan lucrări SM 2021, cap.A | BF74: Afectat sau NU? | BG74: - | BH74: - | BI74: Afectat sau NU? | BJ74: - | BK74: - | BL74: Afectat sau NU? | BM74: - | BN74: -
A75: 60 | B75: - | C75: x | D75: Înlocuire robinet R33 pe conducta 28” Stâlp89 - Filipești, zona Talea | E75: 131121 | F75: Breaza de Sus | G75: Prahova | H75: 551059.15 | I75: 410660.89 | J75: 551059.15 | K75: 410660.89 | L75: - | M75: - | N75: SM0085D2 | O75: SC Parc Industrial Breaza | P75: - | Q75: - | R75: - | S75: - | T75: SM-CF001 | V75: SC Parc Industrial Breaza SRL | W75: mai - septembrie 2022 | AB75: București | AP75: Plan lucrări SM 2021, cap.A | BF75: Afectat sau NU? | BG75: - | BH75: - | BI75: Afectat sau NU? | BJ75: - | BK75: - | BL75: Afectat sau NU? | BM75: - | BN75: -
A76: 61 | B76: - | C76: x | D76: Înlocuire robinet R98 pe conducta 28” Stâlp89 - Filipești, zona Provița | E76: 134862 | F76: Provița de Jos | G76: Prahova | H76: 552168.05 | I76: 402387.58 | J76: 552168.05 | K76: 402387.58 | L76: - | M76: - | N76: SM0096D0 | O76: Provița de Jos | P76: - | Q76: - | R76: - | S76: - | T76: SM-SD001 | V76: Distrigaz Sud Rețele | W76: mai - septembrie 2022 | AB76: București | AD76: Ca urmare a intervenției echipei de mentenanță de la sector Câmpina, robinetul a fost reparat și nu mai necesită înlocuire | AP76: Plan lucrări SM 2021, cap.A | AR76: =IF(B76="X",IF(AN76="","Afectat sau NU?",IF(AN76="DA",IF(((AK76+AL76)-(AE76+AF76))*24<-720,"Neinformat",((AK76+AL76)-(AE76+AF76))*24),"Nu a fost afectat producator/consumator")),"") ->  | AS76: =IF(B76="X",IF(AN76="DA",IF(AR76<6,LEN(TRIM(V76))-LEN(SUBSTITUTE(V76,CHAR(44),""))+1,0),"-"),"") ->  | AT76: =IF(B76="X",IF(AN76="DA",LEN(TRIM(V76))-LEN(SUBSTITUTE(V76,CHAR(44),""))+1,"-"),"") ->  | AU76: =IF(B76="X",IF(AN76="","Afectat sau NU?",IF(AN76="DA",IF(((AI76+AJ76)-(AE76+AF76))*24<-720,"Neinformat",((AI76+AJ76)-(AE76+AF76))*24),"Nu a fost afectat producator/consumator")),"") ->  | AV76: =IF(B76="X",IF(AN76="DA",IF(AU76<6,LEN(TRIM(U76))-LEN(SUBSTITUTE(U76,CHAR(44),""))+1,0),"-"),"") ->  | AW76: =IF(B76="X",IF(AN76="DA",LEN(TRIM(U76))-LEN(SUBSTITUTE(U76,CHAR(44),""))+1,"-"),"") ->  | AX76: =IF(B76="X",IF(AN76="","Afectat sau NU?",IF(AN76="DA",((AG76+AH76)-(AE76+AF76))*24,"Nu a fost afectat producator/consumator")),"") ->  | AY76: =IF(B76="X",IF(AN76="DA",IF(AX76>24,IF(BA76="NU",0,LEN(TRIM(V76))-LEN(SUBSTITUTE(V76,CHAR(44),""))+1),0),"-"),"") ->  | AZ76: =IF(B76="X",IF(AN76="DA",IF(AX76>24,LEN(TRIM(V76))-LEN(SUBSTITUTE(V76,CHAR(44),""))+1,0),"-"),"") ->  | BF76: =IF(C76="X",IF(AN76="","Afectat sau NU?",IF(AN76="DA",IF(AK76="","Neinformat",NETWORKDAYS(AK76+AL76,AE76+AF76,$BS$2:$BS$14)-2),"Nu a fost afectat producator/consumator")),"") -> Afectat sau NU? | BG76: =IF(C76="X",IF(AN76="DA",IF(AND(BF76>=5,AK76<>""),LEN(TRIM(V76))-LEN(SUBSTITUTE(V76,CHAR(44),""))+1,0),"-"),"") -> - | BH76: =IF(C76="X",IF(AN76="DA",LEN(TRIM(V76))-LEN(SUBSTITUTE(V76,CHAR(44),""))+1,"-"),"") -> - | BI76: =IF(C76="X",IF(AN76="","Afectat sau NU?",IF(AN76="DA",IF(AI76="","Neinformat",NETWORKDAYS(AI76+AJ76,AE76+AF76,$BS$2:$BS$14)-2),"Nu a fost afectat producator/consumator")),"") -> Afectat sau NU? | BJ76: =IF(C76="X",IF(AN76="DA",IF(AND(BI76>=5,AI76<>""),LEN(TRIM(U76))-LEN(SUBSTITUTE(U76,CHAR(44),""))+1,0),"-"),"") -> - | BK76: =IF(C76="X",IF(AN76="DA",LEN(TRIM(U76))-LEN(SUBSTITUTE(U76,CHAR(44),""))+1,"-"),"") -> - | BL76: =IF(C76="X",IF(AN76="","Afectat sau NU?",IF(AN76="DA",((AG76+AH76)-(Z76+AA76))*24,"Nu a fost afectat producator/consumator")),"") -> Afectat sau NU? | BM76: =IF(C76="X",IF(AN76<>"DA","-",IF(AND(AN76="DA",BL76<=0),LEN(TRIM(V76))-LEN(SUBSTITUTE(V76,CHAR(44),""))+1+LEN(TRIM(U76))-LEN(SUBSTITUTE(U76,CHAR(44),""))+1,0)),"") -> - | BN76: =IF(C76="X",IF(AN76="DA",LEN(TRIM(V76))-LEN(SUBSTITUTE(V76,CHAR(44),""))+1+LEN(TRIM(U76))-LEN(SUBSTITUTE(U76,CHAR(44),""))+1,"-"),"") -> -
A77: 62 | B77: - | C77: x | D77: Mentenanță si reabilitare SRM Răzvad | E77: 65440 | F77: Târgoviște | G77: Dâmbovița | H77: 542880.01 | I77: 380147.11 | J77: 542880.01 | K77: 380147.11 | L77: - | M77: - | N77: SM0105D0 | O77: Răzvad | P77: - | Q77: - | R77: - | S77: - | T77: SM-SD001 | V77: Distrigaz Sud Rețele | W77: mai - septembrie 2022 | AB77: București | AP77: Plan lucrări SM 2021, cap.A | BF77: Afectat sau NU? | BG77: - | BH77: - | BI77: Afectat sau NU? | BJ77: - | BK77: - | BL77: Afectat sau NU? | BM77: - | BN77: -
A78: 63 | B78: - | C78: x | D78: Adaptare sistem de măsură SRM Comarnic | E78: 131345 | F78: Comarnic | G78: Prahova | H78: 549781.52 | I78: 415513.83 | J78: 549781.52 | K78: 415513.83 | L78: - | M78: - | N78: SM0084D1 | O78: Comarnic | P78: - | Q78: - | R78: - | S78: - | T78: SM-SD001 | V78: Distrigaz Sud Rețele | W78: mai - septembrie 2022 | AB78: București | AP78: Forțe proprii | BF78: Afectat sau NU? | BG78: - | BH78: - | BI78: Afectat sau NU? | BJ78: - | BK78: - | BL78: Afectat sau NU? | BM78: - | BN78: -
A79: 64 | B79: - | C79: x | D79: Adaptare sistem de măsură SRM Comarnic | E79: 131345 | F79: Comarnic | G79: Prahova | H79: 549781.52 | I79: 415513.83 | J79: 549781.52 | K79: 415513.83 | L79: - | M79: - | N79: SM0084D2 | O79: SC Vulturul Comarnic | P79: - | Q79: - | R79: - | S79: - | T79: SM-CF001 | V79: SC Vulturul SA | W79: mai - septembrie 2022 | AB79: București | AP79: Forțe proprii | BF79: Afectat sau NU? | BG79: - | BH79: - | BI79: Afectat sau NU? | BJ79: - | BK79: - | BL79: Afectat sau NU? | BM79: - | BN79: -
A80: 65 | B80: - | C80: x | D80: Înlocuire robinet R15 în SRM Posada și eliminare R7 pe conducta 28” Coroi - București, zona Posada | E80: 131381 | F80: Posada | G80: Prahova | H80: 548893.7 | I80: 420137.21 | J80: 548893.7 | K80: 420137.21 | L80: - | M80: - | N80: SM0081D0 | O80: Posada | P80: - | Q80: - | R80: - | S80: - | T80: SM-SD001 | V80: Distrigaz Sud Rețele | W80: mai - septembrie 2022 anul gazier 2022 - 2023 | AB80: București | AD80: Înlocuirea robinetului R15 s-a efectuat concomitent cu lucrarea de la poziția 208. Eliminare R7 se amână datorită întârzierilor în aprovizionarea cu materiale necesare | AP80: Plan lucrări SM 2021, cap.A + forțe proprii | BF80: Afectat sau NU? | BG80: - | BH80: - | BI80: Afectat sau NU? | BJ80: - | BK80: - | BL80: Afectat sau NU? | BM80: - | BN80: -
A81: 66 | B81: - | C81: x | D81: Modernizare alimentare cu gaze Municipiul Ploiești | E81: 130543 | F81: Ploiești | G81: Prahova | H81: 581446.93 | I81: 385348.31 | J81: 581446.93 | K81: 385348.31 | L81: - | M81: - | N81: SM0130D1 | O81: SC Vega Ploiești | P81: - | Q81: - | R81: - | S81: - | T81: SM-CF001 | V81: Rompetrol Vega Ploiești | W81: mai - septembrie 2022 | AB81: București | AP81: Plan lucrări SM 2021, cap.A | BF81: Afectat sau NU? | BG81: - | BH81: - | BI81: Afectat sau NU? | BJ81: - | BK81: - | BL81: Afectat sau NU? | BM81: - | BN81: -
A82: 67 | B82: - | C82: x | D82: Înlocuire sistem reglare SRM Izvorul Rece | E82: 131158 | F82: Nistorești | G82: Prahova | H82: 552081.85 | I82: 411912.9 | J82: 552081.85 | K82: 411912.9 | L82: - | M82: - | N82: SM0087D0 | O82: SC Izvorul Rece Nistorești | P82: - | Q82: - | R82: - | S82: - | T82: SM-CF001 | V82: Izvorul Rece Nistoresti | W82: decembrie 2021 februarie - martie 2022 | AB82: București | AD82: Imposibilitatea sistării livrării gazelor naturale Operatorul de distribuție dorește recapacitarea și preluarea punctului de ieșire din SNT | AP82: Forțe proprii | BF82: Afectat sau NU? | BG82: - | BH82: - | BI82: Afectat sau NU? | BJ82: - | BK82: - | BL82: Afectat sau NU? | BM82: - | BN82: -
A83: 68 | B83: - | C83: x | D83: Adaptare panouri de măsurăre gaze SRM Ștefăneștii de Jos | E83: 105428 | F83: Ștefăneștii de Jos | G83: Ilfov | H83: 595033.82 | I83: 336741.93 | J83: 595033.82 | K83: 336741.93 | L83: - | M83: - | N83: SM1072D0 | O83: Ștefăneștii de Jos | P83: - | Q83: - | R83: - | S83: - | T83: SM-SD001 | V83: Distrigaz Sud Rețele | W83: 28 - 30 octombrie 2021 | AB83: București | AC83: Efectuată (fără întrerupere furnizării gazelor naturale) | AP83: Forțe proprii | BF83: Afectat sau NU? | BG83: - | BH83: - | BI83: Afectat sau NU? | BJ83: - | BK83: - | BL83: Afectat sau NU? | BM83: - | BN83: -
A84: 69 | B84: - | C84: x | D84: Înlocuire flanșă electroizolantă pe conducta 4” racord SRM Cornești II Crivățu | E84: 67069 | F84: Crivățu | G84: Dâmbovița | H84: 571928 | I84: 361161.04 | J84: 571928 | K84: 361161.04 | L84: - | M84: - | N84: SM0908D0 | O84: Cornești 2 Crivățu | P84: - | Q84: - | R84: - | S84: - | T84: SM-SD001 | V84: Distrigaz Sud Rețele | W84: mai - septembrie 2022 anul gazier 2022 - 2023 | AB84: București | AD84: Întârzieri în aprovizionarea cu materiale necesare | AP84: Forțe proprii | BF84: Afectat sau NU? | BG84: - | BH84: - | BI84: Afectat sau NU? | BJ84: - | BK84: - | BL84: Afectat sau NU? | BM84: - | BN84: -
A85: 70 | B85: - | C85: x | D85: Lucrări de mentenanță în SRM Valea Călugărească | E85: 135958 | F85: Valea Călugărească | G85: Prahova | H85: 591730.05 | I85: 384301.09 | J85: 591730.05 | K85: 384301.09 | L85: - | M85: - | N85: SM0136D1 | O85: Valea Călugărească | P85: - | Q85: - | R85: - | S85: - | T85: SM-SD001 | V85: Distrigaz Sud Rețele | W85: mai - septembrie 2022 | AB85: București | AP85: Plan lucrări SM 2021, cap.A | BF85: Afectat sau NU? | BG85: - | BH85: - | BI85: Afectat sau NU? | BJ85: - | BK85: - | BL85: Afectat sau NU? | BM85: - | BN85: -
A86: =A85+1 -> 71 | B86: - | C86: x | D86: Lucrări de mentenanță în SRM Valea Călugărească | E86: 135958 | F86: Valea Călugărească | G86: Prahova | H86: 591722.7 | I86: 384288.61 | J86: 591722.7 | K86: 384288.61 | L86: - | M86: - | N86: SM1112D0 | O86: Urlați | P86: - | Q86: - | R86: - | S86: - | T86: SM-SD001 | V86: Distrigaz Sud Rețele | W86: mai - septembrie 2022 | AB86: București | AP86: Plan lucrări SM 2021, cap.A | BF86: Afectat sau NU? | BG86: - | BH86: - | BI86: Afectat sau NU? | BJ86: - | BK86: - | BL86: Afectat sau NU? | BM86: - | BN86: -
A87: 72 | B87: - | C87: x | D87: Modernizare alimentare cu gaze Municipiul Ploiești | E87: 130543 | F87: Ploiești | G87: Prahova | H87: 576786.91 | I87: 384819.6 | J87: 576786.91 | K87: 384819.6 | L87: - | M87: - | N87: SM0109D0 | O87: Ploiești Km 65 | P87: - | Q87: - | R87: - | S87: - | T87: SM-SD001 | U87: Alpha Metal, Nova Power, Cez Vânzare, Cis Gaz, Conef Gaz, Crest Energy, Distrigaz Vest, Engie, E.on Energie, Electrocentrale București, Electrocentrale Constanța, Electrica Furnizare, Electric Planners, Energy Distribution, Enel Energie, Enel Muntenia, Gas&Power, Entrex, Euro Seven, Eye Mall, Premier Energy Trading, Gas&Power Trading, Gaz Est, Getica 95, Megaconstruct, Met România, Monsson, MVM Future, Next Energy Distribution, Next Energy Partners, Nord Gaz, Premier Energy, Petrom, Gas Provider, Renovatio, Romgaz, RWE Supply, Sustainable Energy, Tinmar, Transenergo, Wiee | V87: Distrigaz Sud Rețele | W87: mai - septembrie 2022 | X87: 2022-05-16 | Y87: 10:00:00 | Z87: 2022-07-14 | AA87: 14:00:00 | AB87: București | AC87: Efectuată | AE87: 2022-05-16 | AF87: 10:00:00 | AG87: 2022-07-14 | AH87: 13:55:00 | AI87: 2022-05-05 | AJ87: 14:12:00 | AK87: 2022-05-05 | AL87: 14:03:00 | AM87: 38649/12.05.2022 | AN87: NU | AP87: Plan lucrări SM 2021, cap.A | BF87: Nu a fost afectat producator/consumator | BG87: - | BH87: - | BI87: Nu a fost afectat producator/consumator | BJ87: - | BK87: - | BL87: Nu a fost afectat producator/consumator | BM87: - | BN87: -
A88: 73 | B88: - | C88: x | D88: Modernizare alimentare cu gaze Municipiul Ploiești | E88: 130909 | F88: Strejnicu | G88: Prahova | H88: 576668.51 | I88: 380637.18 | J88: 576668.51 | K88: 380637.18 | L88: - | M88: - | N88: SM0124D0 | O88: Strejnic | P88: - | Q88: - | R88: - | S88: - | T88: SM-SD001 | U88: Alpha Metal, Nova Power, Cez Vânzare, Cis Gaz, Conef Gaz, Crest Energy, Distrigaz Sud Retele, Distrigaz Vest, Engie, E.on Energie, Electrocentrale București, Electrocentrale Constanța, Electrica Furnizare, Electric Planners, Energy Distribution, Enel Energie, Enel Muntenia, Gas&Power, Entrex, Euro Seven, Eye Mall, Premier Energy Trading, Gaz Est, C-Gaz, Getica 95, Megaconstruct, Met România, Monsson, MVM Future, Next Energy Distribution, Next Energy Partners, Nord Gaz, Premier Energy, Petrom, Gas Provider, Renovatio, Romgaz, RWE Supply, Sustainable Energy, Tinmar, Transenergo, Wiee | V88: Distrigaz Sud Rețele | W88: mai - septembrie 2022 | X88: 2022-09-22 | Y88: 08:00:00 | Z88: 2022-09-22 | AA88: 18:00:00 | AB88: București | AC88: Efectuată | AE88: 2022-09-22 | AF88: 08:14:00 | AG88: 2022-09-22 | AH88: 17:00:00 | AI88: 2022-09-13 | AJ88: 16:44:00 | AK88: 2022-09-13 | AL88: 16:29:00 | AM88: 72829/16.09.2022 | AN88: DA | AP88: Plan lucrări SM 2021, cap.A | AR88: =IF(B88="X",IF(AN88="","Afectat sau NU?",IF(AN88="DA",IF(((AK88+AL88)-(AE88+AF88))*24<-720,"Neinformat",((AK88+AL88)-(AE88+AF88))*24),"Nu a fost afectat producator/consumator")),"") ->  | AS88: =IF(B88="X",IF(AN88="DA",IF(AR88<6,LEN(TRIM(V88))-LEN(SUBSTITUTE(V88,CHAR(44),""))+1,0),"-"),"") ->  | AT88: =IF(B88="X",IF(AN88="DA",LEN(TRIM(V88))-LEN(SUBSTITUTE(V88,CHAR(44),""))+1,"-"),"") ->  | AU88: =IF(B88="X",IF(AN88="","Afectat sau NU?",IF(AN88="DA",IF(((AI88+AJ88)-(AE88+AF88))*24<-720,"Neinformat",((AI88+AJ88)-(AE88+AF88))*24),"Nu a fost afectat producator/consumator")),"") ->  | AV88: =IF(B88="X",IF(AN88="DA",IF(AU88<6,LEN(TRIM(U88))-LEN(SUBSTITUTE(U88,CHAR(44),""))+1,0),"-"),"") ->  | AW88: =IF(B88="X",IF(AN88="DA",LEN(TRIM(U88))-LEN(SUBSTITUTE(U88,CHAR(44),""))+1,"-"),"") ->  | AX88: =IF(B88="X",IF(AN88="","Afectat sau NU?",IF(AN88="DA",((AG88+AH88)-(AE88+AF88))*24,"Nu a fost afectat producator/consumator")),"") ->  | AY88: =IF(B88="X",IF(AN88="DA",IF(AX88>24,IF(BA88="NU",0,LEN(TRIM(V88))-LEN(SUBSTITUTE(V88,CHAR(44),""))+1),0),"-"),"") ->  | AZ88: =IF(B88="X",IF(AN88="DA",IF(AX88>24,LEN(TRIM(V88))-LEN(SUBSTITUTE(V88,CHAR(44),""))+1,0),"-"),"") ->  | BF88: =IF(C88="X",IF(AN88="","Afectat sau NU?",IF(AN88="DA",IF(AK88="","Neinformat",NETWORKDAYS(AK88+AL88,AE88+AF88,$BS$2:$BS$14)-2),"Nu a fost afectat producator/consumator")),"") -> 6 | BG88: =IF(C88="X",IF(AN88="DA",IF(AND(BF88>=5,AK88<>""),LEN(TRIM(V88))-LEN(SUBSTITUTE(V88,CHAR(44),""))+1,0),"-"),"") -> 1 | BH88: =IF(C88="X",IF(AN88="DA",LEN(TRIM(V88))-LEN(SUBSTITUTE(V88,CHAR(44),""))+1,"-"),"") -> 1 | BI88: =IF(C88="X",IF(AN88="","Afectat sau NU?",IF(AN88="DA",IF(AI88="","Neinformat",NETWORKDAYS(AI88+AJ88,AE88+AF88,$BS$2:$BS$14)-2),"Nu a fost afectat producator/consumator")),"") -> 6 | BJ88: =IF(C88="X",IF(AN88="DA",IF(AND(BI88>=5,AI88<>""),LEN(TRIM(U88))-LEN(SUBSTITUTE(U88,CHAR(44),""))+1,0),"-"),"") -> 42 | BK88: =IF(C88="X",IF(AN88="DA",LEN(TRIM(U88))-LEN(SUBSTITUTE(U88,CHAR(44),""))+1,"-"),"") -> 42 | BL88: =IF(C88="X",IF(AN88="","Afectat sau NU?",IF(AN88="DA",((AG88+AH88)-(Z88+AA88))*24,"Nu a fost afectat producator/consumator")),"") -> -0.9999999999 | BM88: =IF(C88="X",IF(AN88<>"DA","-",IF(AND(AN88="DA",BL88<=0),LEN(TRIM(V88))-LEN(SUBSTITUTE(V88,CHAR(44),""))+1+LEN(TRIM(U88))-LEN(SUBSTITUTE(U88,CHAR(44),""))+1,0)),"") -> 43 | BN88: =IF(C88="X",IF(AN88="DA",LEN(TRIM(V88))-LEN(SUBSTITUTE(V88,CHAR(44),""))+1+LEN(TRIM(U88))-LEN(SUBSTITUTE(U88,CHAR(44),""))+1,"-"),"") -> 43
A89: 74 | B89: - | C89: x | D89: Modernizare alimentare cu gaze Municipiul Ploiești | E89: 130543 | F89: Ploiești | G89: Prahova | H89: 572872.16 | I89: 380999.88 | J89: 572872.16 | K89: 380999.88 | L89: - | M89: - | N89: SM0122D0 | O89: Crângul Lui Bot | P89: - | Q89: - | R89: - | S89: - | T89: SM-SD001 | U89: Alpha Metal, Nova Power, Cez Vânzare, Cis Gaz, Conef Gaz, Crest Energy, Distrigaz Sud Retele, Distrigaz Vest, Engie, E.on Energie, Electrocentrale București, Electrocentrale Constanța, Electrica Furnizare, Electric Planners, Energy Distribution, Enel Energie, Enel Muntenia, Gas&Power, Entrex, Euro Seven, Eye Mall, Premier Energy Trading, Gaz Est, C-Gaz, Getica 95, Megaconstruct, Met România, Monsson, MVM Future, Next Energy Distribution, Next Energy Partners, Nord Gaz, Premier Energy, Petrom, Gas Provider, Renovatio, Romgaz, RWE Supply, Sustainable Energy, Tinmar, Transenergo, Wiee | V89: Distrigaz Sud Rețele | W89: mai - septembrie 2022 | X89: 2022-09-22 | Y89: 08:00:00 | Z89: 2022-09-22 | AA89: 18:00:00 | AB89: București | AC89: Efectuată | AE89: 2022-09-22 | AF89: 08:14:00 | AG89: 2022-09-22 | AH89: 17:00:00 | AI89: 2022-09-13 | AJ89: 16:44:00 | AK89: 2022-09-13 | AL89: 16:29:00 | AM89: 72829/16.09.2022 | AN89: DA | AP89: Plan lucrări SM 2021, cap.A | BF89: 6 | BG89: 1 | BH89: 1 | BI89: 6 | BJ89: 42 | BK89: 42 | BL89: -0.9999999999 | BM89: 43 | BN89: 43
A90: 75 | B90: - | C90: x | D90: Modernizare alimentare cu gaze Municipiul Ploiești | E90: 132119 | F90: Stoenești | G90: Prahova | H90: 567818.39 | I90: 381275.49 | J90: 567818.39 | K90: 381275.49 | L90: - | M90: - | N90: SM0121D0 | O90: Stoienești | P90: - | Q90: - | R90: - | S90: - | T90: SM-SD001 | U90: Alpha Metal, Nova Power, Cez Vânzare, Cis Gaz, Conef Gaz, Crest Energy, Distrigaz Sud Retele, Distrigaz Vest, Engie, E.on Energie, Electrocentrale București, Electrocentrale Constanța, Electrica Furnizare, Electric Planners, Energy Distribution, Enel Energie, Enel Muntenia, Gas&Power, Entrex, Euro Seven, Eye Mall, Premier Energy Trading, Gaz Est, C-Gaz, Getica 95, Megaconstruct, Met România, Monsson, MVM Future, Next Energy Distribution, Next Energy Partners, Nord Gaz, Premier Energy, Petrom, Gas Provider, Renovatio, Romgaz, RWE Supply, Sustainable Energy, Tinmar, Transenergo, Wiee | V90: Distrigaz Sud Rețele | W90: mai - septembrie 2022 | X90: 2022-09-22 | Y90: 08:00:00 | Z90: 2022-09-22 | AA90: 18:00:00 | AB90: București | AC90: Efectuată | AE90: 2022-09-22 | AF90: 08:14:00 | AG90: 2022-09-22 | AH90: 17:00:00 | AI90: 2022-09-13 | AJ90: 16:44:00 | AK90: 2022-09-13 | AL90: 16:29:00 | AM90: 72829/16.09.2022 | AN90: DA | AP90: Plan lucrări SM 2021, cap.A | BF90: 6 | BG90: 1 | BH90: 1 | BI90: 6 | BJ90: 42 | BK90: 42 | BL90: -0.9999999999 | BM90: 43 | BN90: 43
A91: 76 | B91: - | C91: x | D91: Modernizare alimentare cu gaze Municipiul Ploiești | E91: 130543 | F91: Ploiești | G91: Prahova | H91: 581446.93 | I91: 385348.31 | J91: 581446.93 | K91: 385348.31 | L91: - | M91: - | N91: SM0130D2 | O91: Ploiești Nord Colonie | P91: - | Q91: - | R91: - | S91: - | T91: SM-SD001 | V91: Distrigaz Sud Rețele | W91: mai - septembrie 2022 | AB91: București | AP91: Plan lucrări SM 2021, cap.A | BF91: Afectat sau NU? | BG91: - | BH91: - | BI91: Afectat sau NU? | BJ91: - | BK91: - | BL91: Afectat sau NU? | BM91: - | BN91: -
A92: 77 | B92: - | C92: x | D92: Punere în siguranță a conductei 6” racord SRM Măgureni, zona Măgureni | E92: 134069 | F92: Măgureni | G92: Prahova | H92: 558807.9 | I92: 394540.02 | J92: 558807.9 | K92: 394540.02 | L92: - | M92: - | N92: SM0506D0 | O92: Măgureni | P92: - | Q92: - | R92: - | S92: - | T92: SM-SD001 | V92: MMDATA | W92: noiembrie - decembrie 2021 | AB92: București | AC92: Efectuată (Lucrarea a fost executată în data de 24.12.2021 fără a fi afectat consumatorul) | AP92: PLRRM 2022_IA4_Anexa 1 | BF92: Afectat sau NU? | BG92: - | BH92: - | BI92: Afectat sau NU? | BJ92: - | BK92: - | BL92: Afectat sau NU? | BM92: - | BN92: -
A93: 78 | B93: - | C93: x | D93: Montare îmbinare electroizolantă pe conducta 10" racord PM Șoala | E93: 144143 | F93: Șoala | G93: Sibiu | H93: 440735.33 | I93: 507868.66 | J93: 440735.33 | K93: 507868.66 | L93: - | M93: - | N93: - | O93: - | P93: - | Q93: - | R93: PM0141 | S93: Șoala | T93: PM-PP001 | V93: Romgaz | W93: iulie - septembrie 2022 | AB93: Mediaș | AC93: Nu mai este necesară realizarea lucrării deoarece separarea electrică a conductei DN250 racord PM Șoala s-a realizat de către Romgaz în 29.05.22, la solicitarea noastră. | AP93: Forțe proprii | AR93: =IF(B93="X",IF(AN93="","Afectat sau NU?",IF(AN93="DA",IF(((AK93+AL93)-(AE93+AF93))*24<-720,"Neinformat",((AK93+AL93)-(AE93+AF93))*24),"Nu a fost afectat producator/consumator")),"") ->  | AS93: =IF(B93="X",IF(AN93="DA",IF(AR93<6,LEN(TRIM(V93))-LEN(SUBSTITUTE(V93,CHAR(44),""))+1,0),"-"),"") ->  | AT93: =IF(B93="X",IF(AN93="DA",LEN(TRIM(V93))-LEN(SUBSTITUTE(V93,CHAR(44),""))+1,"-"),"") ->  | AU93: =IF(B93="X",IF(AN93="","Afectat sau NU?",IF(AN93="DA",IF(((AI93+AJ93)-(AE93+AF93))*24<-720,"Neinformat",((AI93+AJ93)-(AE93+AF93))*24),"Nu a fost afectat producator/consumator")),"") ->  | AV93: =IF(B93="X",IF(AN93="DA",IF(AU93<6,LEN(TRIM(U93))-LEN(SUBSTITUTE(U93,CHAR(44),""))+1,0),"-"),"") ->  | AW93: =IF(B93="X",IF(AN93="DA",LEN(TRIM(U93))-LEN(SUBSTITUTE(U93,CHAR(44),""))+1,"-"),"") ->  | AX93: =IF(B93="X",IF(AN93="","Afectat sau NU?",IF(AN93="DA",((AG93+AH93)-(AE93+AF93))*24,"Nu a fost afectat producator/consumator")),"") ->  | AY93: =IF(B93="X",IF(AN93="DA",IF(AX93>24,IF(BA93="NU",0,LEN(TRIM(V93))-LEN(SUBSTITUTE(V93,CHAR(44),""))+1),0),"-"),"") ->  | AZ93: =IF(B93="X",IF(AN93="DA",IF(AX93>24,LEN(TRIM(V93))-LEN(SUBSTITUTE(V93,CHAR(44),""))+1,0),"-"),"") ->  | BF93: =IF(C93="X",IF(AN93="","Afectat sau NU?",IF(AN93="DA",IF(AK93="","Neinformat",NETWORKDAYS(AK93+AL93,AE93+AF93,$BS$2:$BS$14)-2),"Nu a fost afectat producator/consumator")),"") -> Afectat sau NU? | BG93: =IF(C93="X",IF(AN93="DA",IF(AND(BF93>=5,AK93<>""),LEN(TRIM(V93))-LEN(SUBSTITUTE(V93,CHAR(44),""))+1,0),"-"),"") -> - | BH93: =IF(C93="X",IF(AN93="DA",LEN(TRIM(V93))-LEN(SUBSTITUTE(V93,CHAR(44),""))+1,"-"),"") -> - | BI93: =IF(C93="X",IF(AN93="","Afectat sau NU?",IF(AN93="DA",IF(AI93="","Neinformat",NETWORKDAYS(AI93+AJ93,AE93+AF93,$BS$2:$BS$14)-2),"Nu a fost afectat producator/consumator")),"") -> Afectat sau NU? | BJ93: =IF(C93="X",IF(AN93="DA",IF(AND(BI93>=5,AI93<>""),LEN(TRIM(U93))-LEN(SUBSTITUTE(U93,CHAR(44),""))+1,0),"-"),"") -> - | BK93: =IF(C93="X",IF(AN93="DA",LEN(TRIM(U93))-LEN(SUBSTITUTE(U93,CHAR(44),""))+1,"-"),"") -> - | BL93: =IF(C93="X",IF(AN93="","Afectat sau NU?",IF(AN93="DA",((AG93+AH93)-(Z93+AA93))*24,"Nu a fost afectat producator/consumator")),"") -> Afectat sau NU? | BM93: =IF(C93="X",IF(AN93<>"DA","-",IF(AND(AN93="DA",BL93<=0),LEN(TRIM(V93))-LEN(SUBSTITUTE(V93,CHAR(44),""))+1+LEN(TRIM(U93))-LEN(SUBSTITUTE(U93,CHAR(44),""))+1,0)),"") -> - | BN93: =IF(C93="X",IF(AN93="DA",LEN(TRIM(V93))-LEN(SUBSTITUTE(V93,CHAR(44),""))+1+LEN(TRIM(U93))-LEN(SUBSTITUTE(U93,CHAR(44),""))+1,"-"),"") -> -
A94: 79 | B94: - | C94: x | D94: Punere în siguranță a conductei 12” Agârbiciu - Sibiu, zona Șeica Mare | E94: 145676 | F94: Șeica Mare | G94: Sibiu | H94: 434864.28 | I94: 502349.67 | J94: 434864.28 | K94: 502349.67 | L94: - | M94: - | N94: SM0737D0 | O94: Șeica Mare | P94: - | Q94: - | R94: - | S94: - | T94: SM-SD001 | V94: Delgaz Grid | W94: iulie - septembrie 2022 anul gazier 2022 - 2023 | AB94: Mediaș | AD94: Zona de risc - litigii | AP94: PMDI_2022_A9_7 | BF94: Afectat sau NU? | BG94: - | BH94: - | BI94: Afectat sau NU? | BJ94: - | BK94: - | BL94: Afectat sau NU? | BM94: - | BN94: -
A95: 80 | B95: - | C95: x | D95: Punere în siguranță a conductei 8” Cornățel - Avrig, zona Avrig | E95: 144090 | F95: Mârșa | G95: Sibiu | H95: 451489.67 | I95: 466968.99 | J95: 451489.67 | K95: 466968.99 | L95: - | M95: - | N95: SM0819D1 | O95: Mârșa | P95: - | Q95: - | R95: - | S95: - | T95: SM-SD001 | V95: Delgaz Grid | W95: iulie - septembrie 2022 anul gazier 2022 - 2023 | AB95: Mediaș | AD95: Zona de risc - litigii | AP95: PMDI_2022_A9_3 | AR95: =IF(B95="X",IF(AN95="","Afectat sau NU?",IF(AN95="DA",IF(((AK95+AL95)-(AE95+AF95))*24<-720,"Neinformat",((AK95+AL95)-(AE95+AF95))*24),"Nu a fost afectat producator/consumator")),"") ->  | AS95: =IF(B95="X",IF(AN95="DA",IF(AR95<6,LEN(TRIM(V95))-LEN(SUBSTITUTE(V95,CHAR(44),""))+1,0),"-"),"") ->  | AT95: =IF(B95="X",IF(AN95="DA",LEN(TRIM(V95))-LEN(SUBSTITUTE(V95,CHAR(44),""))+1,"-"),"") ->  | AU95: =IF(B95="X",IF(AN95="","Afectat sau NU?",IF(AN95="DA",IF(((AI95+AJ95)-(AE95+AF95))*24<-720,"Neinformat",((AI95+AJ95)-(AE95+AF95))*24),"Nu a fost afectat producator/consumator")),"") ->  | AV95: =IF(B95="X",IF(AN95="DA",IF(AU95<6,LEN(TRIM(U95))-LEN(SUBSTITUTE(U95,CHAR(44),""))+1,0),"-"),"") ->  | AW95: =IF(B95="X",IF(AN95="DA",LEN(TRIM(U95))-LEN(SUBSTITUTE(U95,CHAR(44),""))+1,"-"),"") ->  | AX95: =IF(B95="X",IF(AN95="","Afectat sau NU?",IF(AN95="DA",((AG95+AH95)-(AE95+AF95))*24,"Nu a fost afectat producator/consumator")),"") ->  | AY95: =IF(B95="X",IF(AN95="DA",IF(AX95>24,IF(BA95="NU",0,LEN(TRIM(V95))-LEN(SUBSTITUTE(V95,CHAR(44),""))+1),0),"-"),"") ->  | AZ95: =IF(B95="X",IF(AN95="DA",IF(AX95>24,LEN(TRIM(V95))-LEN(SUBSTITUTE(V95,CHAR(44),""))+1,0),"-"),"") ->  | BF95: =IF(C95="X",IF(AN95="","Afectat sau NU?",IF(AN95="DA",IF(AK95="","Neinformat",NETWORKDAYS(AK95+AL95,AE95+AF95,$BS$2:$BS$14)-2),"Nu a fost afectat producator/consumator")),"") -> Afectat sau NU? | BG95: =IF(C95="X",IF(AN95="DA",IF(AND(BF95>=5,AK95<>""),LEN(TRIM(V95))-LEN(SUBSTITUTE(V95,CHAR(44),""))+1,0),"-"),"") -> - | BH95: =IF(C95="X",IF(AN95="DA",LEN(TRIM(V95))-LEN(SUBSTITUTE(V95,CHAR(44),""))+1,"-"),"") -> - | BI95: =IF(C95="X",IF(AN95="","Afectat sau NU?",IF(AN95="DA",IF(AI95="","Neinformat",NETWORKDAYS(AI95+AJ95,AE95+AF95,$BS$2:$BS$14)-2),"Nu a fost afectat producator/consumator")),"") -> Afectat sau NU? | BJ95: =IF(C95="X",IF(AN95="DA",IF(AND(BI95>=5,AI95<>""),LEN(TRIM(U95))-LEN(SUBSTITUTE(U95,CHAR(44),""))+1,0),"-"),"") -> - | BK95: =IF(C95="X",IF(AN95="DA",LEN(TRIM(U95))-LEN(SUBSTITUTE(U95,CHAR(44),""))+1,"-"),"") -> - | BL95: =IF(C95="X",IF(AN95="","Afectat sau NU?",IF(AN95="DA",((AG95+AH95)-(Z95+AA95))*24,"Nu a fost afectat producator/consumator")),"") -> Afectat sau NU? | BM95: =IF(C95="X",IF(AN95<>"DA","-",IF(AND(AN95="DA",BL95<=0),LEN(TRIM(V95))-LEN(SUBSTITUTE(V95,CHAR(44),""))+1+LEN(TRIM(U95))-LEN(SUBSTITUTE(U95,CHAR(44),""))+1,0)),"") -> - | BN95: =IF(C95="X",IF(AN95="DA",LEN(TRIM(V95))-LEN(SUBSTITUTE(V95,CHAR(44),""))+1+LEN(TRIM(U95))-LEN(SUBSTITUTE(U95,CHAR(44),""))+1,"-"),"") -> -
A96: 81 | B96: - | C96: x | D96: Punere în siguranță a conductei 8” Cornățel - Avrig, zona Avrig | E96: 145364 | F96: Racovița | G96: Sibiu | H96: 448491.14 | I96: 465243.62 | J96: 448491.14 | K96: 465243.62 | L96: - | M96: - | N96: SM0876D0 | O96: Racovița | P96: - | Q96: - | R96: - | S96: - | T96: SM-SD001 | V96: Delgaz Grid | W96: iulie - septembrie 2022 anul gazier 2022 - 2023 | AB96: Mediaș | AD96: Zona de risc - litigii | AP96: PMDI_2022_A9_3 | BF96: Afectat sau NU? | BG96: - | BH96: - | BI96: Afectat sau NU? | BJ96: - | BK96: - | BL96: Afectat sau NU? | BM96: - | BN96: -
A97: 82 | B97: - | C97: x | D97: Punere în siguranță a conductei 8” Cornățel - Avrig, zona Avrig | E97: 145373 | F97: Sebeșu de Sus | G97: Sibiu | H97: 449528.49 | I97: 462452.81 | J97: 449528.49 | K97: 462452.81 | L97: - | M97: - | N97: SM0903D0 | O97: Sebeșu de Sus | P97: - | Q97: - | R97: - | S97: - | T97: SM-SD001 | V97: Delgaz Grid | W97: iulie - septembrie 2022 anul gazier 2022 - 2023 | AB97: Mediaș | AD97: Zona de risc - litigii | AP97: PMDI_2022_A9_3 | BF97: Afectat sau NU? | BG97: - | BH97: - | BI97: Afectat sau NU? | BJ97: - | BK97: - | BL97: Afectat sau NU? | BM97: - | BN97: -
A98: 83 | B98: - | C98: x | D98: Punere în siguranță a conductei 8” Cornățel - Avrig, zona Avrig | E98: 145952 | F98: Sebeșu de Jos | G98: Sibiu | H98: 448296.46 | I98: 461833.47 | J98: 448296.46 | K98: 461833.47 | L98: - | M98: - | N98: SM1041D0 | O98: Sebeșu de Jos | P98: - | Q98: - | R98: - | S98: - | T98: SM-SD001 | V98: Delgaz Grid | W98: iulie - septembrie 2022 anul gazier 2022 - 2023 | AB98: Mediaș | AD98: Zona de risc - litigii | AP98: PMDI_2022_A9_3 | BF98: =IF(C98="X",IF(AN98="","Afectat sau NU?",IF(AN98="DA",IF(AK98="","Neinformat",NETWORKDAYS(AK98+AL98,AE98+AF98,$BS$2:$BS$14)-2),"Nu a fost afectat producator/consumator")),"") -> Afectat sau NU? | BG98: =IF(C98="X",IF(AN98="DA",IF(AND(BF98>=5,AK98<>""),LEN(TRIM(V98))-LEN(SUBSTITUTE(V98,CHAR(44),""))+1,0),"-"),"") -> - | BH98: =IF(C98="X",IF(AN98="DA",LEN(TRIM(V98))-LEN(SUBSTITUTE(V98,CHAR(44),""))+1,"-"),"") -> - | BI98: =IF(C98="X",IF(AN98="","Afectat sau NU?",IF(AN98="DA",IF(AI98="","Neinformat",NETWORKDAYS(AI98+AJ98,AE98+AF98,$BS$2:$BS$14)-2),"Nu a fost afectat producator/consumator")),"") -> Afectat sau NU? | BJ98: =IF(C98="X",IF(AN98="DA",IF(AND(BI98>=5,AI98<>""),LEN(TRIM(U98))-LEN(SUBSTITUTE(U98,CHAR(44),""))+1,0),"-"),"") -> - | BK98: =IF(C98="X",IF(AN98="DA",LEN(TRIM(U98))-LEN(SUBSTITUTE(U98,CHAR(44),""))+1,"-"),"") -> - | BL98: =IF(C98="X",IF(AN98="","Afectat sau NU?",IF(AN98="DA",((AG98+AH98)-(Z98+AA98))*24,"Nu a fost afectat producator/consumator")),"") -> Afectat sau NU? | BM98: =IF(C98="X",IF(AN98<>"DA","-",IF(AND(AN98="DA",BL98<=0),LEN(TRIM(V98))-LEN(SUBSTITUTE(V98,CHAR(44),""))+1+LEN(TRIM(U98))-LEN(SUBSTITUTE(U98,CHAR(44),""))+1,0)),"") -> - | BN98: =IF(C98="X",IF(AN98="DA",LEN(TRIM(V98))-LEN(SUBSTITUTE(V98,CHAR(44),""))+1+LEN(TRIM(U98))-LEN(SUBSTITUTE(U98,CHAR(44),""))+1,"-"),"") -> -
A99: 84 | B99: - | C99: x | D99: Punere în siguranță a conductei 8” Cornățel - Avrig, zona Avrig | E99: 145943 | F99: Turnu Roșu | G99: Sibiu | H99: 445948.45 | I99: 460774.96 | J99: 445948.45 | K99: 460774.96 | L99: - | M99: - | N99: SM0805D0 | O99: Turnu Roșu | P99: - | Q99: - | R99: - | S99: - | T99: SM-SD001 | V99: Delgaz Grid | W99: iulie - septembrie 2022 anul gazier 2022 - 2023 | AB99: Mediaș | AD99: Zona de risc - litigii | AP99: PMDI_2022_A9_3 | BF99: Afectat sau NU? | BG99: - | BH99: - | BI99: Afectat sau NU? | BJ99: - | BK99: - | BL99: Afectat sau NU? | BM99: - | BN99: -
A100: 85 | B100: x | C100: - | D100: Înlocuire SRM provizoriu cu unul definitiv | E100: 40250 | F100: Codlea | G100: Brașov | H100: 536853.73 | I100: 468564.83 | J100: 536853.73 | K100: 468564.83 | L100: - | M100: - | N100: SM1191D0 | O100: SC Silnef Metal Casting Codlea | P100: - | Q100: - | R100: - | S100: - | T100: SM-CF001 | U100: Cis Gaz | V100: Silnef | W100: - | X100: 2021-10-01 | Y100: 07:15:00 | Z100: 2021-10-03 | AA100: 16:00:00 | AB100: Brașov | AC100: Efectuată | AE100: 2021-10-01 | AF100: 07:15:00 | AG100: 2021-10-03 | AH100: 13:43:00 | AI100: 2021-10-01 | AJ100: 08:14:00 | AK100: 2021-10-01 | AL100: 08:00:00 | AM100: 1963/30.09.2021 | AN100: DA | AP100: - | AR100: 0.75 | AS100: 1 | AT100: 1 | AU100: 0.9833333332 | AV100: 1 | AW100: 1 | AX100: 54.46666667 | AY100: 1 | AZ100: 1 | BA100: DA
A101: 86 | B101: x | C101: - | D101: Curățire interioara cu PIG a conductei 32” Șendreni - Butimanu | E101: 101573 | F101: Butimanu | G101: Dâmbovița | H101: 571023.84 | I101: 354405.81 | J101: 571023.84 | K101: 354405.81 | L101: - | M101: - | N101: SM1066D0 | O101: Butimanu Înmagazinat | P101: - | Q101: - | R101: - | S101: - | T101: SM-SD001 | U101: Alpha Metal, Nova Power, Cez Vânzare, Cordun, CPL Concordia, MVM Energy Trade, MM Data, Design Proiect, Distrigaz Vest, Engie, Axpo, E.on Energie, Energy Distribution, Enel Energie, Enel Muntenia, Euro Seven, Gaz Est, Gaz Nord Est, Gaz Vest, Mihoc Oil, Met România, Pado Group, Premier Energy, Petrom, Prisma Serv, Gas Provider, Restart Energy, Romgaz, RWE Supply, Salgaz, Tinmar, Veolia | V101: Depogaz Ploiești | W101: - | X101: 2021-10-01 | Y101: 13:03:00 | Z101: 2021-10-01 | AA101: 15:00:00 | AB101: București | AC101: Efectuată | AE101: 2021-10-01 | AF101: 13:03:00 | AG101: 2021-10-01 | AH101: 14:00:00 | AI101: 2021-10-01 | AJ101: 14:01:00 | AK101: 2021-10-01 | AL101: 13:17:00 | AM101: 72429/27.09.2021 | AN101: DA | AP101: - | AR101: =IF(B101="X",IF(AN101="","Afectat sau NU?",IF(AN101="DA",IF(((AK101+AL101)-(AE101+AF101))*24<-720,"Neinformat",((AK101+AL101)-(AE101+AF101))*24),"Nu a fost afectat producator/consumator")),"") -> 0.2333333334 | AS101: =IF(B101="X",IF(AN101="DA",IF(AR101<6,LEN(TRIM(V101))-LEN(SUBSTITUTE(V101,CHAR(44),""))+1,0),"-"),"") -> 1 | AT101: =IF(B101="X",IF(AN101="DA",LEN(TRIM(V101))-LEN(SUBSTITUTE(V101,CHAR(44),""))+1,"-"),"") -> 1 | AU101: =IF(B101="X",IF(AN101="","Afectat sau NU?",IF(AN101="DA",IF(((AI101+AJ101)-(AE101+AF101))*24<-720,"Neinformat",((AI101+AJ101)-(AE101+AF101))*24),"Nu a fost afectat producator/consumator")),"") -> 0.9666666667 | AV101: =IF(B101="X",IF(AN101="DA",IF(AU101<6,LEN(TRIM(U101))-LEN(SUBSTITUTE(U101,CHAR(44),""))+1,0),"-"),"") -> 32 | AW101: =IF(B101="X",IF(AN101="DA",LEN(TRIM(U101))-LEN(SUBSTITUTE(U101,CHAR(44),""))+1,"-"),"") -> 32 | AX101: =IF(B101="X",IF(AN101="","Afectat sau NU?",IF(AN101="DA",((AG101+AH101)-(AE101+AF101))*24,"Nu a fost afectat producator/consumator")),"") -> 0.9500000001 | AY101: =IF(B101="X",IF(AN101="DA",IF(AX101>24,IF(BA101="NU",0,LEN(TRIM(V101))-LEN(SUBSTITUTE(V101,CHAR(44),""))+1),0),"-"),"") -> 0 | AZ101: =IF(B101="X",IF(AN101="DA",IF(AX101>24,LEN(TRIM(V101))-LEN(SUBSTITUTE(V101,CHAR(44),""))+1,0),"-"),"") -> 0 | BF101: =IF(C101="X",IF(AN101="","Afectat sau NU?",IF(AN101="DA",IF(AK101="","Neinformat",NETWORKDAYS(AK101+AL101,AE101+AF101,$BS$2:$BS$14)-2),"Nu a fost afectat producator/consumator")),"") ->  | BG101: =IF(C101="X",IF(AN101="DA",IF(AND(BF101>=5,AK101<>""),LEN(TRIM(V101))-LEN(SUBSTITUTE(V101,CHAR(44),""))+1,0),"-"),"") ->  | BH101: =IF(C101="X",IF(AN101="DA",LEN(TRIM(V101))-LEN(SUBSTITUTE(V101,CHAR(44),""))+1,"-"),"") ->  | BI101: =IF(C101="X",IF(AN101="","Afectat sau NU?",IF(AN101="DA",IF(AI101="","Neinformat",NETWORKDAYS(AI101+AJ101,AE101+AF101,$BS$2:$BS$14)-2),"Nu a fost afectat producator/consumator")),"") ->  | BJ101: =IF(C101="X",IF(AN101="DA",IF(AND(BI101>=5,AI101<>""),LEN(TRIM(U101))-LEN(SUBSTITUTE(U101,CHAR(44),""))+1,0),"-"),"") ->  | BK101: =IF(C101="X",IF(AN101="DA",LEN(TRIM(U101))-LEN(SUBSTITUTE(U101,CHAR(44),""))+1,"-"),"") ->  | BL101: =IF(C101="X",IF(AN101="","Afectat sau NU?",IF(AN101="DA",((AG101+AH101)-(Z101+AA101))*24,"Nu a fost afectat producator/consumator")),"") ->  | BM101: =IF(C101="X",IF(AN101<>"DA","-",IF(AND(AN101="DA",BL101<=0),LEN(TRIM(V101))-LEN(SUBSTITUTE(V101,CHAR(44),""))+1+LEN(TRIM(U101))-LEN(SUBSTITUTE(U101,CHAR(44),""))+1,0)),"") ->  | BN101: =IF(C101="X",IF(AN101="DA",LEN(TRIM(V101))-LEN(SUBSTITUTE(V101,CHAR(44),""))+1+LEN(TRIM(U101))-LEN(SUBSTITUTE(U101,CHAR(44),""))+1,"-"),"") -> 
A102: 87 | B102: - | C102: x | D102: Pregătire conductă 24” Paltin - Schitu Golești pentru transformare în conductă godevilabilă (jud. Brașov) | E102: 41630 | F102: Poiana Mărului | G102: Brașov | H102: 523056.64 | I102: 457084.35 | J102: 523056.64 | K102: 457084.35 | L102: - | M102: - | N102: SM0212D0 | O102: Poiana Mărului | P102: - | Q102: - | R102: - | S102: - | T102: SM-SD001 | V102: SC Distrigaz Sud Rețele | W102: aprilie - iunie 2022 | AB102: Brașov | AC102: Efectuată (fără întrerupere furnizării gazelor naturale) | AP102: PLRRM 2022_IIA1_Anexa 1 | BF102: Afectat sau NU? | BG102: - | BH102: - | BI102: Afectat sau NU? | BJ102: - | BK102: - | BL102: Afectat sau NU? | BM102: - | BN102: -
A103: 88 | B103: - | C103: x | D103: Pregătire conductă 24” Paltin - Schitu Golești pentru transformare în conductă godevilabilă (jud. Brașov) | E103: 40508 | F103: Zărnești | G103: Brașov | H103: 525537.9 | I103: 451706.17 | J103: 525537.9 | K103: 451706.17 | L103: - | M103: - | N103: SM1251D0 | O103: DS Smith Paper Zărnești | P103: - | Q103: - | R103: - | S103: - | T103: SM-CF001 | U103: Petrom | V103: DS Smith Paper Zarnești SRL | W103: aprilie - iunie 2022 | X103: 2022-06-02 | Y103: 07:00:00 | Z103: 2022-06-05 | AA103: 20:00:00 | AB103: Brașov | AC103: Efectuată | AE103: 2022-06-02 | AF103: 07:00:00 | AG103: 2022-06-05 | AH103: 19:15:00 | AI103: 2022-05-24 | AJ103: 14:40:00 | AK103: 2022-05-24 | AL103: 14:26:00 | AM103: 1113/30.05.2022 | AN103: DA | AP103: PLRRM 2022_IIA1_Anexa 1 | BF103: 5 | BG103: 1 | BH103: 1 | BI103: 5 | BJ103: 1 | BK103: 1 | BL103: -0.75 | BM103: 2 | BN103: 2
A104: 89 | B104: - | C104: x | D104: Pregătire conductă 24” Paltin - Schitu Golești pentru transformare în conductă godevilabilă (jud. Brașov) | E104: 41480 | F104: Moieciu de Jos | G104: Brașov | H104: 520679.86 | I104: 445316.53 | J104: 520679.86 | K104: 445316.53 | L104: - | M104: - | N104: SM1139D0 | O104: Moieciu | P104: - | Q104: - | R104: - | S104: - | T104: SM-SD001 | U104: Nova Power, Cez Vânzare, Cis Gaz, Conef Gaz, Crest Energy, Distrigaz Vest, Engie, E.on Energie, Electrica Furnizare, Electric Planners, Energy Distribution, Enel Energie, Enel Muntenia, Gas&Power, Entrex, Premier Energy Trading, Gaz Est, Megaconstruct, Met România, Monsson, Next Energy Distribution, Nord Gaz, Premier Energy, Petrom, Gas Provider, Renovatio, Romgaz, Tinmar, Transenergo, Veolia, Wiee | V104: SC Premier Energy SRL | W104: aprilie - iunie 2022 | X104: 2022-06-02 | Y104: 07:00:00 | Z104: 2022-06-03 | AA104: 15:00:00 | AB104: Brașov | AC104: Efectuată | AE104: 2022-06-02 | AF104: 07:00:00 | AG104: 2022-06-03 | AH104: 15:00:00 | AI104: 2022-05-24 | AJ104: 14:18:00 | AK104: 2022-05-24 | AL104: 14:05:00 | AM104: 1113/30.05.2022 | AN104: DA | AP104: PLRRM 2022_IIA1_Anexa 1 | BF104: 5 | BG104: 1 | BH104: 1 | BI104: 5 | BJ104: 31 | BK104: 31 | BL104: 0 | BM104: 32 | BN104: 32
A105: 90 | B105: x | C105: - | D105: Întrerupere accidentală SRM Nicolae Bălcescu | E105: 23724 | F105: Nicolae Bălcescu | G105: Bacău | H105: 648047.77 | I105: 554535.47 | J105: 648047.77 | K105: 554535.47 | L105: - | M105: - | N105: SM0891D0 | O105: Nicolae Bălcescu | P105: - | Q105: - | R105: - | S105: - | T105: SM-SD001 | U105: Aderro GP, Nova Power, Cez Vânzare, Cis Furnizare, Cis Gaz, Conef Gaz, CPL Concordia, Crest Energy, MVM Energy Trade, Design Proiect, Distrigaz Vest, Engie, E.on Energie, Electrica Furnizare, Electric Planners, Electric&Gas, Energy Distribution, Enel Energie, Enel Muntenia, Gas&Power, Entrex, Premier Energy Trading, Gaz Est, Hargaz, Gazmir, Gaz Vest, Mihoc Oil, Met România, Monsson, Next Energy Distribution, Next Energy Partners, Pado Group, Premier Energy, Petrom, Prisma Serv, Gas Provider, Renovatio, Res Energy Solutions, Restart Energy, Romgaz, RWE Supply, SST Grup, Sun Wave, Tetarom, Tinmar, Veolia, Wiee, Arovi Energy | V105: Delgaz Grid | W105: - | X105: 2021-10-02 | Y105: 20:32:00 | Z105: 2021-10-02 | AA105: 22:30:00 | AB105: Bacău | AC105: Efectuată | AE105: 2021-10-02 | AF105: 20:32:00 | AG105: 2021-10-02 | AH105: 21:57:00 | AI105: 2021-10-02 | AJ105: 20:47:00 | AK105: 2021-10-02 | AL105: 20:43:00 | AM105: - | AN105: DA | AP105: - | AR105: =IF(B105="X",IF(AN105="","Afectat sau NU?",IF(AN105="DA",IF(((AK105+AL105)-(AE105+AF105))*24<-720,"Neinformat",((AK105+AL105)-(AE105+AF105))*24),"Nu a fost afectat producator/consumator")),"") -> 0.1833333332 | AS105: =IF(B105="X",IF(AN105="DA",IF(AR105<6,LEN(TRIM(V105))-LEN(SUBSTITUTE(V105,CHAR(44),""))+1,0),"-"),"") -> 1 | AT105: =IF(B105="X",IF(AN105="DA",LEN(TRIM(V105))-LEN(SUBSTITUTE(V105,CHAR(44),""))+1,"-"),"") -> 1 | AU105: =IF(B105="X",IF(AN105="","Afectat sau NU?",IF(AN105="DA",IF(((AI105+AJ105)-(AE105+AF105))*24<-720,"Neinformat",((AI105+AJ105)-(AE105+AF105))*24),"Nu a fost afectat producator/consumator")),"") -> 0.2499999999 | AV105: =IF(B105="X",IF(AN105="DA",IF(AU105<6,LEN(TRIM(U105))-LEN(SUBSTITUTE(U105,CHAR(44),""))+1,0),"-"),"") -> 48 | AW105: =IF(B105="X",IF(AN105="DA",LEN(TRIM(U105))-LEN(SUBSTITUTE(U105,CHAR(44),""))+1,"-"),"") -> 48 | AX105: =IF(B105="X",IF(AN105="","Afectat sau NU?",IF(AN105="DA",((AG105+AH105)-(AE105+AF105))*24,"Nu a fost afectat producator/consumator")),"") -> 1.416666667 | AY105: =IF(B105="X",IF(AN105="DA",IF(AX105>24,IF(BA105="NU",0,LEN(TRIM(V105))-LEN(SUBSTITUTE(V105,CHAR(44),""))+1),0),"-"),"") -> 0 | AZ105: =IF(B105="X",IF(AN105="DA",IF(AX105>24,LEN(TRIM(V105))-LEN(SUBSTITUTE(V105,CHAR(44),""))+1,0),"-"),"") -> 0 | BF105: =IF(C105="X",IF(AN105="","Afectat sau NU?",IF(AN105="DA",IF(AK105="","Neinformat",NETWORKDAYS(AK105+AL105,AE105+AF105,$BS$2:$BS$14)-2),"Nu a fost afectat producator/consumator")),"") ->  | BG105: =IF(C105="X",IF(AN105="DA",IF(AND(BF105>=5,AK105<>""),LEN(TRIM(V105))-LEN(SUBSTITUTE(V105,CHAR(44),""))+1,0),"-"),"") ->  | BH105: =IF(C105="X",IF(AN105="DA",LEN(TRIM(V105))-LEN(SUBSTITUTE(V105,CHAR(44),""))+1,"-"),"") ->  | BI105: =IF(C105="X",IF(AN105="","Afectat sau NU?",IF(AN105="DA",IF(AI105="","Neinformat",NETWORKDAYS(AI105+AJ105,AE105+AF105,$BS$2:$BS$14)-2),"Nu a fost afectat producator/consumator")),"") ->  | BJ105: =IF(C105="X",IF(AN105="DA",IF(AND(BI105>=5,AI105<>""),LEN(TRIM(U105))-LEN(SUBSTITUTE(U105,CHAR(44),""))+1,0),"-"),"") ->  | BK105: =IF(C105="X",IF(AN105="DA",LEN(TRIM(U105))-LEN(SUBSTITUTE(U105,CHAR(44),""))+1,"-"),"") ->  | BL105: =IF(C105="X",IF(AN105="","Afectat sau NU?",IF(AN105="DA",((AG105+AH105)-(Z105+AA105))*24,"Nu a fost afectat producator/consumator")),"") ->  | BM105: =IF(C105="X",IF(AN105<>"DA","-",IF(AND(AN105="DA",BL105<=0),LEN(TRIM(V105))-LEN(SUBSTITUTE(V105,CHAR(44),""))+1+LEN(TRIM(U105))-LEN(SUBSTITUTE(U105,CHAR(44),""))+1,0)),"") ->  | BN105: =IF(C105="X",IF(AN105="DA",LEN(TRIM(V105))-LEN(SUBSTITUTE(V105,CHAR(44),""))+1+LEN(TRIM(U105))-LEN(SUBSTITUTE(U105,CHAR(44),""))+1,"-"),"") -> 
A106: 91 | B106: - | C106: x | D106: Înlocuire robineți și montare baterie filtre la SRM Mârșa | E106: 144090 | F106: Mârșa | G106: Sibiu | H106: 451489.67 | I106: 466968.99 | J106: 451489.67 | K106: 466968.99 | L106: - | M106: - | N106: SM0819D1 | O106: Mârșa | P106: - | Q106: - | R106: - | S106: - | T106: SM-SD001 | U106: Aderro GP, Nova Power, Cez Vânzare, Racord Furnizare, Cis Gaz, Conef Gaz, CPL Concordia, Crest Energy, MVM Energy Trade, Design Proiect, Distrigaz Vest, Engie, E.on Energie, Electrica Furnizare, Electric Planners, Electric&Gas, Energy Distribution, Enel Energie, Enel Muntenia, Gas&Power, Entrex, Premier Energy Trading, Gaz Est, Gazmir, Gaz Vest, Mihoc Oil, Met România, Monsson, Next Energy Distribution, Next Energy Partners, Pado Group, Premier Energy, Petrom, Prisma Serv, Gas Provider, Renovatio, Res Energy Solutions, Restart Energy, Romgaz, RWE Supply, SST Grup, Sun Wave, Tetarom, Tinmar, Transenergo, Veolia, Wiee, Arovi Energy | V106: Delgaz Grid | W106: 4 - 30 noiembrie 2021 | X106: 2021-11-09 | Y106: 07:00:00 | Z106: 2021-11-09 | AA106: 17:00:00 | AB106: Mediaș | AC106: Efectuată | AE106: 2021-11-09 | AF106: 07:00:00 | AG106: 2021-11-09 | AH106: 16:00:00 | AI106: 2021-10-29 | AJ106: 12:44:00 | AK106: 2021-10-29 | AL106: 11:55:00 | AM106: 3515/05.11.2021 | AN106: DA | AP106: Forțe proprii | BF106: 6 | BG106: 1 | BH106: 1 | BI106: 6 | BJ106: 48 | BK106: 48 | BL106: -1 | BM106: 49 | BN106: 49
A107: 92 | B107: - | C107: x | D107: Refacere cuplare conductă 2” racord SRM Șoroștin în conducta 20” Lunca - Sibiu | E107: 145756 | F107: Șoroștin | G107: Sibiu | H107: 427147.45 | I107: 503301.4 | J107: 427147.45 | K107: 503301.4 | L107: - | M107: - | N107: SM0758D0 | O107: Șoroștin | P107: - | Q107: - | R107: - | S107: - | T107: SM-SD001 | U107: Aderro GP, Nova Power, Cez Vânzare, Racord Furnizare, Cis Gaz, Conef Gaz, CPL Concordia, Crest Energy, MVM Energy Trade, Design Proiect, Distrigaz Vest, Engie, E.on Energie, Electrica Furnizare, Electric Planners, Electric&Gas, Energy Distribution, Enel Energie, Enel Muntenia, Gas&Power, Entrex, Premier Energy Trading, Gaz Est, Gazmir, Gaz Vest, Mihoc Oil, Met România, Monsson, Next Energy Distribution, Next Energy Partners, Pado Group, Premier Energy, Petrom, Prisma Serv, Gas Provider, Renovatio, Res Energy Solutions, Restart Energy, Romgaz, RWE Supply, SST Grup, Sun Wave, Tetarom, Tinmar, Transenergo, Veolia, Wiee, Arovi Energy | V107: Delgaz Grid | W107: 4 - 30 noiembrie 2021 | X107: 2021-11-11 | Y107: 07:00:00 | Z107: 2021-11-11 | AA107: 17:00:00 | AB107: Mediaș | AC107: Efectuată | AE107: 2021-11-11 | AF107: 07:00:00 | AG107: 2021-11-11 | AH107: 17:00:00 | AI107: 2021-10-29 | AJ107: 12:42:00 | AK107: 2021-10-29 | AL107: 12:00:00 | AM107: 3543/09.11.2021 | AN107: DA | AP107: Forțe proprii | BF107: 8 | BG107: 1 | BH107: 1 | BI107: 8 | BJ107: 48 | BK107: 48 | BL107: 0 | BM107: 49 | BN107: 49
A108: 93 | B108: x | C108: - | D108: Cuplare deviere conductă 20” Timișoara I - Dumbrăvița, zona Ghiroda | E108: 157255 | F108: Giarmata | G108: Timiș | H108: 213459.45 | I108: 487919.34 | J108: 213459.45 | K108: 487919.34 | L108: - | M108: - | N108: SM0347D0 | O108: Giarmata | P108: - | Q108: - | R108: - | S108: - | T108: SM-SD001 | U108: Nova Power, Cez Vânzare, Cis Gaz, MVM Energy Trade, Distrigaz Vest, Engie, E.on Energie, Electrica Furnizare, Electric&Gas, Energy Distribution, Enel Energie, Enel Muntenia, Premier Energy Trading, Gaz Est, Gaz Vest, Met România, Premier Energy, Petrom, Gas Provider, Renovatio, Restart Energy, Tinmar, Arovi Energy | V108: Gaz Vest | W108: - | X108: 2021-10-05 | Y108: 08:55:00 | Z108: 2021-10-05 | AA108: 16:00:00 | AB108: Arad | AC108: Efectuată | AE108: 2021-10-05 | AF108: 08:55:00 | AG108: 2021-10-05 | AH108: 13:50:00 | AI108: 2021-10-05 | AJ108: 09:10:00 | AK108: 2021-10-05 | AL108: 09:02:00 | AM108: 74707/04.10.2021 | AN108: DA | AR108: 0.1166666665 | AS108: 1 | AT108: 1 | AU108: 0.2499999999 | AV108: 23 | AW108: 23 | AX108: 4.916666667 | AY108: 0 | AZ108: 0
A109: 94 | B109: x | C109: - | D109: Cuplare deviere conductă 20” Timișoara I - Dumbrăvița, zona Ghiroda | E109: 155298 | F109: Ghiroda | G109: Timiș | H109: 213312.19 | I109: 480706.64 | J109: 213312.19 | K109: 480706.64 | L109: - | M109: - | N109: SM0344D0 | O109: Ghiroda | P109: - | Q109: - | R109: - | S109: - | T109: SM-SD001 | U109: Aderro GP, Nova Power, Cez Vânzare, Racord Furnizare, Cis Gaz, Conef Gaz, CPL Concordia, Crest Energy, MVM Energy Trade, Design Proiect, Distrigaz Vest, Engie, E.on Energie, Electrica Furnizare, Electric Planners, Electric&Gas, Energy Distribution, Enel Energie, Enel Muntenia, Gas&Power, Entrex, Premier Energy Trading, Gaz Est, Hargaz, Gazmir, Gaz Vest, Mihoc Oil, Met România, Monsson, Next Energy Distribution, Next Energy Partners, Pado Group, Premier Energy, Petrom, Prisma Serv, Gas Provider, Renovatio, Res Energy Solutions, Restart Energy, Romgaz, RWE Supply, SST Grup, Sun Wave, Tetarom, Tinmar, Veolia, Wiee, Arovi Energy | V109: Delgaz Grid | W109: - | X109: 2021-10-05 | Y109: 08:02:00 | Z109: 2021-10-05 | AA109: 16:00:00 | AB109: Arad | AC109: Efectuată | AE109: 2021-10-05 | AF109: 08:02:00 | AG109: 2021-10-05 | AH109: 14:38:00 | AI109: 2021-10-05 | AJ109: 08:54:00 | AK109: 2021-10-05 | AL109: 08:28:00 | AM109: 74707/04.10.2021 | AN109: NU | AR109: =IF(B109="X",IF(AN109="","Afectat sau NU?",IF(AN109="DA",IF(((AK109+AL109)-(AE109+AF109))*24<-720,"Neinformat",((AK109+AL109)-(AE109+AF109))*24),"Nu a fost afectat producator/consumator")),"") -> Nu a fost afectat producator/consumator | AS109: =IF(B109="X",IF(AN109="DA",IF(AR109<6,LEN(TRIM(V109))-LEN(SUBSTITUTE(V109,CHAR(44),""))+1,0),"-"),"") -> - | AT109: =IF(B109="X",IF(AN109="DA",LEN(TRIM(V109))-LEN(SUBSTITUTE(V109,CHAR(44),""))+1,"-"),"") -> - | AU109: =IF(B109="X",IF(AN109="","Afectat sau NU?",IF(AN109="DA",IF(((AI109+AJ109)-(AE109+AF109))*24<-720,"Neinformat",((AI109+AJ109)-(AE109+AF109))*24),"Nu a fost afectat producator/consumator")),"") -> Nu a fost afectat producator/consumator | AV109: =IF(B109="X",IF(AN109="DA",IF(AU109<6,LEN(TRIM(U109))-LEN(SUBSTITUTE(U109,CHAR(44),""))+1,0),"-"),"") -> - | AW109: =IF(B109="X",IF(AN109="DA",LEN(TRIM(U109))-LEN(SUBSTITUTE(U109,CHAR(44),""))+1,"-"),"") -> - | AX109: =IF(B109="X",IF(AN109="","Afectat sau NU?",IF(AN109="DA",((AG109+AH109)-(AE109+AF109))*24,"Nu a fost afectat producator/consumator")),"") -> Nu a fost afectat producator/consumator | AY109: =IF(B109="X",IF(AN109="DA",IF(AX109>24,IF(BA109="NU",0,LEN(TRIM(V109))-LEN(SUBSTITUTE(V109,CHAR(44),""))+1),0),"-"),"") -> - | AZ109: =IF(B109="X",IF(AN109="DA",IF(AX109>24,LEN(TRIM(V109))-LEN(SUBSTITUTE(V109,CHAR(44),""))+1,0),"-"),"") -> - | BF109: =IF(C109="X",IF(AN109="","Afectat sau NU?",IF(AN109="DA",IF(AK109="","Neinformat",NETWORKDAYS(AK109+AL109,AE109+AF109,$BS$2:$BS$14)-2),"Nu a fost afectat producator/consumator")),"") ->  | BG109: =IF(C109="X",IF(AN109="DA",IF(AND(BF109>=5,AK109<>""),LEN(TRIM(V109))-LEN(SUBSTITUTE(V109,CHAR(44),""))+1,0),"-"),"") ->  | BH109: =IF(C109="X",IF(AN109="DA",LEN(TRIM(V109))-LEN(SUBSTITUTE(V109,CHAR(44),""))+1,"-"),"") ->  | BI109: =IF(C109="X",IF(AN109="","Afectat sau NU?",IF(AN109="DA",IF(AI109="","Neinformat",NETWORKDAYS(AI109+AJ109,AE109+AF109,$BS$2:$BS$14)-2),"Nu a fost afectat producator/consumator")),"") ->  | BJ109: =IF(C109="X",IF(AN109="DA",IF(AND(BI109>=5,AI109<>""),LEN(TRIM(U109))-LEN(SUBSTITUTE(U109,CHAR(44),""))+1,0),"-"),"") ->  | BK109: =IF(C109="X",IF(AN109="DA",LEN(TRIM(U109))-LEN(SUBSTITUTE(U109,CHAR(44),""))+1,"-"),"") ->  | BL109: =IF(C109="X",IF(AN109="","Afectat sau NU?",IF(AN109="DA",((AG109+AH109)-(Z109+AA109))*24,"Nu a fost afectat producator/consumator")),"") ->  | BM109: =IF(C109="X",IF(AN109<>"DA","-",IF(AND(AN109="DA",BL109<=0),LEN(TRIM(V109))-LEN(SUBSTITUTE(V109,CHAR(44),""))+1+LEN(TRIM(U109))-LEN(SUBSTITUTE(U109,CHAR(44),""))+1,0)),"") ->  | BN109: =IF(C109="X",IF(AN109="DA",LEN(TRIM(V109))-LEN(SUBSTITUTE(V109,CHAR(44),""))+1+LEN(TRIM(U109))-LEN(SUBSTITUTE(U109,CHAR(44),""))+1,"-"),"") -> 
A110: 95 | B110: x | C110: - | D110: Cuplare deviere conductă 20” Timișoara I - Dumbrăvița, zona Ghiroda | E110: 155252 | F110: Timișoara | G110: Timiș | H110: 214955.96 | I110: 484273.94 | J110: 214955.96 | K110: 484273.94 | L110: - | M110: - | N110: SM0339D0 | O110: Timișoara IV Aeroportul Militar | P110: - | Q110: - | R110: - | S110: - | T110: SM-SD001 | U110: Aderro GP, Nova Power, Cez Vânzare, Racord Furnizare, Cis Gaz, Conef Gaz, CPL Concordia, Crest Energy, MVM Energy Trade, Design Proiect, Distrigaz Vest, Engie, E.on Energie, Electrica Furnizare, Electric Planners, Electric&Gas, Energy Distribution, Enel Energie, Enel Muntenia, Gas&Power, Entrex, Premier Energy Trading, Gaz Est, Hargaz, Gazmir, Gaz Vest, Mihoc Oil, Met România, Monsson, Next Energy Distribution, Next Energy Partners, Pado Group, Premier Energy, Petrom, Prisma Serv, Gas Provider, Renovatio, Res Energy Solutions, Restart Energy, Romgaz, RWE Supply, SST Grup, Sun Wave, Tetarom, Tinmar, Veolia, Wiee, Arovi Energy | V110: Delgaz Grid | W110: - | X110: 2021-10-05 | Y110: 08:30:00 | Z110: 2021-10-05 | AA110: 16:00:00 | AB110: Arad | AC110: Efectuată | AE110: 2021-10-05 | AF110: 08:30:00 | AG110: 2021-10-05 | AH110: 13:47:00 | AI110: 2021-10-05 | AJ110: 09:04:00 | AK110: 2021-10-05 | AL110: 08:49:00 | AM110: 74707/04.10.2021 | AN110: NU | AR110: Nu a fost afectat producator/consumator | AS110: - | AT110: - | AU110: Nu a fost afectat producator/consumator | AV110: - | AW110: - | AX110: Nu a fost afectat producator/consumator | AY110: - | AZ110: -
A111: 96 | B111: x | C111: - | D111: Cuplare deviere conductă 20” Timișoara I - Dumbrăvița, zona Ghiroda | E111: 155305 | F111: Giarmata-Vii | G111: Timiș | H111: 211961.9 | I111: 484303.83 | J111: 211961.9 | K111: 484303.83 | L111: - | M111: - | N111: SM0346D0 | O111: Giarmata-Vii | P111: - | Q111: - | R111: - | S111: - | T111: SM-SD001 | U111: Aderro GP, Nova Power, Cez Vânzare, Racord Furnizare, Cis Gaz, Conef Gaz, CPL Concordia, Crest Energy, MVM Energy Trade, Design Proiect, Distrigaz Vest, Engie, E.on Energie, Electrica Furnizare, Electric Planners, Electric&Gas, Energy Distribution, Enel Energie, Enel Muntenia, Gas&Power, Entrex, Premier Energy Trading, Gaz Est, Hargaz, Gazmir, Gaz Vest, Mihoc Oil, Met România, Monsson, Next Energy Distribution, Next Energy Partners, Pado Group, Premier Energy, Petrom, Prisma Serv, Gas Provider, Renovatio, Res Energy Solutions, Restart Energy, Romgaz, RWE Supply, SST Grup, Sun Wave, Tetarom, Tinmar, Veolia, Wiee, Arovi Energy | V111: Delgaz Grid | W111: - | X111: 2021-10-05 | Y111: 08:11:00 | Z111: 2021-10-05 | AA111: 16:00:00 | AB111: Arad | AC111: Efectuată | AE111: 2021-10-05 | AF111: 08:11:00 | AG111: 2021-10-05 | AH111: 14:15:00 | AI111: 2021-10-05 | AJ111: 08:57:00 | AK111: 2021-10-05 | AL111: 08:34:00 | AM111: 74707/04.10.2021 | AN111: DA | AR111: 0.3833333334 | AS111: 1 | AT111: 1 | AU111: 0.7666666667 | AV111: 48 | AW111: 48 | AX111: 6.066666667 | AY111: 0 | AZ111: 0
A112: 97 | B112: x | C112: - | D112: Cuplare deviere conductă 20” Timișoara I - Dumbrăvița, zona Ghiroda | E112: 155270 | F112: Dumbrăvița | G112: Timiș | H112: 209730.02 | I112: 485196.96 | J112: 209730.02 | K112: 485196.96 | L112: - | M112: - | N112: SM0294D0 | O112: Dumbrăvița TM | P112: - | Q112: - | R112: - | S112: - | T112: SM-SD001 | U112: Aderro GP, Nova Power, Cez Vânzare, Cis Furnizare, Cis Gaz, Conef Gaz, CPL Concordia, Crest Energy, MVM Energy Trade, Design Proiect, Distrigaz Vest, Engie, E.on Energie, Electrica Furnizare, Electric Planners, Electric&Gas, Energy Distribution, Enel Energie, Enel Muntenia, Gas&Power, Entrex, Premier Energy Trading, Gaz Est, Hargaz, Gazmir, Gaz Vest, Mihoc Oil, Met România, Monsson, Next Energy Distribution, Next Energy Partners, Pado Group, Premier Energy, Petrom, Prisma Serv, Gas Provider, Renovatio, Res Energy Solutions, Restart Energy, Romgaz, RWE Supply, SST Grup, Sun Wave, Tetarom, Tinmar, Veolia, Wiee, Arovi Energy | V112: Delgaz Grid | W112: - | X112: 2021-10-05 | Y112: 08:33:00 | Z112: 2021-10-05 | AA112: 16:00:00 | AB112: Arad | AC112: Efectuată | AE112: 2021-10-05 | AF112: 08:33:00 | AG112: 2021-10-05 | AH112: 14:10:00 | AI112: 2021-10-05 | AJ112: 09:07:00 | AK112: 2021-10-05 | AL112: 08:58:00 | AM112: 74707/04.10.2021 | AN112: NU | AR112: Nu a fost afectat producator/consumator | AS112: - | AT112: - | AU112: Nu a fost afectat producator/consumator | AV112: - | AW112: - | AX112: Nu a fost afectat producator/consumator | AY112: - | AZ112: -
A113: 98 | B113: x | C113: - | D113: Cuplare deviere conductă 20” Timișoara I - Dumbrăvița, zona Ghiroda | E113: 155270 | F113: Dumbrăvița | G113: Timiș | H113: 211286.24 | I113: 484424.69 | J113: 211286.24 | K113: 484424.69 | L113: - | M113: - | N113: SM1168D0 | O113: Dumbrăvița II | P113: - | Q113: - | R113: - | S113: - | T113: SM-SD001 | U113: Aderro GP, Nova Power, Cez Vânzare, Racord Furnizare, Cis Gaz, Conef Gaz, CPL Concordia, Crest Energy, MVM Energy Trade, Design Proiect, Distrigaz Vest, Engie, E.on Energie, Electrica Furnizare, Electric Planners, Electric&Gas, Energy Distribution, Enel Energie, Enel Muntenia, Gas&Power, Entrex, Premier Energy Trading, Gaz Est, Hargaz, Gazmir, Gaz Vest, Mihoc Oil, Met România, Monsson, Next Energy Distribution, Next Energy Partners, Pado Group, Premier Energy, Petrom, Prisma Serv, Gas Provider, Renovatio, Res Energy Solutions, Restart Energy, Romgaz, RWE Supply, SST Grup, Sun Wave, Tetarom, Tinmar, Veolia, Wiee, Arovi Energy | V113: Delgaz Grid | W113: - | X113: 2021-10-05 | Y113: 08:20:00 | Z113: 2021-10-05 | AA113: 16:00:00 | AB113: Arad | AC113: Efectuată | AE113: 2021-10-05 | AF113: 08:20:00 | AG113: 2021-10-05 | AH113: 14:30:00 | AI113: 2021-10-05 | AJ113: 09:02:00 | AK113: 2021-10-05 | AL113: 08:47:00 | AM113: 74707/04.10.2021 | AN113: NU | AR113: Nu a fost afectat producator/consumator | AS113: - | AT113: - | AU113: Nu a fost afectat producator/consumator | AV113: - | AW113: - | AX113: Nu a fost afectat producator/consumator | AY113: - | AZ113: -
A114: 99 | B114: x | C114: - | D114: Cuplare deviere conductă 20” Timișoara I - Dumbrăvița, zona Ghiroda | E114: 155252 | F114: Timișoara | G114: Timiș | H114: 214005.13 | I114: 485720.82 | J114: 214005.13 | K114: 485720.82 | L114: - | M114: - | N114: SM0340D0 | O114: SC Aeroportul Internațional Timișoara | P114: - | Q114: - | R114: - | S114: - | T114: SM-CF001 | U114: Premier Energy Trading | V114: Aeroportul Internațional Timișoara | W114: - | X114: 2021-10-05 | Y114: 08:21:00 | Z114: 2021-10-05 | AA114: 16:00:00 | AB114: Arad | AC114: Efectuată | AE114: 2021-10-05 | AF114: 08:21:00 | AG114: 2021-10-05 | AH114: 15:14:00 | AI114: 2021-10-05 | AJ114: 08:59:00 | AK114: 2021-10-05 | AL114: 08:38:00 | AM114: 74707/04.10.2021 | AN114: DA | AR114: 0.2833333334 | AS114: 1 | AT114: 1 | AU114: 0.6333333333 | AV114: 1 | AW114: 1 | AX114: 6.883333333 | AY114: 0 | AZ114: 0
A115: 100 | B115: x | C115: - | D115: Înlocuire cupon pe racord PM Armeni | E115: 145248 | F115: Bogatu Român | G115: Sibiu | H115: 417933.66 | I115: 500204.42 | J115: 417933.66 | K115: 500204.42 | L115: - | M115: - | N115: SM0752D0 | O115: Bogatu Român | P115: - | Q115: - | R115: - | S115: - | T115: SM-SD001 | U115: Aderro GP, Nova Power, Cez Vânzare, Racord Furnizare, Cis Gaz, Conef Gaz, CPL Concordia, Crest Energy, MVM Energy Trade, Design Proiect, Distrigaz Vest, Engie, E.on Energie, Electrica Furnizare, Electric Planners, Electric&Gas, Energy Distribution, Enel Energie, Enel Muntenia, Gas&Power, Entrex, Premier Energy Trading, Gaz Est, Hargaz, Gazmir, Gaz Vest, Mihoc Oil, Met România, Monsson, Next Energy Distribution, Next Energy Partners, Pado Group, Premier Energy, Petrom, Prisma Serv, Gas Provider, Renovatio, Res Energy Solutions, Restart Energy, Romgaz, RWE Supply, SST Grup, Sun Wave, Tetarom, Tinmar, Veolia, Wiee, Arovi Energy | V115: Delgaz Grid | W115: - | X115: 2021-10-05 | Y115: 08:00:00 | Z115: 2021-10-05 | AA115: 16:00:00 | AB115: Mediaș | AC115: Efectuată | AE115: 2021-10-05 | AF115: 08:00:00 | AG115: 2021-10-05 | AH115: 16:30:00 | AI115: 2021-10-05 | AJ115: 08:28:00 | AK115: 2021-10-05 | AL115: 08:14:00 | AM115: 3058/04.10.2021 | AN115: DA | AR115: =IF(B115="X",IF(AN115="","Afectat sau NU?",IF(AN115="DA",IF(((AK115+AL115)-(AE115+AF115))*24<-720,"Neinformat",((AK115+AL115)-(AE115+AF115))*24),"Nu a fost afectat producator/consumator")),"") -> 0.2333333332 | AS115: =IF(B115="X",IF(AN115="DA",IF(AR115<6,LEN(TRIM(V115))-LEN(SUBSTITUTE(V115,CHAR(44),""))+1,0),"-"),"") -> 1 | AT115: =IF(B115="X",IF(AN115="DA",LEN(TRIM(V115))-LEN(SUBSTITUTE(V115,CHAR(44),""))+1,"-"),"") -> 1 | AU115: =IF(B115="X",IF(AN115="","Afectat sau NU?",IF(AN115="DA",IF(((AI115+AJ115)-(AE115+AF115))*24<-720,"Neinformat",((AI115+AJ115)-(AE115+AF115))*24),"Nu a fost afectat producator/consumator")),"") -> 0.4666666666 | AV115: =IF(B115="X",IF(AN115="DA",IF(AU115<6,LEN(TRIM(U115))-LEN(SUBSTITUTE(U115,CHAR(44),""))+1,0),"-"),"") -> 48 | AW115: =IF(B115="X",IF(AN115="DA",LEN(TRIM(U115))-LEN(SUBSTITUTE(U115,CHAR(44),""))+1,"-"),"") -> 48 | AX115: =IF(B115="X",IF(AN115="","Afectat sau NU?",IF(AN115="DA",((AG115+AH115)-(AE115+AF115))*24,"Nu a fost afectat producator/consumator")),"") -> 8.5 | AY115: =IF(B115="X",IF(AN115="DA",IF(AX115>24,IF(BA115="NU",0,LEN(TRIM(V115))-LEN(SUBSTITUTE(V115,CHAR(44),""))+1),0),"-"),"") -> 0 | AZ115: =IF(B115="X",IF(AN115="DA",IF(AX115>24,LEN(TRIM(V115))-LEN(SUBSTITUTE(V115,CHAR(44),""))+1,0),"-"),"") -> 0 | BF115: =IF(C115="X",IF(AN115="","Afectat sau NU?",IF(AN115="DA",IF(AK115="","Neinformat",NETWORKDAYS(AK115+AL115,AE115+AF115,$BS$2:$BS$14)-2),"Nu a fost afectat producator/consumator")),"") ->  | BG115: =IF(C115="X",IF(AN115="DA",IF(AND(BF115>=5,AK115<>""),LEN(TRIM(V115))-LEN(SUBSTITUTE(V115,CHAR(44),""))+1,0),"-"),"") ->  | BH115: =IF(C115="X",IF(AN115="DA",LEN(TRIM(V115))-LEN(SUBSTITUTE(V115,CHAR(44),""))+1,"-"),"") ->  | BI115: =IF(C115="X",IF(AN115="","Afectat sau NU?",IF(AN115="DA",IF(AI115="","Neinformat",NETWORKDAYS(AI115+AJ115,AE115+AF115,$BS$2:$BS$14)-2),"Nu a fost afectat producator/consumator")),"") ->  | BJ115: =IF(C115="X",IF(AN115="DA",IF(AND(BI115>=5,AI115<>""),LEN(TRIM(U115))-LEN(SUBSTITUTE(U115,CHAR(44),""))+1,0),"-"),"") ->  | BK115: =IF(C115="X",IF(AN115="DA",LEN(TRIM(U115))-LEN(SUBSTITUTE(U115,CHAR(44),""))+1,"-"),"") ->  | BL115: =IF(C115="X",IF(AN115="","Afectat sau NU?",IF(AN115="DA",((AG115+AH115)-(Z115+AA115))*24,"Nu a fost afectat producator/consumator")),"") ->  | BM115: =IF(C115="X",IF(AN115<>"DA","-",IF(AND(AN115="DA",BL115<=0),LEN(TRIM(V115))-LEN(SUBSTITUTE(V115,CHAR(44),""))+1+LEN(TRIM(U115))-LEN(SUBSTITUTE(U115,CHAR(44),""))+1,0)),"") ->  | BN115: =IF(C115="X",IF(AN115="DA",LEN(TRIM(V115))-LEN(SUBSTITUTE(V115,CHAR(44),""))+1+LEN(TRIM(U115))-LEN(SUBSTITUTE(U115,CHAR(44),""))+1,"-"),"") -> 
A116: 101 | B116: x | C116: - | D116: Înlocuire cupon pe racord PM Armeni | E116: 145266 | F116: Presaca | G116: Sibiu | H116: 414493.32 | I116: 498285.07 | J116: 414493.32 | K116: 498285.07 | L116: - | M116: - | N116: SM0754D0 | O116: Presaca | P116: - | Q116: - | R116: - | S116: - | T116: SM-SD001 | U116: Aderro GP, Nova Power, Cez Vânzare, Racord Furnizare, Cis Gaz, Conef Gaz, CPL Concordia, Crest Energy, MVM Energy Trade, Design Proiect, Distrigaz Vest, Engie, E.on Energie, Electrica Furnizare, Electric Planners, Electric&Gas, Energy Distribution, Enel Energie, Enel Muntenia, Gas&Power, Entrex, Premier Energy Trading, Gaz Est, Hargaz, Gazmir, Gaz Vest, Mihoc Oil, Met România, Monsson, Next Energy Distribution, Next Energy Partners, Pado Group, Premier Energy, Petrom, Prisma Serv, Gas Provider, Renovatio, Res Energy Solutions, Restart Energy, Romgaz, RWE Supply, SST Grup, Sun Wave, Tetarom, Tinmar, Veolia, Wiee, Arovi Energy | V116: Delgaz Grid | W116: - | X116: 2021-10-05 | Y116: 08:00:00 | Z116: 2021-10-05 | AA116: 16:00:00 | AB116: Mediaș | AC116: Efectuată | AE116: 2021-10-05 | AF116: 08:00:00 | AG116: 2021-10-05 | AH116: 16:30:00 | AI116: 2021-10-05 | AJ116: 08:28:00 | AK116: 2021-10-05 | AL116: 08:14:00 | AM116: 3058/04.10.2021 | AN116: DA | AR116: 0.2333333332 | AS116: 1 | AT116: 1 | AU116: 0.4666666666 | AV116: 48 | AW116: 48 | AX116: 8.5 | AY116: 0 | AZ116: 0
A117: 102 | B117: x | C117: - | D117: Înlocuire cupon pe racord PM Armeni | E117: 145239 | F117: Păuca | G117: Sibiu | H117: 414787.47 | I117: 501461.26 | J117: 414787.47 | K117: 501461.26 | L117: - | M117: - | N117: SM0753D0 | O117: Păuca | P117: - | Q117: - | R117: - | S117: - | T117: SM-SD001 | U117: Aderro GP, Nova Power, Cez Vânzare, Racord Furnizare, Cis Gaz, Conef Gaz, CPL Concordia, Crest Energy, MVM Energy Trade, Design Proiect, Distrigaz Vest, Engie, E.on Energie, Electrica Furnizare, Electric Planners, Electric&Gas, Energy Distribution, Enel Energie, Enel Muntenia, Gas&Power, Entrex, Premier Energy Trading, Gaz Est, Hargaz, Gazmir, Gaz Vest, Mihoc Oil, Met România, Monsson, Next Energy Distribution, Next Energy Partners, Pado Group, Premier Energy, Petrom, Prisma Serv, Gas Provider, Renovatio, Res Energy Solutions, Restart Energy, Romgaz, RWE Supply, SST Grup, Sun Wave, Tetarom, Tinmar, Veolia, Wiee, Arovi Energy | V117: Delgaz Grid | W117: - | X117: 2021-10-05 | Y117: 08:00:00 | Z117: 2021-10-05 | AA117: 16:00:00 | AB117: Mediaș | AC117: Efectuată | AE117: 2021-10-05 | AF117: 08:00:00 | AG117: 2021-10-05 | AH117: 16:30:00 | AI117: 2021-10-05 | AJ117: 08:28:00 | AK117: 2021-10-05 | AL117: 08:14:00 | AM117: 3058/04.10.2021 | AN117: DA | AR117: 0.2333333332 | AS117: 1 | AT117: 1 | AU117: 0.4666666666 | AV117: 48 | AW117: 48 | AX117: 8.5 | AY117: 0 | AZ117: 0
A118: 103 | B118: x | C118: - | D118: Înlocuire cupon pe racord PM Armeni | E118: 144820 | F118: Armeni | G118: Sibiu | H118: 418496.58 | I118: 500170.58 | J118: 418496.58 | K118: 500170.58 | L118: - | M118: - | N118: - | O118: - | P118: - | Q118: - | R118: PM0304 | S118: Armeni | T118: PM-PP001 | U118: Romgaz | V118: Romgaz | W118: - | X118: 2021-10-05 | Y118: 08:00:00 | Z118: 2021-10-05 | AA118: 16:00:00 | AB118: Mediaș | AC118: Efectuată | AE118: 2021-10-05 | AF118: 08:00:00 | AG118: 2021-10-05 | AH118: 16:30:00 | AI118: 2021-10-05 | AJ118: 08:34:00 | AK118: 2021-10-05 | AL118: 08:24:00 | AM118: 3058/04.10.2021 | AN118: DA | AR118: 0.3999999999 | AS118: 1 | AT118: 1 | AU118: 0.5666666666 | AV118: 1 | AW118: 1 | AX118: 8.5 | AY118: 0 | AZ118: 0
A119: 104 | B119: x | C119: - | D119: Refacere traseu DN400 Gherăiești - Iași, fir I și II | E119: 97820 | F119: Mircești | G119: Iași | H119: 640467.09 | I119: 618333.38 | J119: 640467.09 | K119: 618333.38 | L119: - | M119: - | N119: SM1209D0 | O119: Mircești | P119: - | Q119: - | R119: - | S119: - | T119: SM-SD001 | U119: Nova Power, Cez Vânzare, Design Proiect, E.on Energie, Electrica Furnizare, Enel Energie, Enel Muntenia, Premier Energy Trading, Gaz Nord Est, Premier Energy, Petrom, Restart Energy, Tinmar | V119: Design Proiect | W119: - | X119: 2021-10-05 | Y119: 11:41:00 | Z119: 2021-10-06 | AA119: 20:00:00 | AB119: Bacău | AC119: Efectuată | AE119: 2021-10-05 | AF119: 11:41:00 | AG119: 2021-10-06 | AH119: 17:13:00 | AI119: 2021-10-05 | AJ119: 12:06:00 | AK119: 2021-10-05 | AL119: 12:00:00 | AM119: 74730/04.10.2021 | AN119: DA | AR119: =IF(B119="X",IF(AN119="","Afectat sau NU?",IF(AN119="DA",IF(((AK119+AL119)-(AE119+AF119))*24<-720,"Neinformat",((AK119+AL119)-(AE119+AF119))*24),"Nu a fost afectat producator/consumator")),"") -> 0.3166666667 | AS119: =IF(B119="X",IF(AN119="DA",IF(AR119<6,LEN(TRIM(V119))-LEN(SUBSTITUTE(V119,CHAR(44),""))+1,0),"-"),"") -> 1 | AT119: =IF(B119="X",IF(AN119="DA",LEN(TRIM(V119))-LEN(SUBSTITUTE(V119,CHAR(44),""))+1,"-"),"") -> 1 | AU119: =IF(B119="X",IF(AN119="","Afectat sau NU?",IF(AN119="DA",IF(((AI119+AJ119)-(AE119+AF119))*24<-720,"Neinformat",((AI119+AJ119)-(AE119+AF119))*24),"Nu a fost afectat producator/consumator")),"") -> 0.4166666666 | AV119: =IF(B119="X",IF(AN119="DA",IF(AU119<6,LEN(TRIM(U119))-LEN(SUBSTITUTE(U119,CHAR(44),""))+1,0),"-"),"") -> 13 | AW119: =IF(B119="X",IF(AN119="DA",LEN(TRIM(U119))-LEN(SUBSTITUTE(U119,CHAR(44),""))+1,"-"),"") -> 13 | AX119: =IF(B119="X",IF(AN119="","Afectat sau NU?",IF(AN119="DA",((AG119+AH119)-(AE119+AF119))*24,"Nu a fost afectat producator/consumator")),"") -> 29.53333333 | AY119: =IF(B119="X",IF(AN119="DA",IF(AX119>24,IF(BA119="NU",0,LEN(TRIM(V119))-LEN(SUBSTITUTE(V119,CHAR(44),""))+1),0),"-"),"") -> 1 | AZ119: =IF(B119="X",IF(AN119="DA",IF(AX119>24,LEN(TRIM(V119))-LEN(SUBSTITUTE(V119,CHAR(44),""))+1,0),"-"),"") -> 1 | BA119: DA | BF119: =IF(C119="X",IF(AN119="","Afectat sau NU?",IF(AN119="DA",IF(AK119="","Neinformat",NETWORKDAYS(AK119+AL119,AE119+AF119,$BS$2:$BS$14)-2),"Nu a fost afectat producator/consumator")),"") ->  | BG119: =IF(C119="X",IF(AN119="DA",IF(AND(BF119>=5,AK119<>""),LEN(TRIM(V119))-LEN(SUBSTITUTE(V119,CHAR(44),""))+1,0),"-"),"") ->  | BH119: =IF(C119="X",IF(AN119="DA",LEN(TRIM(V119))-LEN(SUBSTITUTE(V119,CHAR(44),""))+1,"-"),"") ->  | BI119: =IF(C119="X",IF(AN119="","Afectat sau NU?",IF(AN119="DA",IF(AI119="","Neinformat",NETWORKDAYS(AI119+AJ119,AE119+AF119,$BS$2:$BS$14)-2),"Nu a fost afectat producator/consumator")),"") ->  | BJ119: =IF(C119="X",IF(AN119="DA",IF(AND(BI119>=5,AI119<>""),LEN(TRIM(U119))-LEN(SUBSTITUTE(U119,CHAR(44),""))+1,0),"-"),"") ->  | BK119: =IF(C119="X",IF(AN119="DA",LEN(TRIM(U119))-LEN(SUBSTITUTE(U119,CHAR(44),""))+1,"-"),"") ->  | BL119: =IF(C119="X",IF(AN119="","Afectat sau NU?",IF(AN119="DA",((AG119+AH119)-(Z119+AA119))*24,"Nu a fost afectat producator/consumator")),"") ->  | BM119: =IF(C119="X",IF(AN119<>"DA","-",IF(AND(AN119="DA",BL119<=0),LEN(TRIM(V119))-LEN(SUBSTITUTE(V119,CHAR(44),""))+1+LEN(TRIM(U119))-LEN(SUBSTITUTE(U119,CHAR(44),""))+1,0)),"") ->  | BN119: =IF(C119="X",IF(AN119="DA",LEN(TRIM(V119))-LEN(SUBSTITUTE(V119,CHAR(44),""))+1+LEN(TRIM(U119))-LEN(SUBSTITUTE(U119,CHAR(44),""))+1,"-"),"") -> 
A120: 105 | B120: x | C120: - | D120: Întreruperea serviciului de transport prin SRM Simionești, solicitată de operatorul de distribuție datorită calității neconforme a gazelor | E120: 120913 | F120: Simionești | G120: Neamț | H120: 641447.97 | I120: 609975.44 | J120: 641447.97 | K120: 609975.44 | L120: - | M120: - | N120: SM0957D0 | O120: Simionești | P120: - | Q120: - | R120: - | S120: - | T120: SM-SD001 | U120: Nova Power, Cez Vânzare, Cordun Gaz, Engie, E.on Energie, Electrica Furnizare, Enel Energie, Enel Muntenia, Gas&Power, Premier Energy, Gaz Est, Met România, Premier Energy, Petrom, Restart Energy, Tinmar | V120: Cordun Gaz | W120: - | X120: 2021-10-07 | Y120: 09:30:00 | Z120: 2021-10-07 | AA120: 14:00:00 | AB120: Bacău | AC120: Efectuată | AE120: 2021-10-07 | AF120: 09:30:00 | AG120: 2021-10-07 | AH120: 14:00:00 | AI120: 2021-10-07 | AJ120: 13:59:00 | AK120: 2021-10-07 | AL120: 13:51:00 | AM120: - | AN120: DA | AR120: =IF(B120="X",IF(AN120="","Afectat sau NU?",IF(AN120="DA",IF(((AK120+AL120)-(AE120+AF120))*24<-720,"Neinformat",((AK120+AL120)-(AE120+AF120))*24),"Nu a fost afectat producator/consumator")),"") -> 4.35 | AS120: =IF(B120="X",IF(AN120="DA",IF(AR120<6,LEN(TRIM(V120))-LEN(SUBSTITUTE(V120,CHAR(44),""))+1,0),"-"),"") -> 1 | AT120: =IF(B120="X",IF(AN120="DA",LEN(TRIM(V120))-LEN(SUBSTITUTE(V120,CHAR(44),""))+1,"-"),"") -> 1 | AU120: =IF(B120="X",IF(AN120="","Afectat sau NU?",IF(AN120="DA",IF(((AI120+AJ120)-(AE120+AF120))*24<-720,"Neinformat",((AI120+AJ120)-(AE120+AF120))*24),"Nu a fost afectat producator/consumator")),"") -> 4.483333333 | AV120: =IF(B120="X",IF(AN120="DA",IF(AU120<6,LEN(TRIM(U120))-LEN(SUBSTITUTE(U120,CHAR(44),""))+1,0),"-"),"") -> 16 | AW120: =IF(B120="X",IF(AN120="DA",LEN(TRIM(U120))-LEN(SUBSTITUTE(U120,CHAR(44),""))+1,"-"),"") -> 16 | AX120: =IF(B120="X",IF(AN120="","Afectat sau NU?",IF(AN120="DA",((AG120+AH120)-(AE120+AF120))*24,"Nu a fost afectat producator/consumator")),"") -> 4.5 | AY120: =IF(B120="X",IF(AN120="DA",IF(AX120>24,IF(BA120="NU",0,LEN(TRIM(V120))-LEN(SUBSTITUTE(V120,CHAR(44),""))+1),0),"-"),"") -> 0 | AZ120: =IF(B120="X",IF(AN120="DA",IF(AX120>24,LEN(TRIM(V120))-LEN(SUBSTITUTE(V120,CHAR(44),""))+1,0),"-"),"") -> 0 | BF120: =IF(C120="X",IF(AN120="","Afectat sau NU?",IF(AN120="DA",IF(AK120="","Neinformat",NETWORKDAYS(AK120+AL120,AE120+AF120,$BS$2:$BS$14)-2),"Nu a fost afectat producator/consumator")),"") ->  | BG120: =IF(C120="X",IF(AN120="DA",IF(AND(BF120>=5,AK120<>""),LEN(TRIM(V120))-LEN(SUBSTITUTE(V120,CHAR(44),""))+1,0),"-"),"") ->  | BH120: =IF(C120="X",IF(AN120="DA",LEN(TRIM(V120))-LEN(SUBSTITUTE(V120,CHAR(44),""))+1,"-"),"") ->  | BI120: =IF(C120="X",IF(AN120="","Afectat sau NU?",IF(AN120="DA",IF(AI120="","Neinformat",NETWORKDAYS(AI120+AJ120,AE120+AF120,$BS$2:$BS$14)-2),"Nu a fost afectat producator/consumator")),"") ->  | BJ120: =IF(C120="X",IF(AN120="DA",IF(AND(BI120>=5,AI120<>""),LEN(TRIM(U120))-LEN(SUBSTITUTE(U120,CHAR(44),""))+1,0),"-"),"") ->  | BK120: =IF(C120="X",IF(AN120="DA",LEN(TRIM(U120))-LEN(SUBSTITUTE(U120,CHAR(44),""))+1,"-"),"") ->  | BL120: =IF(C120="X",IF(AN120="","Afectat sau NU?",IF(AN120="DA",((AG120+AH120)-(Z120+AA120))*24,"Nu a fost afectat producator/consumator")),"") ->  | BM120: =IF(C120="X",IF(AN120<>"DA","-",IF(AND(AN120="DA",BL120<=0),LEN(TRIM(V120))-LEN(SUBSTITUTE(V120,CHAR(44),""))+1+LEN(TRIM(U120))-LEN(SUBSTITUTE(U120,CHAR(44),""))+1,0)),"") ->  | BN120: =IF(C120="X",IF(AN120="DA",LEN(TRIM(V120))-LEN(SUBSTITUTE(V120,CHAR(44),""))+1+LEN(TRIM(U120))-LEN(SUBSTITUTE(U120,CHAR(44),""))+1,"-"),"") -> 
A121: 106 | B121: x | C121: - | D121: Întreruperea serviciului de transport prin SRM Simionești, solicitată de operatorul de distribuție datorită calității neconforme a gazelor | E121: 120913 | F121: Simionești | G121: Neamț | H121: 641447.97 | I121: 609975.44 | J121: 641447.97 | K121: 609975.44 | L121: - | M121: - | N121: SM0957D1 | O121: Simionești II | P121: - | Q121: - | R121: - | S121: - | T121: SM-SD001 | U121: Nova Power, Cez Vânzare, Cordun Gaz, Engie, E.on Energie, Electrica Furnizare, Enel Energie, Enel Muntenia, Gas&Power, Premier Energy, Gaz Est, Met România, Premier Energy, Petrom, Restart Energy, Tinmar | V121: Cordun Gaz | W121: - | X121: 2021-10-07 | Y121: 09:30:00 | Z121: 2021-10-07 | AA121: 14:00:00 | AB121: Bacău | AC121: Efectuată | AE121: 2021-10-07 | AF121: 09:30:00 | AG121: 2021-10-07 | AH121: 14:00:00 | AI121: 2021-10-07 | AJ121: 13:59:00 | AK121: 2021-10-07 | AL121: 13:51:00 | AM121: - | AN121: DA | AR121: 4.35 | AS121: 1 | AT121: 1 | AU121: 4.483333333 | AV121: 16 | AW121: 16 | AX121: 4.5 | AY121: 0 | AZ121: 0
A122: 107 | B122: x | C122: - | D122: Întreruperea serviciului de transport prin SRM Ion Neculce, solicitată de operatorul de distribuție datorită calității neconforme a gazelor | E122: 95587 | F122: Ion Neculce | G122: Iași | H122: 659016.47 | I122: 638155.61 | J122: 659016.47 | K122: 638155.61 | L122: - | M122: - | N122: SM1027D0 | O122: Ion Neculce | P122: - | Q122: - | R122: - | S122: - | T122: SM-SD001 | U122: Aderro GP, Nova Power, Cez Vânzare, Cis Furnizare, Cis Gaz, Conef Gaz, CPL Concordia, Crest Energy, MVM Energy Trade, Design Proiect, Distrigaz Vest, Engie, E.on Energie, Electrica Furnizare, Electric Planners, Electric&Gas, Energy Distribution, Enel Energie, Enel Muntenia, Gas&Power, Entrex, Premier Energy Trading, Gaz Est, Hargaz, Gazmir, Gaz Vest, Mihoc Oil, Met România, Monsson, Next Energy Distribution, Next Energy Partners, Pado Group, Premier Energy, Petrom, Prisma Serv, Gas Provider, Renovatio, Res Energy Solutions, Restart Energy, Romgaz, RWE Supply, SST Grup, Sun Wave, Tetarom, Tinmar, Veolia, Wiee, Arovi Energy | V122: Delgaz Grid | W122: - | X122: 2021-10-07 | Y122: 23:10:00 | Z122: 2021-10-08 | AA122: 11:00:00 | AB122: Bacău | AC122: Efectuată | AE122: 2021-10-07 | AF122: 23:10:00 | AG122: 2021-10-08 | AH122: 02:15:00 | AI122: 2021-10-07 | AJ122: 23:22:00 | AK122: 2021-10-07 | AL122: 23:16:00 | AM122: - | AN122: DA | AR122: 0.09999999998 | AS122: 1 | AT122: 1 | AU122: 0.2 | AV122: 48 | AW122: 48 | AX122: 3.083333333 | AY122: 0 | AZ122: 0
A123: 108 | B123: x | C123: - | D123: Întreruperea serviciului de transport prin SRM Buhuși, solicitată de operatorul de distribuție datorită calității neconforme a gazelor | E123: 20787 | F123: Buhuși | G123: Bacău | H123: 629697.71 | I123: 580292.79 | J123: 629697.71 | K123: 580292.79 | L123: - | M123: - | N123: SM0446D0 | O123: Buhuși | P123: - | Q123: - | R123: - | S123: - | T123: SM-SD001 | U123: Aderro GP, Nova Power, Cez Vânzare, Racord Furnizare, Cis Gaz, Conef Gaz, CPL Concordia, Crest Energy, MVM Energy Trade, Design Proiect, Distrigaz Vest, Engie, E.on Energie, Electrica Furnizare, Electric Planners, Electric&Gas, Energy Distribution, Enel Energie, Enel Muntenia, Gas&Power, Entrex, Premier Energy Trading, Gaz Est, Hargaz, Gazmir, Gaz Vest, Mihoc Oil, Met România, Monsson, Next Energy Distribution, Next Energy Partners, Pado Group, Premier Energy, Petrom, Prisma Serv, Gas Provider, Renovatio, Res Energy Solutions, Restart Energy, Romgaz, RWE Supply, SST Grup, Sun Wave, Tetarom, Tinmar, Veolia, Wiee, Arovi Energy | V123: Delgaz Grid | W123: - | X123: 2021-10-07 | Y123: 14:50:00 | Z123: 2021-10-07 | AA123: 19:00:00 | AB123: Bacău | AC123: Efectuată | AE123: 2021-10-07 | AF123: 14:50:00 | AG123: 2021-10-08 | AH123: 10:13:00 | AI123: 2021-10-07 | AJ123: 15:41:00 | AK123: 2021-10-07 | AL123: 15:33:00 | AM123: - | AN123: DA | AR123: =IF(B123="X",IF(AN123="","Afectat sau NU?",IF(AN123="DA",IF(((AK123+AL123)-(AE123+AF123))*24<-720,"Neinformat",((AK123+AL123)-(AE123+AF123))*24),"Nu a fost afectat producator/consumator")),"") -> 0.7166666667 | AS123: =IF(B123="X",IF(AN123="DA",IF(AR123<6,LEN(TRIM(V123))-LEN(SUBSTITUTE(V123,CHAR(44),""))+1,0),"-"),"") -> 1 | AT123: =IF(B123="X",IF(AN123="DA",LEN(TRIM(V123))-LEN(SUBSTITUTE(V123,CHAR(44),""))+1,"-"),"") -> 1 | AU123: =IF(B123="X",IF(AN123="","Afectat sau NU?",IF(AN123="DA",IF(((AI123+AJ123)-(AE123+AF123))*24<-720,"Neinformat",((AI123+AJ123)-(AE123+AF123))*24),"Nu a fost afectat producator/consumator")),"") -> 0.85 | AV123: =IF(B123="X",IF(AN123="DA",IF(AU123<6,LEN(TRIM(U123))-LEN(SUBSTITUTE(U123,CHAR(44),""))+1,0),"-"),"") -> 48 | AW123: =IF(B123="X",IF(AN123="DA",LEN(TRIM(U123))-LEN(SUBSTITUTE(U123,CHAR(44),""))+1,"-"),"") -> 48 | AX123: =IF(B123="X",IF(AN123="","Afectat sau NU?",IF(AN123="DA",((AG123+AH123)-(AE123+AF123))*24,"Nu a fost afectat producator/consumator")),"") -> 19.38333333 | AY123: =IF(B123="X",IF(AN123="DA",IF(AX123>24,IF(BA123="NU",0,LEN(TRIM(V123))-LEN(SUBSTITUTE(V123,CHAR(44),""))+1),0),"-"),"") -> 0 | AZ123: =IF(B123="X",IF(AN123="DA",IF(AX123>24,LEN(TRIM(V123))-LEN(SUBSTITUTE(V123,CHAR(44),""))+1,0),"-"),"") -> 0 | BF123: =IF(C123="X",IF(AN123="","Afectat sau NU?",IF(AN123="DA",IF(AK123="","Neinformat",NETWORKDAYS(AK123+AL123,AE123+AF123,$BS$2:$BS$14)-2),"Nu a fost afectat producator/consumator")),"") ->  | BG123: =IF(C123="X",IF(AN123="DA",IF(AND(BF123>=5,AK123<>""),LEN(TRIM(V123))-LEN(SUBSTITUTE(V123,CHAR(44),""))+1,0),"-"),"") ->  | BH123: =IF(C123="X",IF(AN123="DA",LEN(TRIM(V123))-LEN(SUBSTITUTE(V123,CHAR(44),""))+1,"-"),"") ->  | BI123: =IF(C123="X",IF(AN123="","Afectat sau NU?",IF(AN123="DA",IF(AI123="","Neinformat",NETWORKDAYS(AI123+AJ123,AE123+AF123,$BS$2:$BS$14)-2),"Nu a fost afectat producator/consumator")),"") ->  | BJ123: =IF(C123="X",IF(AN123="DA",IF(AND(BI123>=5,AI123<>""),LEN(TRIM(U123))-LEN(SUBSTITUTE(U123,CHAR(44),""))+1,0),"-"),"") ->  | BK123: =IF(C123="X",IF(AN123="DA",LEN(TRIM(U123))-LEN(SUBSTITUTE(U123,CHAR(44),""))+1,"-"),"") ->  | BL123: =IF(C123="X",IF(AN123="","Afectat sau NU?",IF(AN123="DA",((AG123+AH123)-(Z123+AA123))*24,"Nu a fost afectat producator/consumator")),"") ->  | BM123: =IF(C123="X",IF(AN123<>"DA","-",IF(AND(AN123="DA",BL123<=0),LEN(TRIM(V123))-LEN(SUBSTITUTE(V123,CHAR(44),""))+1+LEN(TRIM(U123))-LEN(SUBSTITUTE(U123,CHAR(44),""))+1,0)),"") ->  | BN123: =IF(C123="X",IF(AN123="DA",LEN(TRIM(V123))-LEN(SUBSTITUTE(V123,CHAR(44),""))+1+LEN(TRIM(U123))-LEN(SUBSTITUTE(U123,CHAR(44),""))+1,"-"),"") -> 
A124: 109 | B124: x | C124: - | D124: Întreruperea serviciului de transport prin SRM Dumbrava Roșie, solicitată de operatorul de distribuție datorită calității neconforme a gazelor | E124: 120780 | F124: Dumbrava Roșie | G124: Neamț | H124: 608005.06 | I124: 600248.89 | J124: 608005.06 | K124: 600248.89 | L124: - | M124: - | N124: SM1108D0 | O124: Dumbrava Roșie | P124: - | Q124: - | R124: - | S124: - | T124: SM-SD001 | U124: Nova Power, Cez Vânzare, E.on Energie, Electrica Furnizare, Enel Energie, Enel Muntenia, Gas&Power, Premier Energy Trading, Gaz Est, Mihoc Oil, Met România, Premier Energy, Petrom, Prisma Serv, Restart Energy | V124: Prisma Serv | W124: - | X124: 2021-10-08 | Y124: 1.017361111 | Z124: 2021-10-08 | AA124: 12:25:00 | AB124: Bacău | AC124: Efectuată | AE124: 2021-10-08 | AF124: 1.017361111 | AG124: 2021-10-08 | AH124: 11:20:00 | AI124: 2021-10-08 | AJ124: 1.025694444 | AK124: 2021-10-08 | AL124: 1.021527778 | AM124: - | AN124: DA | AR124: =IF(B124="X",IF(AN124="","Afectat sau NU?",IF(AN124="DA",IF(((AK124+AL124)-(AE124+AF124))*24<-720,"Neinformat",((AK124+AL124)-(AE124+AF124))*24),"Nu a fost afectat producator/consumator")),"") -> 0.09999999998 | AS124: =IF(B124="X",IF(AN124="DA",IF(AR124<6,LEN(TRIM(V124))-LEN(SUBSTITUTE(V124,CHAR(44),""))+1,0),"-"),"") -> 1 | AT124: =IF(B124="X",IF(AN124="DA",LEN(TRIM(V124))-LEN(SUBSTITUTE(V124,CHAR(44),""))+1,"-"),"") -> 1 | AU124: =IF(B124="X",IF(AN124="","Afectat sau NU?",IF(AN124="DA",IF(((AI124+AJ124)-(AE124+AF124))*24<-720,"Neinformat",((AI124+AJ124)-(AE124+AF124))*24),"Nu a fost afectat producator/consumator")),"") -> 0.2 | AV124: =IF(B124="X",IF(AN124="DA",IF(AU124<6,LEN(TRIM(U124))-LEN(SUBSTITUTE(U124,CHAR(44),""))+1,0),"-"),"") -> 15 | AW124: =IF(B124="X",IF(AN124="DA",LEN(TRIM(U124))-LEN(SUBSTITUTE(U124,CHAR(44),""))+1,"-"),"") -> 15 | AX124: =IF(B124="X",IF(AN124="","Afectat sau NU?",IF(AN124="DA",((AG124+AH124)-(AE124+AF124))*24,"Nu a fost afectat producator/consumator")),"") -> -13.08333333 | AY124: =IF(B124="X",IF(AN124="DA",IF(AX124>24,IF(BA124="NU",0,LEN(TRIM(V124))-LEN(SUBSTITUTE(V124,CHAR(44),""))+1),0),"-"),"") -> 0 | AZ124: =IF(B124="X",IF(AN124="DA",IF(AX124>24,LEN(TRIM(V124))-LEN(SUBSTITUTE(V124,CHAR(44),""))+1,0),"-"),"") -> 0 | BF124: =IF(C124="X",IF(AN124="","Afectat sau NU?",IF(AN124="DA",IF(AK124="","Neinformat",NETWORKDAYS(AK124+AL124,AE124+AF124,$BS$2:$BS$14)-2),"Nu a fost afectat producator/consumator")),"") ->  | BG124: =IF(C124="X",IF(AN124="DA",IF(AND(BF124>=5,AK124<>""),LEN(TRIM(V124))-LEN(SUBSTITUTE(V124,CHAR(44),""))+1,0),"-"),"") ->  | BH124: =IF(C124="X",IF(AN124="DA",LEN(TRIM(V124))-LEN(SUBSTITUTE(V124,CHAR(44),""))+1,"-"),"") ->  | BI124: =IF(C124="X",IF(AN124="","Afectat sau NU?",IF(AN124="DA",IF(AI124="","Neinformat",NETWORKDAYS(AI124+AJ124,AE124+AF124,$BS$2:$BS$14)-2),"Nu a fost afectat producator/consumator")),"") ->  | BJ124: =IF(C124="X",IF(AN124="DA",IF(AND(BI124>=5,AI124<>""),LEN(TRIM(U124))-LEN(SUBSTITUTE(U124,CHAR(44),""))+1,0),"-"),"") ->  | BK124: =IF(C124="X",IF(AN124="DA",LEN(TRIM(U124))-LEN(SUBSTITUTE(U124,CHAR(44),""))+1,"-"),"") ->  | BL124: =IF(C124="X",IF(AN124="","Afectat sau NU?",IF(AN124="DA",((AG124+AH124)-(Z124+AA124))*24,"Nu a fost afectat producator/consumator")),"") ->  | BM124: =IF(C124="X",IF(AN124<>"DA","-",IF(AND(AN124="DA",BL124<=0),LEN(TRIM(V124))-LEN(SUBSTITUTE(V124,CHAR(44),""))+1+LEN(TRIM(U124))-LEN(SUBSTITUTE(U124,CHAR(44),""))+1,0)),"") ->  | BN124: =IF(C124="X",IF(AN124="DA",LEN(TRIM(V124))-LEN(SUBSTITUTE(V124,CHAR(44),""))+1+LEN(TRIM(U124))-LEN(SUBSTITUTE(U124,CHAR(44),""))+1,"-"),"") -> 
A125: 110 | B125: x | C125: - | D125: Întreruperea serviciului de transport prin SRM Roznov, solicitată de operatorul de distribuție datorită calității neconforme a gazelor | E125: 124126 | F125: Roznov | G125: Neamț | H125: 614831.19 | I125: 595677.31 | J125: 614831.19 | K125: 595677.31 | L125: - | M125: - | N125: SM1127D0 | O125: Roznov | P125: - | Q125: - | R125: - | S125: - | T125: SM-SD001 | U125: Nova Power, Cez Vânzare, E.on Energie, Electrica Furnizare, Enel Energie, Enel Muntenia, Gas&Power, Premier Energy Trading, Gaz Est, Mihoc Oil, Met România, Premier Energy, Petrom, Prisma Serv, Restart Energy | V125: Prisma Serv | W125: - | X125: 2021-10-07 | Y125: 20:15:00 | Z125: 2021-10-08 | AA125: 08:00:00 | AB125: Bacău | AC125: Efectuată | AE125: 2021-10-07 | AF125: 20:15:00 | AG125: 2021-10-08 | AH125: 13:00:00 | AI125: 2021-10-07 | AJ125: 20:27:00 | AK125: 2021-10-07 | AL125: 20:21:00 | AM125: - | AN125: DA | AR125: =IF(B125="X",IF(AN125="","Afectat sau NU?",IF(AN125="DA",IF(((AK125+AL125)-(AE125+AF125))*24<-720,"Neinformat",((AK125+AL125)-(AE125+AF125))*24),"Nu a fost afectat producator/consumator")),"") -> 0.09999999998 | AS125: =IF(B125="X",IF(AN125="DA",IF(AR125<6,LEN(TRIM(V125))-LEN(SUBSTITUTE(V125,CHAR(44),""))+1,0),"-"),"") -> 1 | AT125: =IF(B125="X",IF(AN125="DA",LEN(TRIM(V125))-LEN(SUBSTITUTE(V125,CHAR(44),""))+1,"-"),"") -> 1 | AU125: =IF(B125="X",IF(AN125="","Afectat sau NU?",IF(AN125="DA",IF(((AI125+AJ125)-(AE125+AF125))*24<-720,"Neinformat",((AI125+AJ125)-(AE125+AF125))*24),"Nu a fost afectat producator/consumator")),"") -> 0.2 | AV125: =IF(B125="X",IF(AN125="DA",IF(AU125<6,LEN(TRIM(U125))-LEN(SUBSTITUTE(U125,CHAR(44),""))+1,0),"-"),"") -> 15 | AW125: =IF(B125="X",IF(AN125="DA",LEN(TRIM(U125))-LEN(SUBSTITUTE(U125,CHAR(44),""))+1,"-"),"") -> 15 | AX125: =IF(B125="X",IF(AN125="","Afectat sau NU?",IF(AN125="DA",((AG125+AH125)-(AE125+AF125))*24,"Nu a fost afectat producator/consumator")),"") -> 16.75 | AY125: =IF(B125="X",IF(AN125="DA",IF(AX125>24,IF(BA125="NU",0,LEN(TRIM(V125))-LEN(SUBSTITUTE(V125,CHAR(44),""))+1),0),"-"),"") -> 0 | AZ125: =IF(B125="X",IF(AN125="DA",IF(AX125>24,LEN(TRIM(V125))-LEN(SUBSTITUTE(V125,CHAR(44),""))+1,0),"-"),"") -> 0 | BF125: =IF(C125="X",IF(AN125="","Afectat sau NU?",IF(AN125="DA",IF(AK125="","Neinformat",NETWORKDAYS(AK125+AL125,AE125+AF125,$BS$2:$BS$14)-2),"Nu a fost afectat producator/consumator")),"") ->  | BG125: =IF(C125="X",IF(AN125="DA",IF(AND(BF125>=5,AK125<>""),LEN(TRIM(V125))-LEN(SUBSTITUTE(V125,CHAR(44),""))+1,0),"-"),"") ->  | BH125: =IF(C125="X",IF(AN125="DA",LEN(TRIM(V125))-LEN(SUBSTITUTE(V125,CHAR(44),""))+1,"-"),"") ->  | BI125: =IF(C125="X",IF(AN125="","Afectat sau NU?",IF(AN125="DA",IF(AI125="","Neinformat",NETWORKDAYS(AI125+AJ125,AE125+AF125,$BS$2:$BS$14)-2),"Nu a fost afectat producator/consumator")),"") ->  | BJ125: =IF(C125="X",IF(AN125="DA",IF(AND(BI125>=5,AI125<>""),LEN(TRIM(U125))-LEN(SUBSTITUTE(U125,CHAR(44),""))+1,0),"-"),"") ->  | BK125: =IF(C125="X",IF(AN125="DA",LEN(TRIM(U125))-LEN(SUBSTITUTE(U125,CHAR(44),""))+1,"-"),"") ->  | BL125: =IF(C125="X",IF(AN125="","Afectat sau NU?",IF(AN125="DA",((AG125+AH125)-(Z125+AA125))*24,"Nu a fost afectat producator/consumator")),"") ->  | BM125: =IF(C125="X",IF(AN125<>"DA","-",IF(AND(AN125="DA",BL125<=0),LEN(TRIM(V125))-LEN(SUBSTITUTE(V125,CHAR(44),""))+1+LEN(TRIM(U125))-LEN(SUBSTITUTE(U125,CHAR(44),""))+1,0)),"") ->  | BN125: =IF(C125="X",IF(AN125="DA",LEN(TRIM(V125))-LEN(SUBSTITUTE(V125,CHAR(44),""))+1+LEN(TRIM(U125))-LEN(SUBSTITUTE(U125,CHAR(44),""))+1,"-"),"") -> 
A126: 111 | B126: x | C126: - | D126: Întreruperea serviciului de transport prin SRM Tămășeni, solicitată de operatorul de distribuție datorită calității neconforme a gazelor | E126: 120913 | F126: Simionești | G126: Neamț | H126: 642886.71 | I126: 610114.08 | J126: 642886.71 | K126: 610114.08 | L126: - | M126: - | N126: SM1097D0 | O126: Tămășeni | P126: - | Q126: - | R126: - | S126: - | T126: SM-SD001 | U126: Nova Power, Cez Vânzare, Cis Gaz, Engie, E.on Energie, Electric&Gas, Enel Energie, Enel Muntenia, Premier Energy Trading, Mihoc Oil, Met România, Premier Energy, Petrom, Restart Energy | V126: Mihoc Oil | W126: - | X126: 2021-10-07 | Y126: 19:30:00 | Z126: 2021-10-08 | AA126: 08:00:00 | AB126: Bacău | AC126: Efectuată | AE126: 2021-10-07 | AF126: 19:30:00 | AG126: 2021-10-08 | AH126: 14:00:00 | AI126: 2021-10-07 | AJ126: 19:55:00 | AK126: 2021-10-07 | AL126: 19:48:00 | AM126: - | AN126: DA | AR126: =IF(B126="X",IF(AN126="","Afectat sau NU?",IF(AN126="DA",IF(((AK126+AL126)-(AE126+AF126))*24<-720,"Neinformat",((AK126+AL126)-(AE126+AF126))*24),"Nu a fost afectat producator/consumator")),"") -> 0.2999999999 | AS126: =IF(B126="X",IF(AN126="DA",IF(AR126<6,LEN(TRIM(V126))-LEN(SUBSTITUTE(V126,CHAR(44),""))+1,0),"-"),"") -> 1 | AT126: =IF(B126="X",IF(AN126="DA",LEN(TRIM(V126))-LEN(SUBSTITUTE(V126,CHAR(44),""))+1,"-"),"") -> 1 | AU126: =IF(B126="X",IF(AN126="","Afectat sau NU?",IF(AN126="DA",IF(((AI126+AJ126)-(AE126+AF126))*24<-720,"Neinformat",((AI126+AJ126)-(AE126+AF126))*24),"Nu a fost afectat producator/consumator")),"") -> 0.4166666666 | AV126: =IF(B126="X",IF(AN126="DA",IF(AU126<6,LEN(TRIM(U126))-LEN(SUBSTITUTE(U126,CHAR(44),""))+1,0),"-"),"") -> 14 | AW126: =IF(B126="X",IF(AN126="DA",LEN(TRIM(U126))-LEN(SUBSTITUTE(U126,CHAR(44),""))+1,"-"),"") -> 14 | AX126: =IF(B126="X",IF(AN126="","Afectat sau NU?",IF(AN126="DA",((AG126+AH126)-(AE126+AF126))*24,"Nu a fost afectat producator/consumator")),"") -> 18.5 | AY126: =IF(B126="X",IF(AN126="DA",IF(AX126>24,IF(BA126="NU",0,LEN(TRIM(V126))-LEN(SUBSTITUTE(V126,CHAR(44),""))+1),0),"-"),"") -> 0 | AZ126: =IF(B126="X",IF(AN126="DA",IF(AX126>24,LEN(TRIM(V126))-LEN(SUBSTITUTE(V126,CHAR(44),""))+1,0),"-"),"") -> 0 | BF126: =IF(C126="X",IF(AN126="","Afectat sau NU?",IF(AN126="DA",IF(AK126="","Neinformat",NETWORKDAYS(AK126+AL126,AE126+AF126,$BS$2:$BS$14)-2),"Nu a fost afectat producator/consumator")),"") ->  | BG126: =IF(C126="X",IF(AN126="DA",IF(AND(BF126>=5,AK126<>""),LEN(TRIM(V126))-LEN(SUBSTITUTE(V126,CHAR(44),""))+1,0),"-"),"") ->  | BH126: =IF(C126="X",IF(AN126="DA",LEN(TRIM(V126))-LEN(SUBSTITUTE(V126,CHAR(44),""))+1,"-"),"") ->  | BI126: =IF(C126="X",IF(AN126="","Afectat sau NU?",IF(AN126="DA",IF(AI126="","Neinformat",NETWORKDAYS(AI126+AJ126,AE126+AF126,$BS$2:$BS$14)-2),"Nu a fost afectat producator/consumator")),"") ->  | BJ126: =IF(C126="X",IF(AN126="DA",IF(AND(BI126>=5,AI126<>""),LEN(TRIM(U126))-LEN(SUBSTITUTE(U126,CHAR(44),""))+1,0),"-"),"") ->  | BK126: =IF(C126="X",IF(AN126="DA",LEN(TRIM(U126))-LEN(SUBSTITUTE(U126,CHAR(44),""))+1,"-"),"") ->  | BL126: =IF(C126="X",IF(AN126="","Afectat sau NU?",IF(AN126="DA",((AG126+AH126)-(Z126+AA126))*24,"Nu a fost afectat producator/consumator")),"") ->  | BM126: =IF(C126="X",IF(AN126<>"DA","-",IF(AND(AN126="DA",BL126<=0),LEN(TRIM(V126))-LEN(SUBSTITUTE(V126,CHAR(44),""))+1+LEN(TRIM(U126))-LEN(SUBSTITUTE(U126,CHAR(44),""))+1,0)),"") ->  | BN126: =IF(C126="X",IF(AN126="DA",LEN(TRIM(V126))-LEN(SUBSTITUTE(V126,CHAR(44),""))+1+LEN(TRIM(U126))-LEN(SUBSTITUTE(U126,CHAR(44),""))+1,"-"),"") -> 
A127: 112 | B127: x | C127: - | D127: Cuplare deviere conducte 12” Cisnădie - Tălmaciu și 4” racord SRM Tălmăcel | E127: 145836 | F127: Tălmaciu | G127: Sibiu | H127: 441989.98 | I127: 463883.4 | J127: 441989.98 | K127: 463883.4 | L127: - | M127: - | N127: SM0733D1 | O127: SC Romanofir Tălmaciu | P127: - | Q127: - | R127: - | S127: - | T127: SM-CF001 | U127: E.on Energie | V127: SC Romanofir SA | W127: - | X127: 2021-10-13 | Y127: 06:30:00 | Z127: 2021-10-13 | AA127: 18:00:00 | AB127: Mediaș | AC127: Efectuată | AE127: 2021-10-13 | AF127: 06:30:00 | AG127: 2021-10-13 | AH127: 18:00:00 | AI127: 2021-10-13 | AJ127: 06:47:00 | AK127: 2021-10-13 | AL127: 06:35:00 | AM127: 3149/12.10.2021 | AN127: DA | AR127: =IF(B127="X",IF(AN127="","Afectat sau NU?",IF(AN127="DA",IF(((AK127+AL127)-(AE127+AF127))*24<-720,"Neinformat",((AK127+AL127)-(AE127+AF127))*24),"Nu a fost afectat producator/consumator")),"") -> 0.08333333326 | AS127: =IF(B127="X",IF(AN127="DA",IF(AR127<6,LEN(TRIM(V127))-LEN(SUBSTITUTE(V127,CHAR(44),""))+1,0),"-"),"") -> 1 | AT127: =IF(B127="X",IF(AN127="DA",LEN(TRIM(V127))-LEN(SUBSTITUTE(V127,CHAR(44),""))+1,"-"),"") -> 1 | AU127: =IF(B127="X",IF(AN127="","Afectat sau NU?",IF(AN127="DA",IF(((AI127+AJ127)-(AE127+AF127))*24<-720,"Neinformat",((AI127+AJ127)-(AE127+AF127))*24),"Nu a fost afectat producator/consumator")),"") -> 0.2833333332 | AV127: =IF(B127="X",IF(AN127="DA",IF(AU127<6,LEN(TRIM(U127))-LEN(SUBSTITUTE(U127,CHAR(44),""))+1,0),"-"),"") -> 1 | AW127: =IF(B127="X",IF(AN127="DA",LEN(TRIM(U127))-LEN(SUBSTITUTE(U127,CHAR(44),""))+1,"-"),"") -> 1 | AX127: =IF(B127="X",IF(AN127="","Afectat sau NU?",IF(AN127="DA",((AG127+AH127)-(AE127+AF127))*24,"Nu a fost afectat producator/consumator")),"") -> 11.5 | AY127: =IF(B127="X",IF(AN127="DA",IF(AX127>24,IF(BA127="NU",0,LEN(TRIM(V127))-LEN(SUBSTITUTE(V127,CHAR(44),""))+1),0),"-"),"") -> 0 | AZ127: =IF(B127="X",IF(AN127="DA",IF(AX127>24,LEN(TRIM(V127))-LEN(SUBSTITUTE(V127,CHAR(44),""))+1,0),"-"),"") -> 0 | BF127: =IF(C127="X",IF(AN127="","Afectat sau NU?",IF(AN127="DA",IF(AK127="","Neinformat",NETWORKDAYS(AK127+AL127,AE127+AF127,$BS$2:$BS$14)-2),"Nu a fost afectat producator/consumator")),"") ->  | BG127: =IF(C127="X",IF(AN127="DA",IF(AND(BF127>=5,AK127<>""),LEN(TRIM(V127))-LEN(SUBSTITUTE(V127,CHAR(44),""))+1,0),"-"),"") ->  | BH127: =IF(C127="X",IF(AN127="DA",LEN(TRIM(V127))-LEN(SUBSTITUTE(V127,CHAR(44),""))+1,"-"),"") ->  | BI127: =IF(C127="X",IF(AN127="","Afectat sau NU?",IF(AN127="DA",IF(AI127="","Neinformat",NETWORKDAYS(AI127+AJ127,AE127+AF127,$BS$2:$BS$14)-2),"Nu a fost afectat producator/consumator")),"") ->  | BJ127: =IF(C127="X",IF(AN127="DA",IF(AND(BI127>=5,AI127<>""),LEN(TRIM(U127))-LEN(SUBSTITUTE(U127,CHAR(44),""))+1,0),"-"),"") ->  | BK127: =IF(C127="X",IF(AN127="DA",LEN(TRIM(U127))-LEN(SUBSTITUTE(U127,CHAR(44),""))+1,"-"),"") ->  | BL127: =IF(C127="X",IF(AN127="","Afectat sau NU?",IF(AN127="DA",((AG127+AH127)-(Z127+AA127))*24,"Nu a fost afectat producator/consumator")),"") ->  | BM127: =IF(C127="X",IF(AN127<>"DA","-",IF(AND(AN127="DA",BL127<=0),LEN(TRIM(V127))-LEN(SUBSTITUTE(V127,CHAR(44),""))+1+LEN(TRIM(U127))-LEN(SUBSTITUTE(U127,CHAR(44),""))+1,0)),"") ->  | BN127: =IF(C127="X",IF(AN127="DA",LEN(TRIM(V127))-LEN(SUBSTITUTE(V127,CHAR(44),""))+1+LEN(TRIM(U127))-LEN(SUBSTITUTE(U127,CHAR(44),""))+1,"-"),"") -> 
A128: 113 | B128: x | C128: - | D128: Cuplare deviere conducte 12” Cisnădie - Tălmaciu și 4” racord SRM Tălmăcel | E128: 145480 | F128: Sadu | G128: Sibiu | H128: 437389.02 | I128: 464457.73 | J128: 437389.02 | K128: 464457.73 | L128: - | M128: - | N128: SM0730D0 | O128: Sadu | P128: - | Q128: - | R128: - | S128: - | T128: SM-SD001 | U128: Aderro GP, Nova Power, Cez Vânzare, Racord Furnizare, Cis Gaz, Conef Gaz, CPL Concordia, Crest Energy, MVM Energy Trade, Design Proiect, Distrigaz Vest, Engie, E.on Energie, Electrica Furnizare, Electric Planners, Electric&Gas, Energy Distribution, Enel Energie, Enel Muntenia, Gas&Power, Entrex, Premier Energy Trading, Gaz Est, Hargaz, Gazmir, Gaz Vest, Mihoc Oil, Met România, Monsson, Next Energy Distribution, Next Energy Partners, Pado Group, Premier Energy, Petrom, Prisma Serv, Gas Provider, Renovatio, Res Energy Solutions, Restart Energy, Romgaz, RWE Supply, SST Grup, Sun Wave, Tetarom, Tinmar, Veolia, Wiee, Arovi Energy | V128: Delgaz Grid | W128: - | X128: 2021-10-13 | Y128: 06:30:00 | Z128: 2021-10-13 | AA128: 18:00:00 | AB128: Mediaș | AC128: Efectuată | AE128: 2021-10-13 | AF128: 06:30:00 | AG128: 2021-10-13 | AH128: 18:00:00 | AI128: 2021-10-13 | AJ128: 06:51:00 | AK128: 2021-10-13 | AL128: 06:36:00 | AM128: 3149/12.10.2021 | AN128: DA | AR128: =IF(B128="X",IF(AN128="","Afectat sau NU?",IF(AN128="DA",IF(((AK128+AL128)-(AE128+AF128))*24<-720,"Neinformat",((AK128+AL128)-(AE128+AF128))*24),"Nu a fost afectat producator/consumator")),"") -> 0.09999999998 | AS128: =IF(B128="X",IF(AN128="DA",IF(AR128<6,LEN(TRIM(V128))-LEN(SUBSTITUTE(V128,CHAR(44),""))+1,0),"-"),"") -> 1 | AT128: =IF(B128="X",IF(AN128="DA",LEN(TRIM(V128))-LEN(SUBSTITUTE(V128,CHAR(44),""))+1,"-"),"") -> 1 | AU128: =IF(B128="X",IF(AN128="","Afectat sau NU?",IF(AN128="DA",IF(((AI128+AJ128)-(AE128+AF128))*24<-720,"Neinformat",((AI128+AJ128)-(AE128+AF128))*24),"Nu a fost afectat producator/consumator")),"") -> 0.3499999999 | AV128: =IF(B128="X",IF(AN128="DA",IF(AU128<6,LEN(TRIM(U128))-LEN(SUBSTITUTE(U128,CHAR(44),""))+1,0),"-"),"") -> 48 | AW128: =IF(B128="X",IF(AN128="DA",LEN(TRIM(U128))-LEN(SUBSTITUTE(U128,CHAR(44),""))+1,"-"),"") -> 48 | AX128: =IF(B128="X",IF(AN128="","Afectat sau NU?",IF(AN128="DA",((AG128+AH128)-(AE128+AF128))*24,"Nu a fost afectat producator/consumator")),"") -> 11.5 | AY128: =IF(B128="X",IF(AN128="DA",IF(AX128>24,IF(BA128="NU",0,LEN(TRIM(V128))-LEN(SUBSTITUTE(V128,CHAR(44),""))+1),0),"-"),"") -> 0 | AZ128: =IF(B128="X",IF(AN128="DA",IF(AX128>24,LEN(TRIM(V128))-LEN(SUBSTITUTE(V128,CHAR(44),""))+1,0),"-"),"") -> 0 | BF128: =IF(C128="X",IF(AN128="","Afectat sau NU?",IF(AN128="DA",IF(AK128="","Neinformat",NETWORKDAYS(AK128+AL128,AE128+AF128,$BS$2:$BS$14)-2),"Nu a fost afectat producator/consumator")),"") ->  | BG128: =IF(C128="X",IF(AN128="DA",IF(AND(BF128>=5,AK128<>""),LEN(TRIM(V128))-LEN(SUBSTITUTE(V128,CHAR(44),""))+1,0),"-"),"") ->  | BH128: =IF(C128="X",IF(AN128="DA",LEN(TRIM(V128))-LEN(SUBSTITUTE(V128,CHAR(44),""))+1,"-"),"") ->  | BI128: =IF(C128="X",IF(AN128="","Afectat sau NU?",IF(AN128="DA",IF(AI128="","Neinformat",NETWORKDAYS(AI128+AJ128,AE128+AF128,$BS$2:$BS$14)-2),"Nu a fost afectat producator/consumator")),"") ->  | BJ128: =IF(C128="X",IF(AN128="DA",IF(AND(BI128>=5,AI128<>""),LEN(TRIM(U128))-LEN(SUBSTITUTE(U128,CHAR(44),""))+1,0),"-"),"") ->  | BK128: =IF(C128="X",IF(AN128="DA",LEN(TRIM(U128))-LEN(SUBSTITUTE(U128,CHAR(44),""))+1,"-"),"") ->  | BL128: =IF(C128="X",IF(AN128="","Afectat sau NU?",IF(AN128="DA",((AG128+AH128)-(Z128+AA128))*24,"Nu a fost afectat producator/consumator")),"") ->  | BM128: =IF(C128="X",IF(AN128<>"DA","-",IF(AND(AN128="DA",BL128<=0),LEN(TRIM(V128))-LEN(SUBSTITUTE(V128,CHAR(44),""))+1+LEN(TRIM(U128))-LEN(SUBSTITUTE(U128,CHAR(44),""))+1,0)),"") ->  | BN128: =IF(C128="X",IF(AN128="DA",LEN(TRIM(V128))-LEN(SUBSTITUTE(V128,CHAR(44),""))+1+LEN(TRIM(U128))-LEN(SUBSTITUTE(U128,CHAR(44),""))+1,"-"),"") -> 
A129: 114 | B129: x | C129: - | D129: Cuplare deviere conducte 12” Cisnădie - Tălmaciu și 4” racord SRM Tălmăcel | E129: 145836 | F129: Tălmaciu | G129: Sibiu | H129: 441989.98 | I129: 463883.4 | J129: 441989.98 | K129: 463883.4 | L129: - | M129: - | N129: SM0733D2 | O129: Tălmaciu | P129: - | Q129: - | R129: - | S129: - | T129: SM-SD001 | U129: Aderro GP, Nova Power, Cez Vânzare, Racord Furnizare, Cis Gaz, Conef Gaz, CPL Concordia, Crest Energy, MVM Energy Trade, Design Proiect, Distrigaz Vest, Engie, E.on Energie, Electrica Furnizare, Electric Planners, Electric&Gas, Energy Distribution, Enel Energie, Enel Muntenia, Gas&Power, Entrex, Premier Energy Trading, Gaz Est, Hargaz, Gazmir, Gaz Vest, Mihoc Oil, Met România, Monsson, Next Energy Distribution, Next Energy Partners, Pado Group, Premier Energy, Petrom, Prisma Serv, Gas Provider, Renovatio, Res Energy Solutions, Restart Energy, Romgaz, RWE Supply, SST Grup, Sun Wave, Tetarom, Tinmar, Veolia, Wiee, Arovi Energy | V129: Delgaz Grid | W129: - | X129: 2021-10-13 | Y129: 06:30:00 | Z129: 2021-10-13 | AA129: 18:00:00 | AB129: Mediaș | AC129: Efectuată | AE129: 2021-10-13 | AF129: 06:30:00 | AG129: 2021-10-13 | AH129: 18:00:00 | AI129: 2021-10-13 | AJ129: 06:51:00 | AK129: 2021-10-13 | AL129: 06:36:00 | AM129: 3149/12.10.2021 | AN129: DA | AR129: =IF(B129="X",IF(AN129="","Afectat sau NU?",IF(AN129="DA",IF(((AK129+AL129)-(AE129+AF129))*24<-720,"Neinformat",((AK129+AL129)-(AE129+AF129))*24),"Nu a fost afectat producator/consumator")),"") -> 0.09999999998 | AS129: =IF(B129="X",IF(AN129="DA",IF(AR129<6,LEN(TRIM(V129))-LEN(SUBSTITUTE(V129,CHAR(44),""))+1,0),"-"),"") -> 1 | AT129: =IF(B129="X",IF(AN129="DA",LEN(TRIM(V129))-LEN(SUBSTITUTE(V129,CHAR(44),""))+1,"-"),"") -> 1 | AU129: =IF(B129="X",IF(AN129="","Afectat sau NU?",IF(AN129="DA",IF(((AI129+AJ129)-(AE129+AF129))*24<-720,"Neinformat",((AI129+AJ129)-(AE129+AF129))*24),"Nu a fost afectat producator/consumator")),"") -> 0.3499999999 | AV129: =IF(B129="X",IF(AN129="DA",IF(AU129<6,LEN(TRIM(U129))-LEN(SUBSTITUTE(U129,CHAR(44),""))+1,0),"-"),"") -> 48 | AW129: =IF(B129="X",IF(AN129="DA",LEN(TRIM(U129))-LEN(SUBSTITUTE(U129,CHAR(44),""))+1,"-"),"") -> 48 | AX129: =IF(B129="X",IF(AN129="","Afectat sau NU?",IF(AN129="DA",((AG129+AH129)-(AE129+AF129))*24,"Nu a fost afectat producator/consumator")),"") -> 11.5 | AY129: =IF(B129="X",IF(AN129="DA",IF(AX129>24,IF(BA129="NU",0,LEN(TRIM(V129))-LEN(SUBSTITUTE(V129,CHAR(44),""))+1),0),"-"),"") -> 0 | AZ129: =IF(B129="X",IF(AN129="DA",IF(AX129>24,LEN(TRIM(V129))-LEN(SUBSTITUTE(V129,CHAR(44),""))+1,0),"-"),"") -> 0 | BF129: =IF(C129="X",IF(AN129="","Afectat sau NU?",IF(AN129="DA",IF(AK129="","Neinformat",NETWORKDAYS(AK129+AL129,AE129+AF129,$BS$2:$BS$14)-2),"Nu a fost afectat producator/consumator")),"") ->  | BG129: =IF(C129="X",IF(AN129="DA",IF(AND(BF129>=5,AK129<>""),LEN(TRIM(V129))-LEN(SUBSTITUTE(V129,CHAR(44),""))+1,0),"-"),"") ->  | BH129: =IF(C129="X",IF(AN129="DA",LEN(TRIM(V129))-LEN(SUBSTITUTE(V129,CHAR(44),""))+1,"-"),"") ->  | BI129: =IF(C129="X",IF(AN129="","Afectat sau NU?",IF(AN129="DA",IF(AI129="","Neinformat",NETWORKDAYS(AI129+AJ129,AE129+AF129,$BS$2:$BS$14)-2),"Nu a fost afectat producator/consumator")),"") ->  | BJ129: =IF(C129="X",IF(AN129="DA",IF(AND(BI129>=5,AI129<>""),LEN(TRIM(U129))-LEN(SUBSTITUTE(U129,CHAR(44),""))+1,0),"-"),"") ->  | BK129: =IF(C129="X",IF(AN129="DA",LEN(TRIM(U129))-LEN(SUBSTITUTE(U129,CHAR(44),""))+1,"-"),"") ->  | BL129: =IF(C129="X",IF(AN129="","Afectat sau NU?",IF(AN129="DA",((AG129+AH129)-(Z129+AA129))*24,"Nu a fost afectat producator/consumator")),"") ->  | BM129: =IF(C129="X",IF(AN129<>"DA","-",IF(AND(AN129="DA",BL129<=0),LEN(TRIM(V129))-LEN(SUBSTITUTE(V129,CHAR(44),""))+1+LEN(TRIM(U129))-LEN(SUBSTITUTE(U129,CHAR(44),""))+1,0)),"") ->  | BN129: =IF(C129="X",IF(AN129="DA",LEN(TRIM(V129))-LEN(SUBSTITUTE(V129,CHAR(44),""))+1+LEN(TRIM(U129))-LEN(SUBSTITUTE(U129,CHAR(44),""))+1,"-"),"") -> 
A130: 115 | B130: x | C130: - | D130: Cuplare deviere conducte 12” Cisnădie - Tălmaciu și 4” racord SRM Tălmăcel | E130: 145890 | F130: Tălmăcel | G130: Sibiu | H130: 441290.5 | I130: 461208.57 | J130: 441290.5 | K130: 461208.57 | L130: - | M130: - | N130: SM07350D0 | O130: Tălmăcel | P130: - | Q130: - | R130: - | S130: - | T130: SM-SD001 | U130: Aderro GP, Nova Power, Cez Vânzare, Racord Furnizare, Cis Gaz, Conef Gaz, CPL Concordia, Crest Energy, MVM Energy Trade, Design Proiect, Distrigaz Vest, Engie, E.on Energie, Electrica Furnizare, Electric Planners, Electric&Gas, Energy Distribution, Enel Energie, Enel Muntenia, Gas&Power, Entrex, Premier Energy Trading, Gaz Est, Hargaz, Gazmir, Gaz Vest, Mihoc Oil, Met România, Monsson, Next Energy Distribution, Next Energy Partners, Pado Group, Premier Energy, Petrom, Prisma Serv, Gas Provider, Renovatio, Res Energy Solutions, Restart Energy, Romgaz, RWE Supply, SST Grup, Sun Wave, Tetarom, Tinmar, Veolia, Wiee, Arovi Energy | V130: Delgaz Grid | W130: - | X130: 2021-10-13 | Y130: 06:30:00 | Z130: 2021-10-13 | AA130: 18:00:00 | AB130: Mediaș | AC130: Efectuată | AE130: 2021-10-13 | AF130: 06:30:00 | AG130: 2021-10-13 | AH130: 18:00:00 | AI130: 2021-10-13 | AJ130: 06:51:00 | AK130: 2021-10-13 | AL130: 06:36:00 | AM130: 3149/12.10.2021 | AN130: DA | AR130: 0.09999999998 | AS130: 1 | AT130: 1 | AU130: 0.3499999999 | AV130: 48 | AW130: 48 | AX130: 11.5 | AY130: 0 | AZ130: 0
A131: 116 | B131: x | C131: - | D131: Cuplare deviere conducte 12” Cisnădie - Tălmaciu și 4” racord SRM Tălmăcel | E131: 145890 | F131: Tălmăcel | G131: Sibiu | H131: 441757.19 | I131: 461422.55 | J131: 441757.19 | K131: 461422.55 | L131: - | M131: - | N131: SM1160D0 | O131: Tălmăcel II | P131: - | Q131: - | R131: - | S131: - | T131: SM-SD001 | U131: Aderro GP, Nova Power, Cez Vânzare, Cis Furnizare, Cis Gaz, Conef Gaz, CPL Concordia, Crest Energy, MVM Energy Trade, Design Proiect, Distrigaz Vest, Engie, E.on Energie, Electrica Furnizare, Electric Planners, Electric&Gas, Energy Distribution, Enel Energie, Enel Muntenia, Gas&Power, Entrex, Premier Energy Trading, Gaz Est, Hargaz, Gazmir, Gaz Vest, Mihoc Oil, Met România, Monsson, Next Energy Distribution, Next Energy Partners, Pado Group, Premier Energy, Petrom, Prisma Serv, Gas Provider, Renovatio, Res Energy Solutions, Restart Energy, Romgaz, RWE Supply, SST Grup, Sun Wave, Tetarom, Tinmar, Veolia, Wiee, Arovi Energy | V131: Delgaz Grid | W131: - | X131: 2021-10-13 | Y131: 06:30:00 | Z131: 2021-10-13 | AA131: 18:00:00 | AB131: Mediaș | AC131: Efectuată | AE131: 2021-10-13 | AF131: 06:30:00 | AG131: 2021-10-13 | AH131: 18:00:00 | AI131: 2021-10-13 | AJ131: 06:51:00 | AK131: 2021-10-13 | AL131: 06:36:00 | AM131: 3149/12.10.2021 | AN131: DA | AR131: 0.09999999998 | AS131: 1 | AT131: 1 | AU131: 0.3499999999 | AV131: 48 | AW131: 48 | AX131: 11.5 | AY131: 0 | AZ131: 0
A132: 117 | B132: x | C132: - | D132: Cuplare deviere conducte 12” Cisnădie - Tălmaciu și 4” racord SRM Tălmăcel | E132: 145845 | F132: Boița | G132: Sibiu | H132: 442446.2 | I132: 460048.52 | J132: 442446.2 | K132: 460048.52 | L132: - | M132: - | N132: SM0736D0 | O132: Boița | P132: - | Q132: - | R132: - | S132: - | T132: SM-SD001 | U132: Aderro GP, Nova Power, Cez Vânzare, Racord Furnizare, Cis Gaz, Conef Gaz, CPL Concordia, Crest Energy, MVM Energy Trade, Design Proiect, Distrigaz Vest, Engie, E.on Energie, Electrica Furnizare, Electric Planners, Electric&Gas, Energy Distribution, Enel Energie, Enel Muntenia, Gas&Power, Entrex, Premier Energy Trading, Gaz Est, Hargaz, Gazmir, Gaz Vest, Mihoc Oil, Met România, Monsson, Next Energy Distribution, Next Energy Partners, Pado Group, Premier Energy, Petrom, Prisma Serv, Gas Provider, Renovatio, Res Energy Solutions, Restart Energy, Romgaz, RWE Supply, SST Grup, Sun Wave, Tetarom, Tinmar, Veolia, Wiee, Arovi Energy | V132: Delgaz Grid | W132: - | X132: 2021-10-13 | Y132: 06:30:00 | Z132: 2021-10-13 | AA132: 18:00:00 | AB132: Mediaș | AC132: Efectuată | AE132: 2021-10-13 | AF132: 06:30:00 | AG132: 2021-10-13 | AH132: 18:00:00 | AI132: 2021-10-13 | AJ132: 06:51:00 | AK132: 2021-10-13 | AL132: 06:36:00 | AM132: 3149/12.10.2021 | AN132: DA | AR132: 0.09999999998 | AS132: 1 | AT132: 1 | AU132: 0.3499999999 | AV132: 48 | AW132: 48 | AX132: 11.5 | AY132: 0 | AZ132: 0
A133: 118 | B133: x | C133: - | D133: Cuplare deviere conductă 10” racord SRM Tecuci și montare robinet pe conducta 20” Onești - Șendreni | E133: 75212 | F133: Tecuci | G133: Galați | H133: 688621.9 | I133: 483561.23 | J133: 688621.9 | K133: 483561.23 | L133: - | M133: - | N133: SM0513D0 | O133: Tecuci | P133: - | Q133: - | R133: - | S133: - | T133: SM-SD001 | U133: Aderro GP, Alpha Metal, Nova Power, Cez Vânzare, Cis Gaz, Conef Gaz, Crest Energy, MVM Energy Trade, Distrigaz Vest, Engie, E.on Energie, Electrocentrale București, Electrocentrale Constanța, Electrica Furnizare, Electric Planners, Electric&Gas, Energy Distribution, Enel Energie, Enel Muntenia, Gas&Power, Entrex, Euro Seven, Premier Energy Trading, Gaz Est, Hargaz, Gaz Vest, Gecabuild, Getica 95, Megaconstruct, Met România, Monsson, Next Energy Distribution, Next Energy Partners, Nord Gaz, Oligopol, Premier Energy, Petrom, Progaz, Gas Provider, Renovatio, Res Energy, Restart Energy, Romgaz, RWE Supply, Tinmar, Transenergo, Veolia, Wiee, With Us | V133: Distrigaz Sud Rețele | W133: - | X133: 2021-10-14 | Y133: 06:03:00 | Z133: 2021-10-14 | AA133: 18:00:00 | AB133: Brăila | AC133: Efectuată | AE133: 2021-10-14 | AF133: 06:03:00 | AG133: 2021-10-14 | AH133: 17:13:00 | AI133: 2021-10-14 | AJ133: 06:28:00 | AK133: 2021-10-14 | AL133: 06:16:00 | AM133: 77679/13.10.2021 | AN133: DA | AR133: =IF(B133="X",IF(AN133="","Afectat sau NU?",IF(AN133="DA",IF(((AK133+AL133)-(AE133+AF133))*24<-720,"Neinformat",((AK133+AL133)-(AE133+AF133))*24),"Nu a fost afectat producator/consumator")),"") -> 0.2166666667 | AS133: =IF(B133="X",IF(AN133="DA",IF(AR133<6,LEN(TRIM(V133))-LEN(SUBSTITUTE(V133,CHAR(44),""))+1,0),"-"),"") -> 1 | AT133: =IF(B133="X",IF(AN133="DA",LEN(TRIM(V133))-LEN(SUBSTITUTE(V133,CHAR(44),""))+1,"-"),"") -> 1 | AU133: =IF(B133="X",IF(AN133="","Afectat sau NU?",IF(AN133="DA",IF(((AI133+AJ133)-(AE133+AF133))*24<-720,"Neinformat",((AI133+AJ133)-(AE133+AF133))*24),"Nu a fost afectat producator/consumator")),"") -> 0.4166666666 | AV133: =IF(B133="X",IF(AN133="DA",IF(AU133<6,LEN(TRIM(U133))-LEN(SUBSTITUTE(U133,CHAR(44),""))+1,0),"-"),"") -> 49 | AW133: =IF(B133="X",IF(AN133="DA",LEN(TRIM(U133))-LEN(SUBSTITUTE(U133,CHAR(44),""))+1,"-"),"") -> 49 | AX133: =IF(B133="X",IF(AN133="","Afectat sau NU?",IF(AN133="DA",((AG133+AH133)-(AE133+AF133))*24,"Nu a fost afectat producator/consumator")),"") -> 11.16666667 | AY133: =IF(B133="X",IF(AN133="DA",IF(AX133>24,IF(BA133="NU",0,LEN(TRIM(V133))-LEN(SUBSTITUTE(V133,CHAR(44),""))+1),0),"-"),"") -> 0 | AZ133: =IF(B133="X",IF(AN133="DA",IF(AX133>24,LEN(TRIM(V133))-LEN(SUBSTITUTE(V133,CHAR(44),""))+1,0),"-"),"") -> 0 | BF133: =IF(C133="X",IF(AN133="","Afectat sau NU?",IF(AN133="DA",IF(AK133="","Neinformat",NETWORKDAYS(AK133+AL133,AE133+AF133,$BS$2:$BS$14)-2),"Nu a fost afectat producator/consumator")),"") ->  | BG133: =IF(C133="X",IF(AN133="DA",IF(AND(BF133>=5,AK133<>""),LEN(TRIM(V133))-LEN(SUBSTITUTE(V133,CHAR(44),""))+1,0),"-"),"") ->  | BH133: =IF(C133="X",IF(AN133="DA",LEN(TRIM(V133))-LEN(SUBSTITUTE(V133,CHAR(44),""))+1,"-"),"") ->  | BI133: =IF(C133="X",IF(AN133="","Afectat sau NU?",IF(AN133="DA",IF(AI133="","Neinformat",NETWORKDAYS(AI133+AJ133,AE133+AF133,$BS$2:$BS$14)-2),"Nu a fost afectat producator/consumator")),"") ->  | BJ133: =IF(C133="X",IF(AN133="DA",IF(AND(BI133>=5,AI133<>""),LEN(TRIM(U133))-LEN(SUBSTITUTE(U133,CHAR(44),""))+1,0),"-"),"") ->  | BK133: =IF(C133="X",IF(AN133="DA",LEN(TRIM(U133))-LEN(SUBSTITUTE(U133,CHAR(44),""))+1,"-"),"") ->  | BL133: =IF(C133="X",IF(AN133="","Afectat sau NU?",IF(AN133="DA",((AG133+AH133)-(Z133+AA133))*24,"Nu a fost afectat producator/consumator")),"") ->  | BM133: =IF(C133="X",IF(AN133<>"DA","-",IF(AND(AN133="DA",BL133<=0),LEN(TRIM(V133))-LEN(SUBSTITUTE(V133,CHAR(44),""))+1+LEN(TRIM(U133))-LEN(SUBSTITUTE(U133,CHAR(44),""))+1,0)),"") ->  | BN133: =IF(C133="X",IF(AN133="DA",LEN(TRIM(V133))-LEN(SUBSTITUTE(V133,CHAR(44),""))+1+LEN(TRIM(U133))-LEN(SUBSTITUTE(U133,CHAR(44),""))+1,"-"),"") -> 
A134: 119 | B134: x | C134: - | D134: Reparare refulator pe conducta de racord SRM Rustrans Blăgești | E134: 21515 | F134: Blăgești | G134: Bacău | H134: 627457.13 | I134: 580467.25 | J134: 627457.13 | K134: 580467.25 | L134: - | M134: - | N134: SM1167D0 | O134: SC Rustrans Blăgești | P134: - | Q134: - | R134: - | S134: - | T134: SM-CF001 | U134: Next Energy Distribution | V134: SC Rustrans SRL | W134: - | X134: 2021-10-15 | Y134: 12:56:00 | Z134: 2021-10-15 | AA134: 15:00:00 | AB134: Bacău | AC134: Efectuată | AE134: 2021-10-15 | AF134: 12:56:00 | AG134: 2021-10-15 | AH134: 14:00:00 | AI134: 2021-10-15 | AJ134: 13:50:00 | AK134: 2021-10-15 | AL134: 13:42:00 | AM134: 77954/14.10.2021 | AN134: DA | AR134: =IF(B134="X",IF(AN134="","Afectat sau NU?",IF(AN134="DA",IF(((AK134+AL134)-(AE134+AF134))*24<-720,"Neinformat",((AK134+AL134)-(AE134+AF134))*24),"Nu a fost afectat producator/consumator")),"") -> 0.7666666665 | AS134: =IF(B134="X",IF(AN134="DA",IF(AR134<6,LEN(TRIM(V134))-LEN(SUBSTITUTE(V134,CHAR(44),""))+1,0),"-"),"") -> 1 | AT134: =IF(B134="X",IF(AN134="DA",LEN(TRIM(V134))-LEN(SUBSTITUTE(V134,CHAR(44),""))+1,"-"),"") -> 1 | AU134: =IF(B134="X",IF(AN134="","Afectat sau NU?",IF(AN134="DA",IF(((AI134+AJ134)-(AE134+AF134))*24<-720,"Neinformat",((AI134+AJ134)-(AE134+AF134))*24),"Nu a fost afectat producator/consumator")),"") -> 0.9 | AV134: =IF(B134="X",IF(AN134="DA",IF(AU134<6,LEN(TRIM(U134))-LEN(SUBSTITUTE(U134,CHAR(44),""))+1,0),"-"),"") -> 1 | AW134: =IF(B134="X",IF(AN134="DA",LEN(TRIM(U134))-LEN(SUBSTITUTE(U134,CHAR(44),""))+1,"-"),"") -> 1 | AX134: =IF(B134="X",IF(AN134="","Afectat sau NU?",IF(AN134="DA",((AG134+AH134)-(AE134+AF134))*24,"Nu a fost afectat producator/consumator")),"") -> 1.066666667 | AY134: =IF(B134="X",IF(AN134="DA",IF(AX134>24,IF(BA134="NU",0,LEN(TRIM(V134))-LEN(SUBSTITUTE(V134,CHAR(44),""))+1),0),"-"),"") -> 0 | AZ134: =IF(B134="X",IF(AN134="DA",IF(AX134>24,LEN(TRIM(V134))-LEN(SUBSTITUTE(V134,CHAR(44),""))+1,0),"-"),"") -> 0 | BF134: =IF(C134="X",IF(AN134="","Afectat sau NU?",IF(AN134="DA",IF(AK134="","Neinformat",NETWORKDAYS(AK134+AL134,AE134+AF134,$BS$2:$BS$14)-2),"Nu a fost afectat producator/consumator")),"") ->  | BG134: =IF(C134="X",IF(AN134="DA",IF(AND(BF134>=5,AK134<>""),LEN(TRIM(V134))-LEN(SUBSTITUTE(V134,CHAR(44),""))+1,0),"-"),"") ->  | BH134: =IF(C134="X",IF(AN134="DA",LEN(TRIM(V134))-LEN(SUBSTITUTE(V134,CHAR(44),""))+1,"-"),"") ->  | BI134: =IF(C134="X",IF(AN134="","Afectat sau NU?",IF(AN134="DA",IF(AI134="","Neinformat",NETWORKDAYS(AI134+AJ134,AE134+AF134,$BS$2:$BS$14)-2),"Nu a fost afectat producator/consumator")),"") ->  | BJ134: =IF(C134="X",IF(AN134="DA",IF(AND(BI134>=5,AI134<>""),LEN(TRIM(U134))-LEN(SUBSTITUTE(U134,CHAR(44),""))+1,0),"-"),"") ->  | BK134: =IF(C134="X",IF(AN134="DA",LEN(TRIM(U134))-LEN(SUBSTITUTE(U134,CHAR(44),""))+1,"-"),"") ->  | BL134: =IF(C134="X",IF(AN134="","Afectat sau NU?",IF(AN134="DA",((AG134+AH134)-(Z134+AA134))*24,"Nu a fost afectat producator/consumator")),"") ->  | BM134: =IF(C134="X",IF(AN134<>"DA","-",IF(AND(AN134="DA",BL134<=0),LEN(TRIM(V134))-LEN(SUBSTITUTE(V134,CHAR(44),""))+1+LEN(TRIM(U134))-LEN(SUBSTITUTE(U134,CHAR(44),""))+1,0)),"") ->  | BN134: =IF(C134="X",IF(AN134="DA",LEN(TRIM(V134))-LEN(SUBSTITUTE(V134,CHAR(44),""))+1+LEN(TRIM(U134))-LEN(SUBSTITUTE(U134,CHAR(44),""))+1,"-"),"") -> 
A135: 120 | B135: x | C135: - | D135: Remediere robinet defect în instalația tehnologică SRM Șoard | E135: 120307 | F135: Șoard | G135: Mureș | H135: 494265.48 | I135: 528729.36 | J135: 494265.48 | K135: 528729.36 | L135: - | M135: - | N135: SM1240D0 | O135: Șoard | P135: - | Q135: - | R135: - | S135: - | T135: SM-SD001 | U135: Aderro GP, Nova Power, Cez Vânzare, Racord Furnizare, Cis Gaz, Conef Gaz, CPL Concordia, Crest Energy, MVM Energy Trade, Design Proiect, Distrigaz Vest, Engie, E.on Energie, Electrica Furnizare, Electric Planners, Electric&Gas, Energy Distribution, Enel Energie, Enel Muntenia, Gas&Power, Entrex, Premier Energy Trading, Gaz Est, Hargaz, Gazmir, Gaz Vest, Mihoc Oil, Met România, Monsson, Next Energy Distribution, Next Energy Partners, Pado Group, Premier Energy, Petrom, Prisma Serv, Gas Provider, Renovatio, Res Energy Solutions, Restart Energy, Romgaz, RWE Supply, SST Grup, Sun Wave, Tetarom, Tinmar, Veolia, Wiee, Arovi Energy | V135: Delgaz Grid | W135: - | X135: 2021-10-18 | Y135: 08:05:00 | Z135: 2021-10-18 | AA135: 12:00:00 | AB135: Brașov | AC135: Efectuată | AE135: 2021-10-18 | AF135: 08:05:00 | AG135: 2021-10-18 | AH135: 12:00:00 | AI135: 2021-10-18 | AJ135: 08:34:00 | AK135: 2021-10-18 | AL135: 08:22:00 | AM135: - | AN135: DA | AR135: =IF(B135="X",IF(AN135="","Afectat sau NU?",IF(AN135="DA",IF(((AK135+AL135)-(AE135+AF135))*24<-720,"Neinformat",((AK135+AL135)-(AE135+AF135))*24),"Nu a fost afectat producator/consumator")),"") -> 0.2833333334 | AS135: =IF(B135="X",IF(AN135="DA",IF(AR135<6,LEN(TRIM(V135))-LEN(SUBSTITUTE(V135,CHAR(44),""))+1,0),"-"),"") -> 1 | AT135: =IF(B135="X",IF(AN135="DA",LEN(TRIM(V135))-LEN(SUBSTITUTE(V135,CHAR(44),""))+1,"-"),"") -> 1 | AU135: =IF(B135="X",IF(AN135="","Afectat sau NU?",IF(AN135="DA",IF(((AI135+AJ135)-(AE135+AF135))*24<-720,"Neinformat",((AI135+AJ135)-(AE135+AF135))*24),"Nu a fost afectat producator/consumator")),"") -> 0.4833333333 | AV135: =IF(B135="X",IF(AN135="DA",IF(AU135<6,LEN(TRIM(U135))-LEN(SUBSTITUTE(U135,CHAR(44),""))+1,0),"-"),"") -> 48 | AW135: =IF(B135="X",IF(AN135="DA",LEN(TRIM(U135))-LEN(SUBSTITUTE(U135,CHAR(44),""))+1,"-"),"") -> 48 | AX135: =IF(B135="X",IF(AN135="","Afectat sau NU?",IF(AN135="DA",((AG135+AH135)-(AE135+AF135))*24,"Nu a fost afectat producator/consumator")),"") -> 3.916666667 | AY135: =IF(B135="X",IF(AN135="DA",IF(AX135>24,IF(BA135="NU",0,LEN(TRIM(V135))-LEN(SUBSTITUTE(V135,CHAR(44),""))+1),0),"-"),"") -> 0 | AZ135: =IF(B135="X",IF(AN135="DA",IF(AX135>24,LEN(TRIM(V135))-LEN(SUBSTITUTE(V135,CHAR(44),""))+1,0),"-"),"") -> 0 | BF135: =IF(C135="X",IF(AN135="","Afectat sau NU?",IF(AN135="DA",IF(AK135="","Neinformat",NETWORKDAYS(AK135+AL135,AE135+AF135,$BS$2:$BS$14)-2),"Nu a fost afectat producator/consumator")),"") ->  | BG135: =IF(C135="X",IF(AN135="DA",IF(AND(BF135>=5,AK135<>""),LEN(TRIM(V135))-LEN(SUBSTITUTE(V135,CHAR(44),""))+1,0),"-"),"") ->  | BH135: =IF(C135="X",IF(AN135="DA",LEN(TRIM(V135))-LEN(SUBSTITUTE(V135,CHAR(44),""))+1,"-"),"") ->  | BI135: =IF(C135="X",IF(AN135="","Afectat sau NU?",IF(AN135="DA",IF(AI135="","Neinformat",NETWORKDAYS(AI135+AJ135,AE135+AF135,$BS$2:$BS$14)-2),"Nu a fost afectat producator/consumator")),"") ->  | BJ135: =IF(C135="X",IF(AN135="DA",IF(AND(BI135>=5,AI135<>""),LEN(TRIM(U135))-LEN(SUBSTITUTE(U135,CHAR(44),""))+1,0),"-"),"") ->  | BK135: =IF(C135="X",IF(AN135="DA",LEN(TRIM(U135))-LEN(SUBSTITUTE(U135,CHAR(44),""))+1,"-"),"") ->  | BL135: =IF(C135="X",IF(AN135="","Afectat sau NU?",IF(AN135="DA",((AG135+AH135)-(Z135+AA135))*24,"Nu a fost afectat producator/consumator")),"") ->  | BM135: =IF(C135="X",IF(AN135<>"DA","-",IF(AND(AN135="DA",BL135<=0),LEN(TRIM(V135))-LEN(SUBSTITUTE(V135,CHAR(44),""))+1+LEN(TRIM(U135))-LEN(SUBSTITUTE(U135,CHAR(44),""))+1,0)),"") ->  | BN135: =IF(C135="X",IF(AN135="DA",LEN(TRIM(V135))-LEN(SUBSTITUTE(V135,CHAR(44),""))+1+LEN(TRIM(U135))-LEN(SUBSTITUTE(U135,CHAR(44),""))+1,"-"),"") -> 
A136: 121 | B136: x | C136: - | D136: Întrerupere accidentală SRM Pielești | E136: 73638 | F136: Pielești | G136: Dolj | H136: 414077.27 | I136: 316502.85 | J136: 414077.27 | K136: 316502.85 | L136: - | M136: - | N136: SM1187D0 | O136: Pielești | P136: - | Q136: - | R136: - | S136: - | T136: SM-SD001 | U136: Aderro GP, Nova Power, Cez Vânzare, Cis Gaz, Engie, E.on Energie, Electrica Furnizare, Electric&Gas, Energy Distribution, Enel Energie, Enel Muntenia, Gas&Power, Entrex, Premier Energy Trading, Megaconstruct, Met România, Premier Energy, Petrom, Gas Provider, Renovatio, Restart Energy, Romgaz, Tinmar | V136: Megaconstruct | W136: - | X136: 2021-10-18 | Y136: 21:15:00 | Z136: 2021-10-19 | AA136: 08:00:00 | AB136: Craiova | AC136: Efectuată | AE136: 2021-10-18 | AF136: 21:15:00 | AG136: 2021-10-19 | AH136: 08:00:00 | AI136: 2021-10-18 | AJ136: 22:57:00 | AK136: 2021-10-18 | AL136: 22:48:00 | AM136: - | AN136: DA | AR136: =IF(B136="X",IF(AN136="","Afectat sau NU?",IF(AN136="DA",IF(((AK136+AL136)-(AE136+AF136))*24<-720,"Neinformat",((AK136+AL136)-(AE136+AF136))*24),"Nu a fost afectat producator/consumator")),"") -> 1.55 | AS136: =IF(B136="X",IF(AN136="DA",IF(AR136<6,LEN(TRIM(V136))-LEN(SUBSTITUTE(V136,CHAR(44),""))+1,0),"-"),"") -> 1 | AT136: =IF(B136="X",IF(AN136="DA",LEN(TRIM(V136))-LEN(SUBSTITUTE(V136,CHAR(44),""))+1,"-"),"") -> 1 | AU136: =IF(B136="X",IF(AN136="","Afectat sau NU?",IF(AN136="DA",IF(((AI136+AJ136)-(AE136+AF136))*24<-720,"Neinformat",((AI136+AJ136)-(AE136+AF136))*24),"Nu a fost afectat producator/consumator")),"") -> 1.7 | AV136: =IF(B136="X",IF(AN136="DA",IF(AU136<6,LEN(TRIM(U136))-LEN(SUBSTITUTE(U136,CHAR(44),""))+1,0),"-"),"") -> 23 | AW136: =IF(B136="X",IF(AN136="DA",LEN(TRIM(U136))-LEN(SUBSTITUTE(U136,CHAR(44),""))+1,"-"),"") -> 23 | AX136: =IF(B136="X",IF(AN136="","Afectat sau NU?",IF(AN136="DA",((AG136+AH136)-(AE136+AF136))*24,"Nu a fost afectat producator/consumator")),"") -> 10.75 | AY136: =IF(B136="X",IF(AN136="DA",IF(AX136>24,IF(BA136="NU",0,LEN(TRIM(V136))-LEN(SUBSTITUTE(V136,CHAR(44),""))+1),0),"-"),"") -> 0 | AZ136: =IF(B136="X",IF(AN136="DA",IF(AX136>24,LEN(TRIM(V136))-LEN(SUBSTITUTE(V136,CHAR(44),""))+1,0),"-"),"") -> 0 | BF136: =IF(C136="X",IF(AN136="","Afectat sau NU?",IF(AN136="DA",IF(AK136="","Neinformat",NETWORKDAYS(AK136+AL136,AE136+AF136,$BS$2:$BS$14)-2),"Nu a fost afectat producator/consumator")),"") ->  | BG136: =IF(C136="X",IF(AN136="DA",IF(AND(BF136>=5,AK136<>""),LEN(TRIM(V136))-LEN(SUBSTITUTE(V136,CHAR(44),""))+1,0),"-"),"") ->  | BH136: =IF(C136="X",IF(AN136="DA",LEN(TRIM(V136))-LEN(SUBSTITUTE(V136,CHAR(44),""))+1,"-"),"") ->  | BI136: =IF(C136="X",IF(AN136="","Afectat sau NU?",IF(AN136="DA",IF(AI136="","Neinformat",NETWORKDAYS(AI136+AJ136,AE136+AF136,$BS$2:$BS$14)-2),"Nu a fost afectat producator/consumator")),"") ->  | BJ136: =IF(C136="X",IF(AN136="DA",IF(AND(BI136>=5,AI136<>""),LEN(TRIM(U136))-LEN(SUBSTITUTE(U136,CHAR(44),""))+1,0),"-"),"") ->  | BK136: =IF(C136="X",IF(AN136="DA",LEN(TRIM(U136))-LEN(SUBSTITUTE(U136,CHAR(44),""))+1,"-"),"") ->  | BL136: =IF(C136="X",IF(AN136="","Afectat sau NU?",IF(AN136="DA",((AG136+AH136)-(Z136+AA136))*24,"Nu a fost afectat producator/consumator")),"") ->  | BM136: =IF(C136="X",IF(AN136<>"DA","-",IF(AND(AN136="DA",BL136<=0),LEN(TRIM(V136))-LEN(SUBSTITUTE(V136,CHAR(44),""))+1+LEN(TRIM(U136))-LEN(SUBSTITUTE(U136,CHAR(44),""))+1,0)),"") ->  | BN136: =IF(C136="X",IF(AN136="DA",LEN(TRIM(V136))-LEN(SUBSTITUTE(V136,CHAR(44),""))+1+LEN(TRIM(U136))-LEN(SUBSTITUTE(U136,CHAR(44),""))+1,"-"),"") -> 
A137: 122 | B137: x | C137: - | D137: Cuplări deviere conducte 28” Inel București, zona Afumați | E137: 105589 | F137: Tunari | G137: Ilfov | H137: 590859.85 | I137: 338211.21 | J137: 590859.85 | K137: 338211.21 | L137: - | M137: - | N137: SM0168D0 | O137: București Tunari | P137: - | Q137: - | R137: - | S137: - | T137: SM-SD001 | U137: Aderro GP, Alpha Metal, Nova Power, Cez Vânzare, Cis Gaz, Conef Gaz, Crest Energy, MVM Energy Trade, Distrigaz Vest, Engie, E.on Energie, Electrocentrale București, Electrocentrale Constanța, Electrica Furnizare, Electric Planners, Electric&Gas, Energy Distribution, Enel Energie, Enel Muntenia, Gas&Power, Entrex, Euro Seven, Premier Energy Trading, Gaz Est, Hargaz, Gaz Vest, Gecabuild, Getica 95, Megaconstruct, Met România, Monsson, Next Energy Distribution, Next Energy Partners, Nord Gaz, Oligopol, Premier Energy, Petrom, Progaz, Gas Provider, Renovatio, Res Energy, Restart Energy, Romgaz, RWE Supply, Tinmar, Transenergo, Veolia, Wiee, With Us | V137: Distrigaz Sud Rețele | W137: - | X137: 2021-10-19 | Y137: 07:10:00 | Z137: 2021-10-20 | AA137: 07:00:00 | AB137: București | AC137: Efectuată | AE137: 2021-10-19 | AF137: 07:10:00 | AG137: 2021-10-20 | AH137: 06:55:00 | AI137: 2021-10-19 | AJ137: 09:45:00 | AK137: 2021-10-19 | AL137: 09:02:00 | AM137: 78280/14.10.2021 | AN137: DA | AR137: 1.866666667 | AS137: 1 | AT137: 1 | AU137: 2.583333333 | AV137: 49 | AW137: 49 | AX137: 23.75 | AY137: 0 | AZ137: 0
A138: 123 | B138: x | C138: - | D138: Cuplări deviere conducte 28” Inel București, zona Ștefăneștii de Jos | E138: 105428 | F138: Ștefăneștii de Jos | G138: Ilfov | H138: 595033.82 | I138: 336741.93 | J138: 595033.82 | K138: 336741.93 | L138: - | M138: - | N138: SM1072D0 | O138: Ștefăneștii de Jos | P138: - | Q138: - | R138: - | S138: - | T138: SM-SD001 | U138: Aderro GP, Alpha Metal, Nova Power, Cez Vânzare, Cis Gaz, Conef Gaz, Crest Energy, MVM Energy Trade, Distrigaz Vest, Engie, E.on Energie, Electrocentrale București, Electrocentrale Constanța, Electrica Furnizare, Electric Planners, Electric&Gas, Energy Distribution, Enel Energie, Enel Muntenia, Gas&Power, Entrex, Euro Seven, Premier Energy Trading, Gaz Est, Hargaz, Gaz Vest, Gecabuild, Getica 95, Megaconstruct, Met România, Monsson, Next Energy Distribution, Next Energy Partners, Nord Gaz, Oligopol, Premier Energy, Petrom, Progaz, Gas Provider, Renovatio, Res Energy, Restart Energy, Romgaz, RWE Supply, Tinmar, Transenergo, Veolia, Wiee, With Us | V138: Distrigaz Sud Rețele | W138: - | X138: 2021-10-19 | Y138: 07:10:00 | Z138: 2021-10-20 | AA138: 07:00:00 | AB138: București | AC138: Efectuată | AE138: 2021-10-19 | AF138: 07:10:00 | AG138: 2021-10-20 | AH138: 06:55:00 | AI138: 2021-10-19 | AJ138: 09:45:00 | AK138: 2021-10-19 | AL138: 09:02:00 | AM138: 78280/14.10.2021 | AN138: DA | AR138: 1.866666667 | AS138: 1 | AT138: 1 | AU138: 2.583333333 | AV138: 49 | AW138: 49 | AX138: 23.75 | AY138: 0 | AZ138: 0
A139: 124 | B139: x | C139: - | D139: Cuplări deviere conducte 28” Inel București, zona Afumați | E139: 105589 | F139: Tunari | G139: Ilfov | H139: 590859.85 | I139: 338211.21 | J139: 590859.85 | K139: 338211.21 | L139: - | M139: - | N139: SM0168D1 | O139: Cartier Pipera | P139: - | Q139: - | R139: - | S139: - | T139: SM-SD001 | U139: Aderro GP, Nova Power, Cez Vânzare, Cis Gaz, Conef Gaz, Crest Energy, Distrigaz Vest, Engie, E.on Energie, Electrica Furnizare, Electric Planners, Electric&Gas, Energy Distribution, Enel Energie, Enel Muntenia, Gas&Power, Entrex, Premier Energy Trading, Gaz Est, Gaz Vest, Megaconstruct, Met România, Monsson, Next Energy Distribution, Nord Gaz, Premier Energy, Petrom, Gas Provider, Renovatio, Restart Energy, Romgaz, Tinmar, Transenergo, Veolia, Wiee, With Us | V139: Premier Energy | W139: - | X139: 2021-10-19 | Y139: 07:10:00 | Z139: 2021-10-20 | AA139: 07:00:00 | AB139: București | AC139: Efectuată | AE139: 2021-10-19 | AF139: 07:10:00 | AG139: 2021-10-20 | AH139: 06:55:00 | AI139: 2021-10-19 | AJ139: 09:51:00 | AK139: 2021-10-19 | AL139: 09:06:00 | AM139: 78280/14.10.2021 | AN139: DA | AR139: 1.933333333 | AS139: 1 | AT139: 1 | AU139: 2.683333333 | AV139: 36 | AW139: 36 | AX139: 23.75 | AY139: 0 | AZ139: 0
A140: 125 | B140: x | C140: - | D140: Montarea unei linii de reglare în SRM Venchi | E140: 116527 | F140: Seleuș | G140: Mureș | H140: 478337.54 | I140: 526538 | J140: 478337.54 | K140: 526538 | L140: - | M140: - | N140: SM0008D0 | O140: Venchi | P140: - | Q140: - | R140: - | S140: - | T140: SM-SD001 | U140: Aderro GP, Nova Power, Cez Vânzare, Racord Furnizare, Cis Gaz, Conef Gaz, CPL Concordia, Crest Energy, MVM Energy Trade, Design Proiect, Distrigaz Vest, Engie, E.on Energie, Electrica Furnizare, Electric Planners, Electric&Gas, Energy Distribution, Enel Energie, Enel Muntenia, Gas&Power, Entrex, Premier Energy Trading, Gaz Est, Hargaz, Gazmir, Gaz Vest, Mihoc Oil, Met România, Monsson, Next Energy Distribution, Next Energy Partners, Pado Group, Premier Energy, Petrom, Prisma Serv, Gas Provider, Renovatio, Res Energy Solutions, Restart Energy, Romgaz, RWE Supply, SST Grup, Sun Wave, Tetarom, Tinmar, Veolia, Wiee, Arovi Energy | V140: Delgaz Grid | W140: - | X140: 2021-10-21 | Y140: 08:00:00 | Z140: 2021-10-21 | AA140: 15:00:00 | AB140: Mediaș | AC140: Efectuată | AE140: 2021-10-21 | AF140: 08:00:00 | AG140: 2021-10-21 | AH140: 15:00:00 | AI140: 2021-10-21 | AJ140: 08:33:00 | AK140: 2021-10-21 | AL140: 08:20:00 | AM140: 3286/20.10.2021 | AN140: DA | AR140: 0.3333333332 | AS140: 1 | AT140: 1 | AU140: 0.5499999999 | AV140: 48 | AW140: 48 | AX140: 7 | AY140: 0 | AZ140: 0
A141: 126 | B141: x | C141: - | D141: Curățare interioara cu PIG a conductei 28” Bățani - Seleuș | E141: 114523 | F141: Sighișoara | G141: Mureș | H141: 484021.96 | I141: 526682.59 | J141: 484021.96 | K141: 526682.59 | L141: - | M141: - | N141: - | O141: - | P141: - | Q141: - | R141: PM0157 | S141: Sighișoara Sonda III | T141: PM-PP001 | U141: Romgaz | V141: Romgaz | W141: - | X141: 2021-10-28 | Y141: 08:45:00 | Z141: 2021-10-28 | AA141: 18:00:00 | AB141: Brașov | AC141: Efectuată | AE141: 2021-10-28 | AF141: 08:45:00 | AG141: 2021-10-29 | AH141: 08:00:00 | AI141: 2021-10-28 | AJ141: 09:37:00 | AK141: 2021-10-28 | AL141: 09:06:00 | AM141: 2131/27.10.2021 | AN141: DA | AR141: =IF(B141="X",IF(AN141="","Afectat sau NU?",IF(AN141="DA",IF(((AK141+AL141)-(AE141+AF141))*24<-720,"Neinformat",((AK141+AL141)-(AE141+AF141))*24),"Nu a fost afectat producator/consumator")),"") -> 0.3499999999 | AS141: =IF(B141="X",IF(AN141="DA",IF(AR141<6,LEN(TRIM(V141))-LEN(SUBSTITUTE(V141,CHAR(44),""))+1,0),"-"),"") -> 1 | AT141: =IF(B141="X",IF(AN141="DA",LEN(TRIM(V141))-LEN(SUBSTITUTE(V141,CHAR(44),""))+1,"-"),"") -> 1 | AU141: =IF(B141="X",IF(AN141="","Afectat sau NU?",IF(AN141="DA",IF(((AI141+AJ141)-(AE141+AF141))*24<-720,"Neinformat",((AI141+AJ141)-(AE141+AF141))*24),"Nu a fost afectat producator/consumator")),"") -> 0.8666666665 | AV141: =IF(B141="X",IF(AN141="DA",IF(AU141<6,LEN(TRIM(U141))-LEN(SUBSTITUTE(U141,CHAR(44),""))+1,0),"-"),"") -> 1 | AW141: =IF(B141="X",IF(AN141="DA",LEN(TRIM(U141))-LEN(SUBSTITUTE(U141,CHAR(44),""))+1,"-"),"") -> 1 | AX141: =IF(B141="X",IF(AN141="","Afectat sau NU?",IF(AN141="DA",((AG141+AH141)-(AE141+AF141))*24,"Nu a fost afectat producator/consumator")),"") -> 23.25 | AY141: =IF(B141="X",IF(AN141="DA",IF(AX141>24,IF(BA141="NU",0,LEN(TRIM(V141))-LEN(SUBSTITUTE(V141,CHAR(44),""))+1),0),"-"),"") -> 0 | AZ141: =IF(B141="X",IF(AN141="DA",IF(AX141>24,LEN(TRIM(V141))-LEN(SUBSTITUTE(V141,CHAR(44),""))+1,0),"-"),"") -> 0 | BF141: =IF(C141="X",IF(AN141="","Afectat sau NU?",IF(AN141="DA",IF(AK141="","Neinformat",NETWORKDAYS(AK141+AL141,AE141+AF141,$BS$2:$BS$14)-2),"Nu a fost afectat producator/consumator")),"") ->  | BG141: =IF(C141="X",IF(AN141="DA",IF(AND(BF141>=5,AK141<>""),LEN(TRIM(V141))-LEN(SUBSTITUTE(V141,CHAR(44),""))+1,0),"-"),"") ->  | BH141: =IF(C141="X",IF(AN141="DA",LEN(TRIM(V141))-LEN(SUBSTITUTE(V141,CHAR(44),""))+1,"-"),"") ->  | BI141: =IF(C141="X",IF(AN141="","Afectat sau NU?",IF(AN141="DA",IF(AI141="","Neinformat",NETWORKDAYS(AI141+AJ141,AE141+AF141,$BS$2:$BS$14)-2),"Nu a fost afectat producator/consumator")),"") ->  | BJ141: =IF(C141="X",IF(AN141="DA",IF(AND(BI141>=5,AI141<>""),LEN(TRIM(U141))-LEN(SUBSTITUTE(U141,CHAR(44),""))+1,0),"-"),"") ->  | BK141: =IF(C141="X",IF(AN141="DA",LEN(TRIM(U141))-LEN(SUBSTITUTE(U141,CHAR(44),""))+1,"-"),"") ->  | BL141: =IF(C141="X",IF(AN141="","Afectat sau NU?",IF(AN141="DA",((AG141+AH141)-(Z141+AA141))*24,"Nu a fost afectat producator/consumator")),"") ->  | BM141: =IF(C141="X",IF(AN141<>"DA","-",IF(AND(AN141="DA",BL141<=0),LEN(TRIM(V141))-LEN(SUBSTITUTE(V141,CHAR(44),""))+1+LEN(TRIM(U141))-LEN(SUBSTITUTE(U141,CHAR(44),""))+1,0)),"") ->  | BN141: =IF(C141="X",IF(AN141="DA",LEN(TRIM(V141))-LEN(SUBSTITUTE(V141,CHAR(44),""))+1+LEN(TRIM(U141))-LEN(SUBSTITUTE(U141,CHAR(44),""))+1,"-"),"") -> 
A142: 127 | B142: x | C142: - | D142: Modernizare alimentare cu gaze Municipiul Ploiești | E142: 131078 | F142: Boldești Scăieni | G142: Prahova | H142: 580343.22 | I142: 391497.11 | J142: 580343.22 | K142: 391497.11 | L142: - | M142: - | N142: - | O142: - | P142: PM0017 | Q142: Scăieni Compresoare 54 | R142: - | S142: - | T142: PM-PP001 | U142: Petrom | V142: Petrom | W142: - | X142: 2021-10-28 | Y142: 08:45:00 | Z142: 2021-10-28 | AA142: 16:00:00 | AB142: București | AC142: Efectuată | AE142: 2021-10-28 | AF142: 08:45:00 | AG142: 2021-10-28 | AH142: 14:15:00 | AI142: 2021-10-28 | AJ142: 09:40:00 | AK142: 2021-10-28 | AL142: 09:08:00 | AM142: 81071/25.10.2021 | AN142: DA | AR142: 0.3833333334 | AS142: 1 | AT142: 1 | AU142: 0.9166666667 | AV142: 1 | AW142: 1 | AX142: 5.5 | AY142: 0 | AZ142: 0
A143: =SUM(1,A142) -> 128 | B143: - | C143: x | D143: Dublare robinet de pe ocolitorul exterior la SRM Tușnad | E143: 86197 | F143: Tușnad | G143: Harghita | H143: 566491.57 | I143: 515633.51 | J143: 566491.57 | K143: 515633.51 | L143: - | M143: - | N143: SM0397D0 | O143: Tușnad | P143: - | Q143: - | R143: - | S143: - | T143: SM-SD001 | V143: Delgaz Grid | W143: iulie - septembrie 2022 | AB143: Brașov | AP143: forțe proprii | BF143: Afectat sau NU? | BG143: - | BH143: - | BI143: Afectat sau NU? | BJ143: - | BK143: - | BL143: Afectat sau NU? | BM143: - | BN143: -
A144: 129 | B144: - | C144: x | D144: Dublare robinet de pe ocolitorul exterior la SRM Turia | E144: 64880 | F144: Turia | G144: Covasna | H144: 580826.56 | I144: 506856.89 | J144: 580826.56 | K144: 506856.89 | L144: - | M144: - | N144: SM0400D0 | O144: Turia | P144: - | Q144: - | R144: - | S144: - | T144: SM-SD001 | V144: Distrigaz Sud Rețele | W144: iulie - septembrie 2022 | AB144: Brașov | AP144: forțe proprii | BF144: Afectat sau NU? | BG144: - | BH144: - | BI144: Afectat sau NU? | BJ144: - | BK144: - | BL144: Afectat sau NU? | BM144: - | BN144: -
A145: 130 | B145: - | C145: x | D145: Refacere ocolitor exterior și montare îmbinare electroizolantă la SRM Bordoșiu | E145: 116812 | F145: Bordoșiu | G145: Mureș | H145: 483817.04 | I145: 543327.49 | J145: 483817.04 | K145: 543327.49 | L145: - | M145: - | N145: SM0377D0 | O145: Bordoșiu | P145: - | Q145: - | R145: - | S145: - | T145: SM-SD001 | V145: Delgaz Grid | W145: iulie - septembrie 2022 | AB145: Brașov | AP145: Forțe proprii | BF145: Afectat sau NU? | BG145: - | BH145: - | BI145: Afectat sau NU? | BJ145: - | BK145: - | BL145: Afectat sau NU? | BM145: - | BN145: -
A146: 131 | B146: - | C146: x | D146: Dublare robinet de pe ocolitorul exterior și înlocuire regulator la SRM Poiana Mărului | E146: 41630 | F146: Poiana Mărului | G146: Brașov | H146: 523056.64 | I146: 457084.35 | J146: 523056.64 | K146: 457084.35 | L146: - | M146: - | N146: SM0212D0 | O146: Poiana Mărului | P146: - | Q146: - | R146: - | S146: - | T146: SM-SD001 | V146: Distrigaz Sud Rețele | W146: aprilie - iunie 2022 | AB146: Brașov | AP146: Forțe proprii | BF146: Afectat sau NU? | BG146: - | BH146: - | BI146: Afectat sau NU? | BJ146: - | BK146: - | BL146: Afectat sau NU? | BM146: - | BN146: -
A147: =A146+1 -> 132 | B147: x | C147: - | D147: Montare treaptă de reglare pentru SC Eurotecrom în SRM Bârsești | E147: 77830 | F147: Bârsești | G147: Gorj | H147: 360834.59 | I147: 395978.73 | J147: 360834.59 | K147: 395978.73 | L147: - | M147: - | N147: SM0191D3 | O147: SC Eurotecrom Bârsești | P147: - | Q147: - | R147: - | S147: - | T147: SM-SD001 | U147: Aderro GP, Alpha Metal, Nova Power, Cez Vânzare, Cis Gaz, Conef Gaz, Crest Energy, MVM Energy Trade, Distrigaz Vest, Engie, E.on Energie, Electrocentrale București, Electrocentrale Constanța, Electrica Furnizare, Electric Planners, Electric&Gas, Energy Distribution, Enel Energie, Enel Muntenia, Gas&Power, Entrex, Euro Seven, Premier Energy Trading, Gaz Est, Gaz Vest, Gecabuild, Getica 95, Megaconstruct, Mehedinți Gaz, Met România, Monsson, Next Energy Distribution, Next Energy Partners, Nord Gaz, Oligopol, Premier Energy, Petrom, Gas Provider, Renovatio, Res Energy, Restart Energy, Romgaz, RWE Supply, Tinmar, Transenergo, Veolia, Wiee, With Us | V147: Distrigaz Sud Rețele | W147: - | X147: 2021-11-02 | Y147: 10:04:00 | Z147: 2021-11-02 | AA147: 14:00:00 | AB147: Craiova | AC147: Efectuată | AE147: 2021-11-02 | AF147: 10:04:00 | AG147: 2021-11-02 | AH147: 13:56:00 | AI147: 2021-11-02 | AJ147: 10:21:00 | AK147: 2021-11-02 | AL147: 10:14:00 | AM147: 82864/01.11.2021 | AN147: NU | AR147: Nu a fost afectat producator/consumator | AS147: - | AT147: - | AU147: Nu a fost afectat producator/consumator | AV147: - | AW147: - | AX147: Nu a fost afectat producator/consumator | AY147: - | AZ147: -
A148: 133 | B148: x | C148: - | D148: Întrerupere accidentală SRM Ipotești | E148: 146290 | F148: Ipotești | G148: Suceava | H148: 598776.69 | I148: 680641.13 | J148: 598776.69 | K148: 680641.13 | L148: - | M148: - | N148: SM0491D0 | O148: Ipotești | P148: - | Q148: - | R148: - | S148: - | T148: SM-SD001 | U148: Aderro GP, Nova Power, Cez Vânzare, Racord Furnizare, Cis Gaz, Conef Gaz, CPL Concordia, Crest Energy, MVM Energy Trade, Design Proiect, Distrigaz Vest, Engie, E.on Energie, Electrica Furnizare, Electric Planners, Electric&Gas, Energy Distribution, Enel Energie, Enel Muntenia, Gas&Power, Entrex, Premier Energy Trading, Gaz Est, Gazmir, Gaz Vest, Mihoc Oil, Met România, Monsson, Next Energy Distribution, Next Energy Partners, Pado Group, Premier Energy, Petrom, Prisma Serv, Gas Provider, Renovatio, Res Energy Solutions, Restart Energy, Romgaz, RWE Supply, SST Grup, Sun Wave, Tetarom, Tinmar, Transenergo, Veolia, Wiee, Arovi Energy | V148: Delgaz Grid | W148: - | X148: 2021-11-02 | Y148: 19:24:00 | Z148: 2021-11-02 | AA148: 22:00:00 | AB148: Bacău | AC148: Efectuată | AE148: 2021-11-02 | AF148: 19:24:00 | AG148: 2021-11-03 | AH148: 09:00:00 | AI148: 2021-11-02 | AJ148: 19:54:00 | AK148: 2021-11-02 | AL148: 19:41:00 | AM148: - | AN148: DA | AR148: 0.2833333334 | AS148: 1 | AT148: 1 | AU148: 0.5000000001 | AV148: 48 | AW148: 48 | AX148: 13.6 | AY148: 0 | AZ148: 0
A149: 134 | B149: x | C149: - | D149: Înlocuire robinet R11 în SRM Ișalnița | E149: 70101 | F149: Ișalnița | G149: Dolj | H149: 399063.91 | I149: 320720.4 | J149: 399063.91 | K149: 320720.4 | L149: - | M149: - | N149: SM0207D6 | O149: CET Ișalnița | P149: - | Q149: - | R149: - | S149: - | T149: SM-CF001 | U149: Tinmar | V149: Complex Energetic Oltenița | W149: - | X149: 2021-11-05 | Y149: 09:05:00 | Z149: 2021-11-05 | AA149: 17:00:00 | AB149: Craiova | AC149: Efectuată | AE149: 2021-11-05 | AF149: 09:05:00 | AG149: 2021-11-05 | AH149: 12:20:00 | AI149: 2021-11-05 | AJ149: 09:38:00 | AK149: 2021-11-05 | AL149: 09:32:00 | AM149: 82861/01.11.2021 | AN149: DA | AR149: =IF(B149="X",IF(AN149="","Afectat sau NU?",IF(AN149="DA",IF(((AK149+AL149)-(AE149+AF149))*24<-720,"Neinformat",((AK149+AL149)-(AE149+AF149))*24),"Nu a fost afectat producator/consumator")),"") -> 0.4500000001 | AS149: =IF(B149="X",IF(AN149="DA",IF(AR149<6,LEN(TRIM(V149))-LEN(SUBSTITUTE(V149,CHAR(44),""))+1,0),"-"),"") -> 1 | AT149: =IF(B149="X",IF(AN149="DA",LEN(TRIM(V149))-LEN(SUBSTITUTE(V149,CHAR(44),""))+1,"-"),"") -> 1 | AU149: =IF(B149="X",IF(AN149="","Afectat sau NU?",IF(AN149="DA",IF(((AI149+AJ149)-(AE149+AF149))*24<-720,"Neinformat",((AI149+AJ149)-(AE149+AF149))*24),"Nu a fost afectat producator/consumator")),"") -> 0.55 | AV149: =IF(B149="X",IF(AN149="DA",IF(AU149<6,LEN(TRIM(U149))-LEN(SUBSTITUTE(U149,CHAR(44),""))+1,0),"-"),"") -> 1 | AW149: =IF(B149="X",IF(AN149="DA",LEN(TRIM(U149))-LEN(SUBSTITUTE(U149,CHAR(44),""))+1,"-"),"") -> 1 | AX149: =IF(B149="X",IF(AN149="","Afectat sau NU?",IF(AN149="DA",((AG149+AH149)-(AE149+AF149))*24,"Nu a fost afectat producator/consumator")),"") -> 3.25 | AY149: =IF(B149="X",IF(AN149="DA",IF(AX149>24,IF(BA149="NU",0,LEN(TRIM(V149))-LEN(SUBSTITUTE(V149,CHAR(44),""))+1),0),"-"),"") -> 0 | AZ149: =IF(B149="X",IF(AN149="DA",IF(AX149>24,LEN(TRIM(V149))-LEN(SUBSTITUTE(V149,CHAR(44),""))+1,0),"-"),"") -> 0 | BF149: =IF(C149="X",IF(AN149="","Afectat sau NU?",IF(AN149="DA",IF(AK149="","Neinformat",NETWORKDAYS(AK149+AL149,AE149+AF149,$BS$2:$BS$14)-2),"Nu a fost afectat producator/consumator")),"") ->  | BG149: =IF(C149="X",IF(AN149="DA",IF(AND(BF149>=5,AK149<>""),LEN(TRIM(V149))-LEN(SUBSTITUTE(V149,CHAR(44),""))+1,0),"-"),"") ->  | BH149: =IF(C149="X",IF(AN149="DA",LEN(TRIM(V149))-LEN(SUBSTITUTE(V149,CHAR(44),""))+1,"-"),"") ->  | BI149: =IF(C149="X",IF(AN149="","Afectat sau NU?",IF(AN149="DA",IF(AI149="","Neinformat",NETWORKDAYS(AI149+AJ149,AE149+AF149,$BS$2:$BS$14)-2),"Nu a fost afectat producator/consumator")),"") ->  | BJ149: =IF(C149="X",IF(AN149="DA",IF(AND(BI149>=5,AI149<>""),LEN(TRIM(U149))-LEN(SUBSTITUTE(U149,CHAR(44),""))+1,0),"-"),"") ->  | BK149: =IF(C149="X",IF(AN149="DA",LEN(TRIM(U149))-LEN(SUBSTITUTE(U149,CHAR(44),""))+1,"-"),"") ->  | BL149: =IF(C149="X",IF(AN149="","Afectat sau NU?",IF(AN149="DA",((AG149+AH149)-(Z149+AA149))*24,"Nu a fost afectat producator/consumator")),"") ->  | BM149: =IF(C149="X",IF(AN149<>"DA","-",IF(AND(AN149="DA",BL149<=0),LEN(TRIM(V149))-LEN(SUBSTITUTE(V149,CHAR(44),""))+1+LEN(TRIM(U149))-LEN(SUBSTITUTE(U149,CHAR(44),""))+1,0)),"") ->  | BN149: =IF(C149="X",IF(AN149="DA",LEN(TRIM(V149))-LEN(SUBSTITUTE(V149,CHAR(44),""))+1+LEN(TRIM(U149))-LEN(SUBSTITUTE(U149,CHAR(44),""))+1,"-"),"") -> 
A150: 135 | B150: x | C150: - | D150: Remediere defect pe conducta 20” Turcinești - Ișalnița, la subtraversare DN66, zona Bărbătești | E150: 78864 | F150: Socu | G150: Gorj | H150: 379651.02 | I150: 377092.86 | J150: 379651.02 | K150: 377092.86 | L150: - | M150: - | N150: - | O150: - | P150: - | Q150: - | R150: PM0065 | S150: Socu | T150: PM-PP001 | U150: Amromco | V150: Amromco | W150: - | X150: 2021-11-09 | Y150: 16:24:00 | Z150: 2021-11-13 | AA150: 16:00:00 | AB150: Craiova | AC150: Efectuată | AE150: 2021-11-09 | AF150: 16:24:00 | AG150: 2021-11-12 | AH150: 19:08:00 | AI150: 2021-11-09 | AJ150: 17:09:00 | AK150: 2021-11-09 | AL150: 16:59:00 | AM150: 86546/11.11.2021 | AN150: DA | AR150: =IF(B150="X",IF(AN150="","Afectat sau NU?",IF(AN150="DA",IF(((AK150+AL150)-(AE150+AF150))*24<-720,"Neinformat",((AK150+AL150)-(AE150+AF150))*24),"Nu a fost afectat producator/consumator")),"") -> 0.5833333333 | AS150: =IF(B150="X",IF(AN150="DA",IF(AR150<6,LEN(TRIM(V150))-LEN(SUBSTITUTE(V150,CHAR(44),""))+1,0),"-"),"") -> 1 | AT150: =IF(B150="X",IF(AN150="DA",LEN(TRIM(V150))-LEN(SUBSTITUTE(V150,CHAR(44),""))+1,"-"),"") -> 1 | AU150: =IF(B150="X",IF(AN150="","Afectat sau NU?",IF(AN150="DA",IF(((AI150+AJ150)-(AE150+AF150))*24<-720,"Neinformat",((AI150+AJ150)-(AE150+AF150))*24),"Nu a fost afectat producator/consumator")),"") -> 0.75 | AV150: =IF(B150="X",IF(AN150="DA",IF(AU150<6,LEN(TRIM(U150))-LEN(SUBSTITUTE(U150,CHAR(44),""))+1,0),"-"),"") -> 1 | AW150: =IF(B150="X",IF(AN150="DA",LEN(TRIM(U150))-LEN(SUBSTITUTE(U150,CHAR(44),""))+1,"-"),"") -> 1 | AX150: =IF(B150="X",IF(AN150="","Afectat sau NU?",IF(AN150="DA",((AG150+AH150)-(AE150+AF150))*24,"Nu a fost afectat producator/consumator")),"") -> 74.73333333 | AY150: =IF(B150="X",IF(AN150="DA",IF(AX150>24,IF(BA150="NU",0,LEN(TRIM(V150))-LEN(SUBSTITUTE(V150,CHAR(44),""))+1),0),"-"),"") -> 1 | AZ150: =IF(B150="X",IF(AN150="DA",IF(AX150>24,LEN(TRIM(V150))-LEN(SUBSTITUTE(V150,CHAR(44),""))+1,0),"-"),"") -> 1 | BA150: DA | BF150: =IF(C150="X",IF(AN150="","Afectat sau NU?",IF(AN150="DA",IF(AK150="","Neinformat",NETWORKDAYS(AK150+AL150,AE150+AF150,$BS$2:$BS$14)-2),"Nu a fost afectat producator/consumator")),"") ->  | BG150: =IF(C150="X",IF(AN150="DA",IF(AND(BF150>=5,AK150<>""),LEN(TRIM(V150))-LEN(SUBSTITUTE(V150,CHAR(44),""))+1,0),"-"),"") ->  | BH150: =IF(C150="X",IF(AN150="DA",LEN(TRIM(V150))-LEN(SUBSTITUTE(V150,CHAR(44),""))+1,"-"),"") ->  | BI150: =IF(C150="X",IF(AN150="","Afectat sau NU?",IF(AN150="DA",IF(AI150="","Neinformat",NETWORKDAYS(AI150+AJ150,AE150+AF150,$BS$2:$BS$14)-2),"Nu a fost afectat producator/consumator")),"") ->  | BJ150: =IF(C150="X",IF(AN150="DA",IF(AND(BI150>=5,AI150<>""),LEN(TRIM(U150))-LEN(SUBSTITUTE(U150,CHAR(44),""))+1,0),"-"),"") ->  | BK150: =IF(C150="X",IF(AN150="DA",LEN(TRIM(U150))-LEN(SUBSTITUTE(U150,CHAR(44),""))+1,"-"),"") ->  | BL150: =IF(C150="X",IF(AN150="","Afectat sau NU?",IF(AN150="DA",((AG150+AH150)-(Z150+AA150))*24,"Nu a fost afectat producator/consumator")),"") ->  | BM150: =IF(C150="X",IF(AN150<>"DA","-",IF(AND(AN150="DA",BL150<=0),LEN(TRIM(V150))-LEN(SUBSTITUTE(V150,CHAR(44),""))+1+LEN(TRIM(U150))-LEN(SUBSTITUTE(U150,CHAR(44),""))+1,0)),"") ->  | BN150: =IF(C150="X",IF(AN150="DA",LEN(TRIM(V150))-LEN(SUBSTITUTE(V150,CHAR(44),""))+1+LEN(TRIM(U150))-LEN(SUBSTITUTE(U150,CHAR(44),""))+1,"-"),"") -> 
A151: 136 | B151: x | C151: - | D151: Înlocuire robinet defect la instalația de odorizare de la SRM Avicola Târgu Jiu | E151: 77821 | F151: Târgu Jiu | G151: Gorj | H151: 364761.67 | I151: 390601.94 | J151: 364761.67 | K151: 390601.94 | L151: - | M151: - | N151: SM0083D0 | O151: SC Avicola Târgu Jiu | P151: - | Q151: - | R151: - | S151: - | T151: SM-SD001 | U151: Aderro GP, Alpha Metal, Nova Power, Cez Vânzare, Cis Gaz, Conef Gaz, Crest Energy, MVM Energy Trade, Distrigaz Vest, Engie, E.on Energie, Electrocentrale București, Electrocentrale Constanța, Electrica Furnizare, Electric Planners, Electric&Gas, Energy Distribution, Enel Energie, Enel Muntenia, Gas&Power, Entrex, Euro Seven, Premier Energy Trading, Gaz Est, Gaz Vest, Gecabuild, Getica 95, Megaconstruct, Met România, Monsson, Next Energy Distribution, Next Energy Partners, Nord Gaz, Oligopol, Premier Energy, Petrom, Gas Provider, Renovatio, Res Energy, Romgaz, RWE Supply, Tinmar, Transenergo, Veolia, Wiee, With Us | V151: Distrigaz Sud Rețele | W151: - | X151: 2021-11-19 | Y151: 10:03:00 | Z151: 2021-11-19 | AA151: 13:00:00 | AB151: Craiova | AC151: Efectuată | AE151: 2021-11-19 | AF151: 10:03:00 | AG151: 2021-11-19 | AH151: 11:00:00 | AI151: 2021-11-19 | AJ151: 10:28:00 | AK151: 2021-11-19 | AL151: 10:15:00 | AM151: 88000/17.11.2021 | AN151: DA | AR151: 0.2000000001 | AS151: 1 | AT151: 1 | AU151: 0.4166666668 | AV151: 46 | AW151: 46 | AX151: 0.9500000001 | AY151: 0 | AZ151: 0
A152: 137 | B152: x | C152: - | D152: Cuplare deviere pe conducta 6” racord SRM Giarmata Mare | E152: 157255 | F152: Giarmata | G152: Timiș | H152: 213459.45 | I152: 487919.34 | J152: 213459.45 | K152: 487919.34 | L152: - | M152: - | N152: SM0347D0 | O152: Giarmata | P152: - | Q152: - | R152: - | S152: - | T152: SM-SD001 | U152: Nova Power, Cez Vânzare, Cis Gaz, MVM Energy Trade, Distrigaz Vest, Engie, E.on Energie, Electrica Furnizare, Electric&Gas, Energy Distribution, Enel Energie, Enel Muntenia, Premier Energy Trading, Gaz Est, Gaz Vest, Met România, Premier Energy, Petrom, Gas Provider, Renovatio, Tinmar, Arovi Energy | V152: Gaz Vest | W152: - | X152: 2021-11-23 | Y152: 08:50:00 | Z152: 2021-11-23 | AA152: 16:00:00 | AB152: Arad | AC152: Efectuată | AE152: 2021-11-23 | AF152: 08:50:00 | AG152: 2021-11-23 | AH152: 13:40:00 | AI152: 2021-11-23 | AJ152: 09:28:00 | AK152: 2021-11-23 | AL152: 09:22:00 | AM152: 88938/19.11.2021 | AN152: DA | AR152: =IF(B152="X",IF(AN152="","Afectat sau NU?",IF(AN152="DA",IF(((AK152+AL152)-(AE152+AF152))*24<-720,"Neinformat",((AK152+AL152)-(AE152+AF152))*24),"Nu a fost afectat producator/consumator")),"") -> 0.5333333333 | AS152: =IF(B152="X",IF(AN152="DA",IF(AR152<6,LEN(TRIM(V152))-LEN(SUBSTITUTE(V152,CHAR(44),""))+1,0),"-"),"") -> 1 | AT152: =IF(B152="X",IF(AN152="DA",LEN(TRIM(V152))-LEN(SUBSTITUTE(V152,CHAR(44),""))+1,"-"),"") -> 1 | AU152: =IF(B152="X",IF(AN152="","Afectat sau NU?",IF(AN152="DA",IF(((AI152+AJ152)-(AE152+AF152))*24<-720,"Neinformat",((AI152+AJ152)-(AE152+AF152))*24),"Nu a fost afectat producator/consumator")),"") -> 0.6333333333 | AV152: =IF(B152="X",IF(AN152="DA",IF(AU152<6,LEN(TRIM(U152))-LEN(SUBSTITUTE(U152,CHAR(44),""))+1,0),"-"),"") -> 22 | AW152: =IF(B152="X",IF(AN152="DA",LEN(TRIM(U152))-LEN(SUBSTITUTE(U152,CHAR(44),""))+1,"-"),"") -> 22 | AX152: =IF(B152="X",IF(AN152="","Afectat sau NU?",IF(AN152="DA",((AG152+AH152)-(AE152+AF152))*24,"Nu a fost afectat producator/consumator")),"") -> 4.833333333 | AY152: =IF(B152="X",IF(AN152="DA",IF(AX152>24,IF(BA152="NU",0,LEN(TRIM(V152))-LEN(SUBSTITUTE(V152,CHAR(44),""))+1),0),"-"),"") -> 0 | AZ152: =IF(B152="X",IF(AN152="DA",IF(AX152>24,LEN(TRIM(V152))-LEN(SUBSTITUTE(V152,CHAR(44),""))+1,0),"-"),"") -> 0 | BF152: =IF(C152="X",IF(AN152="","Afectat sau NU?",IF(AN152="DA",IF(AK152="","Neinformat",NETWORKDAYS(AK152+AL152,AE152+AF152,$BS$2:$BS$14)-2),"Nu a fost afectat producator/consumator")),"") ->  | BG152: =IF(C152="X",IF(AN152="DA",IF(AND(BF152>=5,AK152<>""),LEN(TRIM(V152))-LEN(SUBSTITUTE(V152,CHAR(44),""))+1,0),"-"),"") ->  | BH152: =IF(C152="X",IF(AN152="DA",LEN(TRIM(V152))-LEN(SUBSTITUTE(V152,CHAR(44),""))+1,"-"),"") ->  | BI152: =IF(C152="X",IF(AN152="","Afectat sau NU?",IF(AN152="DA",IF(AI152="","Neinformat",NETWORKDAYS(AI152+AJ152,AE152+AF152,$BS$2:$BS$14)-2),"Nu a fost afectat producator/consumator")),"") ->  | BJ152: =IF(C152="X",IF(AN152="DA",IF(AND(BI152>=5,AI152<>""),LEN(TRIM(U152))-LEN(SUBSTITUTE(U152,CHAR(44),""))+1,0),"-"),"") ->  | BK152: =IF(C152="X",IF(AN152="DA",LEN(TRIM(U152))-LEN(SUBSTITUTE(U152,CHAR(44),""))+1,"-"),"") ->  | BL152: =IF(C152="X",IF(AN152="","Afectat sau NU?",IF(AN152="DA",((AG152+AH152)-(Z152+AA152))*24,"Nu a fost afectat producator/consumator")),"") ->  | BM152: =IF(C152="X",IF(AN152<>"DA","-",IF(AND(AN152="DA",BL152<=0),LEN(TRIM(V152))-LEN(SUBSTITUTE(V152,CHAR(44),""))+1+LEN(TRIM(U152))-LEN(SUBSTITUTE(U152,CHAR(44),""))+1,0)),"") ->  | BN152: =IF(C152="X",IF(AN152="DA",LEN(TRIM(V152))-LEN(SUBSTITUTE(V152,CHAR(44),""))+1+LEN(TRIM(U152))-LEN(SUBSTITUTE(U152,CHAR(44),""))+1,"-"),"") -> 
A153: =SUM(1,A152) -> 138 | B153: - | C153: x | D153: Montare Panou de Măsurare suplimentar la SRM Cernica | E153: 101751 | F153: Cernica | G153: Ilfov | H153: 600476 | I153: 327360.98 | J153: 600476 | K153: 327360.98 | L153: - | M153: - | N153: SM0162D0 | O153: Cernica | P153: - | Q153: - | R153: - | S153: - | T153: SM-SD001 | U153: Alpha Metal, Nova Power, Cez Vânzare, Cis Gaz, Conef Gaz, Crest Energy, Distrigaz Sud Retele, Distrigaz Vest, Engie, E.on Energie, Electrocentrale București, Electrocentrale Constanța, Electrica Furnizare, Electric Planners, Energy Distribution, Enel Energie, Enel Muntenia, Gas&Power, Entrex, Euro Seven, Eye Mall, Premier Energy Trading, Gas&Power Trading, Gaz Est, Getica 95, Megaconstruct, Met România, Monsson, MVM Future, Next Energy Distribution, Next Energy Partners, Nord Gaz, Premier Energy, Petrom, Gas Provider, Renovatio, Romgaz, RWE Supply, Sustainable Energy, Tinmar, Transenergo, Wiee | V153: Distrigaz Sud Rețele | W153: mai - septembrie 2022 | X153: 2022-09-15 | Y153: 09:00:00 | Z153: 2022-09-15 | AA153: 15:00:00 | AB153: București | AC153: Efectuată | AE153: 2022-09-15 | AF153: 09:00:00 | AG153: 2022-09-15 | AH153: 14:50:00 | AI153: 2022-09-06 | AJ153: 09:42:00 | AK153: 2022-09-06 | AL153: 08:43:00 | AM153: 71835/13.09.2022 | AN153: DA | AP153: Forțe proprii | BF153: 6 | BG153: 1 | BH153: 1 | BI153: 6 | BJ153: 42 | BK153: 42 | BL153: -0.1666666667 | BM153: 43 | BN153: 43
A154: 139 | B154: - | C154: x | D154: Mentenanță la SRM 16 Februarie | E154: 403 | F154: București | G154: București | H154: 580043.32 | I154: 331375.9 | J154: 580043.32 | K154: 331375.9 | L154: - | M154: - | N154: SM0144D0 | O154: București 16 Februarie | P154: - | Q154: - | R154: - | S154: - | T154: SM-SD001 | U154: Alpha Metal, Nova Power, Cez Vânzare, Cis Gaz, Conef Gaz, Crest Energy, Distrigaz Vest, Engie, E.on Energie, Electrocentrale București, Electrocentrale Constanța, Electrica Furnizare, Electric Planners, Energy Distribution, Enel Energie, Enel Muntenia, Gas&Power, Entrex, Euro Seven, Eye Mall, Premier Energy Trading, Gas&Power Trading, Gaz Est, Getica 95, Megaconstruct, Met România, Monsson, MVM Future, Next Energy Distribution, Next Energy Partners, Nord Gaz, Premier Energy, Petrom, Gas Provider, Renovatio, Romgaz, RWE Supply, Sustainable Energy, Tinmar, Transenergo, Wiee | V154: Distrigaz Sud Rețele | W154: mai - septembrie 2022 | X154: 2022-05-31 | Y154: 10:00:00 | Z154: 2022-06-24 | AA154: 10:00:00 | AB154: București | AC154: Efectuată | AE154: 2022-05-31 | AF154: 10:00:00 | AG154: 2022-06-24 | AH154: 09:51:00 | AI154: 2022-05-16 | AJ154: 10:28:00 | AK154: 2022-05-16 | AL154: 10:21:00 | AM154: 43249/30.05.2022 | AN154: NU | AP154: Forțe proprii | AR154: =IF(B154="X",IF(AN154="","Afectat sau NU?",IF(AN154="DA",IF(((AK154+AL154)-(AE154+AF154))*24<-720,"Neinformat",((AK154+AL154)-(AE154+AF154))*24),"Nu a fost afectat producator/consumator")),"") ->  | AS154: =IF(B154="X",IF(AN154="DA",IF(AR154<6,LEN(TRIM(V154))-LEN(SUBSTITUTE(V154,CHAR(44),""))+1,0),"-"),"") ->  | AT154: =IF(B154="X",IF(AN154="DA",LEN(TRIM(V154))-LEN(SUBSTITUTE(V154,CHAR(44),""))+1,"-"),"") ->  | AU154: =IF(B154="X",IF(AN154="","Afectat sau NU?",IF(AN154="DA",IF(((AI154+AJ154)-(AE154+AF154))*24<-720,"Neinformat",((AI154+AJ154)-(AE154+AF154))*24),"Nu a fost afectat producator/consumator")),"") ->  | AV154: =IF(B154="X",IF(AN154="DA",IF(AU154<6,LEN(TRIM(U154))-LEN(SUBSTITUTE(U154,CHAR(44),""))+1,0),"-"),"") ->  | AW154: =IF(B154="X",IF(AN154="DA",LEN(TRIM(U154))-LEN(SUBSTITUTE(U154,CHAR(44),""))+1,"-"),"") ->  | AX154: =IF(B154="X",IF(AN154="","Afectat sau NU?",IF(AN154="DA",((AG154+AH154)-(AE154+AF154))*24,"Nu a fost afectat producator/consumator")),"") ->  | AY154: =IF(B154="X",IF(AN154="DA",IF(AX154>24,IF(BA154="NU",0,LEN(TRIM(V154))-LEN(SUBSTITUTE(V154,CHAR(44),""))+1),0),"-"),"") ->  | AZ154: =IF(B154="X",IF(AN154="DA",IF(AX154>24,LEN(TRIM(V154))-LEN(SUBSTITUTE(V154,CHAR(44),""))+1,0),"-"),"") ->  | BF154: =IF(C154="X",IF(AN154="","Afectat sau NU?",IF(AN154="DA",IF(AK154="","Neinformat",NETWORKDAYS(AK154+AL154,AE154+AF154,$BS$2:$BS$14)-2),"Nu a fost afectat producator/consumator")),"") -> Nu a fost afectat producator/consumator | BG154: =IF(C154="X",IF(AN154="DA",IF(AND(BF154>=5,AK154<>""),LEN(TRIM(V154))-LEN(SUBSTITUTE(V154,CHAR(44),""))+1,0),"-"),"") -> - | BH154: =IF(C154="X",IF(AN154="DA",LEN(TRIM(V154))-LEN(SUBSTITUTE(V154,CHAR(44),""))+1,"-"),"") -> - | BI154: =IF(C154="X",IF(AN154="","Afectat sau NU?",IF(AN154="DA",IF(AI154="","Neinformat",NETWORKDAYS(AI154+AJ154,AE154+AF154,$BS$2:$BS$14)-2),"Nu a fost afectat producator/consumator")),"") -> Nu a fost afectat producator/consumator | BJ154: =IF(C154="X",IF(AN154="DA",IF(AND(BI154>=5,AI154<>""),LEN(TRIM(U154))-LEN(SUBSTITUTE(U154,CHAR(44),""))+1,0),"-"),"") -> - | BK154: =IF(C154="X",IF(AN154="DA",LEN(TRIM(U154))-LEN(SUBSTITUTE(U154,CHAR(44),""))+1,"-"),"") -> - | BL154: =IF(C154="X",IF(AN154="","Afectat sau NU?",IF(AN154="DA",((AG154+AH154)-(Z154+AA154))*24,"Nu a fost afectat producator/consumator")),"") -> Nu a fost afectat producator/consumator | BM154: =IF(C154="X",IF(AN154<>"DA","-",IF(AND(AN154="DA",BL154<=0),LEN(TRIM(V154))-LEN(SUBSTITUTE(V154,CHAR(44),""))+1+LEN(TRIM(U154))-LEN(SUBSTITUTE(U154,CHAR(44),""))+1,0)),"") -> - | BN154: =IF(C154="X",IF(AN154="DA",LEN(TRIM(V154))-LEN(SUBSTITUTE(V154,CHAR(44),""))+1+LEN(TRIM(U154))-LEN(SUBSTITUTE(U154,CHAR(44),""))+1,"-"),"") -> -
A155: 140 | B155: - | C155: x | D155: Mentenanță la SRM CET Vest București | E155: 403 | F155: București | G155: București | H155: 577613.28 | I155: 325143.01 | J155: 577613.28 | K155: 325143.01 | L155: - | M155: - | N155: SM0151D0 | O155: București Cet Vest | P155: - | Q155: - | R155: - | S155: - | T155: SM-SD001 | U155: Alpha Metal, Nova Power, Cez Vânzare, Cis Gaz, Conef Gaz, Crest Energy, Distrigaz Vest, Engie, E.on Energie, Electrocentrale București, Electrocentrale Constanța, Electrica Furnizare, Electric Planners, Energy Distribution, Enel Energie, Enel Muntenia, Gas&Power, Entrex, Euro Seven, Eye Mall, Premier Energy Trading, Gas&Power Trading, Gaz Est, Getica 95, Megaconstruct, Met România, Monsson, MVM Future, Next Energy Distribution, Next Energy Partners, Nord Gaz, Premier Energy, Petrom, Gas Provider, Renovatio, Romgaz, RWE Supply, Sustainable Energy, Tinmar, Transenergo, Wiee | V155: Distrigaz Sud Rețele | W155: mai - septembrie 2022 | X155: 2022-07-25 | Y155: 10:00:00 | Z155: 2022-08-19 | AA155: 10:00:00 | AB155: București | AC155: Efectuată | AE155: 2022-07-25 | AF155: 10:00:00 | AG155: 2022-08-19 | AH155: 10:00:00 | AI155: 2022-07-15 | AJ155: 11:30:00 | AK155: 2022-07-15 | AL155: 10:33:00 | AM155: 58198/22.07.2022 | AN155: NU | AP155: Forțe proprii | BF155: Nu a fost afectat producator/consumator | BG155: - | BH155: - | BI155: Nu a fost afectat producator/consumator | BJ155: - | BK155: - | BL155: Nu a fost afectat producator/consumator | BM155: - | BN155: -
A156: 141 | B156: - | C156: x | D156: Mentenanță la SRM Titan București | E156: 403 | F156: București | G156: București | H156: 594982.35 | I156: 325100.93 | J156: 594982.35 | K156: 325100.93 | L156: - | M156: - | N156: SM0157D0 | O156: București Titan | P156: - | Q156: - | R156: - | S156: - | T156: SM-SD001 | U156: Alpha Metal, Nova Power, Cez Vânzare, Cis Gaz, Conef Gaz, Crest Energy, Distrigaz Vest, Engie, E.on Energie, Electrocentrale București, Electrocentrale Constanța, Electrica Furnizare, Electric Planners, Energy Distribution, Enel Energie, Enel Muntenia, Gas&Power, Entrex, Euro Seven, Eye Mall, Premier Energy Trading, Gas&Power Trading, Gaz Est, C-Gaz&Energy, Getica 95, Megaconstruct, Met România, Monsson, MVM Future, Next Energy Distribution, Next Energy Partners, Nord Gaz, Premier Energy, Petrom, Gas Provider, Renovatio, Romgaz, RWE Supply, Sustainable Energy, Tinmar, Transenergo, Wiee | V156: Distrigaz Sud Rețele | W156: mai - septembrie 2022 | X156: 2022-06-27 | Y156: 10:00:00 | Z156: 2022-07-22 | AA156: 10:00:00 | AB156: București | AC156: Efectuată | AE156: 2022-06-27 | AF156: 10:00:00 | AG156: 2022-07-22 | AH156: 09:58:00 | AI156: 2022-06-17 | AJ156: 09:55:00 | AK156: 2022-06-17 | AL156: 09:46:00 | AM156: 50008/23.06.2022 | AN156: NU | AP156: Forțe proprii | BF156: Nu a fost afectat producator/consumator | BG156: - | BH156: - | BI156: Nu a fost afectat producator/consumator | BJ156: - | BK156: - | BL156: =IF(C156="X",IF(AN156="","Afectat sau NU?",IF(AN156="DA",((AG156+AH156)-(Z156+AA156))*24,"Nu a fost afectat producator/consumator")),"") -> Nu a fost afectat producator/consumator | BM156: - | BN156: -
A157: 142 | B157: - | C157: x | D157: Mentenanță la SRM Măgurele București, Etapa I | E157: 179418 | F157: Măgurele | G157: Ilfov | H157: 583333.36 | I157: 319855.82 | J157: 583333.36 | K157: 319855.82 | L157: - | M157: - | N157: SM0252D0 | O157: Măgurele București | P157: - | Q157: - | R157: - | S157: - | T157: SM-SD001 | U157: Alpha Metal, Nova Power, Cez Vânzare, Cis Gaz, Conef Gaz, Crest Energy, Distrigaz Vest, Engie, E.on Energie, Electrocentrale București, Electrocentrale Constanța, Electrica Furnizare, Electric Planners, Energy Distribution, Enel Energie, Enel Muntenia, Gas&Power, Entrex, Euro Seven, Premier Energy Trading, Gas&Power Trading, Gaz Est, Gecabuild, Getica 95, Megaconstruct, Met România, Monsson, MVM Future, Next Energy Distribution, Next Energy Partners, Nord Gaz, Premier Energy, Petrom, Gas Provider, Renovatio, Romgaz, RWE Supply, Sustainable Energy, Tinmar, Transenergo, Wiee | V157: Distrigaz Sud Rețele | W157: mai - septembrie 2022 | X157: 2022-05-02 | Y157: 10:00:00 | Z157: 2022-05-30 | AA157: 10:00:00 | AB157: București | AC157: Efectuată | AE157: 2022-05-02 | AF157: 10:00:00 | AG157: 2022-05-30 | AH157: 10:00:00 | AI157: 2022-04-20 | AJ157: 10:16:00 | AK157: 2022-04-20 | AL157: 10:07:00 | AM157: 33789/29.04.2022 | AN157: NU | AP157: Forțe proprii | BF157: Nu a fost afectat producator/consumator | BG157: - | BH157: - | BI157: Nu a fost afectat producator/consumator | BJ157: - | BK157: - | BL157: =IF(C157="X",IF(AN157="","Afectat sau NU?",IF(AN157="DA",((AG157+AH157)-(Z157+AA157))*24,"Nu a fost afectat producator/consumator")),"") -> Nu a fost afectat producator/consumator | BM157: - | BN157: -
B158: - | C158: x | D158: Mentenanță la SRM Măgurele București, Etapa II | E158: 179418 | F158: Măgurele | G158: Ilfov | H158: 583333.36 | I158: 319855.82 | J158: 583333.36 | K158: 319855.82 | L158: - | M158: - | N158: SM0252D0 | O158: Măgurele București | P158: - | Q158: - | R158: - | S158: - | T158: SM-SD001 | V158: Distrigaz Sud Rețele | W158: mai - septembrie 2022 | X158: 2022-08-22 | Y158: 10:00:00 | Z158: 2022-09-30 | AA158: 10:00:00 | AB158: București | AI158: 2022-08-11 | AJ158: 13:26:00 | AK158: 2022-08-11 | AL158: 13:13:00 | AM158: 65044/18.08.2022 | AR158: =IF(B158="X",IF(AN158="","Afectat sau NU?",IF(AN158="DA",IF(((AK158+AL158)-(AE158+AF158))*24<-720,"Neinformat",((AK158+AL158)-(AE158+AF158))*24),"Nu a fost afectat producator/consumator")),"") ->  | AS158: =IF(B158="X",IF(AN158="DA",IF(AR158<6,LEN(TRIM(V158))-LEN(SUBSTITUTE(V158,CHAR(44),""))+1,0),"-"),"") ->  | AT158: =IF(B158="X",IF(AN158="DA",LEN(TRIM(V158))-LEN(SUBSTITUTE(V158,CHAR(44),""))+1,"-"),"") ->  | AU158: =IF(B158="X",IF(AN158="","Afectat sau NU?",IF(AN158="DA",IF(((AI158+AJ158)-(AE158+AF158))*24<-720,"Neinformat",((AI158+AJ158)-(AE158+AF158))*24),"Nu a fost afectat producator/consumator")),"") ->  | AV158: =IF(B158="X",IF(AN158="DA",IF(AU158<6,LEN(TRIM(U158))-LEN(SUBSTITUTE(U158,CHAR(44),""))+1,0),"-"),"") ->  | AW158: =IF(B158="X",IF(AN158="DA",LEN(TRIM(U158))-LEN(SUBSTITUTE(U158,CHAR(44),""))+1,"-"),"") ->  | AX158: =IF(B158="X",IF(AN158="","Afectat sau NU?",IF(AN158="DA",((AG158+AH158)-(AE158+AF158))*24,"Nu a fost afectat producator/consumator")),"") ->  | AY158: =IF(B158="X",IF(AN158="DA",IF(AX158>24,IF(BA158="NU",0,LEN(TRIM(V158))-LEN(SUBSTITUTE(V158,CHAR(44),""))+1),0),"-"),"") ->  | AZ158: =IF(B158="X",IF(AN158="DA",IF(AX158>24,LEN(TRIM(V158))-LEN(SUBSTITUTE(V158,CHAR(44),""))+1,0),"-"),"") ->  | BF158: =IF(C158="X",IF(AN158="","Afectat sau NU?",IF(AN158="DA",IF(AK158="","Neinformat",NETWORKDAYS(AK158+AL158,AE158+AF158,$BS$2:$BS$14)-2),"Nu a fost afectat producator/consumator")),"") -> Afectat sau NU? | BG158: =IF(C158="X",IF(AN158="DA",IF(AND(BF158>=5,AK158<>""),LEN(TRIM(V158))-LEN(SUBSTITUTE(V158,CHAR(44),""))+1,0),"-"),"") -> - | BH158: =IF(C158="X",IF(AN158="DA",LEN(TRIM(V158))-LEN(SUBSTITUTE(V158,CHAR(44),""))+1,"-"),"") -> - | BI158: =IF(C158="X",IF(AN158="","Afectat sau NU?",IF(AN158="DA",IF(AI158="","Neinformat",NETWORKDAYS(AI158+AJ158,AE158+AF158,$BS$2:$BS$14)-2),"Nu a fost afectat producator/consumator")),"") -> Afectat sau NU? | BJ158: =IF(C158="X",IF(AN158="DA",IF(AND(BI158>=5,AI158<>""),LEN(TRIM(U158))-LEN(SUBSTITUTE(U158,CHAR(44),""))+1,0),"-"),"") -> - | BK158: =IF(C158="X",IF(AN158="DA",LEN(TRIM(U158))-LEN(SUBSTITUTE(U158,CHAR(44),""))+1,"-"),"") -> - | BL158: =IF(C158="X",IF(AN158="","Afectat sau NU?",IF(AN158="DA",((AG158+AH158)-(Z158+AA158))*24,"Nu a fost afectat producator/consumator")),"") -> Afectat sau NU? | BM158: =IF(C158="X",IF(AN158<>"DA","-",IF(AND(AN158="DA",BL158<=0),LEN(TRIM(V158))-LEN(SUBSTITUTE(V158,CHAR(44),""))+1+LEN(TRIM(U158))-LEN(SUBSTITUTE(U158,CHAR(44),""))+1,0)),"") -> - | BN158: =IF(C158="X",IF(AN158="DA",LEN(TRIM(V158))-LEN(SUBSTITUTE(V158,CHAR(44),""))+1+LEN(TRIM(U158))-LEN(SUBSTITUTE(U158,CHAR(44),""))+1,"-"),"") -> -
A159: =SUM(1,A157) -> 143 | B159: - | C159: x | D159: Înlocuire instalație mecanică la SRM Finta | E159: 67489 | F159: Finta | G159: Dâmbovița | H159: 563895 | I159: 366569.11 | J159: 563895 | K159: 366569.11 | L159: - | M159: - | N159: SM0141D0 | O159: Finta | P159: - | Q159: - | R159: - | S159: - | T159: SM-SD001 | V159: Distrigaz Sud Rețele | W159: mai - septembrie 2022 anul gazier 2022 - 2023 | AB159: București | AD159: Întârzieri în aprovizionarea cu materiale necesare | AP159: Forțe proprii | BF159: Afectat sau NU? | BG159: - | BH159: - | BI159: Afectat sau NU? | BJ159: - | BK159: - | BL159: Afectat sau NU? | BM159: - | BN159: -
A160: 144 | B160: - | C160: x | D160: Înlocuire flansă electroizolantă pe racord SRM Vidra | E160: 105945 | F160: Vidra | G160: Ilfov | H160: 588819.98 | I160: 315459.76 | J160: 588819.98 | K160: 315459.76 | L160: - | M160: - | N160: SM0152D0 | O160: Vidra | P160: - | Q160: - | R160: - | S160: - | T160: SM-SD001 | V160: Distrigaz Sud Rețele | W160: mai - septembrie 2022 anul gazier 2022 - 2023 | AB160: București | AD160: Întârzieri în aprovizionarea cu materiale necesare | AP160: Forțe proprii | BF160: Afectat sau NU? | BG160: - | BH160: - | BI160: Afectat sau NU? | BJ160: - | BK160: - | BL160: Afectat sau NU? | BM160: - | BN160: -
A161: =A160+1 -> 145 | B161: x | C161: - | D161: Remediere în regim de urgență a unui defect pe conducta DN125 racord SRM SC Agricola Internațional Bacău | E161: 24720 | F161: Racova | G161: Bacău | H161: 635949.11 | I161: 581447.72 | J161: 635949.11 | K161: 581447.72 | L161: - | M161: - | N161: SM0447D0 | O161: SC Agricola Internațional Bacău | P161: - | Q161: - | R161: - | S161: - | T161: SM-CF001 | U161: E.on Energie, Premier Energy | V161: SC Agricola Internațional SA | W161: - | X161: 2021-12-11 | Y161: 16:45:00 | Z161: 2021-12-11 | AA161: 21:45:00 | AB161: Bacău | AC161: Efectuată | AE161: 2021-12-11 | AF161: 16:45:00 | AG161: 2021-12-11 | AH161: 23:40:00 | AI161: 2021-12-11 | AJ161: 16:55:00 | AK161: 2021-12-11 | AL161: 16:45:00 | AM161: - | AN161: DA | AR161: 0 | AS161: 1 | AT161: 1 | AU161: 0.1666666667 | AV161: 2 | AW161: 2 | AX161: 6.916666667 | AY161: 0 | AZ161: 0
A162: 146 | B162: x | C162: - | D162: Cuplare deviere pe conducă 20” Schitu Golești - Slătioarele, zona Bascov | E162: 14860 | F162: Budeasa Mare | G162: Argeș | H162: 487890.58 | I162: 379301.78 | J162: 487890.58 | K162: 379301.78 | L162: - | M162: - | N162: SM1131D0 | O162: Budeasa | P162: - | Q162: - | R162: - | S162: - | T162: SM-SD001 | U162: Nova Power, Cez Vânzare, Engie, Energy Distribution, Enel Energie, Enel Muntenia, Premier Energy Trading, Premier Energy, Petrom, Renovatio, Tehnologica Radion | V162: SC Tehnologica Radion SRL | W162: - | X162: 2021-12-15 | Y162: 09:30:00 | Z162: 2021-12-16 | AA162: 15:00:00 | AB162: Craiova | AC162: Efectuată | AE162: 2021-12-15 | AF162: 09:30:00 | AG162: 2021-12-16 | AH162: 11:15:00 | AI162: 2021-12-15 | AJ162: 09:47:00 | AK162: 2021-12-15 | AL162: 09:36:00 | AM162: 92548/06.12.2021 | AN162: DA | AR162: =IF(B162="X",IF(AN162="","Afectat sau NU?",IF(AN162="DA",IF(((AK162+AL162)-(AE162+AF162))*24<-720,"Neinformat",((AK162+AL162)-(AE162+AF162))*24),"Nu a fost afectat producator/consumator")),"") -> 0.09999999998 | AS162: =IF(B162="X",IF(AN162="DA",IF(AR162<6,LEN(TRIM(V162))-LEN(SUBSTITUTE(V162,CHAR(44),""))+1,0),"-"),"") -> 1 | AT162: =IF(B162="X",IF(AN162="DA",LEN(TRIM(V162))-LEN(SUBSTITUTE(V162,CHAR(44),""))+1,"-"),"") -> 1 | AU162: =IF(B162="X",IF(AN162="","Afectat sau NU?",IF(AN162="DA",IF(((AI162+AJ162)-(AE162+AF162))*24<-720,"Neinformat",((AI162+AJ162)-(AE162+AF162))*24),"Nu a fost afectat producator/consumator")),"") -> 0.2833333332 | AV162: =IF(B162="X",IF(AN162="DA",IF(AU162<6,LEN(TRIM(U162))-LEN(SUBSTITUTE(U162,CHAR(44),""))+1,0),"-"),"") -> 11 | AW162: =IF(B162="X",IF(AN162="DA",LEN(TRIM(U162))-LEN(SUBSTITUTE(U162,CHAR(44),""))+1,"-"),"") -> 11 | AX162: =IF(B162="X",IF(AN162="","Afectat sau NU?",IF(AN162="DA",((AG162+AH162)-(AE162+AF162))*24,"Nu a fost afectat producator/consumator")),"") -> 25.75 | AY162: =IF(B162="X",IF(AN162="DA",IF(AX162>24,IF(BA162="NU",0,LEN(TRIM(V162))-LEN(SUBSTITUTE(V162,CHAR(44),""))+1),0),"-"),"") -> 1 | AZ162: =IF(B162="X",IF(AN162="DA",IF(AX162>24,LEN(TRIM(V162))-LEN(SUBSTITUTE(V162,CHAR(44),""))+1,0),"-"),"") -> 1 | BA162: DA | BF162: =IF(C162="X",IF(AN162="","Afectat sau NU?",IF(AN162="DA",IF(AK162="","Neinformat",NETWORKDAYS(AK162+AL162,AE162+AF162,$BS$2:$BS$14)-2),"Nu a fost afectat producator/consumator")),"") ->  | BG162: =IF(C162="X",IF(AN162="DA",IF(AND(BF162>=5,AK162<>""),LEN(TRIM(V162))-LEN(SUBSTITUTE(V162,CHAR(44),""))+1,0),"-"),"") ->  | BH162: =IF(C162="X",IF(AN162="DA",LEN(TRIM(V162))-LEN(SUBSTITUTE(V162,CHAR(44),""))+1,"-"),"") ->  | BI162: =IF(C162="X",IF(AN162="","Afectat sau NU?",IF(AN162="DA",IF(AI162="","Neinformat",NETWORKDAYS(AI162+AJ162,AE162+AF162,$BS$2:$BS$14)-2),"Nu a fost afectat producator/consumator")),"") ->  | BJ162: =IF(C162="X",IF(AN162="DA",IF(AND(BI162>=5,AI162<>""),LEN(TRIM(U162))-LEN(SUBSTITUTE(U162,CHAR(44),""))+1,0),"-"),"") ->  | BK162: =IF(C162="X",IF(AN162="DA",LEN(TRIM(U162))-LEN(SUBSTITUTE(U162,CHAR(44),""))+1,"-"),"") ->  | BL162: =IF(C162="X",IF(AN162="","Afectat sau NU?",IF(AN162="DA",((AG162+AH162)-(Z162+AA162))*24,"Nu a fost afectat producator/consumator")),"") ->  | BM162: =IF(C162="X",IF(AN162<>"DA","-",IF(AND(AN162="DA",BL162<=0),LEN(TRIM(V162))-LEN(SUBSTITUTE(V162,CHAR(44),""))+1+LEN(TRIM(U162))-LEN(SUBSTITUTE(U162,CHAR(44),""))+1,0)),"") ->  | BN162: =IF(C162="X",IF(AN162="DA",LEN(TRIM(V162))-LEN(SUBSTITUTE(V162,CHAR(44),""))+1+LEN(TRIM(U162))-LEN(SUBSTITUTE(U162,CHAR(44),""))+1,"-"),"") -> 
A163: 147 | B163: x | C163: - | D163: Înlocuire clapetă de sens cu mosor la SRM Fundeni | E163: 103023 | F163: Fundeni | G163: Călărași | H163: 611849.99 | I163: 322444.53 | J163: 611849.99 | K163: 322444.53 | L163: - | M163: - | N163: SM1302D0 | O163: Fundeni | P163: - | Q163: - | R163: - | S163: - | T163: SM-SD001 | U163: Cez Vânzare, Cis Gaz, Dornacor Invest, Engie, Enel Energie, Enel Muntenia, Premier Energy Trading, Met România, Premier Energy, Petrom, Tinmar | V163: Donacor Invest SRL | W163: - | X163: 2022-01-21 | Y163: 10:28:00 | Z163: 2022-01-21 | AA163: 13:00:00 | AB163: București | AC163: Efectuată | AE163: 2022-01-21 | AF163: 10:28:00 | AG163: 2022-01-21 | AH163: 10:40:00 | AI163: 2022-01-21 | AJ163: 10:47:00 | AK163: 2022-01-21 | AL163: 10:39:00 | AM163: 4951/20.01.2022 | AN163: DA | AR163: =IF(B163="X",IF(AN163="","Afectat sau NU?",IF(AN163="DA",IF(((AK163+AL163)-(AE163+AF163))*24<-720,"Neinformat",((AK163+AL163)-(AE163+AF163))*24),"Nu a fost afectat producator/consumator")),"") -> 0.1833333332 | AS163: =IF(B163="X",IF(AN163="DA",IF(AR163<6,LEN(TRIM(V163))-LEN(SUBSTITUTE(V163,CHAR(44),""))+1,0),"-"),"") -> 1 | AT163: =IF(B163="X",IF(AN163="DA",LEN(TRIM(V163))-LEN(SUBSTITUTE(V163,CHAR(44),""))+1,"-"),"") -> 1 | AU163: =IF(B163="X",IF(AN163="","Afectat sau NU?",IF(AN163="DA",IF(((AI163+AJ163)-(AE163+AF163))*24<-720,"Neinformat",((AI163+AJ163)-(AE163+AF163))*24),"Nu a fost afectat producator/consumator")),"") -> 0.3166666667 | AV163: =IF(B163="X",IF(AN163="DA",IF(AU163<6,LEN(TRIM(U163))-LEN(SUBSTITUTE(U163,CHAR(44),""))+1,0),"-"),"") -> 11 | AW163: =IF(B163="X",IF(AN163="DA",LEN(TRIM(U163))-LEN(SUBSTITUTE(U163,CHAR(44),""))+1,"-"),"") -> 11 | AX163: =IF(B163="X",IF(AN163="","Afectat sau NU?",IF(AN163="DA",((AG163+AH163)-(AE163+AF163))*24,"Nu a fost afectat producator/consumator")),"") -> 0.2 | AY163: =IF(B163="X",IF(AN163="DA",IF(AX163>24,IF(BA163="NU",0,LEN(TRIM(V163))-LEN(SUBSTITUTE(V163,CHAR(44),""))+1),0),"-"),"") -> 0 | AZ163: =IF(B163="X",IF(AN163="DA",IF(AX163>24,LEN(TRIM(V163))-LEN(SUBSTITUTE(V163,CHAR(44),""))+1,0),"-"),"") -> 0 | BF163: =IF(C163="X",IF(AN163="","Afectat sau NU?",IF(AN163="DA",IF(AK163="","Neinformat",NETWORKDAYS(AK163+AL163,AE163+AF163,$BS$2:$BS$14)-2),"Nu a fost afectat producator/consumator")),"") ->  | BG163: =IF(C163="X",IF(AN163="DA",IF(AND(BF163>=5,AK163<>""),LEN(TRIM(V163))-LEN(SUBSTITUTE(V163,CHAR(44),""))+1,0),"-"),"") ->  | BH163: =IF(C163="X",IF(AN163="DA",LEN(TRIM(V163))-LEN(SUBSTITUTE(V163,CHAR(44),""))+1,"-"),"") ->  | BI163: =IF(C163="X",IF(AN163="","Afectat sau NU?",IF(AN163="DA",IF(AI163="","Neinformat",NETWORKDAYS(AI163+AJ163,AE163+AF163,$BS$2:$BS$14)-2),"Nu a fost afectat producator/consumator")),"") ->  | BJ163: =IF(C163="X",IF(AN163="DA",IF(AND(BI163>=5,AI163<>""),LEN(TRIM(U163))-LEN(SUBSTITUTE(U163,CHAR(44),""))+1,0),"-"),"") ->  | BK163: =IF(C163="X",IF(AN163="DA",LEN(TRIM(U163))-LEN(SUBSTITUTE(U163,CHAR(44),""))+1,"-"),"") ->  | BL163: =IF(C163="X",IF(AN163="","Afectat sau NU?",IF(AN163="DA",((AG163+AH163)-(Z163+AA163))*24,"Nu a fost afectat producator/consumator")),"") ->  | BM163: =IF(C163="X",IF(AN163<>"DA","-",IF(AND(AN163="DA",BL163<=0),LEN(TRIM(V163))-LEN(SUBSTITUTE(V163,CHAR(44),""))+1+LEN(TRIM(U163))-LEN(SUBSTITUTE(U163,CHAR(44),""))+1,0)),"") ->  | BN163: =IF(C163="X",IF(AN163="DA",LEN(TRIM(V163))-LEN(SUBSTITUTE(V163,CHAR(44),""))+1+LEN(TRIM(U163))-LEN(SUBSTITUTE(U163,CHAR(44),""))+1,"-"),"") -> 
A164: 148 | B164: x | C164: - | D164: Înlocuire contor defect în SRM Lengyel Arcuș | E164: 64924 | F164: Arcuș | G164: Covasna | H164: 562663.42 | I164: 487853.33 | J164: 562663.42 | K164: 487853.33 | L164: - | M164: - | N164: SM0390D0 | O164: SC Lengyel Arcus | P164: - | Q164: - | R164: - | S164: - | T164: SM-CF001 | U164: Engie, Premier Energy Trading | V164: Import Export Lengyel SRL | W164: - | X164: 2022-01-26 | Y164: 12:00:00 | Z164: 2022-01-26 | AA164: 14:00:00 | AB164: Brașov | AC164: Efectuată | AE164: 2022-01-26 | AF164: 12:00:00 | AG164: 2022-01-26 | AH164: 13:30:00 | AI164: 2022-01-26 | AJ164: 12:20:00 | AK164: 2022-01-26 | AL164: 12:14:00 | AM164: 147/26.01.2022 | AN164: DA | AR164: =IF(B164="X",IF(AN164="","Afectat sau NU?",IF(AN164="DA",IF(((AK164+AL164)-(AE164+AF164))*24<-720,"Neinformat",((AK164+AL164)-(AE164+AF164))*24),"Nu a fost afectat producator/consumator")),"") -> 0.2333333334 | AS164: =IF(B164="X",IF(AN164="DA",IF(AR164<6,LEN(TRIM(V164))-LEN(SUBSTITUTE(V164,CHAR(44),""))+1,0),"-"),"") -> 1 | AT164: =IF(B164="X",IF(AN164="DA",LEN(TRIM(V164))-LEN(SUBSTITUTE(V164,CHAR(44),""))+1,"-"),"") -> 1 | AU164: =IF(B164="X",IF(AN164="","Afectat sau NU?",IF(AN164="DA",IF(((AI164+AJ164)-(AE164+AF164))*24<-720,"Neinformat",((AI164+AJ164)-(AE164+AF164))*24),"Nu a fost afectat producator/consumator")),"") -> 0.3333333334 | AV164: =IF(B164="X",IF(AN164="DA",IF(AU164<6,LEN(TRIM(U164))-LEN(SUBSTITUTE(U164,CHAR(44),""))+1,0),"-"),"") -> 2 | AW164: =IF(B164="X",IF(AN164="DA",LEN(TRIM(U164))-LEN(SUBSTITUTE(U164,CHAR(44),""))+1,"-"),"") -> 2 | AX164: =IF(B164="X",IF(AN164="","Afectat sau NU?",IF(AN164="DA",((AG164+AH164)-(AE164+AF164))*24,"Nu a fost afectat producator/consumator")),"") -> 1.5 | AY164: =IF(B164="X",IF(AN164="DA",IF(AX164>24,IF(BA164="NU",0,LEN(TRIM(V164))-LEN(SUBSTITUTE(V164,CHAR(44),""))+1),0),"-"),"") -> 0 | AZ164: =IF(B164="X",IF(AN164="DA",IF(AX164>24,LEN(TRIM(V164))-LEN(SUBSTITUTE(V164,CHAR(44),""))+1,0),"-"),"") -> 0 | BF164: =IF(C164="X",IF(AN164="","Afectat sau NU?",IF(AN164="DA",IF(AK164="","Neinformat",NETWORKDAYS(AK164+AL164,AE164+AF164,$BS$2:$BS$14)-2),"Nu a fost afectat producator/consumator")),"") ->  | BG164: =IF(C164="X",IF(AN164="DA",IF(AND(BF164>=5,AK164<>""),LEN(TRIM(V164))-LEN(SUBSTITUTE(V164,CHAR(44),""))+1,0),"-"),"") ->  | BH164: =IF(C164="X",IF(AN164="DA",LEN(TRIM(V164))-LEN(SUBSTITUTE(V164,CHAR(44),""))+1,"-"),"") ->  | BI164: =IF(C164="X",IF(AN164="","Afectat sau NU?",IF(AN164="DA",IF(AI164="","Neinformat",NETWORKDAYS(AI164+AJ164,AE164+AF164,$BS$2:$BS$14)-2),"Nu a fost afectat producator/consumator")),"") ->  | BJ164: =IF(C164="X",IF(AN164="DA",IF(AND(BI164>=5,AI164<>""),LEN(TRIM(U164))-LEN(SUBSTITUTE(U164,CHAR(44),""))+1,0),"-"),"") ->  | BK164: =IF(C164="X",IF(AN164="DA",LEN(TRIM(U164))-LEN(SUBSTITUTE(U164,CHAR(44),""))+1,"-"),"") ->  | BL164: =IF(C164="X",IF(AN164="","Afectat sau NU?",IF(AN164="DA",((AG164+AH164)-(Z164+AA164))*24,"Nu a fost afectat producator/consumator")),"") ->  | BM164: =IF(C164="X",IF(AN164<>"DA","-",IF(AND(AN164="DA",BL164<=0),LEN(TRIM(V164))-LEN(SUBSTITUTE(V164,CHAR(44),""))+1+LEN(TRIM(U164))-LEN(SUBSTITUTE(U164,CHAR(44),""))+1,0)),"") ->  | BN164: =IF(C164="X",IF(AN164="DA",LEN(TRIM(V164))-LEN(SUBSTITUTE(V164,CHAR(44),""))+1+LEN(TRIM(U164))-LEN(SUBSTITUTE(U164,CHAR(44),""))+1,"-"),"") -> 
A165: 149 | B165: x | C165: - | D165: Înlocuire contor defect în SRM Lengyel Arcuș | E165: 64924 | F165: Arcuș | G165: Covasna | H165: 562663.42 | I165: 487853.33 | J165: 562663.42 | K165: 487853.33 | L165: - | M165: - | N165: SM0390D0 | O165: SC Lengyel Arcus | P165: - | Q165: - | R165: - | S165: - | T165: SM-CF001 | U165: Engie, Premier Energy Trading | V165: Import Export Lengyel SRL | W165: - | X165: 2022-01-31 | Y165: 12:00:00 | Z165: 2022-01-31 | AA165: 14:00:00 | AB165: Brașov | AC165: Efectuată | AE165: 2022-01-31 | AF165: 12:00:00 | AG165: 2022-01-31 | AH165: 13:30:00 | AI165: 2022-01-31 | AJ165: 12:17:00 | AK165: 2022-01-31 | AL165: 12:07:00 | AM165: 195/28.01.2022 | AN165: DA | AR165: =IF(B165="X",IF(AN165="","Afectat sau NU?",IF(AN165="DA",IF(((AK165+AL165)-(AE165+AF165))*24<-720,"Neinformat",((AK165+AL165)-(AE165+AF165))*24),"Nu a fost afectat producator/consumator")),"") -> 0.1166666667 | AS165: =IF(B165="X",IF(AN165="DA",IF(AR165<6,LEN(TRIM(V165))-LEN(SUBSTITUTE(V165,CHAR(44),""))+1,0),"-"),"") -> 1 | AT165: =IF(B165="X",IF(AN165="DA",LEN(TRIM(V165))-LEN(SUBSTITUTE(V165,CHAR(44),""))+1,"-"),"") -> 1 | AU165: =IF(B165="X",IF(AN165="","Afectat sau NU?",IF(AN165="DA",IF(((AI165+AJ165)-(AE165+AF165))*24<-720,"Neinformat",((AI165+AJ165)-(AE165+AF165))*24),"Nu a fost afectat producator/consumator")),"") -> 0.2833333334 | AV165: =IF(B165="X",IF(AN165="DA",IF(AU165<6,LEN(TRIM(U165))-LEN(SUBSTITUTE(U165,CHAR(44),""))+1,0),"-"),"") -> 2 | AW165: =IF(B165="X",IF(AN165="DA",LEN(TRIM(U165))-LEN(SUBSTITUTE(U165,CHAR(44),""))+1,"-"),"") -> 2 | AX165: =IF(B165="X",IF(AN165="","Afectat sau NU?",IF(AN165="DA",((AG165+AH165)-(AE165+AF165))*24,"Nu a fost afectat producator/consumator")),"") -> 1.5 | AY165: =IF(B165="X",IF(AN165="DA",IF(AX165>24,IF(BA165="NU",0,LEN(TRIM(V165))-LEN(SUBSTITUTE(V165,CHAR(44),""))+1),0),"-"),"") -> 0 | AZ165: =IF(B165="X",IF(AN165="DA",IF(AX165>24,LEN(TRIM(V165))-LEN(SUBSTITUTE(V165,CHAR(44),""))+1,0),"-"),"") -> 0 | BF165: =IF(C165="X",IF(AN165="","Afectat sau NU?",IF(AN165="DA",IF(AK165="","Neinformat",NETWORKDAYS(AK165+AL165,AE165+AF165,$BS$2:$BS$14)-2),"Nu a fost afectat producator/consumator")),"") ->  | BG165: =IF(C165="X",IF(AN165="DA",IF(AND(BF165>=5,AK165<>""),LEN(TRIM(V165))-LEN(SUBSTITUTE(V165,CHAR(44),""))+1,0),"-"),"") ->  | BH165: =IF(C165="X",IF(AN165="DA",LEN(TRIM(V165))-LEN(SUBSTITUTE(V165,CHAR(44),""))+1,"-"),"") ->  | BI165: =IF(C165="X",IF(AN165="","Afectat sau NU?",IF(AN165="DA",IF(AI165="","Neinformat",NETWORKDAYS(AI165+AJ165,AE165+AF165,$BS$2:$BS$14)-2),"Nu a fost afectat producator/consumator")),"") ->  | BJ165: =IF(C165="X",IF(AN165="DA",IF(AND(BI165>=5,AI165<>""),LEN(TRIM(U165))-LEN(SUBSTITUTE(U165,CHAR(44),""))+1,0),"-"),"") ->  | BK165: =IF(C165="X",IF(AN165="DA",LEN(TRIM(U165))-LEN(SUBSTITUTE(U165,CHAR(44),""))+1,"-"),"") ->  | BL165: =IF(C165="X",IF(AN165="","Afectat sau NU?",IF(AN165="DA",((AG165+AH165)-(Z165+AA165))*24,"Nu a fost afectat producator/consumator")),"") ->  | BM165: =IF(C165="X",IF(AN165<>"DA","-",IF(AND(AN165="DA",BL165<=0),LEN(TRIM(V165))-LEN(SUBSTITUTE(V165,CHAR(44),""))+1+LEN(TRIM(U165))-LEN(SUBSTITUTE(U165,CHAR(44),""))+1,0)),"") ->  | BN165: =IF(C165="X",IF(AN165="DA",LEN(TRIM(V165))-LEN(SUBSTITUTE(V165,CHAR(44),""))+1+LEN(TRIM(U165))-LEN(SUBSTITUTE(U165,CHAR(44),""))+1,"-"),"") -> 
A166: 150 | B166: x | C166: - | D166: Întrerupere accidentală SRM Motru | E166: 78150 | F166: Motru | G166: Gorj | H166: 340436.99 | I166: 369302.53 | J166: 340436.99 | K166: 369302.53 | L166: - | M166: - | N166: SM0993D0 | O166: Motru | P166: - | Q166: - | R166: - | S166: - | T166: SM-SD001 | U166: Aderro GP, Nova Power, Cez Vânzare, Cis Gaz, Conef Gaz, Crest Energy, Distrigaz Vest, Engie, E.on Energie, Electrica Furnizare, Electric Planners, Electric&Gas, Energy Distribution, Enel Energie, Enel Muntenia, Gas&Power, Entrex, Premier Energy Trading, Gaz Est, Getica 95, Megaconstruct, Met România, Monsson, Next Energy Distribution, Nord Gaz, Premier Energy, Petrom, Gas Provider, Renovatio, Romgaz, Tinmar, Transenergo, Veolia, Wiee | V166: Premier Energy | W166: - | X166: 2022-01-31 | Y166: 22:15:00 | Z166: 2022-02-01 | AA166: 06:00:00 | AB166: Craiova | AC166: Efectuată | AE166: 2022-01-31 | AF166: 22:15:00 | AG166: 2022-02-01 | AH166: 06:30:00 | AI166: 2022-01-31 | AJ166: 23:42:00 | AK166: 2022-01-31 | AL166: 23:29:00 | AM166: - | AN166: DA | AR166: =IF(B166="X",IF(AN166="","Afectat sau NU?",IF(AN166="DA",IF(((AK166+AL166)-(AE166+AF166))*24<-720,"Neinformat",((AK166+AL166)-(AE166+AF166))*24),"Nu a fost afectat producator/consumator")),"") -> 1.233333333 | AS166: =IF(B166="X",IF(AN166="DA",IF(AR166<6,LEN(TRIM(V166))-LEN(SUBSTITUTE(V166,CHAR(44),""))+1,0),"-"),"") -> 1 | AT166: =IF(B166="X",IF(AN166="DA",LEN(TRIM(V166))-LEN(SUBSTITUTE(V166,CHAR(44),""))+1,"-"),"") -> 1 | AU166: =IF(B166="X",IF(AN166="","Afectat sau NU?",IF(AN166="DA",IF(((AI166+AJ166)-(AE166+AF166))*24<-720,"Neinformat",((AI166+AJ166)-(AE166+AF166))*24),"Nu a fost afectat producator/consumator")),"") -> 1.45 | AV166: =IF(B166="X",IF(AN166="DA",IF(AU166<6,LEN(TRIM(U166))-LEN(SUBSTITUTE(U166,CHAR(44),""))+1,0),"-"),"") -> 34 | AW166: =IF(B166="X",IF(AN166="DA",LEN(TRIM(U166))-LEN(SUBSTITUTE(U166,CHAR(44),""))+1,"-"),"") -> 34 | AX166: =IF(B166="X",IF(AN166="","Afectat sau NU?",IF(AN166="DA",((AG166+AH166)-(AE166+AF166))*24,"Nu a fost afectat producator/consumator")),"") -> 8.25 | AY166: =IF(B166="X",IF(AN166="DA",IF(AX166>24,IF(BA166="NU",0,LEN(TRIM(V166))-LEN(SUBSTITUTE(V166,CHAR(44),""))+1),0),"-"),"") -> 0 | AZ166: =IF(B166="X",IF(AN166="DA",IF(AX166>24,LEN(TRIM(V166))-LEN(SUBSTITUTE(V166,CHAR(44),""))+1,0),"-"),"") -> 0 | BF166: =IF(C166="X",IF(AN166="","Afectat sau NU?",IF(AN166="DA",IF(AK166="","Neinformat",NETWORKDAYS(AK166+AL166,AE166+AF166,$BS$2:$BS$14)-2),"Nu a fost afectat producator/consumator")),"") ->  | BG166: =IF(C166="X",IF(AN166="DA",IF(AND(BF166>=5,AK166<>""),LEN(TRIM(V166))-LEN(SUBSTITUTE(V166,CHAR(44),""))+1,0),"-"),"") ->  | BH166: =IF(C166="X",IF(AN166="DA",LEN(TRIM(V166))-LEN(SUBSTITUTE(V166,CHAR(44),""))+1,"-"),"") ->  | BI166: =IF(C166="X",IF(AN166="","Afectat sau NU?",IF(AN166="DA",IF(AI166="","Neinformat",NETWORKDAYS(AI166+AJ166,AE166+AF166,$BS$2:$BS$14)-2),"Nu a fost afectat producator/consumator")),"") ->  | BJ166: =IF(C166="X",IF(AN166="DA",IF(AND(BI166>=5,AI166<>""),LEN(TRIM(U166))-LEN(SUBSTITUTE(U166,CHAR(44),""))+1,0),"-"),"") ->  | BK166: =IF(C166="X",IF(AN166="DA",LEN(TRIM(U166))-LEN(SUBSTITUTE(U166,CHAR(44),""))+1,"-"),"") ->  | BL166: =IF(C166="X",IF(AN166="","Afectat sau NU?",IF(AN166="DA",((AG166+AH166)-(Z166+AA166))*24,"Nu a fost afectat producator/consumator")),"") ->  | BM166: =IF(C166="X",IF(AN166<>"DA","-",IF(AND(AN166="DA",BL166<=0),LEN(TRIM(V166))-LEN(SUBSTITUTE(V166,CHAR(44),""))+1+LEN(TRIM(U166))-LEN(SUBSTITUTE(U166,CHAR(44),""))+1,0)),"") ->  | BN166: =IF(C166="X",IF(AN166="DA",LEN(TRIM(V166))-LEN(SUBSTITUTE(V166,CHAR(44),""))+1+LEN(TRIM(U166))-LEN(SUBSTITUTE(U166,CHAR(44),""))+1,"-"),"") -> 
A167: 151 | B167: x | C167: - | D167: Înlocuire contor în SRM Alcoa Chișineu Criș II | E167: 9468 | F167: Chișineu-Criș | G167: Arad | H167: 231295.85 | I167: 563235.91 | J167: 231295.85 | K167: 563235.91 | L167: - | M167: - | N167: SM0312D0 | O167: Alcoa Chișineu-Criș II | P167: - | Q167: - | R167: - | S167: - | T167: SM-SD001 | U167: Aderro GP, Nova Power, Cez Vânzare, Racord Furnizare, Cis Gaz, Colterm, Conef Gaz, CPL Concordia, Crest Energy, Delgaz, Design Proiect, Distrigaz Vest, Engie, Axpo, E.on Energie, Electrica Furnizare, Electric Planners, Energy Distribution, Enel Energie, Enel Muntenia, Gas&Power, Entrex, Premier Energy Trading, Gaz Est, Gazmir, Getica 95, Mihoc Oil, Met România, Monsson, MVM Future, Next Energy Distribution, Next Energy Partners, Pado Group, Premier Energy, Petrom, Prisma Serv, Gas Provider, Renovatio, Romgaz, RWE Supply, SST Grup, Sun Wave, Tetarom, Tinmar, Transenergo, Veolia, Wiee | V167: Delgaz Grid | W167: - | X167: 2022-02-22 | Y167: 10:48:00 | Z167: 2022-02-22 | AA167: 15:00:00 | AB167: Arad | AC167: Efectuată | AE167: 2022-02-22 | AF167: 10:48:00 | AG167: 2022-02-22 | AH167: 11:40:00 | AI167: 2022-02-22 | AJ167: 11:01:00 | AK167: 2022-02-22 | AL167: 10:50:00 | AM167: 14094/22.02.2022 | AN167: NU | AR167: =IF(B167="X",IF(AN167="","Afectat sau NU?",IF(AN167="DA",IF(((AK167+AL167)-(AE167+AF167))*24<-720,"Neinformat",((AK167+AL167)-(AE167+AF167))*24),"Nu a fost afectat producator/consumator")),"") -> Nu a fost afectat producator/consumator | AS167: =IF(B167="X",IF(AN167="DA",IF(AR167<6,LEN(TRIM(V167))-LEN(SUBSTITUTE(V167,CHAR(44),""))+1,0),"-"),"") -> - | AT167: =IF(B167="X",IF(AN167="DA",LEN(TRIM(V167))-LEN(SUBSTITUTE(V167,CHAR(44),""))+1,"-"),"") -> - | AU167: =IF(B167="X",IF(AN167="","Afectat sau NU?",IF(AN167="DA",IF(((AI167+AJ167)-(AE167+AF167))*24<-720,"Neinformat",((AI167+AJ167)-(AE167+AF167))*24),"Nu a fost afectat producator/consumator")),"") -> Nu a fost afectat producator/consumator | AV167: =IF(B167="X",IF(AN167="DA",IF(AU167<6,LEN(TRIM(U167))-LEN(SUBSTITUTE(U167,CHAR(44),""))+1,0),"-"),"") -> - | AW167: =IF(B167="X",IF(AN167="DA",LEN(TRIM(U167))-LEN(SUBSTITUTE(U167,CHAR(44),""))+1,"-"),"") -> - | AX167: =IF(B167="X",IF(AN167="","Afectat sau NU?",IF(AN167="DA",((AG167+AH167)-(AE167+AF167))*24,"Nu a fost afectat producator/consumator")),"") -> Nu a fost afectat producator/consumator | AY167: =IF(B167="X",IF(AN167="DA",IF(AX167>24,IF(BA167="NU",0,LEN(TRIM(V167))-LEN(SUBSTITUTE(V167,CHAR(44),""))+1),0),"-"),"") -> - | AZ167: =IF(B167="X",IF(AN167="DA",IF(AX167>24,LEN(TRIM(V167))-LEN(SUBSTITUTE(V167,CHAR(44),""))+1,0),"-"),"") -> - | BF167: =IF(C167="X",IF(AN167="","Afectat sau NU?",IF(AN167="DA",IF(AK167="","Neinformat",NETWORKDAYS(AK167+AL167,AE167+AF167,$BS$2:$BS$14)-2),"Nu a fost afectat producator/consumator")),"") ->  | BG167: =IF(C167="X",IF(AN167="DA",IF(AND(BF167>=5,AK167<>""),LEN(TRIM(V167))-LEN(SUBSTITUTE(V167,CHAR(44),""))+1,0),"-"),"") ->  | BH167: =IF(C167="X",IF(AN167="DA",LEN(TRIM(V167))-LEN(SUBSTITUTE(V167,CHAR(44),""))+1,"-"),"") ->  | BI167: =IF(C167="X",IF(AN167="","Afectat sau NU?",IF(AN167="DA",IF(AI167="","Neinformat",NETWORKDAYS(AI167+AJ167,AE167+AF167,$BS$2:$BS$14)-2),"Nu a fost afectat producator/consumator")),"") ->  | BJ167: =IF(C167="X",IF(AN167="DA",IF(AND(BI167>=5,AI167<>""),LEN(TRIM(U167))-LEN(SUBSTITUTE(U167,CHAR(44),""))+1,0),"-"),"") ->  | BK167: =IF(C167="X",IF(AN167="DA",LEN(TRIM(U167))-LEN(SUBSTITUTE(U167,CHAR(44),""))+1,"-"),"") ->  | BL167: =IF(C167="X",IF(AN167="","Afectat sau NU?",IF(AN167="DA",((AG167+AH167)-(Z167+AA167))*24,"Nu a fost afectat producator/consumator")),"") ->  | BM167: =IF(C167="X",IF(AN167<>"DA","-",IF(AND(AN167="DA",BL167<=0),LEN(TRIM(V167))-LEN(SUBSTITUTE(V167,CHAR(44),""))+1+LEN(TRIM(U167))-LEN(SUBSTITUTE(U167,CHAR(44),""))+1,0)),"") ->  | BN167: =IF(C167="X",IF(AN167="DA",LEN(TRIM(V167))-LEN(SUBSTITUTE(V167,CHAR(44),""))+1+LEN(TRIM(U167))-LEN(SUBSTITUTE(U167,CHAR(44),""))+1,"-"),"") -> 
A168: 152 | B168: x | C168: - | D168: Punere în siguranță provizorie a conductei DN250 Alunu - Zătreni | E168: 170355 | F168: Grădiștea | G168: Vâlcea | H168: 408180.69 | I168: 379756.52 | J168: 408180.69 | K168: 379756.52 | L168: - | M168: - | N168: - | O168: - | P168: PM0053 | Q168: Grădiștea | R168: - | S168: - | T168: PM-PP001 | U168: Petrom, Romgaz | V168: Romgaz | W168: - | X168: 2022-02-24 | Y168: 08:30:00 | Z168: 2022-02-24 | AA168: 18:00:00 | AB168: Craiova | AC168: Efectuată | AE168: 2022-02-24 | AF168: 08:30:00 | AG168: 2022-02-24 | AH168: 17:15:00 | AI168: 2022-02-24 | AJ168: 10:16:00 | AK168: 2022-02-24 | AL168: 09:59:00 | AM168: 14283/22.02.2022 | AN168: DA | AR168: =IF(B168="X",IF(AN168="","Afectat sau NU?",IF(AN168="DA",IF(((AK168+AL168)-(AE168+AF168))*24<-720,"Neinformat",((AK168+AL168)-(AE168+AF168))*24),"Nu a fost afectat producator/consumator")),"") -> 1.483333333 | AS168: =IF(B168="X",IF(AN168="DA",IF(AR168<6,LEN(TRIM(V168))-LEN(SUBSTITUTE(V168,CHAR(44),""))+1,0),"-"),"") -> 1 | AT168: =IF(B168="X",IF(AN168="DA",LEN(TRIM(V168))-LEN(SUBSTITUTE(V168,CHAR(44),""))+1,"-"),"") -> 1 | AU168: =IF(B168="X",IF(AN168="","Afectat sau NU?",IF(AN168="DA",IF(((AI168+AJ168)-(AE168+AF168))*24<-720,"Neinformat",((AI168+AJ168)-(AE168+AF168))*24),"Nu a fost afectat producator/consumator")),"") -> 1.766666667 | AV168: =IF(B168="X",IF(AN168="DA",IF(AU168<6,LEN(TRIM(U168))-LEN(SUBSTITUTE(U168,CHAR(44),""))+1,0),"-"),"") -> 2 | AW168: =IF(B168="X",IF(AN168="DA",LEN(TRIM(U168))-LEN(SUBSTITUTE(U168,CHAR(44),""))+1,"-"),"") -> 2 | AX168: =IF(B168="X",IF(AN168="","Afectat sau NU?",IF(AN168="DA",((AG168+AH168)-(AE168+AF168))*24,"Nu a fost afectat producator/consumator")),"") -> 8.75 | AY168: =IF(B168="X",IF(AN168="DA",IF(AX168>24,IF(BA168="NU",0,LEN(TRIM(V168))-LEN(SUBSTITUTE(V168,CHAR(44),""))+1),0),"-"),"") -> 0 | AZ168: =IF(B168="X",IF(AN168="DA",IF(AX168>24,LEN(TRIM(V168))-LEN(SUBSTITUTE(V168,CHAR(44),""))+1,0),"-"),"") -> 0 | BF168: =IF(C168="X",IF(AN168="","Afectat sau NU?",IF(AN168="DA",IF(AK168="","Neinformat",NETWORKDAYS(AK168+AL168,AE168+AF168,$BS$2:$BS$14)-2),"Nu a fost afectat producator/consumator")),"") ->  | BG168: =IF(C168="X",IF(AN168="DA",IF(AND(BF168>=5,AK168<>""),LEN(TRIM(V168))-LEN(SUBSTITUTE(V168,CHAR(44),""))+1,0),"-"),"") ->  | BH168: =IF(C168="X",IF(AN168="DA",LEN(TRIM(V168))-LEN(SUBSTITUTE(V168,CHAR(44),""))+1,"-"),"") ->  | BI168: =IF(C168="X",IF(AN168="","Afectat sau NU?",IF(AN168="DA",IF(AI168="","Neinformat",NETWORKDAYS(AI168+AJ168,AE168+AF168,$BS$2:$BS$14)-2),"Nu a fost afectat producator/consumator")),"") ->  | BJ168: =IF(C168="X",IF(AN168="DA",IF(AND(BI168>=5,AI168<>""),LEN(TRIM(U168))-LEN(SUBSTITUTE(U168,CHAR(44),""))+1,0),"-"),"") ->  | BK168: =IF(C168="X",IF(AN168="DA",LEN(TRIM(U168))-LEN(SUBSTITUTE(U168,CHAR(44),""))+1,"-"),"") ->  | BL168: =IF(C168="X",IF(AN168="","Afectat sau NU?",IF(AN168="DA",((AG168+AH168)-(Z168+AA168))*24,"Nu a fost afectat producator/consumator")),"") ->  | BM168: =IF(C168="X",IF(AN168<>"DA","-",IF(AND(AN168="DA",BL168<=0),LEN(TRIM(V168))-LEN(SUBSTITUTE(V168,CHAR(44),""))+1+LEN(TRIM(U168))-LEN(SUBSTITUTE(U168,CHAR(44),""))+1,0)),"") ->  | BN168: =IF(C168="X",IF(AN168="DA",LEN(TRIM(V168))-LEN(SUBSTITUTE(V168,CHAR(44),""))+1+LEN(TRIM(U168))-LEN(SUBSTITUTE(U168,CHAR(44),""))+1,"-"),"") -> 
A169: 153 | B169: - | C169: x | D169: Montare panou de măsurare DN150 la SRM Chiajna | E169: 179258 | F169: Chiajna | G169: Ilfov | H169: 576508.11 | I169: 328856.9 | J169: 576508.11 | K169: 328856.9 | L169: - | M169: - | N169: SM0149D0 | O169: Chiajna | P169: - | Q169: - | R169: - | S169: - | T169: SM-SD001 | U169: Alpha Metal, Nova Power, Cez Vânzare, Cis Gaz, Conef Gaz, Crest Energy, Distrigaz Vest, Engie, E.on Energie, Electrocentrale București, Electrocentrale Constanța, Electrica Furnizare, Electric Planners, Energy Distribution, Enel Energie, Enel Muntenia, Gas&Power, Entrex, Euro Seven, Eye Mall, Premier Energy Trading, Gas&Power Trading, Gaz Est, Getica 95, Megaconstruct, Met România, Monsson, MVM Future, Next Energy Distribution, Next Energy Partners, Nord Gaz, Premier Energy, Petrom, Gas Provider, Renovatio, Romgaz, RWE Supply, Sustainable Energy, Tinmar, Transenergo, Wiee | V169: Distrigaz Sud Rețele | W169: aprilie - august 2022 | X169: 2022-06-06 | Y169: 09:00:00 | Z169: 2022-06-07 | AA169: 15:00:00 | AB169: București | AC169: Efectuată | AE169: 2022-06-06 | AF169: 09:47:00 | AG169: 2022-06-07 | AH169: 14:45:00 | AI169: 2022-05-25 | AJ169: 10:40:00 | AK169: 2022-05-25 | AL169: 09:53:00 | AM169: 44507/03.06.2022 | AN169: NU | AP169: Forțe proprii | AR169: =IF(B169="X",IF(AN169="","Afectat sau NU?",IF(AN169="DA",IF(((AK169+AL169)-(AE169+AF169))*24<-720,"Neinformat",((AK169+AL169)-(AE169+AF169))*24),"Nu a fost afectat producator/consumator")),"") ->  | AS169: =IF(B169="X",IF(AN169="DA",IF(AR169<6,LEN(TRIM(V169))-LEN(SUBSTITUTE(V169,CHAR(44),""))+1,0),"-"),"") ->  | AT169: =IF(B169="X",IF(AN169="DA",LEN(TRIM(V169))-LEN(SUBSTITUTE(V169,CHAR(44),""))+1,"-"),"") ->  | AU169: =IF(B169="X",IF(AN169="","Afectat sau NU?",IF(AN169="DA",IF(((AI169+AJ169)-(AE169+AF169))*24<-720,"Neinformat",((AI169+AJ169)-(AE169+AF169))*24),"Nu a fost afectat producator/consumator")),"") ->  | AV169: =IF(B169="X",IF(AN169="DA",IF(AU169<6,LEN(TRIM(U169))-LEN(SUBSTITUTE(U169,CHAR(44),""))+1,0),"-"),"") ->  | AW169: =IF(B169="X",IF(AN169="DA",LEN(TRIM(U169))-LEN(SUBSTITUTE(U169,CHAR(44),""))+1,"-"),"") ->  | AX169: =IF(B169="X",IF(AN169="","Afectat sau NU?",IF(AN169="DA",((AG169+AH169)-(AE169+AF169))*24,"Nu a fost afectat producator/consumator")),"") ->  | AY169: =IF(B169="X",IF(AN169="DA",IF(AX169>24,IF(BA169="NU",0,LEN(TRIM(V169))-LEN(SUBSTITUTE(V169,CHAR(44),""))+1),0),"-"),"") ->  | AZ169: =IF(B169="X",IF(AN169="DA",IF(AX169>24,LEN(TRIM(V169))-LEN(SUBSTITUTE(V169,CHAR(44),""))+1,0),"-"),"") ->  | BF169: =IF(C169="X",IF(AN169="","Afectat sau NU?",IF(AN169="DA",IF(AK169="","Neinformat",NETWORKDAYS(AK169+AL169,AE169+AF169,$BS$2:$BS$14)-2),"Nu a fost afectat producator/consumator")),"") -> Nu a fost afectat producator/consumator | BG169: =IF(C169="X",IF(AN169="DA",IF(AND(BF169>=5,AK169<>""),LEN(TRIM(V169))-LEN(SUBSTITUTE(V169,CHAR(44),""))+1,0),"-"),"") -> - | BH169: =IF(C169="X",IF(AN169="DA",LEN(TRIM(V169))-LEN(SUBSTITUTE(V169,CHAR(44),""))+1,"-"),"") -> - | BI169: =IF(C169="X",IF(AN169="","Afectat sau NU?",IF(AN169="DA",IF(AI169="","Neinformat",NETWORKDAYS(AI169+AJ169,AE169+AF169,$BS$2:$BS$14)-2),"Nu a fost afectat producator/consumator")),"") -> Nu a fost afectat producator/consumator | BJ169: =IF(C169="X",IF(AN169="DA",IF(AND(BI169>=5,AI169<>""),LEN(TRIM(U169))-LEN(SUBSTITUTE(U169,CHAR(44),""))+1,0),"-"),"") -> - | BK169: =IF(C169="X",IF(AN169="DA",LEN(TRIM(U169))-LEN(SUBSTITUTE(U169,CHAR(44),""))+1,"-"),"") -> - | BL169: =IF(C169="X",IF(AN169="","Afectat sau NU?",IF(AN169="DA",((AG169+AH169)-(Z169+AA169))*24,"Nu a fost afectat producator/consumator")),"") -> Nu a fost afectat producator/consumator | BM169: =IF(C169="X",IF(AN169<>"DA","-",IF(AND(AN169="DA",BL169<=0),LEN(TRIM(V169))-LEN(SUBSTITUTE(V169,CHAR(44),""))+1+LEN(TRIM(U169))-LEN(SUBSTITUTE(U169,CHAR(44),""))+1,0)),"") -> - | BN169: =IF(C169="X",IF(AN169="DA",LEN(TRIM(V169))-LEN(SUBSTITUTE(V169,CHAR(44),""))+1+LEN(TRIM(U169))-LEN(SUBSTITUTE(U169,CHAR(44),""))+1,"-"),"") -> -
A170: 154 | B170: x | C170: - | D170: Cuplare conductă nouă DN250 Nadeș - Sighișoara | E170: 118478 | F170: Nadeș | G170: Mureș | H170: 480117.41 | I170: 530659.38 | J170: 480117.41 | K170: 530659.38 | L170: - | M170: - | N170: - | O170: - | P170: - | Q170: - | R170: PM0155 | S170: Nadeș - Sighișoara | T170: PM-PP001 | U170: Romgaz | V170: Romgaz | W170: - | X170: 2022-03-01 | Y170: 07:45:00 | Z170: 2022-03-01 | AA170: 19:00:00 | AB170: Brașov | AC170: Efectuată | AE170: 2022-03-01 | AF170: 07:45:00 | AG170: 2022-03-01 | AH170: 14:38:00 | AI170: 2022-03-01 | AJ170: 08:56:00 | AK170: 2022-03-01 | AL170: 08:49:00 | AM170: 418/28.02.2022 | AN170: DA | AR170: 1.066666667 | AS170: 1 | AT170: 1 | AU170: 1.183333333 | AV170: 1 | AW170: 1 | AX170: 6.883333333 | AY170: 0 | AZ170: 0
A171: 155 | B171: x | C171: - | D171: Înlocuire robinet defect în SRM SC Rulmenți Bârlad | E171: 161801 | F171: Bârlad | G171: Vaslui | H171: 706700.75 | I171: 532996.05 | J171: 706700.75 | K171: 532996.05 | L171: - | M171: - | N171: SM0978D0 | O171: SC Rulmenți Bârlad | P171: - | Q171: - | R171: - | S171: - | T171: SM-CF001 | U171: Rulmenți, Premier Energy | V171: SC Rulmenți SA | W171: - | X171: 2022-03-06 | Y171: 09:01:00 | Z171: 2022-03-06 | AA171: 12:00:00 | AB171: Brăila | AC171: Efectuată | AE171: 2022-03-06 | AF171: 09:01:00 | AG171: 2022-03-06 | AH171: 10:35:00 | AI171: 2022-03-06 | AJ171: 09:25:00 | AK171: 2022-03-06 | AL171: 09:13:00 | AM171: 17002/03.03.2022 | AN171: DA | AR171: =IF(B171="X",IF(AN171="","Afectat sau NU?",IF(AN171="DA",IF(((AK171+AL171)-(AE171+AF171))*24<-720,"Neinformat",((AK171+AL171)-(AE171+AF171))*24),"Nu a fost afectat producator/consumator")),"") -> 0.2 | AS171: =IF(B171="X",IF(AN171="DA",IF(AR171<6,LEN(TRIM(V171))-LEN(SUBSTITUTE(V171,CHAR(44),""))+1,0),"-"),"") -> 1 | AT171: =IF(B171="X",IF(AN171="DA",LEN(TRIM(V171))-LEN(SUBSTITUTE(V171,CHAR(44),""))+1,"-"),"") -> 1 | AU171: =IF(B171="X",IF(AN171="","Afectat sau NU?",IF(AN171="DA",IF(((AI171+AJ171)-(AE171+AF171))*24<-720,"Neinformat",((AI171+AJ171)-(AE171+AF171))*24),"Nu a fost afectat producator/consumator")),"") -> 0.3999999999 | AV171: =IF(B171="X",IF(AN171="DA",IF(AU171<6,LEN(TRIM(U171))-LEN(SUBSTITUTE(U171,CHAR(44),""))+1,0),"-"),"") -> 2 | AW171: =IF(B171="X",IF(AN171="DA",LEN(TRIM(U171))-LEN(SUBSTITUTE(U171,CHAR(44),""))+1,"-"),"") -> 2 | AX171: =IF(B171="X",IF(AN171="","Afectat sau NU?",IF(AN171="DA",((AG171+AH171)-(AE171+AF171))*24,"Nu a fost afectat producator/consumator")),"") -> 1.566666667 | AY171: =IF(B171="X",IF(AN171="DA",IF(AX171>24,IF(BA171="NU",0,LEN(TRIM(V171))-LEN(SUBSTITUTE(V171,CHAR(44),""))+1),0),"-"),"") -> 0 | AZ171: =IF(B171="X",IF(AN171="DA",IF(AX171>24,LEN(TRIM(V171))-LEN(SUBSTITUTE(V171,CHAR(44),""))+1,0),"-"),"") -> 0 | BF171: =IF(C171="X",IF(AN171="","Afectat sau NU?",IF(AN171="DA",IF(AK171="","Neinformat",NETWORKDAYS(AK171+AL171,AE171+AF171,$BS$2:$BS$14)-2),"Nu a fost afectat producator/consumator")),"") ->  | BG171: =IF(C171="X",IF(AN171="DA",IF(AND(BF171>=5,AK171<>""),LEN(TRIM(V171))-LEN(SUBSTITUTE(V171,CHAR(44),""))+1,0),"-"),"") ->  | BH171: =IF(C171="X",IF(AN171="DA",LEN(TRIM(V171))-LEN(SUBSTITUTE(V171,CHAR(44),""))+1,"-"),"") ->  | BI171: =IF(C171="X",IF(AN171="","Afectat sau NU?",IF(AN171="DA",IF(AI171="","Neinformat",NETWORKDAYS(AI171+AJ171,AE171+AF171,$BS$2:$BS$14)-2),"Nu a fost afectat producator/consumator")),"") ->  | BJ171: =IF(C171="X",IF(AN171="DA",IF(AND(BI171>=5,AI171<>""),LEN(TRIM(U171))-LEN(SUBSTITUTE(U171,CHAR(44),""))+1,0),"-"),"") ->  | BK171: =IF(C171="X",IF(AN171="DA",LEN(TRIM(U171))-LEN(SUBSTITUTE(U171,CHAR(44),""))+1,"-"),"") ->  | BL171: =IF(C171="X",IF(AN171="","Afectat sau NU?",IF(AN171="DA",((AG171+AH171)-(Z171+AA171))*24,"Nu a fost afectat producator/consumator")),"") ->  | BM171: =IF(C171="X",IF(AN171<>"DA","-",IF(AND(AN171="DA",BL171<=0),LEN(TRIM(V171))-LEN(SUBSTITUTE(V171,CHAR(44),""))+1+LEN(TRIM(U171))-LEN(SUBSTITUTE(U171,CHAR(44),""))+1,0)),"") ->  | BN171: =IF(C171="X",IF(AN171="DA",LEN(TRIM(V171))-LEN(SUBSTITUTE(V171,CHAR(44),""))+1+LEN(TRIM(U171))-LEN(SUBSTITUTE(U171,CHAR(44),""))+1,"-"),"") -> 
A172: 156 | B172: - | C172: x | D172: Acord acces SRM Bicău (Satu Mare) | E172: 138645 | F172: Bicău | G172: Satu Mare | H172: 370961.74 | I172: 688073.03 | J172: 370961.74 | K172: 688073.03 | L172: - | M172: - | N172: SM0573D0 | O172: Bicău | P172: - | Q172: - | R172: - | S172: - | T172: SM-SD001 | V172: Delgaz Grid | W172: iulie - septembrie 2022 | AB172: Cluj | AD172: S-a executat în afara perioadei planificate cu acceptul partenerului adiacent fără a fi afectați consumatorii (poziția 212) | AP172: PMDI 2022_A16_5 | BF172: Afectat sau NU? | BG172: - | BH172: - | BI172: Afectat sau NU? | BJ172: - | BK172: - | BL172: Afectat sau NU? | BM172: - | BN172: -
A173: 157 | B173: x | C173: - | D173: Întrerupere accidentală SRM Schela | E173: 77162 | F173: Schela | G173: Galați | H173: 721095.5 | I173: 446809.61 | J173: 721095.5 | K173: 446809.61 | L173: - | M173: - | N173: SM0522D0 | O173: Schela | P173: - | Q173: - | R173: - | S173: - | T173: SM-SD001 | U173: Aderro GP, Alpha Metal, Nova Power, Cez Vânzare, Cis Gaz, Conef Gaz, Crest Energy, MVM Energy Trade, Distrigaz Vest, Engie, E.on Energie, Electrocentrale București, Electrocentrale Constanța, Electrica Furnizare, Electric Planners, Energy Distribution, Enel Energie, Enel Muntenia, Gas&Power, Entrex, Euro Seven, Premier Energy Trading, Gaz Est, Getica 95, Megaconstruct, Met România, Monsson, Teromenergetica, Next Energy Distribution, Next Energy Partners, Nord Gaz, Premier Energy, Petrom, Gas Provider, Renovatio, Romgaz, RWE Supply, Sustainable Energy, Tinmar, Transenergo, Veolia, Vest Energo, Wiee | V173: Distrigaz Sud Rețele | W173: - | X173: 2022-03-09 | Y173: 06:54:00 | Z173: 2022-03-09 | AA173: 12:00:00 | AB173: Brăila | AC173: Efectuată | AE173: 2022-03-09 | AF173: 06:54:00 | AG173: 2022-03-09 | AH173: 10:06:00 | AI173: 2022-03-09 | AJ173: 09:31:00 | AK173: 2022-03-09 | AL173: 09:12:00 | AM173: - | AN173: DA | AR173: =IF(B173="X",IF(AN173="","Afectat sau NU?",IF(AN173="DA",IF(((AK173+AL173)-(AE173+AF173))*24<-720,"Neinformat",((AK173+AL173)-(AE173+AF173))*24),"Nu a fost afectat producator/consumator")),"") -> 2.3 | AS173: =IF(B173="X",IF(AN173="DA",IF(AR173<6,LEN(TRIM(V173))-LEN(SUBSTITUTE(V173,CHAR(44),""))+1,0),"-"),"") -> 1 | AT173: =IF(B173="X",IF(AN173="DA",LEN(TRIM(V173))-LEN(SUBSTITUTE(V173,CHAR(44),""))+1,"-"),"") -> 1 | AU173: =IF(B173="X",IF(AN173="","Afectat sau NU?",IF(AN173="DA",IF(((AI173+AJ173)-(AE173+AF173))*24<-720,"Neinformat",((AI173+AJ173)-(AE173+AF173))*24),"Nu a fost afectat producator/consumator")),"") -> 2.616666667 | AV173: =IF(B173="X",IF(AN173="DA",IF(AU173<6,LEN(TRIM(U173))-LEN(SUBSTITUTE(U173,CHAR(44),""))+1,0),"-"),"") -> 43 | AW173: =IF(B173="X",IF(AN173="DA",LEN(TRIM(U173))-LEN(SUBSTITUTE(U173,CHAR(44),""))+1,"-"),"") -> 43 | AX173: =IF(B173="X",IF(AN173="","Afectat sau NU?",IF(AN173="DA",((AG173+AH173)-(AE173+AF173))*24,"Nu a fost afectat producator/consumator")),"") -> 3.2 | AY173: =IF(B173="X",IF(AN173="DA",IF(AX173>24,IF(BA173="NU",0,LEN(TRIM(V173))-LEN(SUBSTITUTE(V173,CHAR(44),""))+1),0),"-"),"") -> 0 | AZ173: =IF(B173="X",IF(AN173="DA",IF(AX173>24,LEN(TRIM(V173))-LEN(SUBSTITUTE(V173,CHAR(44),""))+1,0),"-"),"") -> 0 | BF173: =IF(C173="X",IF(AN173="","Afectat sau NU?",IF(AN173="DA",IF(AK173="","Neinformat",NETWORKDAYS(AK173+AL173,AE173+AF173,$BS$2:$BS$14)-2),"Nu a fost afectat producator/consumator")),"") ->  | BG173: =IF(C173="X",IF(AN173="DA",IF(AND(BF173>=5,AK173<>""),LEN(TRIM(V173))-LEN(SUBSTITUTE(V173,CHAR(44),""))+1,0),"-"),"") ->  | BH173: =IF(C173="X",IF(AN173="DA",LEN(TRIM(V173))-LEN(SUBSTITUTE(V173,CHAR(44),""))+1,"-"),"") ->  | BI173: =IF(C173="X",IF(AN173="","Afectat sau NU?",IF(AN173="DA",IF(AI173="","Neinformat",NETWORKDAYS(AI173+AJ173,AE173+AF173,$BS$2:$BS$14)-2),"Nu a fost afectat producator/consumator")),"") ->  | BJ173: =IF(C173="X",IF(AN173="DA",IF(AND(BI173>=5,AI173<>""),LEN(TRIM(U173))-LEN(SUBSTITUTE(U173,CHAR(44),""))+1,0),"-"),"") ->  | BK173: =IF(C173="X",IF(AN173="DA",LEN(TRIM(U173))-LEN(SUBSTITUTE(U173,CHAR(44),""))+1,"-"),"") ->  | BL173: =IF(C173="X",IF(AN173="","Afectat sau NU?",IF(AN173="DA",((AG173+AH173)-(Z173+AA173))*24,"Nu a fost afectat producator/consumator")),"") ->  | BM173: =IF(C173="X",IF(AN173<>"DA","-",IF(AND(AN173="DA",BL173<=0),LEN(TRIM(V173))-LEN(SUBSTITUTE(V173,CHAR(44),""))+1+LEN(TRIM(U173))-LEN(SUBSTITUTE(U173,CHAR(44),""))+1,0)),"") ->  | BN173: =IF(C173="X",IF(AN173="DA",LEN(TRIM(V173))-LEN(SUBSTITUTE(V173,CHAR(44),""))+1+LEN(TRIM(U173))-LEN(SUBSTITUTE(U173,CHAR(44),""))+1,"-"),"") -> 
A174: 158 | B174: x | C174: - | D174: Înlocuire robinet defect în SRM Bacău I | E174: 20304 | F174: Bacău | G174: Bacău | H174: 644131.48 | I174: 564958.99 | J174: 644131.48 | K174: 564958.99 | L174: - | M174: - | N174: SM0443D0 | O174: Bacău I | P174: - | Q174: - | R174: - | S174: - | T174: SM-SD001 | U174: Aderro GP, Nova Power, Cez Vânzare, Racord Furnizare, Cis Gaz, Colterm, Conef Gaz, CPL Concordia, Crest Energy, Delgaz, Design Proiect, Distrigaz Vest, Engie, Axpo, E.on Energie, Electrica Furnizare, Electric Planners, Energy Distribution, Enel Energie, Enel Muntenia, Gas&Power, Entrex, Premier Energy Trading, Gaz Est, Gazmir, Getica 95, Mihoc Oil, Met România, Monsson, MVM Future, Next Energy Distribution, Next Energy Partners, Pado Group, Premier Energy, Petrom, Prisma Serv, Gas Provider, Renovatio, Romgaz, RWE Supply, SST Grup, Tetarom, Tinmar, Transenergo, Veolia, Wiee | V174: Delgaz Grid | W174: - | X174: 2022-03-14 | Y174: 10:20:00 | Z174: 2022-03-17 | AA174: 14:00:00 | AB174: Bacău | AC174: Efectuată | AE174: 2022-03-14 | AF174: 10:20:00 | AG174: 2022-03-16 | AH174: 13:04:00 | AI174: 2022-03-14 | AJ174: 10:35:00 | AK174: 2022-03-14 | AL174: 10:28:00 | AM174: 19465/11.03.2022 | AN174: NU | AR174: =IF(B174="X",IF(AN174="","Afectat sau NU?",IF(AN174="DA",IF(((AK174+AL174)-(AE174+AF174))*24<-720,"Neinformat",((AK174+AL174)-(AE174+AF174))*24),"Nu a fost afectat producator/consumator")),"") -> Nu a fost afectat producator/consumator | AS174: =IF(B174="X",IF(AN174="DA",IF(AR174<6,LEN(TRIM(V174))-LEN(SUBSTITUTE(V174,CHAR(44),""))+1,0),"-"),"") -> - | AT174: =IF(B174="X",IF(AN174="DA",LEN(TRIM(V174))-LEN(SUBSTITUTE(V174,CHAR(44),""))+1,"-"),"") -> - | AU174: =IF(B174="X",IF(AN174="","Afectat sau NU?",IF(AN174="DA",IF(((AI174+AJ174)-(AE174+AF174))*24<-720,"Neinformat",((AI174+AJ174)-(AE174+AF174))*24),"Nu a fost afectat producator/consumator")),"") -> Nu a fost afectat producator/consumator | AV174: =IF(B174="X",IF(AN174="DA",IF(AU174<6,LEN(TRIM(U174))-LEN(SUBSTITUTE(U174,CHAR(44),""))+1,0),"-"),"") -> - | AW174: =IF(B174="X",IF(AN174="DA",LEN(TRIM(U174))-LEN(SUBSTITUTE(U174,CHAR(44),""))+1,"-"),"") -> - | AX174: =IF(B174="X",IF(AN174="","Afectat sau NU?",IF(AN174="DA",((AG174+AH174)-(AE174+AF174))*24,"Nu a fost afectat producator/consumator")),"") -> Nu a fost afectat producator/consumator | AY174: =IF(B174="X",IF(AN174="DA",IF(AX174>24,IF(BA174="NU",0,LEN(TRIM(V174))-LEN(SUBSTITUTE(V174,CHAR(44),""))+1),0),"-"),"") -> - | AZ174: =IF(B174="X",IF(AN174="DA",IF(AX174>24,LEN(TRIM(V174))-LEN(SUBSTITUTE(V174,CHAR(44),""))+1,0),"-"),"") -> - | BF174: =IF(C174="X",IF(AN174="","Afectat sau NU?",IF(AN174="DA",IF(AK174="","Neinformat",NETWORKDAYS(AK174+AL174,AE174+AF174,$BS$2:$BS$14)-2),"Nu a fost afectat producator/consumator")),"") ->  | BG174: =IF(C174="X",IF(AN174="DA",IF(AND(BF174>=5,AK174<>""),LEN(TRIM(V174))-LEN(SUBSTITUTE(V174,CHAR(44),""))+1,0),"-"),"") ->  | BH174: =IF(C174="X",IF(AN174="DA",LEN(TRIM(V174))-LEN(SUBSTITUTE(V174,CHAR(44),""))+1,"-"),"") ->  | BI174: =IF(C174="X",IF(AN174="","Afectat sau NU?",IF(AN174="DA",IF(AI174="","Neinformat",NETWORKDAYS(AI174+AJ174,AE174+AF174,$BS$2:$BS$14)-2),"Nu a fost afectat producator/consumator")),"") ->  | BJ174: =IF(C174="X",IF(AN174="DA",IF(AND(BI174>=5,AI174<>""),LEN(TRIM(U174))-LEN(SUBSTITUTE(U174,CHAR(44),""))+1,0),"-"),"") ->  | BK174: =IF(C174="X",IF(AN174="DA",LEN(TRIM(U174))-LEN(SUBSTITUTE(U174,CHAR(44),""))+1,"-"),"") ->  | BL174: =IF(C174="X",IF(AN174="","Afectat sau NU?",IF(AN174="DA",((AG174+AH174)-(Z174+AA174))*24,"Nu a fost afectat producator/consumator")),"") ->  | BM174: =IF(C174="X",IF(AN174<>"DA","-",IF(AND(AN174="DA",BL174<=0),LEN(TRIM(V174))-LEN(SUBSTITUTE(V174,CHAR(44),""))+1+LEN(TRIM(U174))-LEN(SUBSTITUTE(U174,CHAR(44),""))+1,0)),"") ->  | BN174: =IF(C174="X",IF(AN174="DA",LEN(TRIM(V174))-LEN(SUBSTITUTE(V174,CHAR(44),""))+1+LEN(TRIM(U174))-LEN(SUBSTITUTE(U174,CHAR(44),""))+1,"-"),"") -> 
A175: 159 | B175: x | C175: - | D175: Remediere defect pe conducta 12” Sibiu - Ilimbav, zona Ilimbav | E175: 144900 | F175: Marpod | G175: Sibiu | H175: 462619.42 | I175: 486011.03 | J175: 462619.42 | K175: 486011.03 | L175: - | M175: - | N175: - | O175: - | P175: - | Q175: - | R175: PM0094 | S175: Marpod | T175: PM-PP001 | U175: Romgaz | V175: Romgaz | W175: - | X175: 2022-03-23 | Y175: 09:40:00 | Z175: 2022-03-23 | AA175: 18:00:00 | AB175: Mediaș | AC175: Efectuată | AE175: 2022-03-23 | AF175: 09:40:00 | AG175: 2022-03-23 | AH175: 17:05:00 | AI175: 2022-03-23 | AJ175: 10:08:00 | AK175: 2022-03-23 | AL175: 09:48:00 | AM175: 1260/23.03.2022 | AN175: DA | AR175: =IF(B175="X",IF(AN175="","Afectat sau NU?",IF(AN175="DA",IF(((AK175+AL175)-(AE175+AF175))*24<-720,"Neinformat",((AK175+AL175)-(AE175+AF175))*24),"Nu a fost afectat producator/consumator")),"") -> 0.1333333332 | AS175: =IF(B175="X",IF(AN175="DA",IF(AR175<6,LEN(TRIM(V175))-LEN(SUBSTITUTE(V175,CHAR(44),""))+1,0),"-"),"") -> 1 | AT175: =IF(B175="X",IF(AN175="DA",LEN(TRIM(V175))-LEN(SUBSTITUTE(V175,CHAR(44),""))+1,"-"),"") -> 1 | AU175: =IF(B175="X",IF(AN175="","Afectat sau NU?",IF(AN175="DA",IF(((AI175+AJ175)-(AE175+AF175))*24<-720,"Neinformat",((AI175+AJ175)-(AE175+AF175))*24),"Nu a fost afectat producator/consumator")),"") -> 0.4666666666 | AV175: =IF(B175="X",IF(AN175="DA",IF(AU175<6,LEN(TRIM(U175))-LEN(SUBSTITUTE(U175,CHAR(44),""))+1,0),"-"),"") -> 1 | AW175: =IF(B175="X",IF(AN175="DA",LEN(TRIM(U175))-LEN(SUBSTITUTE(U175,CHAR(44),""))+1,"-"),"") -> 1 | AX175: =IF(B175="X",IF(AN175="","Afectat sau NU?",IF(AN175="DA",((AG175+AH175)-(AE175+AF175))*24,"Nu a fost afectat producator/consumator")),"") -> 7.416666667 | AY175: =IF(B175="X",IF(AN175="DA",IF(AX175>24,IF(BA175="NU",0,LEN(TRIM(V175))-LEN(SUBSTITUTE(V175,CHAR(44),""))+1),0),"-"),"") -> 0 | AZ175: =IF(B175="X",IF(AN175="DA",IF(AX175>24,LEN(TRIM(V175))-LEN(SUBSTITUTE(V175,CHAR(44),""))+1,0),"-"),"") -> 0 | BF175: =IF(C175="X",IF(AN175="","Afectat sau NU?",IF(AN175="DA",IF(AK175="","Neinformat",NETWORKDAYS(AK175+AL175,AE175+AF175,$BS$2:$BS$14)-2),"Nu a fost afectat producator/consumator")),"") ->  | BG175: =IF(C175="X",IF(AN175="DA",IF(AND(BF175>=5,AK175<>""),LEN(TRIM(V175))-LEN(SUBSTITUTE(V175,CHAR(44),""))+1,0),"-"),"") ->  | BH175: =IF(C175="X",IF(AN175="DA",LEN(TRIM(V175))-LEN(SUBSTITUTE(V175,CHAR(44),""))+1,"-"),"") ->  | BI175: =IF(C175="X",IF(AN175="","Afectat sau NU?",IF(AN175="DA",IF(AI175="","Neinformat",NETWORKDAYS(AI175+AJ175,AE175+AF175,$BS$2:$BS$14)-2),"Nu a fost afectat producator/consumator")),"") ->  | BJ175: =IF(C175="X",IF(AN175="DA",IF(AND(BI175>=5,AI175<>""),LEN(TRIM(U175))-LEN(SUBSTITUTE(U175,CHAR(44),""))+1,0),"-"),"") ->  | BK175: =IF(C175="X",IF(AN175="DA",LEN(TRIM(U175))-LEN(SUBSTITUTE(U175,CHAR(44),""))+1,"-"),"") ->  | BL175: =IF(C175="X",IF(AN175="","Afectat sau NU?",IF(AN175="DA",((AG175+AH175)-(Z175+AA175))*24,"Nu a fost afectat producator/consumator")),"") ->  | BM175: =IF(C175="X",IF(AN175<>"DA","-",IF(AND(AN175="DA",BL175<=0),LEN(TRIM(V175))-LEN(SUBSTITUTE(V175,CHAR(44),""))+1+LEN(TRIM(U175))-LEN(SUBSTITUTE(U175,CHAR(44),""))+1,0)),"") ->  | BN175: =IF(C175="X",IF(AN175="DA",LEN(TRIM(V175))-LEN(SUBSTITUTE(V175,CHAR(44),""))+1+LEN(TRIM(U175))-LEN(SUBSTITUTE(U175,CHAR(44),""))+1,"-"),"") -> 
